Workbook

Sheet Mapa
A22: X = | B22: 0
A23: Y = | B23: 0

Sheet Información
H1: Y
B2: =IF(ISNUMBER(miPaís), HYPERLINK("https://es.wikipedia.org/wiki/" & IF(miSelección="","Anexo:Países",LEFT(miSelección,IFERROR(FIND(" - ",miSelección)-1,LEN(miSelección)))),IF(miSelección="","Seleccionar algún país",miSelección&"")), HYPERLINK("https://es.wikipedia.org/wiki/" & IF(miPaís="","Anexo:Países",LEFT(miPaís,IFERROR(FIND(" - ",miPaís)-1,LEN(miPaís)))),IF(miPaís="","Seleccionar algún país",miPaís&""))) -> Seleccionar algún país | H2: 1 | J2: Blog: | K2: Puntero al mapa de África | #ExcelPedroWave
H3: 2 | J3: YouTube: | K3: Excel Pedro Wave
B4: =IF(miSelección="","",IFERROR(INDEX(TablaPaíses[Nombre oficial],miFilaPaíses),"")) ->  | H4: 3 | J4: Copyright: | K4: Creative Commons 3.0
H5: 4 | J5: Población: | K5: Countries by population (countrymeters.info)
B6: =IF(miSelección="","",IFERROR("Capital: "&INDEX(Datos[Capital],miFilaDatos)&"","")) ->  | H6: 5 | J6: Wikipedia: | K6: Anexo:Países - Wikipedia
B7: =IF(miSelección="","",IFERROR(INDEX(TablaPaíses[Población],miFilaPaíses),"")) ->  | H7: 6
B8: =IF(miSelección="","",IFERROR(INDEX(Datos[Superficie (km²)],miFilaDatos),"")) ->  | H8: 7 | J8: URL: | K8: https://es.wikipedia.org/wiki/Riyal saudí
B9: =IF(miSelección="","",IFERROR("Idiomas: " & INDEX(Datos[Idiomas],miFilaDatos),"")) ->  | H9: 8
H10: 9
B11: =IF(miSelección="","",IFERROR("Monedas: " & INDEX(Datos[Monedas],miFilaDatos),"")) ->  | H11: 10
H12: 11
B13: =IF(miSelección="","",IF(IFERROR(INDEX(Datos[Código ISO 3166-1],miFilaDatos),"")<>"",IFERROR("Código ISO 3166-1: " & INDEX(Datos[Código ISO 3166-1],miFilaDatos),""),IFERROR("Estatus: "&INDEX(Datos[Estatus],miFilaDatos)&"",""))) ->  | H13: 12
H14: 13
B15: ü | C15: q | D15:  | E15: ZM | F15: á | G15: Z+ | H15: 14
B16: ñ | C16: ) | D16: i | E16: ß | F16: Z0 | G16: à | H16: 15
B17: H | C17: ë | D17: > | E17: Zm | F17: â | G17: Z- | H17: 16
A18: X | B18: 1 | C18: 2 | D18: 3 | E18: 4 | F18: 5 | G18: 6
B20: ë | E20: X = | F20: 5 | G20: Y = | H20: 15

Sheet Fronteras
A1: Frontera | B1: X | C1: Y | D1: Ancho | E1: Alto | F1: Centro X | G1: Centro Y | H1: Distancia | I1: Fila
A2: Puerto Rico | B2: 216.8623657 | C2: 155.724884 | D2: 3.380708694 | E2: 1.434252024 | F2: =TablaFronteras[[#This Row],[X]]+TablaFronteras[[#This Row],[Ancho]]/2 -> 218.5527201 | G2: =TablaFronteras[[#This Row],[Y]]+TablaFronteras[[#This Row],[Alto]]/2 -> 156.44201 | H2: =IF(AND(TablaFronteras[[#This Row],[Fila]]<>"",TablaFronteras[[#This Row],[X]]<miX,miX<TablaFronteras[[#This Row],[X]]+TablaFronteras[[#This Row],[Ancho]],TablaFronteras[[#This Row],[Y]]<miY,miY<TablaFronteras[[#This Row],[Y]]+TablaFronteras[[#This Row],[Alto]]),SQRT((TablaFronteras[[#This Row],[Centro X]]-miX)^2+(TablaFronteras[[#This Row],[Centro Y]]-miY)^2),"") ->  | I2: =IF(TablaFronteras[[#This Row],[Frontera]]="","",IFERROR(MATCH(RIGHT(TablaFronteras[[#This Row],[Frontera]],LEN(TablaFronteras[[#This Row],[Frontera]])-IFERROR(FIND(" - ",TablaFronteras[[#This Row],[Frontera]])+2,0)),Datos[País],0),"")) -> 206
A3: Jamaica | B3: 194.0974731 | C3: 155.7906342 | D3: 2.957559109 | E3: 1.896614194 | F3: =TablaFronteras[[#This Row],[X]]+TablaFronteras[[#This Row],[Ancho]]/2 -> 195.5762527 | G3: =TablaFronteras[[#This Row],[Y]]+TablaFronteras[[#This Row],[Alto]]/2 -> 156.7389413 | H3: =IF(AND(TablaFronteras[[#This Row],[Fila]]<>"",TablaFronteras[[#This Row],[X]]<miX,miX<TablaFronteras[[#This Row],[X]]+TablaFronteras[[#This Row],[Ancho]],TablaFronteras[[#This Row],[Y]]<miY,miY<TablaFronteras[[#This Row],[Y]]+TablaFronteras[[#This Row],[Alto]]),SQRT((TablaFronteras[[#This Row],[Centro X]]-miX)^2+(TablaFronteras[[#This Row],[Centro Y]]-miY)^2),"") ->  | I3: =IF(TablaFronteras[[#This Row],[Frontera]]="","",IFERROR(MATCH(RIGHT(TablaFronteras[[#This Row],[Frontera]],LEN(TablaFronteras[[#This Row],[Frontera]])-IFERROR(FIND(" - ",TablaFronteras[[#This Row],[Frontera]])+2,0)),Datos[País],0),"")) -> 136
A4: Tierras Australes Francesas | B4: 481.1268616 | C4: 317.8344116 | D4: 3.777795315 | E4: 2.482834578 | F4: =TablaFronteras[[#This Row],[X]]+TablaFronteras[[#This Row],[Ancho]]/2 -> 483.0157592 | G4: =TablaFronteras[[#This Row],[Y]]+TablaFronteras[[#This Row],[Alto]]/2 -> 319.0758289 | H4: =IF(AND(TablaFronteras[[#This Row],[Fila]]<>"",TablaFronteras[[#This Row],[X]]<miX,miX<TablaFronteras[[#This Row],[X]]+TablaFronteras[[#This Row],[Ancho]],TablaFronteras[[#This Row],[Y]]<miY,miY<TablaFronteras[[#This Row],[Y]]+TablaFronteras[[#This Row],[Alto]]),SQRT((TablaFronteras[[#This Row],[Centro X]]-miX)^2+(TablaFronteras[[#This Row],[Centro Y]]-miY)^2),"") ->  | I4: =IF(TablaFronteras[[#This Row],[Frontera]]="","",IFERROR(MATCH(RIGHT(TablaFronteras[[#This Row],[Frontera]],LEN(TablaFronteras[[#This Row],[Frontera]])-IFERROR(FIND(" - ",TablaFronteras[[#This Row],[Frontera]])+2,0)),Datos[País],0),"")) -> 254
A5: República Democrática del Congo | B5: 379.2539368 | C5: 187.6327515 | D5: 40.27039337 | E5: 45.51472473 | F5: =TablaFronteras[[#This Row],[X]]+TablaFronteras[[#This Row],[Ancho]]/2 -> 399.3891335 | G5: =TablaFronteras[[#This Row],[Y]]+TablaFronteras[[#This Row],[Alto]]/2 -> 210.3901138 | H5: =IF(AND(TablaFronteras[[#This Row],[Fila]]<>"",TablaFronteras[[#This Row],[X]]<miX,miX<TablaFronteras[[#This Row],[X]]+TablaFronteras[[#This Row],[Ancho]],TablaFronteras[[#This Row],[Y]]<miY,miY<TablaFronteras[[#This Row],[Y]]+TablaFronteras[[#This Row],[Alto]]),SQRT((TablaFronteras[[#This Row],[Centro X]]-miX)^2+(TablaFronteras[[#This Row],[Centro Y]]-miY)^2),"") ->  | I5: =IF(TablaFronteras[[#This Row],[Frontera]]="","",IFERROR(MATCH(RIGHT(TablaFronteras[[#This Row],[Frontera]],LEN(TablaFronteras[[#This Row],[Frontera]])-IFERROR(FIND(" - ",TablaFronteras[[#This Row],[Frontera]])+2,0)),Datos[País],0),"")) -> 210
A6: República del Congo | B6: 376.9829102 | C6: 191.5536194 | D6: 16.19354248 | E6: 21.19913292 | F6: =TablaFronteras[[#This Row],[X]]+TablaFronteras[[#This Row],[Ancho]]/2 -> 385.0796814 | G6: =TablaFronteras[[#This Row],[Y]]+TablaFronteras[[#This Row],[Alto]]/2 -> 202.1531858 | H6: =IF(AND(TablaFronteras[[#This Row],[Fila]]<>"",TablaFronteras[[#This Row],[X]]<miX,miX<TablaFronteras[[#This Row],[X]]+TablaFronteras[[#This Row],[Ancho]],TablaFronteras[[#This Row],[Y]]<miY,miY<TablaFronteras[[#This Row],[Y]]+TablaFronteras[[#This Row],[Alto]]),SQRT((TablaFronteras[[#This Row],[Centro X]]-miX)^2+(TablaFronteras[[#This Row],[Centro Y]]-miY)^2),"") ->  | I6: =IF(TablaFronteras[[#This Row],[Frontera]]="","",IFERROR(MATCH(RIGHT(TablaFronteras[[#This Row],[Frontera]],LEN(TablaFronteras[[#This Row],[Frontera]])-IFERROR(FIND(" - ",TablaFronteras[[#This Row],[Frontera]])+2,0)),Datos[País],0),"")) -> 212
A7: Senegal | B7: 318.5886536 | C7: 160.1418915 | D7: 11.9731493 | E7: 10.63039398 | F7: =TablaFronteras[[#This Row],[X]]+TablaFronteras[[#This Row],[Ancho]]/2 -> 324.5752282 | G7: =TablaFronteras[[#This Row],[Y]]+TablaFronteras[[#This Row],[Alto]]/2 -> 165.4570885 | H7: =IF(AND(TablaFronteras[[#This Row],[Fila]]<>"",TablaFronteras[[#This Row],[X]]<miX,miX<TablaFronteras[[#This Row],[X]]+TablaFronteras[[#This Row],[Ancho]],TablaFronteras[[#This Row],[Y]]<miY,miY<TablaFronteras[[#This Row],[Y]]+TablaFronteras[[#This Row],[Alto]]),SQRT((TablaFronteras[[#This Row],[Centro X]]-miX)^2+(TablaFronteras[[#This Row],[Centro Y]]-miY)^2),"") ->  | I7: =IF(TablaFronteras[[#This Row],[Frontera]]="","",IFERROR(MATCH(RIGHT(TablaFronteras[[#This Row],[Frontera]],LEN(TablaFronteras[[#This Row],[Frontera]])-IFERROR(FIND(" - ",TablaFronteras[[#This Row],[Frontera]])+2,0)),Datos[País],0),"")) -> 231
A8: Albania | B8: 392.8946533 | C8: 97.5792923 | D8: 3.494251966 | E8: 7.033700943 | F8: =TablaFronteras[[#This Row],[X]]+TablaFronteras[[#This Row],[Ancho]]/2 -> 394.6417793 | G8: =TablaFronteras[[#This Row],[Y]]+TablaFronteras[[#This Row],[Alto]]/2 -> 101.0961428 | H8: =IF(AND(TablaFronteras[[#This Row],[Fila]]<>"",TablaFronteras[[#This Row],[X]]<miX,miX<TablaFronteras[[#This Row],[X]]+TablaFronteras[[#This Row],[Ancho]],TablaFronteras[[#This Row],[Y]]<miY,miY<TablaFronteras[[#This Row],[Y]]+TablaFronteras[[#This Row],[Alto]]),SQRT((TablaFronteras[[#This Row],[Centro X]]-miX)^2+(TablaFronteras[[#This Row],[Centro Y]]-miY)^2),"") ->  | I8: =IF(TablaFronteras[[#This Row],[Frontera]]="","",IFERROR(MATCH(RIGHT(TablaFronteras[[#This Row],[Frontera]],LEN(TablaFronteras[[#This Row],[Frontera]])-IFERROR(FIND(" - ",TablaFronteras[[#This Row],[Frontera]])+2,0)),Datos[País],0),"")) -> 4
A9: Bulgaria | B9: 397.0516663 | C9: 93.86574554 | D9: 12.94259834 | E9: 6.996456623 | F9: =TablaFronteras[[#This Row],[X]]+TablaFronteras[[#This Row],[Ancho]]/2 -> 403.5229654 | G9: =TablaFronteras[[#This Row],[Y]]+TablaFronteras[[#This Row],[Alto]]/2 -> 97.36397386 | H9: =IF(AND(TablaFronteras[[#This Row],[Fila]]<>"",TablaFronteras[[#This Row],[X]]<miX,miX<TablaFronteras[[#This Row],[X]]+TablaFronteras[[#This Row],[Ancho]],TablaFronteras[[#This Row],[Y]]<miY,miY<TablaFronteras[[#This Row],[Y]]+TablaFronteras[[#This Row],[Alto]]),SQRT((TablaFronteras[[#This Row],[Centro X]]-miX)^2+(TablaFronteras[[#This Row],[Centro Y]]-miY)^2),"") ->  | I9: =IF(TablaFronteras[[#This Row],[Frontera]]="","",IFERROR(MATCH(RIGHT(TablaFronteras[[#This Row],[Frontera]],LEN(TablaFronteras[[#This Row],[Frontera]])-IFERROR(FIND(" - ",TablaFronteras[[#This Row],[Frontera]])+2,0)),Datos[País],0),"")) -> 39
A10: Noruega | B10: 348.1113281 | C10: 16.85236168 | D10: 58.00196838 | E10: 45.12574768 | F10: =TablaFronteras[[#This Row],[X]]+TablaFronteras[[#This Row],[Ancho]]/2 -> 377.1123123 | G10: =TablaFronteras[[#This Row],[Y]]+TablaFronteras[[#This Row],[Alto]]/2 -> 39.41523552 | H10: =IF(AND(TablaFronteras[[#This Row],[Fila]]<>"",TablaFronteras[[#This Row],[X]]<miX,miX<TablaFronteras[[#This Row],[X]]+TablaFronteras[[#This Row],[Ancho]],TablaFronteras[[#This Row],[Y]]<miY,miY<TablaFronteras[[#This Row],[Y]]+TablaFronteras[[#This Row],[Alto]]),SQRT((TablaFronteras[[#This Row],[Centro X]]-miX)^2+(TablaFronteras[[#This Row],[Centro Y]]-miY)^2),"") ->  | I10: =IF(TablaFronteras[[#This Row],[Frontera]]="","",IFERROR(MATCH(RIGHT(TablaFronteras[[#This Row],[Frontera]],LEN(TablaFronteras[[#This Row],[Frontera]])-IFERROR(FIND(" - ",TablaFronteras[[#This Row],[Frontera]])+2,0)),Datos[País],0),"")) -> 184
A11: China | B11: 496.9219666 | C11: 72.05558777 | D11: 107.0614929 | E11: 84.39322662 | F11: =TablaFronteras[[#This Row],[X]]+TablaFronteras[[#This Row],[Ancho]]/2 -> 550.452713 | G11: =TablaFronteras[[#This Row],[Y]]+TablaFronteras[[#This Row],[Alto]]/2 -> 114.2522011 | H11: =IF(AND(TablaFronteras[[#This Row],[Fila]]<>"",TablaFronteras[[#This Row],[X]]<miX,miX<TablaFronteras[[#This Row],[X]]+TablaFronteras[[#This Row],[Ancho]],TablaFronteras[[#This Row],[Y]]<miY,miY<TablaFronteras[[#This Row],[Y]]+TablaFronteras[[#This Row],[Alto]]),SQRT((TablaFronteras[[#This Row],[Centro X]]-miX)^2+(TablaFronteras[[#This Row],[Centro Y]]-miY)^2),"") ->  | I11: =IF(TablaFronteras[[#This Row],[Frontera]]="","",IFERROR(MATCH(RIGHT(TablaFronteras[[#This Row],[Frontera]],LEN(TablaFronteras[[#This Row],[Frontera]])-IFERROR(FIND(" - ",TablaFronteras[[#This Row],[Frontera]])+2,0)),Datos[País],0),"")) -> 53
A12: Australia | B12: 487.860321 | C12: 225.0926819 | D12: 207.0284271 | E12: 105.6832275 | F12: =TablaFronteras[[#This Row],[X]]+TablaFronteras[[#This Row],[Ancho]]/2 -> 591.3745346 | G12: =TablaFronteras[[#This Row],[Y]]+TablaFronteras[[#This Row],[Alto]]/2 -> 277.9342957 | H12: =IF(AND(TablaFronteras[[#This Row],[Fila]]<>"",TablaFronteras[[#This Row],[X]]<miX,miX<TablaFronteras[[#This Row],[X]]+TablaFronteras[[#This Row],[Ancho]],TablaFronteras[[#This Row],[Y]]<miY,miY<TablaFronteras[[#This Row],[Y]]+TablaFronteras[[#This Row],[Alto]]),SQRT((TablaFronteras[[#This Row],[Centro X]]-miX)^2+(TablaFronteras[[#This Row],[Centro Y]]-miY)^2),"") ->  | I12: =IF(TablaFronteras[[#This Row],[Frontera]]="","",IFERROR(MATCH(RIGHT(TablaFronteras[[#This Row],[Frontera]],LEN(TablaFronteras[[#This Row],[Frontera]])-IFERROR(FIND(" - ",TablaFronteras[[#This Row],[Frontera]])+2,0)),Datos[País],0),"")) -> 19
A13: Indonesia | B13: 551.5252075 | C13: 186.3466949 | D13: 95.45275879 | E13: 40.76944733 | F13: =TablaFronteras[[#This Row],[X]]+TablaFronteras[[#This Row],[Ancho]]/2 -> 599.2515869 | G13: =TablaFronteras[[#This Row],[Y]]+TablaFronteras[[#This Row],[Alto]]/2 -> 206.7314186 | H13: =IF(AND(TablaFronteras[[#This Row],[Fila]]<>"",TablaFronteras[[#This Row],[X]]<miX,miX<TablaFronteras[[#This Row],[X]]+TablaFronteras[[#This Row],[Ancho]],TablaFronteras[[#This Row],[Y]]<miY,miY<TablaFronteras[[#This Row],[Y]]+TablaFronteras[[#This Row],[Alto]]),SQRT((TablaFronteras[[#This Row],[Centro X]]-miX)^2+(TablaFronteras[[#This Row],[Centro Y]]-miY)^2),"") ->  | I13: =IF(TablaFronteras[[#This Row],[Frontera]]="","",IFERROR(MATCH(RIGHT(TablaFronteras[[#This Row],[Frontera]],LEN(TablaFronteras[[#This Row],[Frontera]])-IFERROR(FIND(" - ",TablaFronteras[[#This Row],[Frontera]])+2,0)),Datos[País],0),"")) -> 105
A14: Groenlandia | B14: 263.8008728 | C14: 12.5771656 | D14: 83.10984039 | E14: 45.4438591 | F14: =TablaFronteras[[#This Row],[X]]+TablaFronteras[[#This Row],[Ancho]]/2 -> 305.355793 | G14: =TablaFronteras[[#This Row],[Y]]+TablaFronteras[[#This Row],[Alto]]/2 -> 35.29909515 | H14: =IF(AND(TablaFronteras[[#This Row],[Fila]]<>"",TablaFronteras[[#This Row],[X]]<miX,miX<TablaFronteras[[#This Row],[X]]+TablaFronteras[[#This Row],[Ancho]],TablaFronteras[[#This Row],[Y]]<miY,miY<TablaFronteras[[#This Row],[Y]]+TablaFronteras[[#This Row],[Alto]]),SQRT((TablaFronteras[[#This Row],[Centro X]]-miX)^2+(TablaFronteras[[#This Row],[Centro Y]]-miY)^2),"") ->  | I14: =IF(TablaFronteras[[#This Row],[Frontera]]="","",IFERROR(MATCH(RIGHT(TablaFronteras[[#This Row],[Frontera]],LEN(TablaFronteras[[#This Row],[Frontera]])-IFERROR(FIND(" - ",TablaFronteras[[#This Row],[Frontera]])+2,0)),Datos[País],0),"")) -> 90
A15: Canadá | B15: 123.2971649 | C15: 13.27055073 | D15: 163.2688141 | E15: 85.95378113 | F15: =TablaFronteras[[#This Row],[X]]+TablaFronteras[[#This Row],[Ancho]]/2 -> 204.931572 | G15: =TablaFronteras[[#This Row],[Y]]+TablaFronteras[[#This Row],[Alto]]/2 -> 56.24744129 | H15: =IF(AND(TablaFronteras[[#This Row],[Fila]]<>"",TablaFronteras[[#This Row],[X]]<miX,miX<TablaFronteras[[#This Row],[X]]+TablaFronteras[[#This Row],[Ancho]],TablaFronteras[[#This Row],[Y]]<miY,miY<TablaFronteras[[#This Row],[Y]]+TablaFronteras[[#This Row],[Alto]]),SQRT((TablaFronteras[[#This Row],[Centro X]]-miX)^2+(TablaFronteras[[#This Row],[Centro Y]]-miY)^2),"") ->  | I15: =IF(TablaFronteras[[#This Row],[Frontera]]="","",IFERROR(MATCH(RIGHT(TablaFronteras[[#This Row],[Frontera]],LEN(TablaFronteras[[#This Row],[Frontera]])-IFERROR(FIND(" - ",TablaFronteras[[#This Row],[Frontera]])+2,0)),Datos[País],0),"")) -> 47
A16: Estados Unidos | B16: 28.16803169 | C16: 33.78094482 | D16: 203.5213318 | E16: 120.8796844 | F16: =TablaFronteras[[#This Row],[X]]+TablaFronteras[[#This Row],[Ancho]]/2 -> 129.9286976 | G16: =TablaFronteras[[#This Row],[Y]]+TablaFronteras[[#This Row],[Alto]]/2 -> 94.22078705 | H16: =IF(AND(TablaFronteras[[#This Row],[Fila]]<>"",TablaFronteras[[#This Row],[X]]<miX,miX<TablaFronteras[[#This Row],[X]]+TablaFronteras[[#This Row],[Ancho]],TablaFronteras[[#This Row],[Y]]<miY,miY<TablaFronteras[[#This Row],[Y]]+TablaFronteras[[#This Row],[Alto]]),SQRT((TablaFronteras[[#This Row],[Centro X]]-miX)^2+(TablaFronteras[[#This Row],[Centro Y]]-miY)^2),"") ->  | I16: =IF(TablaFronteras[[#This Row],[Frontera]]="","",IFERROR(MATCH(RIGHT(TablaFronteras[[#This Row],[Frontera]],LEN(TablaFronteras[[#This Row],[Frontera]])-IFERROR(FIND(" - ",TablaFronteras[[#This Row],[Frontera]])+2,0)),Datos[País],0),"")) -> 76
A17: India | B17: 493.2909546 | C17: 114.7518921 | D17: 56.80031586 | E17: 69.49047089 | F17: =TablaFronteras[[#This Row],[X]]+TablaFronteras[[#This Row],[Ancho]]/2 -> 521.6911125 | G17: =TablaFronteras[[#This Row],[Y]]+TablaFronteras[[#This Row],[Alto]]/2 -> 149.4971275 | H17: =IF(AND(TablaFronteras[[#This Row],[Fila]]<>"",TablaFronteras[[#This Row],[X]]<miX,miX<TablaFronteras[[#This Row],[X]]+TablaFronteras[[#This Row],[Ancho]],TablaFronteras[[#This Row],[Y]]<miY,miY<TablaFronteras[[#This Row],[Y]]+TablaFronteras[[#This Row],[Alto]]),SQRT((TablaFronteras[[#This Row],[Centro X]]-miX)^2+(TablaFronteras[[#This Row],[Centro Y]]-miY)^2),"") ->  | I17: =IF(TablaFronteras[[#This Row],[Frontera]]="","",IFERROR(MATCH(RIGHT(TablaFronteras[[#This Row],[Frontera]],LEN(TablaFronteras[[#This Row],[Frontera]])-IFERROR(FIND(" - ",TablaFronteras[[#This Row],[Frontera]])+2,0)),Datos[País],0),"")) -> 104
A18: Ucrania | B18: 396.7102356 | C18: 74.71063232 | D18: 32.76251984 | E18: 16.80692863 | F18: =TablaFronteras[[#This Row],[X]]+TablaFronteras[[#This Row],[Ancho]]/2 -> 413.0914955 | G18: =TablaFronteras[[#This Row],[Y]]+TablaFronteras[[#This Row],[Alto]]/2 -> 83.11409664 | H18: =IF(AND(TablaFronteras[[#This Row],[Fila]]<>"",TablaFronteras[[#This Row],[X]]<miX,miX<TablaFronteras[[#This Row],[X]]+TablaFronteras[[#This Row],[Ancho]],TablaFronteras[[#This Row],[Y]]<miY,miY<TablaFronteras[[#This Row],[Y]]+TablaFronteras[[#This Row],[Alto]]),SQRT((TablaFronteras[[#This Row],[Centro X]]-miX)^2+(TablaFronteras[[#This Row],[Centro Y]]-miY)^2),"") ->  | I18: =IF(TablaFronteras[[#This Row],[Frontera]]="","",IFERROR(MATCH(RIGHT(TablaFronteras[[#This Row],[Frontera]],LEN(TablaFronteras[[#This Row],[Frontera]])-IFERROR(FIND(" - ",TablaFronteras[[#This Row],[Frontera]])+2,0)),Datos[País],0),"")) -> 265
A19: Malasia | B19: 561.2561646 | C19: 182.8780365 | D19: 40.87181091 | E19: 15.62732315 | F19: =TablaFronteras[[#This Row],[X]]+TablaFronteras[[#This Row],[Ancho]]/2 -> 581.69207 | G19: =TablaFronteras[[#This Row],[Y]]+TablaFronteras[[#This Row],[Alto]]/2 -> 190.6916981 | H19: =IF(AND(TablaFronteras[[#This Row],[Fila]]<>"",TablaFronteras[[#This Row],[X]]<miX,miX<TablaFronteras[[#This Row],[X]]+TablaFronteras[[#This Row],[Ancho]],TablaFronteras[[#This Row],[Y]]<miY,miY<TablaFronteras[[#This Row],[Y]]+TablaFronteras[[#This Row],[Alto]]),SQRT((TablaFronteras[[#This Row],[Centro X]]-miX)^2+(TablaFronteras[[#This Row],[Centro Y]]-miY)^2),"") ->  | I19: =IF(TablaFronteras[[#This Row],[Frontera]]="","",IFERROR(MATCH(RIGHT(TablaFronteras[[#This Row],[Frontera]],LEN(TablaFronteras[[#This Row],[Frontera]])-IFERROR(FIND(" - ",TablaFronteras[[#This Row],[Frontera]])+2,0)),Datos[País],0),"")) -> 158
A20: Taiwán | B20: 598.0986328 | C20: 139.5232239 | D20: 2.992834568 | E20: 7.972834587 | F20: =TablaFronteras[[#This Row],[X]]+TablaFronteras[[#This Row],[Ancho]]/2 -> 599.5950501 | G20: =TablaFronteras[[#This Row],[Y]]+TablaFronteras[[#This Row],[Alto]]/2 -> 143.5096412 | H20: =IF(AND(TablaFronteras[[#This Row],[Fila]]<>"",TablaFronteras[[#This Row],[X]]<miX,miX<TablaFronteras[[#This Row],[X]]+TablaFronteras[[#This Row],[Ancho]],TablaFronteras[[#This Row],[Y]]<miY,miY<TablaFronteras[[#This Row],[Y]]+TablaFronteras[[#This Row],[Alto]]),SQRT((TablaFronteras[[#This Row],[Centro X]]-miX)^2+(TablaFronteras[[#This Row],[Centro Y]]-miY)^2),"") ->  | I20: =IF(TablaFronteras[[#This Row],[Frontera]]="","",IFERROR(MATCH(RIGHT(TablaFronteras[[#This Row],[Frontera]],LEN(TablaFronteras[[#This Row],[Frontera]])-IFERROR(FIND(" - ",TablaFronteras[[#This Row],[Frontera]])+2,0)),Datos[País],0),"")) -> 250
A21: Rusia | B21: 392.0327454 | C21: 15.16700745 | D21: 265.0511169 | E21: 85.88378143 | F21: =TablaFronteras[[#This Row],[X]]+TablaFronteras[[#This Row],[Ancho]]/2 -> 524.5583038 | G21: =TablaFronteras[[#This Row],[Y]]+TablaFronteras[[#This Row],[Alto]]/2 -> 58.10889816 | H21: =IF(AND(TablaFronteras[[#This Row],[Fila]]<>"",TablaFronteras[[#This Row],[X]]<miX,miX<TablaFronteras[[#This Row],[X]]+TablaFronteras[[#This Row],[Ancho]],TablaFronteras[[#This Row],[Y]]<miY,miY<TablaFronteras[[#This Row],[Y]]+TablaFronteras[[#This Row],[Alto]]),SQRT((TablaFronteras[[#This Row],[Centro X]]-miX)^2+(TablaFronteras[[#This Row],[Centro Y]]-miY)^2),"") ->  | I21: =IF(TablaFronteras[[#This Row],[Frontera]]="","",IFERROR(MATCH(RIGHT(TablaFronteras[[#This Row],[Frontera]],LEN(TablaFronteras[[#This Row],[Frontera]])-IFERROR(FIND(" - ",TablaFronteras[[#This Row],[Frontera]])+2,0)),Datos[País],0),"")) -> 216
A22: Crimea - Ucrania | B22: 417.0750427 | C22: 88.78779602 | D22: 7.66401577 | E22: 4.128976345 | F22: =TablaFronteras[[#This Row],[X]]+TablaFronteras[[#This Row],[Ancho]]/2 -> 420.9070506 | G22: =TablaFronteras[[#This Row],[Y]]+TablaFronteras[[#This Row],[Alto]]/2 -> 90.85228419 | H22: =IF(AND(TablaFronteras[[#This Row],[Fila]]<>"",TablaFronteras[[#This Row],[X]]<miX,miX<TablaFronteras[[#This Row],[X]]+TablaFronteras[[#This Row],[Ancho]],TablaFronteras[[#This Row],[Y]]<miY,miY<TablaFronteras[[#This Row],[Y]]+TablaFronteras[[#This Row],[Alto]]),SQRT((TablaFronteras[[#This Row],[Centro X]]-miX)^2+(TablaFronteras[[#This Row],[Centro Y]]-miY)^2),"") ->  | I22: =IF(TablaFronteras[[#This Row],[Frontera]]="","",IFERROR(MATCH(RIGHT(TablaFronteras[[#This Row],[Frontera]],LEN(TablaFronteras[[#This Row],[Frontera]])-IFERROR(FIND(" - ",TablaFronteras[[#This Row],[Frontera]])+2,0)),Datos[País],0),"")) -> 265
A23: Islandia | B23: 321.1137695 | C23: 43.71070862 | D23: 16.88236237 | E23: 6.456220627 | F23: =TablaFronteras[[#This Row],[X]]+TablaFronteras[[#This Row],[Ancho]]/2 -> 329.5549507 | G23: =TablaFronteras[[#This Row],[Y]]+TablaFronteras[[#This Row],[Alto]]/2 -> 46.93881893 | H23: =IF(AND(TablaFronteras[[#This Row],[Fila]]<>"",TablaFronteras[[#This Row],[X]]<miX,miX<TablaFronteras[[#This Row],[X]]+TablaFronteras[[#This Row],[Ancho]],TablaFronteras[[#This Row],[Y]]<miY,miY<TablaFronteras[[#This Row],[Y]]+TablaFronteras[[#This Row],[Alto]]),SQRT((TablaFronteras[[#This Row],[Centro X]]-miX)^2+(TablaFronteras[[#This Row],[Centro Y]]-miY)^2),"") ->  | I23: =IF(TablaFronteras[[#This Row],[Frontera]]="","",IFERROR(MATCH(RIGHT(TablaFronteras[[#This Row],[Frontera]],LEN(TablaFronteras[[#This Row],[Frontera]])-IFERROR(FIND(" - ",TablaFronteras[[#This Row],[Frontera]])+2,0)),Datos[País],0),"")) -> 118
A24: Países Bajos | B24: 363.2460632 | C24: 72.23952484 | D24: 7.087637901 | E24: 6.237558842 | F24: =TablaFronteras[[#This Row],[X]]+TablaFronteras[[#This Row],[Ancho]]/2 -> 366.7898822 | G24: =TablaFronteras[[#This Row],[Y]]+TablaFronteras[[#This Row],[Alto]]/2 -> 75.35830426 | H24: =IF(AND(TablaFronteras[[#This Row],[Fila]]<>"",TablaFronteras[[#This Row],[X]]<miX,miX<TablaFronteras[[#This Row],[X]]+TablaFronteras[[#This Row],[Ancho]],TablaFronteras[[#This Row],[Y]]<miY,miY<TablaFronteras[[#This Row],[Y]]+TablaFronteras[[#This Row],[Alto]]),SQRT((TablaFronteras[[#This Row],[Centro X]]-miX)^2+(TablaFronteras[[#This Row],[Centro Y]]-miY)^2),"") ->  | I24: =IF(TablaFronteras[[#This Row],[Frontera]]="","",IFERROR(MATCH(RIGHT(TablaFronteras[[#This Row],[Frontera]],LEN(TablaFronteras[[#This Row],[Frontera]])-IFERROR(FIND(" - ",TablaFronteras[[#This Row],[Frontera]])+2,0)),Datos[País],0),"")) -> 199
A25: Francia | B25: 348.2277832 | C25: 77.75370026 | D25: 26.12070847 | E25: 22.91889763 | F25: =TablaFronteras[[#This Row],[X]]+TablaFronteras[[#This Row],[Ancho]]/2 -> 361.2881374 | G25: =TablaFronteras[[#This Row],[Y]]+TablaFronteras[[#This Row],[Alto]]/2 -> 89.21314907 | H25: =IF(AND(TablaFronteras[[#This Row],[Fila]]<>"",TablaFronteras[[#This Row],[X]]<miX,miX<TablaFronteras[[#This Row],[X]]+TablaFronteras[[#This Row],[Ancho]],TablaFronteras[[#This Row],[Y]]<miY,miY<TablaFronteras[[#This Row],[Y]]+TablaFronteras[[#This Row],[Alto]]),SQRT((TablaFronteras[[#This Row],[Centro X]]-miX)^2+(TablaFronteras[[#This Row],[Centro Y]]-miY)^2),"") ->  | I25: =IF(TablaFronteras[[#This Row],[Frontera]]="","",IFERROR(MATCH(RIGHT(TablaFronteras[[#This Row],[Frontera]],LEN(TablaFronteras[[#This Row],[Frontera]])-IFERROR(FIND(" - ",TablaFronteras[[#This Row],[Frontera]])+2,0)),Datos[País],0),"")) -> 82
A26: Italia | B26: 368.8984985 | C26: 87.08763885 | D26: 22.49196815 | E26: 24.75212669 | F26: =TablaFronteras[[#This Row],[X]]+TablaFronteras[[#This Row],[Ancho]]/2 -> 380.1444826 | G26: =TablaFronteras[[#This Row],[Y]]+TablaFronteras[[#This Row],[Alto]]/2 -> 99.4637022 | H26: =IF(AND(TablaFronteras[[#This Row],[Fila]]<>"",TablaFronteras[[#This Row],[X]]<miX,miX<TablaFronteras[[#This Row],[X]]+TablaFronteras[[#This Row],[Ancho]],TablaFronteras[[#This Row],[Y]]<miY,miY<TablaFronteras[[#This Row],[Y]]+TablaFronteras[[#This Row],[Alto]]),SQRT((TablaFronteras[[#This Row],[Centro X]]-miX)^2+(TablaFronteras[[#This Row],[Centro Y]]-miY)^2),"") ->  | I26: =IF(TablaFronteras[[#This Row],[Frontera]]="","",IFERROR(MATCH(RIGHT(TablaFronteras[[#This Row],[Frontera]],LEN(TablaFronteras[[#This Row],[Frontera]])-IFERROR(FIND(" - ",TablaFronteras[[#This Row],[Frontera]])+2,0)),Datos[País],0),"")) -> 135
A27: España | B27: 318.8129883 | C27: 94.91984558 | D27: 45.41307068 | E27: 38.67787552 | F27: =TablaFronteras[[#This Row],[X]]+TablaFronteras[[#This Row],[Ancho]]/2 -> 341.5195236 | G27: =TablaFronteras[[#This Row],[Y]]+TablaFronteras[[#This Row],[Alto]]/2 -> 114.2587833 | H27: =IF(AND(TablaFronteras[[#This Row],[Fila]]<>"",TablaFronteras[[#This Row],[X]]<miX,miX<TablaFronteras[[#This Row],[X]]+TablaFronteras[[#This Row],[Ancho]],TablaFronteras[[#This Row],[Y]]<miY,miY<TablaFronteras[[#This Row],[Y]]+TablaFronteras[[#This Row],[Alto]]),SQRT((TablaFronteras[[#This Row],[Centro X]]-miX)^2+(TablaFronteras[[#This Row],[Centro Y]]-miY)^2),"") ->  | I27: =IF(TablaFronteras[[#This Row],[Frontera]]="","",IFERROR(MATCH(RIGHT(TablaFronteras[[#This Row],[Frontera]],LEN(TablaFronteras[[#This Row],[Frontera]])-IFERROR(FIND(" - ",TablaFronteras[[#This Row],[Frontera]])+2,0)),Datos[País],0),"")) -> 75
A28: Portugal | B28: 299.9029846 | C28: 98.75708771 | D28: 44.49212646 | E28: 23.0164566 | F28: =TablaFronteras[[#This Row],[X]]+TablaFronteras[[#This Row],[Ancho]]/2 -> 322.1490479 | G28: =TablaFronteras[[#This Row],[Y]]+TablaFronteras[[#This Row],[Alto]]/2 -> 110.265316 | H28: =IF(AND(TablaFronteras[[#This Row],[Fila]]<>"",TablaFronteras[[#This Row],[X]]<miX,miX<TablaFronteras[[#This Row],[X]]+TablaFronteras[[#This Row],[Ancho]],TablaFronteras[[#This Row],[Y]]<miY,miY<TablaFronteras[[#This Row],[Y]]+TablaFronteras[[#This Row],[Alto]]),SQRT((TablaFronteras[[#This Row],[Centro X]]-miX)^2+(TablaFronteras[[#This Row],[Centro Y]]-miY)^2),"") ->  | I28: =IF(TablaFronteras[[#This Row],[Frontera]]="","",IFERROR(MATCH(RIGHT(TablaFronteras[[#This Row],[Frontera]],LEN(TablaFronteras[[#This Row],[Frontera]])-IFERROR(FIND(" - ",TablaFronteras[[#This Row],[Frontera]])+2,0)),Datos[País],0),"")) -> 205
A29: Bélgica | B29: 361.6885681 | C29: 76.84228516 | D29: 7.035039425 | E29: 4.56496048 | F29: =TablaFronteras[[#This Row],[X]]+TablaFronteras[[#This Row],[Ancho]]/2 -> 365.2060878 | G29: =TablaFronteras[[#This Row],[Y]]+TablaFronteras[[#This Row],[Alto]]/2 -> 79.1247654 | H29: =IF(AND(TablaFronteras[[#This Row],[Fila]]<>"",TablaFronteras[[#This Row],[X]]<miX,miX<TablaFronteras[[#This Row],[X]]+TablaFronteras[[#This Row],[Ancho]],TablaFronteras[[#This Row],[Y]]<miY,miY<TablaFronteras[[#This Row],[Y]]+TablaFronteras[[#This Row],[Alto]]),SQRT((TablaFronteras[[#This Row],[Centro X]]-miX)^2+(TablaFronteras[[#This Row],[Centro Y]]-miY)^2),"") ->  | I29: =IF(TablaFronteras[[#This Row],[Frontera]]="","",IFERROR(MATCH(RIGHT(TablaFronteras[[#This Row],[Frontera]],LEN(TablaFronteras[[#This Row],[Frontera]])-IFERROR(FIND(" - ",TablaFronteras[[#This Row],[Frontera]])+2,0)),Datos[País],0),"")) -> 43
A30: Irlanda | B30: 338.7609558 | C30: 68.06449127 | D30: 8.244094849 | E30: 8.816299438 | F30: =TablaFronteras[[#This Row],[X]]+TablaFronteras[[#This Row],[Ancho]]/2 -> 342.8830032 | G30: =TablaFronteras[[#This Row],[Y]]+TablaFronteras[[#This Row],[Alto]]/2 -> 72.47264099 | H30: =IF(AND(TablaFronteras[[#This Row],[Fila]]<>"",TablaFronteras[[#This Row],[X]]<miX,miX<TablaFronteras[[#This Row],[X]]+TablaFronteras[[#This Row],[Ancho]],TablaFronteras[[#This Row],[Y]]<miY,miY<TablaFronteras[[#This Row],[Y]]+TablaFronteras[[#This Row],[Alto]]),SQRT((TablaFronteras[[#This Row],[Centro X]]-miX)^2+(TablaFronteras[[#This Row],[Centro Y]]-miY)^2),"") ->  | I30: =IF(TablaFronteras[[#This Row],[Frontera]]="","",IFERROR(MATCH(RIGHT(TablaFronteras[[#This Row],[Frontera]],LEN(TablaFronteras[[#This Row],[Frontera]])-IFERROR(FIND(" - ",TablaFronteras[[#This Row],[Frontera]])+2,0)),Datos[País],0),"")) -> 107
A31: Reino Unido | B31: 343.5569153 | C31: 55.84685135 | D31: 16.8434639 | E31: 24.41873932 | F31: =TablaFronteras[[#This Row],[X]]+TablaFronteras[[#This Row],[Ancho]]/2 -> 351.9786472 | G31: =TablaFronteras[[#This Row],[Y]]+TablaFronteras[[#This Row],[Alto]]/2 -> 68.05622101 | H31: =IF(AND(TablaFronteras[[#This Row],[Fila]]<>"",TablaFronteras[[#This Row],[X]]<miX,miX<TablaFronteras[[#This Row],[X]]+TablaFronteras[[#This Row],[Ancho]],TablaFronteras[[#This Row],[Y]]<miY,miY<TablaFronteras[[#This Row],[Y]]+TablaFronteras[[#This Row],[Alto]]),SQRT((TablaFronteras[[#This Row],[Centro X]]-miX)^2+(TablaFronteras[[#This Row],[Centro Y]]-miY)^2),"") ->  | I31: =IF(TablaFronteras[[#This Row],[Frontera]]="","",IFERROR(MATCH(RIGHT(TablaFronteras[[#This Row],[Frontera]],LEN(TablaFronteras[[#This Row],[Frontera]])-IFERROR(FIND(" - ",TablaFronteras[[#This Row],[Frontera]])+2,0)),Datos[País],0),"")) -> 207
A32: Alemania | B32: 367.9505615 | C32: 68.75527191 | D32: 16.07118034 | E32: 17.87874031 | F32: =TablaFronteras[[#This Row],[X]]+TablaFronteras[[#This Row],[Ancho]]/2 -> 375.9861517 | G32: =TablaFronteras[[#This Row],[Y]]+TablaFronteras[[#This Row],[Alto]]/2 -> 77.69464207 | H32: =IF(AND(TablaFronteras[[#This Row],[Fila]]<>"",TablaFronteras[[#This Row],[X]]<miX,miX<TablaFronteras[[#This Row],[X]]+TablaFronteras[[#This Row],[Ancho]],TablaFronteras[[#This Row],[Y]]<miY,miY<TablaFronteras[[#This Row],[Y]]+TablaFronteras[[#This Row],[Alto]]),SQRT((TablaFronteras[[#This Row],[Centro X]]-miX)^2+(TablaFronteras[[#This Row],[Centro Y]]-miY)^2),"") ->  | I32: =IF(TablaFronteras[[#This Row],[Frontera]]="","",IFERROR(MATCH(RIGHT(TablaFronteras[[#This Row],[Frontera]],LEN(TablaFronteras[[#This Row],[Frontera]])-IFERROR(FIND(" - ",TablaFronteras[[#This Row],[Frontera]])+2,0)),Datos[País],0),"")) -> 5
A33: Suiza | B33: 368.2354431 | C33: 85.59370422 | D33: 7.74346447 | E33: 4.431732178 | F33: =TablaFronteras[[#This Row],[X]]+TablaFronteras[[#This Row],[Ancho]]/2 -> 372.1071754 | G33: =TablaFronteras[[#This Row],[Y]]+TablaFronteras[[#This Row],[Alto]]/2 -> 87.80957031 | H33: =IF(AND(TablaFronteras[[#This Row],[Fila]]<>"",TablaFronteras[[#This Row],[X]]<miX,miX<TablaFronteras[[#This Row],[X]]+TablaFronteras[[#This Row],[Ancho]],TablaFronteras[[#This Row],[Y]]<miY,miY<TablaFronteras[[#This Row],[Y]]+TablaFronteras[[#This Row],[Alto]]),SQRT((TablaFronteras[[#This Row],[Centro X]]-miX)^2+(TablaFronteras[[#This Row],[Centro Y]]-miY)^2),"") ->  | I33: =IF(TablaFronteras[[#This Row],[Frontera]]="","",IFERROR(MATCH(RIGHT(TablaFronteras[[#This Row],[Frontera]],LEN(TablaFronteras[[#This Row],[Frontera]])-IFERROR(FIND(" - ",TablaFronteras[[#This Row],[Frontera]])+2,0)),Datos[País],0),"")) -> 246
A34: Austria | B34: 373.9789124 | C34: 82.55361938 | D34: 14.31566906 | E34: 6.15574789 | F34: =TablaFronteras[[#This Row],[X]]+TablaFronteras[[#This Row],[Ancho]]/2 -> 381.1367469 | G34: =TablaFronteras[[#This Row],[Y]]+TablaFronteras[[#This Row],[Alto]]/2 -> 85.63149333 | H34: =IF(AND(TablaFronteras[[#This Row],[Fila]]<>"",TablaFronteras[[#This Row],[X]]<miX,miX<TablaFronteras[[#This Row],[X]]+TablaFronteras[[#This Row],[Ancho]],TablaFronteras[[#This Row],[Y]]<miY,miY<TablaFronteras[[#This Row],[Y]]+TablaFronteras[[#This Row],[Alto]]),SQRT((TablaFronteras[[#This Row],[Centro X]]-miX)^2+(TablaFronteras[[#This Row],[Centro Y]]-miY)^2),"") ->  | I34: =IF(TablaFronteras[[#This Row],[Frontera]]="","",IFERROR(MATCH(RIGHT(TablaFronteras[[#This Row],[Frontera]],LEN(TablaFronteras[[#This Row],[Frontera]])-IFERROR(FIND(" - ",TablaFronteras[[#This Row],[Frontera]])+2,0)),Datos[País],0),"")) -> 20
A35: República Checa | B35: 378.4210205 | C35: 77.8737793 | D35: 12.98448849 | E35: 5.705039501 | F35: =TablaFronteras[[#This Row],[X]]+TablaFronteras[[#This Row],[Ancho]]/2 -> 384.9132648 | G35: =TablaFronteras[[#This Row],[Y]]+TablaFronteras[[#This Row],[Alto]]/2 -> 80.72629905 | H35: =IF(AND(TablaFronteras[[#This Row],[Fila]]<>"",TablaFronteras[[#This Row],[X]]<miX,miX<TablaFronteras[[#This Row],[X]]+TablaFronteras[[#This Row],[Ancho]],TablaFronteras[[#This Row],[Y]]<miY,miY<TablaFronteras[[#This Row],[Y]]+TablaFronteras[[#This Row],[Alto]]),SQRT((TablaFronteras[[#This Row],[Centro X]]-miX)^2+(TablaFronteras[[#This Row],[Centro Y]]-miY)^2),"") ->  | I35: =IF(TablaFronteras[[#This Row],[Frontera]]="","",IFERROR(MATCH(RIGHT(TablaFronteras[[#This Row],[Frontera]],LEN(TablaFronteras[[#This Row],[Frontera]])-IFERROR(FIND(" - ",TablaFronteras[[#This Row],[Frontera]])+2,0)),Datos[País],0),"")) -> 209
A36: Dinamarca | B36: 371.9784241 | C36: 62.5839386 | D36: 11.9274807 | E36: 7.136929035 | F36: =TablaFronteras[[#This Row],[X]]+TablaFronteras[[#This Row],[Ancho]]/2 -> 377.9421644 | G36: =TablaFronteras[[#This Row],[Y]]+TablaFronteras[[#This Row],[Alto]]/2 -> 66.15240312 | H36: =IF(AND(TablaFronteras[[#This Row],[Fila]]<>"",TablaFronteras[[#This Row],[X]]<miX,miX<TablaFronteras[[#This Row],[X]]+TablaFronteras[[#This Row],[Ancho]],TablaFronteras[[#This Row],[Y]]<miY,miY<TablaFronteras[[#This Row],[Y]]+TablaFronteras[[#This Row],[Alto]]),SQRT((TablaFronteras[[#This Row],[Centro X]]-miX)^2+(TablaFronteras[[#This Row],[Centro Y]]-miY)^2),"") ->  | I36: =IF(TablaFronteras[[#This Row],[Frontera]]="","",IFERROR(MATCH(RIGHT(TablaFronteras[[#This Row],[Frontera]],LEN(TablaFronteras[[#This Row],[Frontera]])-IFERROR(FIND(" - ",TablaFronteras[[#This Row],[Frontera]])+2,0)),Datos[País],0),"")) -> 66
A37: Polonia | B37: 382.0606995 | C37: 69.14732361 | D37: 18.18417358 | E37: 13.43031502 | F37: =TablaFronteras[[#This Row],[X]]+TablaFronteras[[#This Row],[Ancho]]/2 -> 391.1527863 | G37: =TablaFronteras[[#This Row],[Y]]+TablaFronteras[[#This Row],[Alto]]/2 -> 75.86248112 | H37: =IF(AND(TablaFronteras[[#This Row],[Fila]]<>"",TablaFronteras[[#This Row],[X]]<miX,miX<TablaFronteras[[#This Row],[X]]+TablaFronteras[[#This Row],[Ancho]],TablaFronteras[[#This Row],[Y]]<miY,miY<TablaFronteras[[#This Row],[Y]]+TablaFronteras[[#This Row],[Alto]]),SQRT((TablaFronteras[[#This Row],[Centro X]]-miX)^2+(TablaFronteras[[#This Row],[Centro Y]]-miY)^2),"") ->  | I37: =IF(TablaFronteras[[#This Row],[Frontera]]="","",IFERROR(MATCH(RIGHT(TablaFronteras[[#This Row],[Frontera]],LEN(TablaFronteras[[#This Row],[Frontera]])-IFERROR(FIND(" - ",TablaFronteras[[#This Row],[Frontera]])+2,0)),Datos[País],0),"")) -> 204
A38: Eslovaquia | B38: 387.7714233 | C38: 81.24464417 | D38: 10.61598396 | E38: 4.302125931 | F38: =TablaFronteras[[#This Row],[X]]+TablaFronteras[[#This Row],[Ancho]]/2 -> 393.0794153 | G38: =TablaFronteras[[#This Row],[Y]]+TablaFronteras[[#This Row],[Alto]]/2 -> 83.39570713 | H38: =IF(AND(TablaFronteras[[#This Row],[Fila]]<>"",TablaFronteras[[#This Row],[X]]<miX,miX<TablaFronteras[[#This Row],[X]]+TablaFronteras[[#This Row],[Ancho]],TablaFronteras[[#This Row],[Y]]<miY,miY<TablaFronteras[[#This Row],[Y]]+TablaFronteras[[#This Row],[Alto]]),SQRT((TablaFronteras[[#This Row],[Centro X]]-miX)^2+(TablaFronteras[[#This Row],[Centro Y]]-miY)^2),"") ->  | I38: =IF(TablaFronteras[[#This Row],[Frontera]]="","",IFERROR(MATCH(RIGHT(TablaFronteras[[#This Row],[Frontera]],LEN(TablaFronteras[[#This Row],[Frontera]])-IFERROR(FIND(" - ",TablaFronteras[[#This Row],[Frontera]])+2,0)),Datos[País],0),"")) -> 73
A39: Hungría | B39: 386.333313 | C39: 83.58283234 | D39: 12.10417366 | E39: 6.541889668 | F39: =TablaFronteras[[#This Row],[X]]+TablaFronteras[[#This Row],[Ancho]]/2 -> 392.3853998 | G39: =TablaFronteras[[#This Row],[Y]]+TablaFronteras[[#This Row],[Alto]]/2 -> 86.85377717 | H39: =IF(AND(TablaFronteras[[#This Row],[Fila]]<>"",TablaFronteras[[#This Row],[X]]<miX,miX<TablaFronteras[[#This Row],[X]]+TablaFronteras[[#This Row],[Ancho]],TablaFronteras[[#This Row],[Y]]<miY,miY<TablaFronteras[[#This Row],[Y]]+TablaFronteras[[#This Row],[Alto]]),SQRT((TablaFronteras[[#This Row],[Centro X]]-miX)^2+(TablaFronteras[[#This Row],[Centro Y]]-miY)^2),"") ->  | I39: =IF(TablaFronteras[[#This Row],[Frontera]]="","",IFERROR(MATCH(RIGHT(TablaFronteras[[#This Row],[Frontera]],LEN(TablaFronteras[[#This Row],[Frontera]])-IFERROR(FIND(" - ",TablaFronteras[[#This Row],[Frontera]])+2,0)),Datos[País],0),"")) -> 103
A40: Eslovenia | B40: 380.9807129 | C40: 87.54850769 | D40: 6.315826893 | E40: 3.666456699 | F40: =TablaFronteras[[#This Row],[X]]+TablaFronteras[[#This Row],[Ancho]]/2 -> 384.1386263 | G40: =TablaFronteras[[#This Row],[Y]]+TablaFronteras[[#This Row],[Alto]]/2 -> 89.38173604 | H40: =IF(AND(TablaFronteras[[#This Row],[Fila]]<>"",TablaFronteras[[#This Row],[X]]<miX,miX<TablaFronteras[[#This Row],[X]]+TablaFronteras[[#This Row],[Ancho]],TablaFronteras[[#This Row],[Y]]<miY,miY<TablaFronteras[[#This Row],[Y]]+TablaFronteras[[#This Row],[Alto]]),SQRT((TablaFronteras[[#This Row],[Centro X]]-miX)^2+(TablaFronteras[[#This Row],[Centro Y]]-miY)^2),"") ->  | I40: =IF(TablaFronteras[[#This Row],[Frontera]]="","",IFERROR(MATCH(RIGHT(TablaFronteras[[#This Row],[Frontera]],LEN(TablaFronteras[[#This Row],[Frontera]])-IFERROR(FIND(" - ",TablaFronteras[[#This Row],[Frontera]])+2,0)),Datos[País],0),"")) -> 74
A41: Croacia | B41: 381.2000732 | C41: 88.35472107 | D41: 11.49622059 | E41: 9.681968689 | F41: =TablaFronteras[[#This Row],[X]]+TablaFronteras[[#This Row],[Ancho]]/2 -> 386.9481835 | G41: =TablaFronteras[[#This Row],[Y]]+TablaFronteras[[#This Row],[Alto]]/2 -> 93.19570541 | H41: =IF(AND(TablaFronteras[[#This Row],[Fila]]<>"",TablaFronteras[[#This Row],[X]]<miX,miX<TablaFronteras[[#This Row],[X]]+TablaFronteras[[#This Row],[Ancho]],TablaFronteras[[#This Row],[Y]]<miY,miY<TablaFronteras[[#This Row],[Y]]+TablaFronteras[[#This Row],[Alto]]),SQRT((TablaFronteras[[#This Row],[Centro X]]-miX)^2+(TablaFronteras[[#This Row],[Centro Y]]-miY)^2),"") ->  | I41: =IF(TablaFronteras[[#This Row],[Frontera]]="","",IFERROR(MATCH(RIGHT(TablaFronteras[[#This Row],[Frontera]],LEN(TablaFronteras[[#This Row],[Frontera]])-IFERROR(FIND(" - ",TablaFronteras[[#This Row],[Frontera]])+2,0)),Datos[País],0),"")) -> 63
A42: Bosnia y Herzegovina | B42: 385.8103027 | C42: 91.46685028 | D42: 7.352362156 | E42: 6.31692934 | F42: =TablaFronteras[[#This Row],[X]]+TablaFronteras[[#This Row],[Ancho]]/2 -> 389.4864838 | G42: =TablaFronteras[[#This Row],[Y]]+TablaFronteras[[#This Row],[Alto]]/2 -> 94.62531495 | H42: =IF(AND(TablaFronteras[[#This Row],[Fila]]<>"",TablaFronteras[[#This Row],[X]]<miX,miX<TablaFronteras[[#This Row],[X]]+TablaFronteras[[#This Row],[Ancho]],TablaFronteras[[#This Row],[Y]]<miY,miY<TablaFronteras[[#This Row],[Y]]+TablaFronteras[[#This Row],[Alto]]),SQRT((TablaFronteras[[#This Row],[Centro X]]-miX)^2+(TablaFronteras[[#This Row],[Centro Y]]-miY)^2),"") ->  | I42: =IF(TablaFronteras[[#This Row],[Frontera]]="","",IFERROR(MATCH(RIGHT(TablaFronteras[[#This Row],[Frontera]],LEN(TablaFronteras[[#This Row],[Frontera]])-IFERROR(FIND(" - ",TablaFronteras[[#This Row],[Frontera]])+2,0)),Datos[País],0),"")) -> 35
A43: Montenegro | B43: 390.8780212 | C43: 95.51802826 | D43: 3.58598423 | E43: 3.917559147 | F43: =TablaFronteras[[#This Row],[X]]+TablaFronteras[[#This Row],[Ancho]]/2 -> 392.6710134 | G43: =TablaFronteras[[#This Row],[Y]]+TablaFronteras[[#This Row],[Alto]]/2 -> 97.47680783 | H43: =IF(AND(TablaFronteras[[#This Row],[Fila]]<>"",TablaFronteras[[#This Row],[X]]<miX,miX<TablaFronteras[[#This Row],[X]]+TablaFronteras[[#This Row],[Ancho]],TablaFronteras[[#This Row],[Y]]<miY,miY<TablaFronteras[[#This Row],[Y]]+TablaFronteras[[#This Row],[Alto]]),SQRT((TablaFronteras[[#This Row],[Centro X]]-miX)^2+(TablaFronteras[[#This Row],[Centro Y]]-miY)^2),"") ->  | I43: =IF(TablaFronteras[[#This Row],[Frontera]]="","",IFERROR(MATCH(RIGHT(TablaFronteras[[#This Row],[Frontera]],LEN(TablaFronteras[[#This Row],[Frontera]])-IFERROR(FIND(" - ",TablaFronteras[[#This Row],[Frontera]])+2,0)),Datos[País],0),"")) -> 173
A44: Macedonia del Norte | B44: 395.1479492 | C44: 98.26976013 | D44: 4.321574688 | E44: 3.567559004 | F44: =TablaFronteras[[#This Row],[X]]+TablaFronteras[[#This Row],[Ancho]]/2 -> 397.3087366 | G44: =TablaFronteras[[#This Row],[Y]]+TablaFronteras[[#This Row],[Alto]]/2 -> 100.0535396 | H44: =IF(AND(TablaFronteras[[#This Row],[Fila]]<>"",TablaFronteras[[#This Row],[X]]<miX,miX<TablaFronteras[[#This Row],[X]]+TablaFronteras[[#This Row],[Ancho]],TablaFronteras[[#This Row],[Y]]<miY,miY<TablaFronteras[[#This Row],[Y]]+TablaFronteras[[#This Row],[Alto]]),SQRT((TablaFronteras[[#This Row],[Centro X]]-miX)^2+(TablaFronteras[[#This Row],[Centro Y]]-miY)^2),"") ->  | I44: =IF(TablaFronteras[[#This Row],[Frontera]]="","",IFERROR(MATCH(RIGHT(TablaFronteras[[#This Row],[Frontera]],LEN(TablaFronteras[[#This Row],[Frontera]])-IFERROR(FIND(" - ",TablaFronteras[[#This Row],[Frontera]])+2,0)),Datos[País],0),"")) -> 155
A45: Grecia | B45: 393.7870178 | C45: 99.76669312 | D45: 16.78566933 | E45: 16.30732346 | F45: =TablaFronteras[[#This Row],[X]]+TablaFronteras[[#This Row],[Ancho]]/2 -> 402.1798525 | G45: =TablaFronteras[[#This Row],[Y]]+TablaFronteras[[#This Row],[Alto]]/2 -> 107.9203548 | H45: =IF(AND(TablaFronteras[[#This Row],[Fila]]<>"",TablaFronteras[[#This Row],[X]]<miX,miX<TablaFronteras[[#This Row],[X]]+TablaFronteras[[#This Row],[Ancho]],TablaFronteras[[#This Row],[Y]]<miY,miY<TablaFronteras[[#This Row],[Y]]+TablaFronteras[[#This Row],[Alto]]),SQRT((TablaFronteras[[#This Row],[Centro X]]-miX)^2+(TablaFronteras[[#This Row],[Centro Y]]-miY)^2),"") ->  | I45: =IF(TablaFronteras[[#This Row],[Frontera]]="","",IFERROR(MATCH(RIGHT(TablaFronteras[[#This Row],[Frontera]],LEN(TablaFronteras[[#This Row],[Frontera]])-IFERROR(FIND(" - ",TablaFronteras[[#This Row],[Frontera]])+2,0)),Datos[País],0),"")) -> 89
A46: Turquía | B46: 404.7282715 | C46: 98.83732605 | D46: 38.0044899 | E46: 15.00622082 | F46: =TablaFronteras[[#This Row],[X]]+TablaFronteras[[#This Row],[Ancho]]/2 -> 423.7305164 | G46: =TablaFronteras[[#This Row],[Y]]+TablaFronteras[[#This Row],[Alto]]/2 -> 106.3404365 | H46: =IF(AND(TablaFronteras[[#This Row],[Fila]]<>"",TablaFronteras[[#This Row],[X]]<miX,miX<TablaFronteras[[#This Row],[X]]+TablaFronteras[[#This Row],[Ancho]],TablaFronteras[[#This Row],[Y]]<miY,miY<TablaFronteras[[#This Row],[Y]]+TablaFronteras[[#This Row],[Alto]]),SQRT((TablaFronteras[[#This Row],[Centro X]]-miX)^2+(TablaFronteras[[#This Row],[Centro Y]]-miY)^2),"") ->  | I46: =IF(TablaFronteras[[#This Row],[Frontera]]="","",IFERROR(MATCH(RIGHT(TablaFronteras[[#This Row],[Frontera]],LEN(TablaFronteras[[#This Row],[Frontera]])-IFERROR(FIND(" - ",TablaFronteras[[#This Row],[Frontera]])+2,0)),Datos[País],0),"")) -> 262
A47: Rumanía | B47: 393.8511047 | C47: 84.34425354 | D47: 17.4952755 | E47: 10.86299229 | F47: =TablaFronteras[[#This Row],[X]]+TablaFronteras[[#This Row],[Ancho]]/2 -> 402.5987425 | G47: =TablaFronteras[[#This Row],[Y]]+TablaFronteras[[#This Row],[Alto]]/2 -> 89.77574968 | H47: =IF(AND(TablaFronteras[[#This Row],[Fila]]<>"",TablaFronteras[[#This Row],[X]]<miX,miX<TablaFronteras[[#This Row],[X]]+TablaFronteras[[#This Row],[Ancho]],TablaFronteras[[#This Row],[Y]]<miY,miY<TablaFronteras[[#This Row],[Y]]+TablaFronteras[[#This Row],[Alto]]),SQRT((TablaFronteras[[#This Row],[Centro X]]-miX)^2+(TablaFronteras[[#This Row],[Centro Y]]-miY)^2),"") ->  | I47: =IF(TablaFronteras[[#This Row],[Frontera]]="","",IFERROR(MATCH(RIGHT(TablaFronteras[[#This Row],[Frontera]],LEN(TablaFronteras[[#This Row],[Frontera]])-IFERROR(FIND(" - ",TablaFronteras[[#This Row],[Frontera]])+2,0)),Datos[País],0),"")) -> 215
A48: Bielorrusia | B48: 398.2848816 | C48: 66.21189117 | D48: 16.92425156 | E48: 11.08480358 | F48: =TablaFronteras[[#This Row],[X]]+TablaFronteras[[#This Row],[Ancho]]/2 -> 406.7470074 | G48: =TablaFronteras[[#This Row],[Y]]+TablaFronteras[[#This Row],[Alto]]/2 -> 71.75429296 | H48: =IF(AND(TablaFronteras[[#This Row],[Fila]]<>"",TablaFronteras[[#This Row],[X]]<miX,miX<TablaFronteras[[#This Row],[X]]+TablaFronteras[[#This Row],[Ancho]],TablaFronteras[[#This Row],[Y]]<miY,miY<TablaFronteras[[#This Row],[Y]]+TablaFronteras[[#This Row],[Alto]]),SQRT((TablaFronteras[[#This Row],[Centro X]]-miX)^2+(TablaFronteras[[#This Row],[Centro Y]]-miY)^2),"") ->  | I48: =IF(TablaFronteras[[#This Row],[Frontera]]="","",IFERROR(MATCH(RIGHT(TablaFronteras[[#This Row],[Frontera]],LEN(TablaFronteras[[#This Row],[Frontera]])-IFERROR(FIND(" - ",TablaFronteras[[#This Row],[Frontera]])+2,0)),Datos[País],0),"")) -> 31
A49: Moldavia | B49: 405.0674744 | C49: 83.78716278 | D49: 7.159842491 | E49: 7.407322884 | F49: =TablaFronteras[[#This Row],[X]]+TablaFronteras[[#This Row],[Ancho]]/2 -> 408.6473956 | G49: =TablaFronteras[[#This Row],[Y]]+TablaFronteras[[#This Row],[Alto]]/2 -> 87.49082422 | H49: =IF(AND(TablaFronteras[[#This Row],[Fila]]<>"",TablaFronteras[[#This Row],[X]]<miX,miX<TablaFronteras[[#This Row],[X]]+TablaFronteras[[#This Row],[Ancho]],TablaFronteras[[#This Row],[Y]]<miY,miY<TablaFronteras[[#This Row],[Y]]+TablaFronteras[[#This Row],[Alto]]),SQRT((TablaFronteras[[#This Row],[Centro X]]-miX)^2+(TablaFronteras[[#This Row],[Centro Y]]-miY)^2),"") ->  | I49: =IF(TablaFronteras[[#This Row],[Frontera]]="","",IFERROR(MATCH(RIGHT(TablaFronteras[[#This Row],[Frontera]],LEN(TablaFronteras[[#This Row],[Frontera]])-IFERROR(FIND(" - ",TablaFronteras[[#This Row],[Frontera]])+2,0)),Datos[País],0),"")) -> 170
A50: Lituania | B50: 394.2484131 | C50: 65.53102112 | D50: 9.519684792 | E50: 5.73236227 | F50: =TablaFronteras[[#This Row],[X]]+TablaFronteras[[#This Row],[Ancho]]/2 -> 399.0082555 | G50: =TablaFronteras[[#This Row],[Y]]+TablaFronteras[[#This Row],[Alto]]/2 -> 68.39720225 | H50: =IF(AND(TablaFronteras[[#This Row],[Fila]]<>"",TablaFronteras[[#This Row],[X]]<miX,miX<TablaFronteras[[#This Row],[X]]+TablaFronteras[[#This Row],[Ancho]],TablaFronteras[[#This Row],[Y]]<miY,miY<TablaFronteras[[#This Row],[Y]]+TablaFronteras[[#This Row],[Alto]]),SQRT((TablaFronteras[[#This Row],[Centro X]]-miX)^2+(TablaFronteras[[#This Row],[Centro Y]]-miY)^2),"") ->  | I50: =IF(TablaFronteras[[#This Row],[Frontera]]="","",IFERROR(MATCH(RIGHT(TablaFronteras[[#This Row],[Frontera]],LEN(TablaFronteras[[#This Row],[Frontera]])-IFERROR(FIND(" - ",TablaFronteras[[#This Row],[Frontera]])+2,0)),Datos[País],0),"")) -> 152
A51: Letonia | B51: 394.079834 | C51: 61.86314774 | D51: 12.03425217 | E51: 5.349606514 | F51: =TablaFronteras[[#This Row],[X]]+TablaFronteras[[#This Row],[Ancho]]/2 -> 400.0969601 | G51: =TablaFronteras[[#This Row],[Y]]+TablaFronteras[[#This Row],[Alto]]/2 -> 64.53795099 | H51: =IF(AND(TablaFronteras[[#This Row],[Fila]]<>"",TablaFronteras[[#This Row],[X]]<miX,miX<TablaFronteras[[#This Row],[X]]+TablaFronteras[[#This Row],[Ancho]],TablaFronteras[[#This Row],[Y]]<miY,miY<TablaFronteras[[#This Row],[Y]]+TablaFronteras[[#This Row],[Alto]]),SQRT((TablaFronteras[[#This Row],[Centro X]]-miX)^2+(TablaFronteras[[#This Row],[Centro Y]]-miY)^2),"") ->  | I51: =IF(TablaFronteras[[#This Row],[Frontera]]="","",IFERROR(MATCH(RIGHT(TablaFronteras[[#This Row],[Frontera]],LEN(TablaFronteras[[#This Row],[Frontera]])-IFERROR(FIND(" - ",TablaFronteras[[#This Row],[Frontera]])+2,0)),Datos[País],0),"")) -> 148
A52: Estonia | B52: 395.2867737 | C52: 58.37866211 | D52: 9.800078392 | E52: 4.670787334 | F52: =TablaFronteras[[#This Row],[X]]+TablaFronteras[[#This Row],[Ancho]]/2 -> 400.1868129 | G52: =TablaFronteras[[#This Row],[Y]]+TablaFronteras[[#This Row],[Alto]]/2 -> 60.71405578 | H52: =IF(AND(TablaFronteras[[#This Row],[Fila]]<>"",TablaFronteras[[#This Row],[X]]<miX,miX<TablaFronteras[[#This Row],[X]]+TablaFronteras[[#This Row],[Ancho]],TablaFronteras[[#This Row],[Y]]<miY,miY<TablaFronteras[[#This Row],[Y]]+TablaFronteras[[#This Row],[Alto]]),SQRT((TablaFronteras[[#This Row],[Centro X]]-miX)^2+(TablaFronteras[[#This Row],[Centro Y]]-miY)^2),"") ->  | I52: =IF(TablaFronteras[[#This Row],[Frontera]]="","",IFERROR(MATCH(RIGHT(TablaFronteras[[#This Row],[Frontera]],LEN(TablaFronteras[[#This Row],[Frontera]])-IFERROR(FIND(" - ",TablaFronteras[[#This Row],[Frontera]])+2,0)),Datos[País],0),"")) -> 77
A53: Finlandia | B53: 390.9983521 | C53: 36.43047333 | D53: 18.84007835 | E53: 21.53007889 | F53: =TablaFronteras[[#This Row],[X]]+TablaFronteras[[#This Row],[Ancho]]/2 -> 400.4183912 | G53: =TablaFronteras[[#This Row],[Y]]+TablaFronteras[[#This Row],[Alto]]/2 -> 47.19551277 | H53: =IF(AND(TablaFronteras[[#This Row],[Fila]]<>"",TablaFronteras[[#This Row],[X]]<miX,miX<TablaFronteras[[#This Row],[X]]+TablaFronteras[[#This Row],[Ancho]],TablaFronteras[[#This Row],[Y]]<miY,miY<TablaFronteras[[#This Row],[Y]]+TablaFronteras[[#This Row],[Alto]]),SQRT((TablaFronteras[[#This Row],[Centro X]]-miX)^2+(TablaFronteras[[#This Row],[Centro Y]]-miY)^2),"") ->  | I53: =IF(TablaFronteras[[#This Row],[Frontera]]="","",IFERROR(MATCH(RIGHT(TablaFronteras[[#This Row],[Frontera]],LEN(TablaFronteras[[#This Row],[Frontera]])-IFERROR(FIND(" - ",TablaFronteras[[#This Row],[Frontera]])+2,0)),Datos[País],0),"")) -> 80
A54: Suecia | B54: 376.6178589 | C54: 38.49259949 | D54: 20.18149567 | E54: 29.39291382 | F54: =TablaFronteras[[#This Row],[X]]+TablaFronteras[[#This Row],[Ancho]]/2 -> 386.7086067 | G54: =TablaFronteras[[#This Row],[Y]]+TablaFronteras[[#This Row],[Alto]]/2 -> 53.1890564 | H54: =IF(AND(TablaFronteras[[#This Row],[Fila]]<>"",TablaFronteras[[#This Row],[X]]<miX,miX<TablaFronteras[[#This Row],[X]]+TablaFronteras[[#This Row],[Ancho]],TablaFronteras[[#This Row],[Y]]<miY,miY<TablaFronteras[[#This Row],[Y]]+TablaFronteras[[#This Row],[Alto]]),SQRT((TablaFronteras[[#This Row],[Centro X]]-miX)^2+(TablaFronteras[[#This Row],[Centro Y]]-miY)^2),"") ->  | I54: =IF(TablaFronteras[[#This Row],[Frontera]]="","",IFERROR(MATCH(RIGHT(TablaFronteras[[#This Row],[Frontera]],LEN(TablaFronteras[[#This Row],[Frontera]])-IFERROR(FIND(" - ",TablaFronteras[[#This Row],[Frontera]])+2,0)),Datos[País],0),"")) -> 245
A55: Marruecos | B55: 328.2944946 | C55: 113.7585068 | D55: 24.41543388 | E55: 19.73440933 | F55: =TablaFronteras[[#This Row],[X]]+TablaFronteras[[#This Row],[Ancho]]/2 -> 340.5022116 | G55: =TablaFronteras[[#This Row],[Y]]+TablaFronteras[[#This Row],[Alto]]/2 -> 123.6257114 | H55: =IF(AND(TablaFronteras[[#This Row],[Fila]]<>"",TablaFronteras[[#This Row],[X]]<miX,miX<TablaFronteras[[#This Row],[X]]+TablaFronteras[[#This Row],[Ancho]],TablaFronteras[[#This Row],[Y]]<miY,miY<TablaFronteras[[#This Row],[Y]]+TablaFronteras[[#This Row],[Alto]]),SQRT((TablaFronteras[[#This Row],[Centro X]]-miX)^2+(TablaFronteras[[#This Row],[Centro Y]]-miY)^2),"") ->  | I55: =IF(TablaFronteras[[#This Row],[Frontera]]="","",IFERROR(MATCH(RIGHT(TablaFronteras[[#This Row],[Frontera]],LEN(TablaFronteras[[#This Row],[Frontera]])-IFERROR(FIND(" - ",TablaFronteras[[#This Row],[Frontera]])+2,0)),Datos[País],0),"")) -> 163
A56: Sáhara Occidental | B56: 319.9385071 | C56: 133.4174042 | D56: 17.60551262 | E56: 16.81795311 | F56: =TablaFronteras[[#This Row],[X]]+TablaFronteras[[#This Row],[Ancho]]/2 -> 328.7412634 | G56: =TablaFronteras[[#This Row],[Y]]+TablaFronteras[[#This Row],[Alto]]/2 -> 141.8263807 | H56: =IF(AND(TablaFronteras[[#This Row],[Fila]]<>"",TablaFronteras[[#This Row],[X]]<miX,miX<TablaFronteras[[#This Row],[X]]+TablaFronteras[[#This Row],[Ancho]],TablaFronteras[[#This Row],[Y]]<miY,miY<TablaFronteras[[#This Row],[Y]]+TablaFronteras[[#This Row],[Alto]]),SQRT((TablaFronteras[[#This Row],[Centro X]]-miX)^2+(TablaFronteras[[#This Row],[Centro Y]]-miY)^2),"") ->  | I56: =IF(TablaFronteras[[#This Row],[Frontera]]="","",IFERROR(MATCH(RIGHT(TablaFronteras[[#This Row],[Frontera]],LEN(TablaFronteras[[#This Row],[Frontera]])-IFERROR(FIND(" - ",TablaFronteras[[#This Row],[Frontera]])+2,0)),Datos[País],0),"")) -> 248
A57: Argelia | B57: 337.5184937 | C57: 110.899765 | D57: 41.12306976 | E57: 43.66456604 | F57: =TablaFronteras[[#This Row],[X]]+TablaFronteras[[#This Row],[Ancho]]/2 -> 358.0800285 | G57: =TablaFronteras[[#This Row],[Y]]+TablaFronteras[[#This Row],[Alto]]/2 -> 132.732048 | H57: =IF(AND(TablaFronteras[[#This Row],[Fila]]<>"",TablaFronteras[[#This Row],[X]]<miX,miX<TablaFronteras[[#This Row],[X]]+TablaFronteras[[#This Row],[Ancho]],TablaFronteras[[#This Row],[Y]]<miY,miY<TablaFronteras[[#This Row],[Y]]+TablaFronteras[[#This Row],[Alto]]),SQRT((TablaFronteras[[#This Row],[Centro X]]-miX)^2+(TablaFronteras[[#This Row],[Centro Y]]-miY)^2),"") ->  | I57: =IF(TablaFronteras[[#This Row],[Frontera]]="","",IFERROR(MATCH(RIGHT(TablaFronteras[[#This Row],[Frontera]],LEN(TablaFronteras[[#This Row],[Frontera]])-IFERROR(FIND(" - ",TablaFronteras[[#This Row],[Frontera]])+2,0)),Datos[País],0),"")) -> 11
A58: Túnez | B58: 370.2926636 | C58: 110.290863 | D58: 7.430393696 | E58: 17.15929222 | F58: =TablaFronteras[[#This Row],[X]]+TablaFronteras[[#This Row],[Ancho]]/2 -> 374.0078604 | G58: =TablaFronteras[[#This Row],[Y]]+TablaFronteras[[#This Row],[Alto]]/2 -> 118.8705091 | H58: =IF(AND(TablaFronteras[[#This Row],[Fila]]<>"",TablaFronteras[[#This Row],[X]]<miX,miX<TablaFronteras[[#This Row],[X]]+TablaFronteras[[#This Row],[Ancho]],TablaFronteras[[#This Row],[Y]]<miY,miY<TablaFronteras[[#This Row],[Y]]+TablaFronteras[[#This Row],[Alto]]),SQRT((TablaFronteras[[#This Row],[Centro X]]-miX)^2+(TablaFronteras[[#This Row],[Centro Y]]-miY)^2),"") ->  | I58: =IF(TablaFronteras[[#This Row],[Frontera]]="","",IFERROR(MATCH(RIGHT(TablaFronteras[[#This Row],[Frontera]],LEN(TablaFronteras[[#This Row],[Frontera]])-IFERROR(FIND(" - ",TablaFronteras[[#This Row],[Frontera]])+2,0)),Datos[País],0),"")) -> 264
A59: Libia | B59: 373.528656 | C59: 120.1814957 | D59: 31.79692841 | E59: 33.20732117 | F59: =TablaFronteras[[#This Row],[X]]+TablaFronteras[[#This Row],[Ancho]]/2 -> 389.4271202 | G59: =TablaFronteras[[#This Row],[Y]]+TablaFronteras[[#This Row],[Alto]]/2 -> 136.7851562 | H59: =IF(AND(TablaFronteras[[#This Row],[Fila]]<>"",TablaFronteras[[#This Row],[X]]<miX,miX<TablaFronteras[[#This Row],[X]]+TablaFronteras[[#This Row],[Ancho]],TablaFronteras[[#This Row],[Y]]<miY,miY<TablaFronteras[[#This Row],[Y]]+TablaFronteras[[#This Row],[Alto]]),SQRT((TablaFronteras[[#This Row],[Centro X]]-miX)^2+(TablaFronteras[[#This Row],[Centro Y]]-miY)^2),"") ->  | I59: =IF(TablaFronteras[[#This Row],[Frontera]]="","",IFERROR(MATCH(RIGHT(TablaFronteras[[#This Row],[Frontera]],LEN(TablaFronteras[[#This Row],[Frontera]])-IFERROR(FIND(" - ",TablaFronteras[[#This Row],[Frontera]])+2,0)),Datos[País],0),"")) -> 150
A60: Egipto | B60: 404.0777283 | C60: 124.0537796 | D60: 22.91086578 | E60: 23.89511871 | F60: =TablaFronteras[[#This Row],[X]]+TablaFronteras[[#This Row],[Ancho]]/2 -> 415.5331612 | G60: =TablaFronteras[[#This Row],[Y]]+TablaFronteras[[#This Row],[Alto]]/2 -> 136.001339 | H60: =IF(AND(TablaFronteras[[#This Row],[Fila]]<>"",TablaFronteras[[#This Row],[X]]<miX,miX<TablaFronteras[[#This Row],[X]]+TablaFronteras[[#This Row],[Ancho]],TablaFronteras[[#This Row],[Y]]<miY,miY<TablaFronteras[[#This Row],[Y]]+TablaFronteras[[#This Row],[Alto]]),SQRT((TablaFronteras[[#This Row],[Centro X]]-miX)^2+(TablaFronteras[[#This Row],[Centro Y]]-miY)^2),"") ->  | I60: =IF(TablaFronteras[[#This Row],[Frontera]]="","",IFERROR(MATCH(RIGHT(TablaFronteras[[#This Row],[Frontera]],LEN(TablaFronteras[[#This Row],[Frontera]])-IFERROR(FIND(" - ",TablaFronteras[[#This Row],[Frontera]])+2,0)),Datos[País],0),"")) -> 69
A61: Malí | B61: 328.8288879 | C61: 140.1495209 | D61: 34.576931 | E61: 35.69913483 | F61: =TablaFronteras[[#This Row],[X]]+TablaFronteras[[#This Row],[Ancho]]/2 -> 346.1173534 | G61: =TablaFronteras[[#This Row],[Y]]+TablaFronteras[[#This Row],[Alto]]/2 -> 157.9990883 | H61: =IF(AND(TablaFronteras[[#This Row],[Fila]]<>"",TablaFronteras[[#This Row],[X]]<miX,miX<TablaFronteras[[#This Row],[X]]+TablaFronteras[[#This Row],[Ancho]],TablaFronteras[[#This Row],[Y]]<miY,miY<TablaFronteras[[#This Row],[Y]]+TablaFronteras[[#This Row],[Alto]]),SQRT((TablaFronteras[[#This Row],[Centro X]]-miX)^2+(TablaFronteras[[#This Row],[Centro Y]]-miY)^2),"") ->  | I61: =IF(TablaFronteras[[#This Row],[Frontera]]="","",IFERROR(MATCH(RIGHT(TablaFronteras[[#This Row],[Frontera]],LEN(TablaFronteras[[#This Row],[Frontera]])-IFERROR(FIND(" - ",TablaFronteras[[#This Row],[Frontera]])+2,0)),Datos[País],0),"")) -> 162
A62: Mauritania | B62: 320.0229187 | C62: 134.4456635 | D62: 25.26078796 | E62: 30.24015808 | F62: =TablaFronteras[[#This Row],[X]]+TablaFronteras[[#This Row],[Ancho]]/2 -> 332.6533127 | G62: =TablaFronteras[[#This Row],[Y]]+TablaFronteras[[#This Row],[Alto]]/2 -> 149.5657425 | H62: =IF(AND(TablaFronteras[[#This Row],[Fila]]<>"",TablaFronteras[[#This Row],[X]]<miX,miX<TablaFronteras[[#This Row],[X]]+TablaFronteras[[#This Row],[Ancho]],TablaFronteras[[#This Row],[Y]]<miY,miY<TablaFronteras[[#This Row],[Y]]+TablaFronteras[[#This Row],[Alto]]),SQRT((TablaFronteras[[#This Row],[Centro X]]-miX)^2+(TablaFronteras[[#This Row],[Centro Y]]-miY)^2),"") ->  | I62: =IF(TablaFronteras[[#This Row],[Frontera]]="","",IFERROR(MATCH(RIGHT(TablaFronteras[[#This Row],[Frontera]],LEN(TablaFronteras[[#This Row],[Frontera]])-IFERROR(FIND(" - ",TablaFronteras[[#This Row],[Frontera]])+2,0)),Datos[País],0),"")) -> 166
A63: Guinea-Bisáu | B63: 320.0532227 | C63: 169.8968506 | D63: 5.659369946 | E63: 4.191732407 | F63: =TablaFronteras[[#This Row],[X]]+TablaFronteras[[#This Row],[Ancho]]/2 -> 322.8829076 | G63: =TablaFronteras[[#This Row],[Y]]+TablaFronteras[[#This Row],[Alto]]/2 -> 171.9927168 | H63: =IF(AND(TablaFronteras[[#This Row],[Fila]]<>"",TablaFronteras[[#This Row],[X]]<miX,miX<TablaFronteras[[#This Row],[X]]+TablaFronteras[[#This Row],[Ancho]],TablaFronteras[[#This Row],[Y]]<miY,miY<TablaFronteras[[#This Row],[Y]]+TablaFronteras[[#This Row],[Alto]]),SQRT((TablaFronteras[[#This Row],[Centro X]]-miX)^2+(TablaFronteras[[#This Row],[Centro Y]]-miY)^2),"") ->  | I63: =IF(TablaFronteras[[#This Row],[Frontera]]="","",IFERROR(MATCH(RIGHT(TablaFronteras[[#This Row],[Frontera]],LEN(TablaFronteras[[#This Row],[Frontera]])-IFERROR(FIND(" - ",TablaFronteras[[#This Row],[Frontera]])+2,0)),Datos[País],0),"")) -> 98
A64: Guinea | B64: 321.9734497 | C64: 169.9072418 | D64: 16.56393623 | E64: 13.29755878 | F64: =TablaFronteras[[#This Row],[X]]+TablaFronteras[[#This Row],[Ancho]]/2 -> 330.2554178 | G64: =TablaFronteras[[#This Row],[Y]]+TablaFronteras[[#This Row],[Alto]]/2 -> 176.5560212 | H64: =IF(AND(TablaFronteras[[#This Row],[Fila]]<>"",TablaFronteras[[#This Row],[X]]<miX,miX<TablaFronteras[[#This Row],[X]]+TablaFronteras[[#This Row],[Ancho]],TablaFronteras[[#This Row],[Y]]<miY,miY<TablaFronteras[[#This Row],[Y]]+TablaFronteras[[#This Row],[Alto]]),SQRT((TablaFronteras[[#This Row],[Centro X]]-miX)^2+(TablaFronteras[[#This Row],[Centro Y]]-miY)^2),"") ->  | I64: =IF(TablaFronteras[[#This Row],[Frontera]]="","",IFERROR(MATCH(RIGHT(TablaFronteras[[#This Row],[Frontera]],LEN(TablaFronteras[[#This Row],[Frontera]])-IFERROR(FIND(" - ",TablaFronteras[[#This Row],[Frontera]])+2,0)),Datos[País],0),"")) -> 96
A65: Sierra Leona | B65: 326.3274841 | C65: 176.2012634 | D65: 7.689448833 | E65: 7.636220455 | F65: =TablaFronteras[[#This Row],[X]]+TablaFronteras[[#This Row],[Ancho]]/2 -> 330.1722085 | G65: =TablaFronteras[[#This Row],[Y]]+TablaFronteras[[#This Row],[Alto]]/2 -> 180.0193737 | H65: =IF(AND(TablaFronteras[[#This Row],[Fila]]<>"",TablaFronteras[[#This Row],[X]]<miX,miX<TablaFronteras[[#This Row],[X]]+TablaFronteras[[#This Row],[Ancho]],TablaFronteras[[#This Row],[Y]]<miY,miY<TablaFronteras[[#This Row],[Y]]+TablaFronteras[[#This Row],[Alto]]),SQRT((TablaFronteras[[#This Row],[Centro X]]-miX)^2+(TablaFronteras[[#This Row],[Centro Y]]-miY)^2),"") ->  | I65: =IF(TablaFronteras[[#This Row],[Frontera]]="","",IFERROR(MATCH(RIGHT(TablaFronteras[[#This Row],[Frontera]],LEN(TablaFronteras[[#This Row],[Frontera]])-IFERROR(FIND(" - ",TablaFronteras[[#This Row],[Frontera]])+2,0)),Datos[País],0),"")) -> 234
A66: Liberia | B66: 330.0837708 | C66: 180.0942535 | D66: 8.943937302 | E66: 9.870944977 | F66: =TablaFronteras[[#This Row],[X]]+TablaFronteras[[#This Row],[Ancho]]/2 -> 334.5557394 | G66: =TablaFronteras[[#This Row],[Y]]+TablaFronteras[[#This Row],[Alto]]/2 -> 185.029726 | H66: =IF(AND(TablaFronteras[[#This Row],[Fila]]<>"",TablaFronteras[[#This Row],[X]]<miX,miX<TablaFronteras[[#This Row],[X]]+TablaFronteras[[#This Row],[Ancho]],TablaFronteras[[#This Row],[Y]]<miY,miY<TablaFronteras[[#This Row],[Y]]+TablaFronteras[[#This Row],[Alto]]),SQRT((TablaFronteras[[#This Row],[Centro X]]-miX)^2+(TablaFronteras[[#This Row],[Centro Y]]-miY)^2),"") ->  | I66: =IF(TablaFronteras[[#This Row],[Frontera]]="","",IFERROR(MATCH(RIGHT(TablaFronteras[[#This Row],[Frontera]],LEN(TablaFronteras[[#This Row],[Frontera]])-IFERROR(FIND(" - ",TablaFronteras[[#This Row],[Frontera]])+2,0)),Datos[País],0),"")) -> 149
A67: Costa de Marfil | B67: 336.5858154 | C67: 174.5619659 | D67: 12.46551228 | E67: 15.33464527 | F67: =TablaFronteras[[#This Row],[X]]+TablaFronteras[[#This Row],[Ancho]]/2 -> 342.8185716 | G67: =TablaFronteras[[#This Row],[Y]]+TablaFronteras[[#This Row],[Alto]]/2 -> 182.2292886 | H67: =IF(AND(TablaFronteras[[#This Row],[Fila]]<>"",TablaFronteras[[#This Row],[X]]<miX,miX<TablaFronteras[[#This Row],[X]]+TablaFronteras[[#This Row],[Ancho]],TablaFronteras[[#This Row],[Y]]<miY,miY<TablaFronteras[[#This Row],[Y]]+TablaFronteras[[#This Row],[Alto]]),SQRT((TablaFronteras[[#This Row],[Centro X]]-miX)^2+(TablaFronteras[[#This Row],[Centro Y]]-miY)^2),"") ->  | I67: =IF(TablaFronteras[[#This Row],[Frontera]]="","",IFERROR(MATCH(RIGHT(TablaFronteras[[#This Row],[Frontera]],LEN(TablaFronteras[[#This Row],[Frontera]])-IFERROR(FIND(" - ",TablaFronteras[[#This Row],[Frontera]])+2,0)),Datos[País],0),"")) -> 62
A68: Burkina Faso | B68: 343.0765991 | C68: 163.9019623 | D68: 16.17858315 | E68: 13.78976345 | F68: =TablaFronteras[[#This Row],[X]]+TablaFronteras[[#This Row],[Ancho]]/2 -> 351.1658907 | G68: =TablaFronteras[[#This Row],[Y]]+TablaFronteras[[#This Row],[Alto]]/2 -> 170.796844 | H68: =IF(AND(TablaFronteras[[#This Row],[Fila]]<>"",TablaFronteras[[#This Row],[X]]<miX,miX<TablaFronteras[[#This Row],[X]]+TablaFronteras[[#This Row],[Ancho]],TablaFronteras[[#This Row],[Y]]<miY,miY<TablaFronteras[[#This Row],[Y]]+TablaFronteras[[#This Row],[Alto]]),SQRT((TablaFronteras[[#This Row],[Centro X]]-miX)^2+(TablaFronteras[[#This Row],[Centro Y]]-miY)^2),"") ->  | I68: =IF(TablaFronteras[[#This Row],[Frontera]]="","",IFERROR(MATCH(RIGHT(TablaFronteras[[#This Row],[Frontera]],LEN(TablaFronteras[[#This Row],[Frontera]])-IFERROR(FIND(" - ",TablaFronteras[[#This Row],[Frontera]])+2,0)),Datos[País],0),"")) -> 40
A69: Ghana | B69: 347.7670898 | C69: 173.6325226 | D69: 8.297007561 | E69: 15.45842552 | F69: =TablaFronteras[[#This Row],[X]]+TablaFronteras[[#This Row],[Ancho]]/2 -> 351.9155936 | G69: =TablaFronteras[[#This Row],[Y]]+TablaFronteras[[#This Row],[Alto]]/2 -> 181.3617353 | H69: =IF(AND(TablaFronteras[[#This Row],[Fila]]<>"",TablaFronteras[[#This Row],[X]]<miX,miX<TablaFronteras[[#This Row],[X]]+TablaFronteras[[#This Row],[Ancho]],TablaFronteras[[#This Row],[Y]]<miY,miY<TablaFronteras[[#This Row],[Y]]+TablaFronteras[[#This Row],[Alto]]),SQRT((TablaFronteras[[#This Row],[Centro X]]-miX)^2+(TablaFronteras[[#This Row],[Centro Y]]-miY)^2),"") ->  | I69: =IF(TablaFronteras[[#This Row],[Frontera]]="","",IFERROR(MATCH(RIGHT(TablaFronteras[[#This Row],[Frontera]],LEN(TablaFronteras[[#This Row],[Frontera]])-IFERROR(FIND(" - ",TablaFronteras[[#This Row],[Frontera]])+2,0)),Datos[País],0),"")) -> 86
A70: Togo | B70: 353.5317993 | C70: 173.6030731 | D70: 5.362441063 | E70: 12.2184248 | F70: =TablaFronteras[[#This Row],[X]]+TablaFronteras[[#This Row],[Ancho]]/2 -> 356.2130198 | G70: =TablaFronteras[[#This Row],[Y]]+TablaFronteras[[#This Row],[Alto]]/2 -> 179.7122855 | H70: =IF(AND(TablaFronteras[[#This Row],[Fila]]<>"",TablaFronteras[[#This Row],[X]]<miX,miX<TablaFronteras[[#This Row],[X]]+TablaFronteras[[#This Row],[Ancho]],TablaFronteras[[#This Row],[Y]]<miY,miY<TablaFronteras[[#This Row],[Y]]+TablaFronteras[[#This Row],[Alto]]),SQRT((TablaFronteras[[#This Row],[Centro X]]-miX)^2+(TablaFronteras[[#This Row],[Centro Y]]-miY)^2),"") ->  | I70: =IF(TablaFronteras[[#This Row],[Frontera]]="","",IFERROR(MATCH(RIGHT(TablaFronteras[[#This Row],[Frontera]],LEN(TablaFronteras[[#This Row],[Frontera]])-IFERROR(FIND(" - ",TablaFronteras[[#This Row],[Frontera]])+2,0)),Datos[País],0),"")) -> 256
A71: Benín | B71: 355.7585754 | C71: 170.5860596 | D71: 6.768188953 | E71: 14.95480347 | F71: =TablaFronteras[[#This Row],[X]]+TablaFronteras[[#This Row],[Ancho]]/2 -> 359.1426699 | G71: =TablaFronteras[[#This Row],[Y]]+TablaFronteras[[#This Row],[Alto]]/2 -> 178.0634613 | H71: =IF(AND(TablaFronteras[[#This Row],[Fila]]<>"",TablaFronteras[[#This Row],[X]]<miX,miX<TablaFronteras[[#This Row],[X]]+TablaFronteras[[#This Row],[Ancho]],TablaFronteras[[#This Row],[Y]]<miY,miY<TablaFronteras[[#This Row],[Y]]+TablaFronteras[[#This Row],[Alto]]),SQRT((TablaFronteras[[#This Row],[Centro X]]-miX)^2+(TablaFronteras[[#This Row],[Centro Y]]-miY)^2),"") ->  | I71: =IF(TablaFronteras[[#This Row],[Frontera]]="","",IFERROR(MATCH(RIGHT(TablaFronteras[[#This Row],[Frontera]],LEN(TablaFronteras[[#This Row],[Frontera]])-IFERROR(FIND(" - ",TablaFronteras[[#This Row],[Frontera]])+2,0)),Datos[País],0),"")) -> 29
A72: Nigeria | B72: 360.2424316 | C72: 166.9967651 | D72: 24.82299232 | E72: 23.11858177 | F72: =TablaFronteras[[#This Row],[X]]+TablaFronteras[[#This Row],[Ancho]]/2 -> 372.6539278 | G72: =TablaFronteras[[#This Row],[Y]]+TablaFronteras[[#This Row],[Alto]]/2 -> 178.556056 | H72: =IF(AND(TablaFronteras[[#This Row],[Fila]]<>"",TablaFronteras[[#This Row],[X]]<miX,miX<TablaFronteras[[#This Row],[X]]+TablaFronteras[[#This Row],[Ancho]],TablaFronteras[[#This Row],[Y]]<miY,miY<TablaFronteras[[#This Row],[Y]]+TablaFronteras[[#This Row],[Alto]]),SQRT((TablaFronteras[[#This Row],[Centro X]]-miX)^2+(TablaFronteras[[#This Row],[Centro Y]]-miY)^2),"") ->  | I72: =IF(TablaFronteras[[#This Row],[Frontera]]="","",IFERROR(MATCH(RIGHT(TablaFronteras[[#This Row],[Frontera]],LEN(TablaFronteras[[#This Row],[Frontera]])-IFERROR(FIND(" - ",TablaFronteras[[#This Row],[Frontera]])+2,0)),Datos[País],0),"")) -> 182
A73: Níger | B73: 354.6646423 | C73: 144.0587463 | D73: 32.84228516 | E73: 28.44992065 | F73: =TablaFronteras[[#This Row],[X]]+TablaFronteras[[#This Row],[Ancho]]/2 -> 371.0857849 | G73: =TablaFronteras[[#This Row],[Y]]+TablaFronteras[[#This Row],[Alto]]/2 -> 158.2837067 | H73: =IF(AND(TablaFronteras[[#This Row],[Fila]]<>"",TablaFronteras[[#This Row],[X]]<miX,miX<TablaFronteras[[#This Row],[X]]+TablaFronteras[[#This Row],[Ancho]],TablaFronteras[[#This Row],[Y]]<miY,miY<TablaFronteras[[#This Row],[Y]]+TablaFronteras[[#This Row],[Alto]]),SQRT((TablaFronteras[[#This Row],[Centro X]]-miX)^2+(TablaFronteras[[#This Row],[Centro Y]]-miY)^2),"") ->  | I73: =IF(TablaFronteras[[#This Row],[Frontera]]="","",IFERROR(MATCH(RIGHT(TablaFronteras[[#This Row],[Frontera]],LEN(TablaFronteras[[#This Row],[Frontera]])-IFERROR(FIND(" - ",TablaFronteras[[#This Row],[Frontera]])+2,0)),Datos[País],0),"")) -> 187
A74: Chad | B74: 381.8525085 | C74: 143.9785767 | D74: 21.59078789 | E74: 38.4251976 | F74: =TablaFronteras[[#This Row],[X]]+TablaFronteras[[#This Row],[Ancho]]/2 -> 392.6479025 | G74: =TablaFronteras[[#This Row],[Y]]+TablaFronteras[[#This Row],[Alto]]/2 -> 163.1911755 | H74: =IF(AND(TablaFronteras[[#This Row],[Fila]]<>"",TablaFronteras[[#This Row],[X]]<miX,miX<TablaFronteras[[#This Row],[X]]+TablaFronteras[[#This Row],[Ancho]],TablaFronteras[[#This Row],[Y]]<miY,miY<TablaFronteras[[#This Row],[Y]]+TablaFronteras[[#This Row],[Alto]]),SQRT((TablaFronteras[[#This Row],[Centro X]]-miX)^2+(TablaFronteras[[#This Row],[Centro Y]]-miY)^2),"") ->  | I74: =IF(TablaFronteras[[#This Row],[Frontera]]="","",IFERROR(MATCH(RIGHT(TablaFronteras[[#This Row],[Frontera]],LEN(TablaFronteras[[#This Row],[Frontera]])-IFERROR(FIND(" - ",TablaFronteras[[#This Row],[Frontera]])+2,0)),Datos[País],0),"")) -> 51
A75: Sudán | B75: 399.2482605 | C75: 144.6496124 | D75: 34.66819 | E75: 33.18897629 | F75: =TablaFronteras[[#This Row],[X]]+TablaFronteras[[#This Row],[Ancho]]/2 -> 416.5823555 | G75: =TablaFronteras[[#This Row],[Y]]+TablaFronteras[[#This Row],[Alto]]/2 -> 161.2441006 | H75: =IF(AND(TablaFronteras[[#This Row],[Fila]]<>"",TablaFronteras[[#This Row],[X]]<miX,miX<TablaFronteras[[#This Row],[X]]+TablaFronteras[[#This Row],[Ancho]],TablaFronteras[[#This Row],[Y]]<miY,miY<TablaFronteras[[#This Row],[Y]]+TablaFronteras[[#This Row],[Alto]]),SQRT((TablaFronteras[[#This Row],[Centro X]]-miX)^2+(TablaFronteras[[#This Row],[Centro Y]]-miY)^2),"") ->  | I75: =IF(TablaFronteras[[#This Row],[Frontera]]="","",IFERROR(MATCH(RIGHT(TablaFronteras[[#This Row],[Frontera]],LEN(TablaFronteras[[#This Row],[Frontera]])-IFERROR(FIND(" - ",TablaFronteras[[#This Row],[Frontera]])+2,0)),Datos[País],0),"")) -> 243
A76: Sudán del Sur | B76: 402.5329895 | C76: 170.7476349 | D76: 26.02425194 | E76: 21.24621964 | F76: =TablaFronteras[[#This Row],[X]]+TablaFronteras[[#This Row],[Ancho]]/2 -> 415.5451155 | G76: =TablaFronteras[[#This Row],[Y]]+TablaFronteras[[#This Row],[Alto]]/2 -> 181.3707447 | H76: =IF(AND(TablaFronteras[[#This Row],[Fila]]<>"",TablaFronteras[[#This Row],[X]]<miX,miX<TablaFronteras[[#This Row],[X]]+TablaFronteras[[#This Row],[Ancho]],TablaFronteras[[#This Row],[Y]]<miY,miY<TablaFronteras[[#This Row],[Y]]+TablaFronteras[[#This Row],[Alto]]),SQRT((TablaFronteras[[#This Row],[Centro X]]-miX)^2+(TablaFronteras[[#This Row],[Centro Y]]-miY)^2),"") ->  | I76: =IF(TablaFronteras[[#This Row],[Frontera]]="","",IFERROR(MATCH(RIGHT(TablaFronteras[[#This Row],[Frontera]],LEN(TablaFronteras[[#This Row],[Frontera]])-IFERROR(FIND(" - ",TablaFronteras[[#This Row],[Frontera]])+2,0)),Datos[País],0),"")) -> 244
A77: Eritrea | B77: 429.1014099 | C77: 157.0087433 | D77: 14.55370045 | E77: 13.63039398 | F77: =TablaFronteras[[#This Row],[X]]+TablaFronteras[[#This Row],[Ancho]]/2 -> 436.3782601 | G77: =TablaFronteras[[#This Row],[Y]]+TablaFronteras[[#This Row],[Alto]]/2 -> 163.8239403 | H77: =IF(AND(TablaFronteras[[#This Row],[Fila]]<>"",TablaFronteras[[#This Row],[X]]<miX,miX<TablaFronteras[[#This Row],[X]]+TablaFronteras[[#This Row],[Ancho]],TablaFronteras[[#This Row],[Y]]<miY,miY<TablaFronteras[[#This Row],[Y]]+TablaFronteras[[#This Row],[Alto]]),SQRT((TablaFronteras[[#This Row],[Centro X]]-miX)^2+(TablaFronteras[[#This Row],[Centro Y]]-miY)^2),"") ->  | I77: =IF(TablaFronteras[[#This Row],[Frontera]]="","",IFERROR(MATCH(RIGHT(TablaFronteras[[#This Row],[Frontera]],LEN(TablaFronteras[[#This Row],[Frontera]])-IFERROR(FIND(" - ",TablaFronteras[[#This Row],[Frontera]])+2,0)),Datos[País],0),"")) -> 72
A78: Somalia | B78: 439.3016663 | C78: 171.6116486 | D78: 21.21818924 | E78: 32.92409515 | F78: =TablaFronteras[[#This Row],[X]]+TablaFronteras[[#This Row],[Ancho]]/2 -> 449.9107609 | G78: =TablaFronteras[[#This Row],[Y]]+TablaFronteras[[#This Row],[Alto]]/2 -> 188.0736961 | H78: =IF(AND(TablaFronteras[[#This Row],[Fila]]<>"",TablaFronteras[[#This Row],[X]]<miX,miX<TablaFronteras[[#This Row],[X]]+TablaFronteras[[#This Row],[Ancho]],TablaFronteras[[#This Row],[Y]]<miY,miY<TablaFronteras[[#This Row],[Y]]+TablaFronteras[[#This Row],[Alto]]),SQRT((TablaFronteras[[#This Row],[Centro X]]-miX)^2+(TablaFronteras[[#This Row],[Centro Y]]-miY)^2),"") ->  | I78: =IF(TablaFronteras[[#This Row],[Frontera]]="","",IFERROR(MATCH(RIGHT(TablaFronteras[[#This Row],[Frontera]],LEN(TablaFronteras[[#This Row],[Frontera]])-IFERROR(FIND(" - ",TablaFronteras[[#This Row],[Frontera]])+2,0)),Datos[País],0),"")) -> 238
A79: Etiopía | B79: 422.9888306 | C79: 164.3937073 | D79: 30.17118073 | E79: 27.81472397 | F79: =TablaFronteras[[#This Row],[X]]+TablaFronteras[[#This Row],[Ancho]]/2 -> 438.0744209 | G79: =TablaFronteras[[#This Row],[Y]]+TablaFronteras[[#This Row],[Alto]]/2 -> 178.3010693 | H79: =IF(AND(TablaFronteras[[#This Row],[Fila]]<>"",TablaFronteras[[#This Row],[X]]<miX,miX<TablaFronteras[[#This Row],[X]]+TablaFronteras[[#This Row],[Ancho]],TablaFronteras[[#This Row],[Y]]<miY,miY<TablaFronteras[[#This Row],[Y]]+TablaFronteras[[#This Row],[Alto]]),SQRT((TablaFronteras[[#This Row],[Centro X]]-miX)^2+(TablaFronteras[[#This Row],[Centro Y]]-miY)^2),"") ->  | I79: =IF(TablaFronteras[[#This Row],[Frontera]]="","",IFERROR(MATCH(RIGHT(TablaFronteras[[#This Row],[Frontera]],LEN(TablaFronteras[[#This Row],[Frontera]])-IFERROR(FIND(" - ",TablaFronteras[[#This Row],[Frontera]])+2,0)),Datos[País],0),"")) -> 78
A80: Yibuti | B80: 440.8829041 | C80: 169.8253479 | D80: 3.428582668 | E80: 4.234960556 | F80: =TablaFronteras[[#This Row],[X]]+TablaFronteras[[#This Row],[Ancho]]/2 -> 442.5971954 | G80: =TablaFronteras[[#This Row],[Y]]+TablaFronteras[[#This Row],[Alto]]/2 -> 171.9428282 | H80: =IF(AND(TablaFronteras[[#This Row],[Fila]]<>"",TablaFronteras[[#This Row],[X]]<miX,miX<TablaFronteras[[#This Row],[X]]+TablaFronteras[[#This Row],[Ancho]],TablaFronteras[[#This Row],[Y]]<miY,miY<TablaFronteras[[#This Row],[Y]]+TablaFronteras[[#This Row],[Alto]]),SQRT((TablaFronteras[[#This Row],[Centro X]]-miX)^2+(TablaFronteras[[#This Row],[Centro Y]]-miY)^2),"") ->  | I80: =IF(TablaFronteras[[#This Row],[Frontera]]="","",IFERROR(MATCH(RIGHT(TablaFronteras[[#This Row],[Frontera]],LEN(TablaFronteras[[#This Row],[Frontera]])-IFERROR(FIND(" - ",TablaFronteras[[#This Row],[Frontera]])+2,0)),Datos[País],0),"")) -> 274
A81: Kenia | B81: 424.7054443 | C81: 189.3610229 | D81: 16.78078651 | E81: 22.60448837 | F81: =TablaFronteras[[#This Row],[X]]+TablaFronteras[[#This Row],[Ancho]]/2 -> 433.0958376 | G81: =TablaFronteras[[#This Row],[Y]]+TablaFronteras[[#This Row],[Alto]]/2 -> 200.6632671 | H81: =IF(AND(TablaFronteras[[#This Row],[Fila]]<>"",TablaFronteras[[#This Row],[X]]<miX,miX<TablaFronteras[[#This Row],[X]]+TablaFronteras[[#This Row],[Ancho]],TablaFronteras[[#This Row],[Y]]<miY,miY<TablaFronteras[[#This Row],[Y]]+TablaFronteras[[#This Row],[Alto]]),SQRT((TablaFronteras[[#This Row],[Centro X]]-miX)^2+(TablaFronteras[[#This Row],[Centro Y]]-miY)^2),"") ->  | I81: =IF(TablaFronteras[[#This Row],[Frontera]]="","",IFERROR(MATCH(RIGHT(TablaFronteras[[#This Row],[Frontera]],LEN(TablaFronteras[[#This Row],[Frontera]])-IFERROR(FIND(" - ",TablaFronteras[[#This Row],[Frontera]])+2,0)),Datos[País],0),"")) -> 141
A82: Uganda | B82: 415.7947998 | C82: 190.2496033 | D82: 10.98803139 | E82: 13.839921 | F82: =TablaFronteras[[#This Row],[X]]+TablaFronteras[[#This Row],[Ancho]]/2 -> 421.2888155 | G82: =TablaFronteras[[#This Row],[Y]]+TablaFronteras[[#This Row],[Alto]]/2 -> 197.1695638 | H82: =IF(AND(TablaFronteras[[#This Row],[Fila]]<>"",TablaFronteras[[#This Row],[X]]<miX,miX<TablaFronteras[[#This Row],[X]]+TablaFronteras[[#This Row],[Ancho]],TablaFronteras[[#This Row],[Y]]<miY,miY<TablaFronteras[[#This Row],[Y]]+TablaFronteras[[#This Row],[Alto]]),SQRT((TablaFronteras[[#This Row],[Centro X]]-miX)^2+(TablaFronteras[[#This Row],[Centro Y]]-miY)^2),"") ->  | I82: =IF(TablaFronteras[[#This Row],[Frontera]]="","",IFERROR(MATCH(RIGHT(TablaFronteras[[#This Row],[Frontera]],LEN(TablaFronteras[[#This Row],[Frontera]])-IFERROR(FIND(" - ",TablaFronteras[[#This Row],[Frontera]])+2,0)),Datos[País],0),"")) -> 266
A83: Ruanda | B83: 414.3795166 | C83: 203.1470795 | D83: 4.248504162 | E83: 4.11228323 | F83: =TablaFronteras[[#This Row],[X]]+TablaFronteras[[#This Row],[Ancho]]/2 -> 416.5037687 | G83: =TablaFronteras[[#This Row],[Y]]+TablaFronteras[[#This Row],[Alto]]/2 -> 205.2032211 | H83: =IF(AND(TablaFronteras[[#This Row],[Fila]]<>"",TablaFronteras[[#This Row],[X]]<miX,miX<TablaFronteras[[#This Row],[X]]+TablaFronteras[[#This Row],[Ancho]],TablaFronteras[[#This Row],[Y]]<miY,miY<TablaFronteras[[#This Row],[Y]]+TablaFronteras[[#This Row],[Alto]]),SQRT((TablaFronteras[[#This Row],[Centro X]]-miX)^2+(TablaFronteras[[#This Row],[Centro Y]]-miY)^2),"") ->  | I83: =IF(TablaFronteras[[#This Row],[Frontera]]="","",IFERROR(MATCH(RIGHT(TablaFronteras[[#This Row],[Frontera]],LEN(TablaFronteras[[#This Row],[Frontera]])-IFERROR(FIND(" - ",TablaFronteras[[#This Row],[Frontera]])+2,0)),Datos[País],0),"")) -> 214
A84: Burundi | B84: 414.6954346 | C84: 206.065506 | D84: 3.873149633 | E84: 5.328504086 | F84: =TablaFronteras[[#This Row],[X]]+TablaFronteras[[#This Row],[Ancho]]/2 -> 416.6320094 | G84: =TablaFronteras[[#This Row],[Y]]+TablaFronteras[[#This Row],[Alto]]/2 -> 208.729758 | H84: =IF(AND(TablaFronteras[[#This Row],[Fila]]<>"",TablaFronteras[[#This Row],[X]]<miX,miX<TablaFronteras[[#This Row],[X]]+TablaFronteras[[#This Row],[Ancho]],TablaFronteras[[#This Row],[Y]]<miY,miY<TablaFronteras[[#This Row],[Y]]+TablaFronteras[[#This Row],[Alto]]),SQRT((TablaFronteras[[#This Row],[Centro X]]-miX)^2+(TablaFronteras[[#This Row],[Centro Y]]-miY)^2),"") ->  | I84: =IF(TablaFronteras[[#This Row],[Frontera]]="","",IFERROR(MATCH(RIGHT(TablaFronteras[[#This Row],[Frontera]],LEN(TablaFronteras[[#This Row],[Frontera]])-IFERROR(FIND(" - ",TablaFronteras[[#This Row],[Frontera]])+2,0)),Datos[País],0),"")) -> 41
A85: Tanzania | B85: 415.8817444 | C85: 202.9574738 | D85: 22.17724419 | E85: 26.10456657 | F85: =TablaFronteras[[#This Row],[X]]+TablaFronteras[[#This Row],[Ancho]]/2 -> 426.9703665 | G85: =TablaFronteras[[#This Row],[Y]]+TablaFronteras[[#This Row],[Alto]]/2 -> 216.009757 | H85: =IF(AND(TablaFronteras[[#This Row],[Fila]]<>"",TablaFronteras[[#This Row],[X]]<miX,miX<TablaFronteras[[#This Row],[X]]+TablaFronteras[[#This Row],[Ancho]],TablaFronteras[[#This Row],[Y]]<miY,miY<TablaFronteras[[#This Row],[Y]]+TablaFronteras[[#This Row],[Alto]]),SQRT((TablaFronteras[[#This Row],[Centro X]]-miX)^2+(TablaFronteras[[#This Row],[Centro Y]]-miY)^2),"") ->  | I85: =IF(TablaFronteras[[#This Row],[Frontera]]="","",IFERROR(MATCH(RIGHT(TablaFronteras[[#This Row],[Frontera]],LEN(TablaFronteras[[#This Row],[Frontera]])-IFERROR(FIND(" - ",TablaFronteras[[#This Row],[Frontera]])+2,0)),Datos[País],0),"")) -> 251
A86: Zambia | B86: 399.5258179 | C86: 220.4061432 | D86: 24.27968597 | E86: 23.97519684 | F86: =TablaFronteras[[#This Row],[X]]+TablaFronteras[[#This Row],[Ancho]]/2 -> 411.6656609 | G86: =TablaFronteras[[#This Row],[Y]]+TablaFronteras[[#This Row],[Alto]]/2 -> 232.3937416 | H86: =IF(AND(TablaFronteras[[#This Row],[Fila]]<>"",TablaFronteras[[#This Row],[X]]<miX,miX<TablaFronteras[[#This Row],[X]]+TablaFronteras[[#This Row],[Ancho]],TablaFronteras[[#This Row],[Y]]<miY,miY<TablaFronteras[[#This Row],[Y]]+TablaFronteras[[#This Row],[Alto]]),SQRT((TablaFronteras[[#This Row],[Centro X]]-miX)^2+(TablaFronteras[[#This Row],[Centro Y]]-miY)^2),"") ->  | I86: =IF(TablaFronteras[[#This Row],[Frontera]]="","",IFERROR(MATCH(RIGHT(TablaFronteras[[#This Row],[Frontera]],LEN(TablaFronteras[[#This Row],[Frontera]])-IFERROR(FIND(" - ",TablaFronteras[[#This Row],[Frontera]])+2,0)),Datos[País],0),"")) -> 275
A87: Mozambique | B87: 416.3218994 | C87: 226.1422119 | D87: 21.82551193 | E87: 39.47504044 | F87: =TablaFronteras[[#This Row],[X]]+TablaFronteras[[#This Row],[Ancho]]/2 -> 427.2346554 | G87: =TablaFronteras[[#This Row],[Y]]+TablaFronteras[[#This Row],[Alto]]/2 -> 245.8797321 | H87: =IF(AND(TablaFronteras[[#This Row],[Fila]]<>"",TablaFronteras[[#This Row],[X]]<miX,miX<TablaFronteras[[#This Row],[X]]+TablaFronteras[[#This Row],[Ancho]],TablaFronteras[[#This Row],[Y]]<miY,miY<TablaFronteras[[#This Row],[Y]]+TablaFronteras[[#This Row],[Alto]]),SQRT((TablaFronteras[[#This Row],[Centro X]]-miX)^2+(TablaFronteras[[#This Row],[Centro Y]]-miY)^2),"") ->  | I87: =IF(TablaFronteras[[#This Row],[Frontera]]="","",IFERROR(MATCH(RIGHT(TablaFronteras[[#This Row],[Frontera]],LEN(TablaFronteras[[#This Row],[Frontera]])-IFERROR(FIND(" - ",TablaFronteras[[#This Row],[Frontera]])+2,0)),Datos[País],0),"")) -> 175
A88: Malaui | B88: 422.1165466 | C88: 223.5024414 | D88: 4.865118027 | E88: 18.6682682 | F88: =TablaFronteras[[#This Row],[X]]+TablaFronteras[[#This Row],[Ancho]]/2 -> 424.5491056 | G88: =TablaFronteras[[#This Row],[Y]]+TablaFronteras[[#This Row],[Alto]]/2 -> 232.8365755 | H88: =IF(AND(TablaFronteras[[#This Row],[Fila]]<>"",TablaFronteras[[#This Row],[X]]<miX,miX<TablaFronteras[[#This Row],[X]]+TablaFronteras[[#This Row],[Ancho]],TablaFronteras[[#This Row],[Y]]<miY,miY<TablaFronteras[[#This Row],[Y]]+TablaFronteras[[#This Row],[Alto]]),SQRT((TablaFronteras[[#This Row],[Centro X]]-miX)^2+(TablaFronteras[[#This Row],[Centro Y]]-miY)^2),"") ->  | I88: =IF(TablaFronteras[[#This Row],[Frontera]]="","",IFERROR(MATCH(RIGHT(TablaFronteras[[#This Row],[Frontera]],LEN(TablaFronteras[[#This Row],[Frontera]])-IFERROR(FIND(" - ",TablaFronteras[[#This Row],[Frontera]])+2,0)),Datos[País],0),"")) -> 159
A89: Madagascar | B89: 442.788269 | C89: 229.6342468 | D89: 14.5151968 | E89: 32.84464645 | F89: =TablaFronteras[[#This Row],[X]]+TablaFronteras[[#This Row],[Ancho]]/2 -> 450.0458674 | G89: =TablaFronteras[[#This Row],[Y]]+TablaFronteras[[#This Row],[Alto]]/2 -> 246.0565701 | H89: =IF(AND(TablaFronteras[[#This Row],[Fila]]<>"",TablaFronteras[[#This Row],[X]]<miX,miX<TablaFronteras[[#This Row],[X]]+TablaFronteras[[#This Row],[Ancho]],TablaFronteras[[#This Row],[Y]]<miY,miY<TablaFronteras[[#This Row],[Y]]+TablaFronteras[[#This Row],[Alto]]),SQRT((TablaFronteras[[#This Row],[Centro X]]-miX)^2+(TablaFronteras[[#This Row],[Centro Y]]-miY)^2),"") ->  | I89: =IF(TablaFronteras[[#This Row],[Frontera]]="","",IFERROR(MATCH(RIGHT(TablaFronteras[[#This Row],[Frontera]],LEN(TablaFronteras[[#This Row],[Frontera]])-IFERROR(FIND(" - ",TablaFronteras[[#This Row],[Frontera]])+2,0)),Datos[País],0),"")) -> 156
A90: Zimbabue | B90: 405.97229 | C90: 238.522995 | D90: 15.80992126 | E90: 16.54031563 | F90: =TablaFronteras[[#This Row],[X]]+TablaFronteras[[#This Row],[Ancho]]/2 -> 413.8772507 | G90: =TablaFronteras[[#This Row],[Y]]+TablaFronteras[[#This Row],[Alto]]/2 -> 246.7931528 | H90: =IF(AND(TablaFronteras[[#This Row],[Fila]]<>"",TablaFronteras[[#This Row],[X]]<miX,miX<TablaFronteras[[#This Row],[X]]+TablaFronteras[[#This Row],[Ancho]],TablaFronteras[[#This Row],[Y]]<miY,miY<TablaFronteras[[#This Row],[Y]]+TablaFronteras[[#This Row],[Alto]]),SQRT((TablaFronteras[[#This Row],[Centro X]]-miX)^2+(TablaFronteras[[#This Row],[Centro Y]]-miY)^2),"") ->  | I90: =IF(TablaFronteras[[#This Row],[Frontera]]="","",IFERROR(MATCH(RIGHT(TablaFronteras[[#This Row],[Frontera]],LEN(TablaFronteras[[#This Row],[Frontera]])-IFERROR(FIND(" - ",TablaFronteras[[#This Row],[Frontera]])+2,0)),Datos[País],0),"")) -> 276
A91: Botsuana | B91: 395.506073 | C91: 243.6345673 | D91: 19.01441002 | E91: 21.99645615 | F91: =TablaFronteras[[#This Row],[X]]+TablaFronteras[[#This Row],[Ancho]]/2 -> 405.013278 | G91: =TablaFronteras[[#This Row],[Y]]+TablaFronteras[[#This Row],[Alto]]/2 -> 254.6327953 | H91: =IF(AND(TablaFronteras[[#This Row],[Fila]]<>"",TablaFronteras[[#This Row],[X]]<miX,miX<TablaFronteras[[#This Row],[X]]+TablaFronteras[[#This Row],[Ancho]],TablaFronteras[[#This Row],[Y]]<miY,miY<TablaFronteras[[#This Row],[Y]]+TablaFronteras[[#This Row],[Alto]]),SQRT((TablaFronteras[[#This Row],[Centro X]]-miX)^2+(TablaFronteras[[#This Row],[Centro Y]]-miY)^2),"") ->  | I91: =IF(TablaFronteras[[#This Row],[Frontera]]="","",IFERROR(MATCH(RIGHT(TablaFronteras[[#This Row],[Frontera]],LEN(TablaFronteras[[#This Row],[Frontera]])-IFERROR(FIND(" - ",TablaFronteras[[#This Row],[Frontera]])+2,0)),Datos[País],0),"")) -> 36
A92: Angola | B92: 378.2408752 | C92: 211.2996063 | D92: 25.51795197 | E92: 32.92621994 | F92: =TablaFronteras[[#This Row],[X]]+TablaFronteras[[#This Row],[Ancho]]/2 -> 390.9998512 | G92: =TablaFronteras[[#This Row],[Y]]+TablaFronteras[[#This Row],[Alto]]/2 -> 227.7627163 | H92: =IF(AND(TablaFronteras[[#This Row],[Fila]]<>"",TablaFronteras[[#This Row],[X]]<miX,miX<TablaFronteras[[#This Row],[X]]+TablaFronteras[[#This Row],[Ancho]],TablaFronteras[[#This Row],[Y]]<miY,miY<TablaFronteras[[#This Row],[Y]]+TablaFronteras[[#This Row],[Alto]]),SQRT((TablaFronteras[[#This Row],[Centro X]]-miX)^2+(TablaFronteras[[#This Row],[Centro Y]]-miY)^2),"") ->  | I92: =IF(TablaFronteras[[#This Row],[Frontera]]="","",IFERROR(MATCH(RIGHT(TablaFronteras[[#This Row],[Frontera]],LEN(TablaFronteras[[#This Row],[Frontera]])-IFERROR(FIND(" - ",TablaFronteras[[#This Row],[Frontera]])+2,0)),Datos[País],0),"")) -> 7
A93: Camerún | B93: 372.8823547 | C93: 168.924881 | D93: 14.75811005 | E93: 28.00181007 | F93: =TablaFronteras[[#This Row],[X]]+TablaFronteras[[#This Row],[Ancho]]/2 -> 380.2614098 | G93: =TablaFronteras[[#This Row],[Y]]+TablaFronteras[[#This Row],[Alto]]/2 -> 182.925786 | H93: =IF(AND(TablaFronteras[[#This Row],[Fila]]<>"",TablaFronteras[[#This Row],[X]]<miX,miX<TablaFronteras[[#This Row],[X]]+TablaFronteras[[#This Row],[Ancho]],TablaFronteras[[#This Row],[Y]]<miY,miY<TablaFronteras[[#This Row],[Y]]+TablaFronteras[[#This Row],[Alto]]),SQRT((TablaFronteras[[#This Row],[Centro X]]-miX)^2+(TablaFronteras[[#This Row],[Centro Y]]-miY)^2),"") ->  | I93: =IF(TablaFronteras[[#This Row],[Frontera]]="","",IFERROR(MATCH(RIGHT(TablaFronteras[[#This Row],[Frontera]],LEN(TablaFronteras[[#This Row],[Frontera]])-IFERROR(FIND(" - ",TablaFronteras[[#This Row],[Frontera]])+2,0)),Datos[País],0),"")) -> 46
A94: República Centroafricana | B94: 384.192749 | C94: 173.9266968 | D94: 27.14614105 | E94: 21.357481 | F94: =TablaFronteras[[#This Row],[X]]+TablaFronteras[[#This Row],[Ancho]]/2 -> 397.7658195 | G94: =TablaFronteras[[#This Row],[Y]]+TablaFronteras[[#This Row],[Alto]]/2 -> 184.6054373 | H94: =IF(AND(TablaFronteras[[#This Row],[Fila]]<>"",TablaFronteras[[#This Row],[X]]<miX,miX<TablaFronteras[[#This Row],[X]]+TablaFronteras[[#This Row],[Ancho]],TablaFronteras[[#This Row],[Y]]<miY,miY<TablaFronteras[[#This Row],[Y]]+TablaFronteras[[#This Row],[Alto]]),SQRT((TablaFronteras[[#This Row],[Centro X]]-miX)^2+(TablaFronteras[[#This Row],[Centro Y]]-miY)^2),"") ->  | I94: =IF(TablaFronteras[[#This Row],[Frontera]]="","",IFERROR(MATCH(RIGHT(TablaFronteras[[#This Row],[Frontera]],LEN(TablaFronteras[[#This Row],[Frontera]])-IFERROR(FIND(" - ",TablaFronteras[[#This Row],[Frontera]])+2,0)),Datos[País],0),"")) -> 208
A95: Namibia | B95: 378.2072449 | C95: 241.7290497 | D95: 27.70968437 | E95: 28.96881866 | F95: =TablaFronteras[[#This Row],[X]]+TablaFronteras[[#This Row],[Ancho]]/2 -> 392.0620871 | G95: =TablaFronteras[[#This Row],[Y]]+TablaFronteras[[#This Row],[Alto]]/2 -> 256.213459 | H95: =IF(AND(TablaFronteras[[#This Row],[Fila]]<>"",TablaFronteras[[#This Row],[X]]<miX,miX<TablaFronteras[[#This Row],[X]]+TablaFronteras[[#This Row],[Ancho]],TablaFronteras[[#This Row],[Y]]<miY,miY<TablaFronteras[[#This Row],[Y]]+TablaFronteras[[#This Row],[Alto]]),SQRT((TablaFronteras[[#This Row],[Centro X]]-miX)^2+(TablaFronteras[[#This Row],[Centro Y]]-miY)^2),"") ->  | I95: =IF(TablaFronteras[[#This Row],[Frontera]]="","",IFERROR(MATCH(RIGHT(TablaFronteras[[#This Row],[Frontera]],LEN(TablaFronteras[[#This Row],[Frontera]])-IFERROR(FIND(" - ",TablaFronteras[[#This Row],[Frontera]])+2,0)),Datos[País],0),"")) -> 178
A96: Sudáfrica | B96: 388.1322937 | C96: 254.3024445 | D96: 33.17338562 | E96: 30.46637726 | F96: =TablaFronteras[[#This Row],[X]]+TablaFronteras[[#This Row],[Ancho]]/2 -> 404.7189865 | G96: =TablaFronteras[[#This Row],[Y]]+TablaFronteras[[#This Row],[Alto]]/2 -> 269.5356331 | H96: =IF(AND(TablaFronteras[[#This Row],[Fila]]<>"",TablaFronteras[[#This Row],[X]]<miX,miX<TablaFronteras[[#This Row],[X]]+TablaFronteras[[#This Row],[Ancho]],TablaFronteras[[#This Row],[Y]]<miY,miY<TablaFronteras[[#This Row],[Y]]+TablaFronteras[[#This Row],[Alto]]),SQRT((TablaFronteras[[#This Row],[Centro X]]-miX)^2+(TablaFronteras[[#This Row],[Centro Y]]-miY)^2),"") ->  | I96: =IF(TablaFronteras[[#This Row],[Frontera]]="","",IFERROR(MATCH(RIGHT(TablaFronteras[[#This Row],[Frontera]],LEN(TablaFronteras[[#This Row],[Frontera]])-IFERROR(FIND(" - ",TablaFronteras[[#This Row],[Frontera]])+2,0)),Datos[País],0),"")) -> 242
A97: Lesoto | B97: 409.0401611 | C97: 269.9035339 | D97: 5.005433083 | E97: 4.984173298 | F97: =TablaFronteras[[#This Row],[X]]+TablaFronteras[[#This Row],[Ancho]]/2 -> 411.5428777 | G97: =TablaFronteras[[#This Row],[Y]]+TablaFronteras[[#This Row],[Alto]]/2 -> 272.3956206 | H97: =IF(AND(TablaFronteras[[#This Row],[Fila]]<>"",TablaFronteras[[#This Row],[X]]<miX,miX<TablaFronteras[[#This Row],[X]]+TablaFronteras[[#This Row],[Ancho]],TablaFronteras[[#This Row],[Y]]<miY,miY<TablaFronteras[[#This Row],[Y]]+TablaFronteras[[#This Row],[Alto]]),SQRT((TablaFronteras[[#This Row],[Centro X]]-miX)^2+(TablaFronteras[[#This Row],[Centro Y]]-miY)^2),"") ->  | I97: =IF(TablaFronteras[[#This Row],[Frontera]]="","",IFERROR(MATCH(RIGHT(TablaFronteras[[#This Row],[Frontera]],LEN(TablaFronteras[[#This Row],[Frontera]])-IFERROR(FIND(" - ",TablaFronteras[[#This Row],[Frontera]])+2,0)),Datos[País],0),"")) -> 147
A98: Suazilandia | B98: 417.0691223 | C98: 263.1296082 | D98: 3.331496 | E98: 3.447322845 | F98: =TablaFronteras[[#This Row],[X]]+TablaFronteras[[#This Row],[Ancho]]/2 -> 418.7348703 | G98: =TablaFronteras[[#This Row],[Y]]+TablaFronteras[[#This Row],[Alto]]/2 -> 264.8532696 | H98: =IF(AND(TablaFronteras[[#This Row],[Fila]]<>"",TablaFronteras[[#This Row],[X]]<miX,miX<TablaFronteras[[#This Row],[X]]+TablaFronteras[[#This Row],[Ancho]],TablaFronteras[[#This Row],[Y]]<miY,miY<TablaFronteras[[#This Row],[Y]]+TablaFronteras[[#This Row],[Alto]]),SQRT((TablaFronteras[[#This Row],[Centro X]]-miX)^2+(TablaFronteras[[#This Row],[Centro Y]]-miY)^2),"") ->  | I98: =IF(TablaFronteras[[#This Row],[Frontera]]="","",IFERROR(MATCH(RIGHT(TablaFronteras[[#This Row],[Frontera]],LEN(TablaFronteras[[#This Row],[Frontera]])-IFERROR(FIND(" - ",TablaFronteras[[#This Row],[Frontera]])+2,0)),Datos[País],0),"")) -> 241
A99: Gabón | B99: 371.9625244 | C99: 194.9843292 | D99: 12.48866177 | E99: 15.1940155 | F99: =TablaFronteras[[#This Row],[X]]+TablaFronteras[[#This Row],[Ancho]]/2 -> 378.2068553 | G99: =TablaFronteras[[#This Row],[Y]]+TablaFronteras[[#This Row],[Alto]]/2 -> 202.581337 | H99: =IF(AND(TablaFronteras[[#This Row],[Fila]]<>"",TablaFronteras[[#This Row],[X]]<miX,miX<TablaFronteras[[#This Row],[X]]+TablaFronteras[[#This Row],[Ancho]],TablaFronteras[[#This Row],[Y]]<miY,miY<TablaFronteras[[#This Row],[Y]]+TablaFronteras[[#This Row],[Alto]]),SQRT((TablaFronteras[[#This Row],[Centro X]]-miX)^2+(TablaFronteras[[#This Row],[Centro Y]]-miY)^2),"") ->  | I99: =IF(TablaFronteras[[#This Row],[Frontera]]="","",IFERROR(MATCH(RIGHT(TablaFronteras[[#This Row],[Frontera]],LEN(TablaFronteras[[#This Row],[Frontera]])-IFERROR(FIND(" - ",TablaFronteras[[#This Row],[Frontera]])+2,0)),Datos[País],0),"")) -> 83
A100: Guinea Ecuatorial | B100: 371.9563904 | C100: 191.3585815 | D100: 5.434566975 | E100: 6.858503819 | F100: =TablaFronteras[[#This Row],[X]]+TablaFronteras[[#This Row],[Ancho]]/2 -> 374.6736739 | G100: =TablaFronteras[[#This Row],[Y]]+TablaFronteras[[#This Row],[Alto]]/2 -> 194.7878335 | H100: =IF(AND(TablaFronteras[[#This Row],[Fila]]<>"",TablaFronteras[[#This Row],[X]]<miX,miX<TablaFronteras[[#This Row],[X]]+TablaFronteras[[#This Row],[Ancho]],TablaFronteras[[#This Row],[Y]]<miY,miY<TablaFronteras[[#This Row],[Y]]+TablaFronteras[[#This Row],[Alto]]),SQRT((TablaFronteras[[#This Row],[Centro X]]-miX)^2+(TablaFronteras[[#This Row],[Centro Y]]-miY)^2),"") ->  | I100: =IF(TablaFronteras[[#This Row],[Frontera]]="","",IFERROR(MATCH(RIGHT(TablaFronteras[[#This Row],[Frontera]],LEN(TablaFronteras[[#This Row],[Frontera]])-IFERROR(FIND(" - ",TablaFronteras[[#This Row],[Frontera]])+2,0)),Datos[País],0),"")) -> 97
A101: Kazajistán | B101: 441.8500061 | C101: 67.74803162 | D101: 73.78134155 | E101: 34.69503784 | F101: =TablaFronteras[[#This Row],[X]]+TablaFronteras[[#This Row],[Ancho]]/2 -> 478.7406769 | G101: =TablaFronteras[[#This Row],[Y]]+TablaFronteras[[#This Row],[Alto]]/2 -> 85.09555054 | H101: =IF(AND(TablaFronteras[[#This Row],[Fila]]<>"",TablaFronteras[[#This Row],[X]]<miX,miX<TablaFronteras[[#This Row],[X]]+TablaFronteras[[#This Row],[Ancho]],TablaFronteras[[#This Row],[Y]]<miY,miY<TablaFronteras[[#This Row],[Y]]+TablaFronteras[[#This Row],[Alto]]),SQRT((TablaFronteras[[#This Row],[Centro X]]-miX)^2+(TablaFronteras[[#This Row],[Centro Y]]-miY)^2),"") ->  | I101: =IF(TablaFronteras[[#This Row],[Frontera]]="","",IFERROR(MATCH(RIGHT(TablaFronteras[[#This Row],[Frontera]],LEN(TablaFronteras[[#This Row],[Frontera]])-IFERROR(FIND(" - ",TablaFronteras[[#This Row],[Frontera]])+2,0)),Datos[País],0),"")) -> 140
A102: Mongolia | B102: 516.453125 | C102: 75.5423584 | D102: 60.87850571 | E102: 24.45606232 | F102: =TablaFronteras[[#This Row],[X]]+TablaFronteras[[#This Row],[Ancho]]/2 -> 546.8923779 | G102: =TablaFronteras[[#This Row],[Y]]+TablaFronteras[[#This Row],[Alto]]/2 -> 87.77038956 | H102: =IF(AND(TablaFronteras[[#This Row],[Fila]]<>"",TablaFronteras[[#This Row],[X]]<miX,miX<TablaFronteras[[#This Row],[X]]+TablaFronteras[[#This Row],[Ancho]],TablaFronteras[[#This Row],[Y]]<miY,miY<TablaFronteras[[#This Row],[Y]]+TablaFronteras[[#This Row],[Alto]]),SQRT((TablaFronteras[[#This Row],[Centro X]]-miX)^2+(TablaFronteras[[#This Row],[Centro Y]]-miY)^2),"") ->  | I102: =IF(TablaFronteras[[#This Row],[Frontera]]="","",IFERROR(MATCH(RIGHT(TablaFronteras[[#This Row],[Frontera]],LEN(TablaFronteras[[#This Row],[Frontera]])-IFERROR(FIND(" - ",TablaFronteras[[#This Row],[Frontera]])+2,0)),Datos[País],0),"")) -> 172
A103: Japón | B103: 605.1763916 | C103: 91.08850098 | D103: 25.38598442 | E103: 50.82322693 | F103: =TablaFronteras[[#This Row],[X]]+TablaFronteras[[#This Row],[Ancho]]/2 -> 617.8693838 | G103: =TablaFronteras[[#This Row],[Y]]+TablaFronteras[[#This Row],[Alto]]/2 -> 116.5001144 | H103: =IF(AND(TablaFronteras[[#This Row],[Fila]]<>"",TablaFronteras[[#This Row],[X]]<miX,miX<TablaFronteras[[#This Row],[X]]+TablaFronteras[[#This Row],[Ancho]],TablaFronteras[[#This Row],[Y]]<miY,miY<TablaFronteras[[#This Row],[Y]]+TablaFronteras[[#This Row],[Alto]]),SQRT((TablaFronteras[[#This Row],[Centro X]]-miX)^2+(TablaFronteras[[#This Row],[Centro Y]]-miY)^2),"") ->  | I103: =IF(TablaFronteras[[#This Row],[Frontera]]="","",IFERROR(MATCH(RIGHT(TablaFronteras[[#This Row],[Frontera]],LEN(TablaFronteras[[#This Row],[Frontera]])-IFERROR(FIND(" - ",TablaFronteras[[#This Row],[Frontera]])+2,0)),Datos[País],0),"")) -> 137
A104: Corea del Norte | B104: 594.4185181 | C104: 96.83346558 | D104: 8.83952713 | E104: 12.64251995 | F104: =TablaFronteras[[#This Row],[X]]+TablaFronteras[[#This Row],[Ancho]]/2 -> 598.8382816 | G104: =TablaFronteras[[#This Row],[Y]]+TablaFronteras[[#This Row],[Alto]]/2 -> 103.1547256 | H104: =IF(AND(TablaFronteras[[#This Row],[Fila]]<>"",TablaFronteras[[#This Row],[X]]<miX,miX<TablaFronteras[[#This Row],[X]]+TablaFronteras[[#This Row],[Ancho]],TablaFronteras[[#This Row],[Y]]<miY,miY<TablaFronteras[[#This Row],[Y]]+TablaFronteras[[#This Row],[Alto]]),SQRT((TablaFronteras[[#This Row],[Centro X]]-miX)^2+(TablaFronteras[[#This Row],[Centro Y]]-miY)^2),"") ->  | I104: =IF(TablaFronteras[[#This Row],[Frontera]]="","",IFERROR(MATCH(RIGHT(TablaFronteras[[#This Row],[Frontera]],LEN(TablaFronteras[[#This Row],[Frontera]])-IFERROR(FIND(" - ",TablaFronteras[[#This Row],[Frontera]])+2,0)),Datos[País],0),"")) -> 59
A105: Corea del Sur | B105: 600.1254883 | C105: 107.3064575 | D105: 8.672440529 | E105: 12.82622051 | F105: =TablaFronteras[[#This Row],[X]]+TablaFronteras[[#This Row],[Ancho]]/2 -> 604.4617085 | G105: =TablaFronteras[[#This Row],[Y]]+TablaFronteras[[#This Row],[Alto]]/2 -> 113.7195678 | H105: =IF(AND(TablaFronteras[[#This Row],[Fila]]<>"",TablaFronteras[[#This Row],[X]]<miX,miX<TablaFronteras[[#This Row],[X]]+TablaFronteras[[#This Row],[Ancho]],TablaFronteras[[#This Row],[Y]]<miY,miY<TablaFronteras[[#This Row],[Y]]+TablaFronteras[[#This Row],[Alto]]),SQRT((TablaFronteras[[#This Row],[Centro X]]-miX)^2+(TablaFronteras[[#This Row],[Centro Y]]-miY)^2),"") ->  | I105: =IF(TablaFronteras[[#This Row],[Frontera]]="","",IFERROR(MATCH(RIGHT(TablaFronteras[[#This Row],[Frontera]],LEN(TablaFronteras[[#This Row],[Frontera]])-IFERROR(FIND(" - ",TablaFronteras[[#This Row],[Frontera]])+2,0)),Datos[País],0),"")) -> 60
A106: Irán | B106: 440.6033936 | C106: 104.3903961 | D106: 41.47173309 | E106: 35.5048027 | F106: =TablaFronteras[[#This Row],[X]]+TablaFronteras[[#This Row],[Ancho]]/2 -> 461.3392601 | G106: =TablaFronteras[[#This Row],[Y]]+TablaFronteras[[#This Row],[Alto]]/2 -> 122.1427975 | H106: =IF(AND(TablaFronteras[[#This Row],[Fila]]<>"",TablaFronteras[[#This Row],[X]]<miX,miX<TablaFronteras[[#This Row],[X]]+TablaFronteras[[#This Row],[Ancho]],TablaFronteras[[#This Row],[Y]]<miY,miY<TablaFronteras[[#This Row],[Y]]+TablaFronteras[[#This Row],[Alto]]),SQRT((TablaFronteras[[#This Row],[Centro X]]-miX)^2+(TablaFronteras[[#This Row],[Centro Y]]-miY)^2),"") ->  | I106: =IF(TablaFronteras[[#This Row],[Frontera]]="","",IFERROR(MATCH(RIGHT(TablaFronteras[[#This Row],[Frontera]],LEN(TablaFronteras[[#This Row],[Frontera]])-IFERROR(FIND(" - ",TablaFronteras[[#This Row],[Frontera]])+2,0)),Datos[País],0),"")) -> 108
A107: Turkmenistán | B107: 455.3202515 | C107: 97.35606384 | D107: 29.59740067 | E107: 18.1774807 | F107: =TablaFronteras[[#This Row],[X]]+TablaFronteras[[#This Row],[Ancho]]/2 -> 470.1189518 | G107: =TablaFronteras[[#This Row],[Y]]+TablaFronteras[[#This Row],[Alto]]/2 -> 106.4448042 | H107: =IF(AND(TablaFronteras[[#This Row],[Fila]]<>"",TablaFronteras[[#This Row],[X]]<miX,miX<TablaFronteras[[#This Row],[X]]+TablaFronteras[[#This Row],[Ancho]],TablaFronteras[[#This Row],[Y]]<miY,miY<TablaFronteras[[#This Row],[Y]]+TablaFronteras[[#This Row],[Alto]]),SQRT((TablaFronteras[[#This Row],[Centro X]]-miX)^2+(TablaFronteras[[#This Row],[Centro Y]]-miY)^2),"") ->  | I107: =IF(TablaFronteras[[#This Row],[Frontera]]="","",IFERROR(MATCH(RIGHT(TablaFronteras[[#This Row],[Frontera]],LEN(TablaFronteras[[#This Row],[Frontera]])-IFERROR(FIND(" - ",TablaFronteras[[#This Row],[Frontera]])+2,0)),Datos[País],0),"")) -> 261
A108: Uzbekistán | B108: 460.8033142 | C108: 90.56575012 | D108: 34.9392128 | E108: 20.24968529 | F108: =TablaFronteras[[#This Row],[X]]+TablaFronteras[[#This Row],[Ancho]]/2 -> 478.2729206 | G108: =TablaFronteras[[#This Row],[Y]]+TablaFronteras[[#This Row],[Alto]]/2 -> 100.6905928 | H108: =IF(AND(TablaFronteras[[#This Row],[Fila]]<>"",TablaFronteras[[#This Row],[X]]<miX,miX<TablaFronteras[[#This Row],[X]]+TablaFronteras[[#This Row],[Ancho]],TablaFronteras[[#This Row],[Y]]<miY,miY<TablaFronteras[[#This Row],[Y]]+TablaFronteras[[#This Row],[Alto]]),SQRT((TablaFronteras[[#This Row],[Centro X]]-miX)^2+(TablaFronteras[[#This Row],[Centro Y]]-miY)^2),"") ->  | I108: =IF(TablaFronteras[[#This Row],[Frontera]]="","",IFERROR(MATCH(RIGHT(TablaFronteras[[#This Row],[Frontera]],LEN(TablaFronteras[[#This Row],[Frontera]])-IFERROR(FIND(" - ",TablaFronteras[[#This Row],[Frontera]])+2,0)),Datos[País],0),"")) -> 268
A109: Kirguistán | B109: 488.9296875 | C109: 96.11716461 | D109: 18.22401619 | E109: 9.605354309 | F109: =TablaFronteras[[#This Row],[X]]+TablaFronteras[[#This Row],[Ancho]]/2 -> 498.0416956 | G109: =TablaFronteras[[#This Row],[Y]]+TablaFronteras[[#This Row],[Alto]]/2 -> 100.9198418 | H109: =IF(AND(TablaFronteras[[#This Row],[Fila]]<>"",TablaFronteras[[#This Row],[X]]<miX,miX<TablaFronteras[[#This Row],[X]]+TablaFronteras[[#This Row],[Ancho]],TablaFronteras[[#This Row],[Y]]<miY,miY<TablaFronteras[[#This Row],[Y]]+TablaFronteras[[#This Row],[Alto]]),SQRT((TablaFronteras[[#This Row],[Centro X]]-miX)^2+(TablaFronteras[[#This Row],[Centro Y]]-miY)^2),"") ->  | I109: =IF(TablaFronteras[[#This Row],[Frontera]]="","",IFERROR(MATCH(RIGHT(TablaFronteras[[#This Row],[Frontera]],LEN(TablaFronteras[[#This Row],[Frontera]])-IFERROR(FIND(" - ",TablaFronteras[[#This Row],[Frontera]])+2,0)),Datos[País],0),"")) -> 142
A110: Tayikistán | B110: 485.4063721 | C110: 101.4140167 | D110: 15.55826759 | E110: 10.4088192 | F110: =TablaFronteras[[#This Row],[X]]+TablaFronteras[[#This Row],[Ancho]]/2 -> 493.1855059 | G110: =TablaFronteras[[#This Row],[Y]]+TablaFronteras[[#This Row],[Alto]]/2 -> 106.6184263 | H110: =IF(AND(TablaFronteras[[#This Row],[Fila]]<>"",TablaFronteras[[#This Row],[X]]<miX,miX<TablaFronteras[[#This Row],[X]]+TablaFronteras[[#This Row],[Ancho]],TablaFronteras[[#This Row],[Y]]<miY,miY<TablaFronteras[[#This Row],[Y]]+TablaFronteras[[#This Row],[Alto]]),SQRT((TablaFronteras[[#This Row],[Centro X]]-miX)^2+(TablaFronteras[[#This Row],[Centro Y]]-miY)^2),"") ->  | I110: =IF(TablaFronteras[[#This Row],[Frontera]]="","",IFERROR(MATCH(RIGHT(TablaFronteras[[#This Row],[Frontera]],LEN(TablaFronteras[[#This Row],[Frontera]])-IFERROR(FIND(" - ",TablaFronteras[[#This Row],[Frontera]])+2,0)),Datos[País],0),"")) -> 252
A111: Afganistán | B111: 474.247406 | C111: 107.6307068 | D111: 26.44212532 | E111: 21.78622055 | F111: =TablaFronteras[[#This Row],[X]]+TablaFronteras[[#This Row],[Ancho]]/2 -> 487.4684687 | G111: =TablaFronteras[[#This Row],[Y]]+TablaFronteras[[#This Row],[Alto]]/2 -> 118.5238171 | H111: =IF(AND(TablaFronteras[[#This Row],[Fila]]<>"",TablaFronteras[[#This Row],[X]]<miX,miX<TablaFronteras[[#This Row],[X]]+TablaFronteras[[#This Row],[Ancho]],TablaFronteras[[#This Row],[Y]]<miY,miY<TablaFronteras[[#This Row],[Y]]+TablaFronteras[[#This Row],[Alto]]),SQRT((TablaFronteras[[#This Row],[Centro X]]-miX)^2+(TablaFronteras[[#This Row],[Centro Y]]-miY)^2),"") ->  | I111: =IF(TablaFronteras[[#This Row],[Frontera]]="","",IFERROR(MATCH(RIGHT(TablaFronteras[[#This Row],[Frontera]],LEN(TablaFronteras[[#This Row],[Frontera]])-IFERROR(FIND(" - ",TablaFronteras[[#This Row],[Frontera]])+2,0)),Datos[País],0),"")) -> 3
A112: Georgia | B112: 431.1585693 | C112: 95.35795593 | D112: 14.00299168 | E112: 5.914881706 | F112: =TablaFronteras[[#This Row],[X]]+TablaFronteras[[#This Row],[Ancho]]/2 -> 438.1600652 | G112: =TablaFronteras[[#This Row],[Y]]+TablaFronteras[[#This Row],[Alto]]/2 -> 98.31539679 | H112: =IF(AND(TablaFronteras[[#This Row],[Fila]]<>"",TablaFronteras[[#This Row],[X]]<miX,miX<TablaFronteras[[#This Row],[X]]+TablaFronteras[[#This Row],[Ancho]],TablaFronteras[[#This Row],[Y]]<miY,miY<TablaFronteras[[#This Row],[Y]]+TablaFronteras[[#This Row],[Alto]]),SQRT((TablaFronteras[[#This Row],[Centro X]]-miX)^2+(TablaFronteras[[#This Row],[Centro Y]]-miY)^2),"") ->  | I112: =IF(TablaFronteras[[#This Row],[Frontera]]="","",IFERROR(MATCH(RIGHT(TablaFronteras[[#This Row],[Frontera]],LEN(TablaFronteras[[#This Row],[Frontera]])-IFERROR(FIND(" - ",TablaFronteras[[#This Row],[Frontera]])+2,0)),Datos[País],0),"")) -> 85
A113: Azerbaiyán | B113: 441.8637695 | C113: 99.26361847 | D113: 10.10543346 | E113: 8.437716484 | F113: =TablaFronteras[[#This Row],[X]]+TablaFronteras[[#This Row],[Ancho]]/2 -> 446.9164863 | G113: =TablaFronteras[[#This Row],[Y]]+TablaFronteras[[#This Row],[Alto]]/2 -> 103.4824767 | H113: =IF(AND(TablaFronteras[[#This Row],[Fila]]<>"",TablaFronteras[[#This Row],[X]]<miX,miX<TablaFronteras[[#This Row],[X]]+TablaFronteras[[#This Row],[Ancho]],TablaFronteras[[#This Row],[Y]]<miY,miY<TablaFronteras[[#This Row],[Y]]+TablaFronteras[[#This Row],[Alto]]),SQRT((TablaFronteras[[#This Row],[Centro X]]-miX)^2+(TablaFronteras[[#This Row],[Centro Y]]-miY)^2),"") ->  | I113: =IF(TablaFronteras[[#This Row],[Frontera]]="","",IFERROR(MATCH(RIGHT(TablaFronteras[[#This Row],[Frontera]],LEN(TablaFronteras[[#This Row],[Frontera]])-IFERROR(FIND(" - ",TablaFronteras[[#This Row],[Frontera]])+2,0)),Datos[País],0),"")) -> 21
A114: Armenia | B114: 438.7848816 | C114: 100.7890549 | D114: 6.935118198 | E114: 5.847952843 | F114: =TablaFronteras[[#This Row],[X]]+TablaFronteras[[#This Row],[Ancho]]/2 -> 442.2524407 | G114: =TablaFronteras[[#This Row],[Y]]+TablaFronteras[[#This Row],[Alto]]/2 -> 103.7130313 | H114: =IF(AND(TablaFronteras[[#This Row],[Fila]]<>"",TablaFronteras[[#This Row],[X]]<miX,miX<TablaFronteras[[#This Row],[X]]+TablaFronteras[[#This Row],[Ancho]],TablaFronteras[[#This Row],[Y]]<miY,miY<TablaFronteras[[#This Row],[Y]]+TablaFronteras[[#This Row],[Alto]]),SQRT((TablaFronteras[[#This Row],[Centro X]]-miX)^2+(TablaFronteras[[#This Row],[Centro Y]]-miY)^2),"") ->  | I114: =IF(TablaFronteras[[#This Row],[Frontera]]="","",IFERROR(MATCH(RIGHT(TablaFronteras[[#This Row],[Frontera]],LEN(TablaFronteras[[#This Row],[Frontera]])-IFERROR(FIND(" - ",TablaFronteras[[#This Row],[Frontera]])+2,0)),Datos[País],0),"")) -> 13
A115: Pakistán | B115: 476.2170105 | C115: 110.9962234 | D115: 32.7078743 | E115: 32.13433075 | F115: =TablaFronteras[[#This Row],[X]]+TablaFronteras[[#This Row],[Ancho]]/2 -> 492.5709476 | G115: =TablaFronteras[[#This Row],[Y]]+TablaFronteras[[#This Row],[Alto]]/2 -> 127.0633888 | H115: =IF(AND(TablaFronteras[[#This Row],[Fila]]<>"",TablaFronteras[[#This Row],[X]]<miX,miX<TablaFronteras[[#This Row],[X]]+TablaFronteras[[#This Row],[Ancho]],TablaFronteras[[#This Row],[Y]]<miY,miY<TablaFronteras[[#This Row],[Y]]+TablaFronteras[[#This Row],[Alto]]),SQRT((TablaFronteras[[#This Row],[Centro X]]-miX)^2+(TablaFronteras[[#This Row],[Centro Y]]-miY)^2),"") ->  | I115: =IF(TablaFronteras[[#This Row],[Frontera]]="","",IFERROR(MATCH(RIGHT(TablaFronteras[[#This Row],[Frontera]],LEN(TablaFronteras[[#This Row],[Frontera]])-IFERROR(FIND(" - ",TablaFronteras[[#This Row],[Frontera]])+2,0)),Datos[País],0),"")) -> 190
A116: Nepal | B116: 515.5579224 | C116: 126.980629 | D116: 16.7243309 | E116: 9.836771965 | F116: =TablaFronteras[[#This Row],[X]]+TablaFronteras[[#This Row],[Ancho]]/2 -> 523.9200878 | G116: =TablaFronteras[[#This Row],[Y]]+TablaFronteras[[#This Row],[Alto]]/2 -> 131.8990149 | H116: =IF(AND(TablaFronteras[[#This Row],[Fila]]<>"",TablaFronteras[[#This Row],[X]]<miX,miX<TablaFronteras[[#This Row],[X]]+TablaFronteras[[#This Row],[Ancho]],TablaFronteras[[#This Row],[Y]]<miY,miY<TablaFronteras[[#This Row],[Y]]+TablaFronteras[[#This Row],[Alto]]),SQRT((TablaFronteras[[#This Row],[Centro X]]-miX)^2+(TablaFronteras[[#This Row],[Centro Y]]-miY)^2),"") ->  | I116: =IF(TablaFronteras[[#This Row],[Frontera]]="","",IFERROR(MATCH(RIGHT(TablaFronteras[[#This Row],[Frontera]],LEN(TablaFronteras[[#This Row],[Frontera]])-IFERROR(FIND(" - ",TablaFronteras[[#This Row],[Frontera]])+2,0)),Datos[País],0),"")) -> 180
A117: Bután | B117: 533.8751221 | C117: 132.0156708 | D117: 6.663385868 | E117: 4.101574898 | F117: =TablaFronteras[[#This Row],[X]]+TablaFronteras[[#This Row],[Ancho]]/2 -> 537.206815 | G117: =TablaFronteras[[#This Row],[Y]]+TablaFronteras[[#This Row],[Alto]]/2 -> 134.0664582 | H117: =IF(AND(TablaFronteras[[#This Row],[Fila]]<>"",TablaFronteras[[#This Row],[X]]<miX,miX<TablaFronteras[[#This Row],[X]]+TablaFronteras[[#This Row],[Ancho]],TablaFronteras[[#This Row],[Y]]<miY,miY<TablaFronteras[[#This Row],[Y]]+TablaFronteras[[#This Row],[Alto]]),SQRT((TablaFronteras[[#This Row],[Centro X]]-miX)^2+(TablaFronteras[[#This Row],[Centro Y]]-miY)^2),"") ->  | I117: =IF(TablaFronteras[[#This Row],[Frontera]]="","",IFERROR(MATCH(RIGHT(TablaFronteras[[#This Row],[Frontera]],LEN(TablaFronteras[[#This Row],[Frontera]])-IFERROR(FIND(" - ",TablaFronteras[[#This Row],[Frontera]])+2,0)),Datos[País],0),"")) -> 42
A118: Bangladés | B118: 532.9573364 | C118: 136.3121185 | D118: 9.811023712 | E118: 13.86299229 | F118: =TablaFronteras[[#This Row],[X]]+TablaFronteras[[#This Row],[Ancho]]/2 -> 537.8628483 | G118: =TablaFronteras[[#This Row],[Y]]+TablaFronteras[[#This Row],[Alto]]/2 -> 143.2436147 | H118: =IF(AND(TablaFronteras[[#This Row],[Fila]]<>"",TablaFronteras[[#This Row],[X]]<miX,miX<TablaFronteras[[#This Row],[X]]+TablaFronteras[[#This Row],[Ancho]],TablaFronteras[[#This Row],[Y]]<miY,miY<TablaFronteras[[#This Row],[Y]]+TablaFronteras[[#This Row],[Alto]]),SQRT((TablaFronteras[[#This Row],[Centro X]]-miX)^2+(TablaFronteras[[#This Row],[Centro Y]]-miY)^2),"") ->  | I118: =IF(TablaFronteras[[#This Row],[Frontera]]="","",IFERROR(MATCH(RIGHT(TablaFronteras[[#This Row],[Frontera]],LEN(TablaFronteras[[#This Row],[Frontera]])-IFERROR(FIND(" - ",TablaFronteras[[#This Row],[Frontera]])+2,0)),Datos[País],0),"")) -> 25
A119: Birmania | B119: 542.407959 | C119: 131.5105438 | D119: 17.99110222 | E119: 44.94055176 | F119: =TablaFronteras[[#This Row],[X]]+TablaFronteras[[#This Row],[Ancho]]/2 -> 551.4035101 | G119: =TablaFronteras[[#This Row],[Y]]+TablaFronteras[[#This Row],[Alto]]/2 -> 153.9808197 | H119: =IF(AND(TablaFronteras[[#This Row],[Fila]]<>"",TablaFronteras[[#This Row],[X]]<miX,miX<TablaFronteras[[#This Row],[X]]+TablaFronteras[[#This Row],[Ancho]],TablaFronteras[[#This Row],[Y]]<miY,miY<TablaFronteras[[#This Row],[Y]]+TablaFronteras[[#This Row],[Alto]]),SQRT((TablaFronteras[[#This Row],[Centro X]]-miX)^2+(TablaFronteras[[#This Row],[Centro Y]]-miY)^2),"") ->  | I119: =IF(TablaFronteras[[#This Row],[Frontera]]="","",IFERROR(MATCH(RIGHT(TablaFronteras[[#This Row],[Frontera]],LEN(TablaFronteras[[#This Row],[Frontera]])-IFERROR(FIND(" - ",TablaFronteras[[#This Row],[Frontera]])+2,0)),Datos[País],0),"")) -> 32
A120: Vietnam | B120: 562.5554199 | C120: 144.0470886 | D120: 17.50976372 | E120: 35.98653412 | F120: =TablaFronteras[[#This Row],[X]]+TablaFronteras[[#This Row],[Ancho]]/2 -> 571.3103018 | G120: =TablaFronteras[[#This Row],[Y]]+TablaFronteras[[#This Row],[Alto]]/2 -> 162.0403557 | H120: =IF(AND(TablaFronteras[[#This Row],[Fila]]<>"",TablaFronteras[[#This Row],[X]]<miX,miX<TablaFronteras[[#This Row],[X]]+TablaFronteras[[#This Row],[Ancho]],TablaFronteras[[#This Row],[Y]]<miY,miY<TablaFronteras[[#This Row],[Y]]+TablaFronteras[[#This Row],[Alto]]),SQRT((TablaFronteras[[#This Row],[Centro X]]-miX)^2+(TablaFronteras[[#This Row],[Centro Y]]-miY)^2),"") ->  | I120: =IF(TablaFronteras[[#This Row],[Frontera]]="","",IFERROR(MATCH(RIGHT(TablaFronteras[[#This Row],[Frontera]],LEN(TablaFronteras[[#This Row],[Frontera]])-IFERROR(FIND(" - ",TablaFronteras[[#This Row],[Frontera]])+2,0)),Datos[País],0),"")) -> 271
A121: Tailandia | B121: 553.6048584 | C121: 151.1803894 | D121: 19.56118202 | E121: 35.69275665 | F121: =TablaFronteras[[#This Row],[X]]+TablaFronteras[[#This Row],[Ancho]]/2 -> 563.3854494 | G121: =TablaFronteras[[#This Row],[Y]]+TablaFronteras[[#This Row],[Alto]]/2 -> 169.0267677 | H121: =IF(AND(TablaFronteras[[#This Row],[Fila]]<>"",TablaFronteras[[#This Row],[X]]<miX,miX<TablaFronteras[[#This Row],[X]]+TablaFronteras[[#This Row],[Ancho]],TablaFronteras[[#This Row],[Y]]<miY,miY<TablaFronteras[[#This Row],[Y]]+TablaFronteras[[#This Row],[Alto]]),SQRT((TablaFronteras[[#This Row],[Centro X]]-miX)^2+(TablaFronteras[[#This Row],[Centro Y]]-miY)^2),"") ->  | I121: =IF(TablaFronteras[[#This Row],[Frontera]]="","",IFERROR(MATCH(RIGHT(TablaFronteras[[#This Row],[Frontera]],LEN(TablaFronteras[[#This Row],[Frontera]])-IFERROR(FIND(" - ",TablaFronteras[[#This Row],[Frontera]])+2,0)),Datos[País],0),"")) -> 249
A122: Laos | B122: 558.9907227 | C122: 146.163147 | D122: 16.73259926 | E122: 20.73999977 | F122: =TablaFronteras[[#This Row],[X]]+TablaFronteras[[#This Row],[Ancho]]/2 -> 567.3570223 | G122: =TablaFronteras[[#This Row],[Y]]+TablaFronteras[[#This Row],[Alto]]/2 -> 156.5331469 | H122: =IF(AND(TablaFronteras[[#This Row],[Fila]]<>"",TablaFronteras[[#This Row],[X]]<miX,miX<TablaFronteras[[#This Row],[X]]+TablaFronteras[[#This Row],[Ancho]],TablaFronteras[[#This Row],[Y]]<miY,miY<TablaFronteras[[#This Row],[Y]]+TablaFronteras[[#This Row],[Alto]]),SQRT((TablaFronteras[[#This Row],[Centro X]]-miX)^2+(TablaFronteras[[#This Row],[Centro Y]]-miY)^2),"") ->  | I122: =IF(TablaFronteras[[#This Row],[Frontera]]="","",IFERROR(MATCH(RIGHT(TablaFronteras[[#This Row],[Frontera]],LEN(TablaFronteras[[#This Row],[Frontera]])-IFERROR(FIND(" - ",TablaFronteras[[#This Row],[Frontera]])+2,0)),Datos[País],0),"")) -> 146
A123: Filipinas | B123: 598.1419067 | C123: 151.0508728 | D123: 18.9344101 | E123: 37.30810928 | F123: =TablaFronteras[[#This Row],[X]]+TablaFronteras[[#This Row],[Ancho]]/2 -> 607.6091118 | G123: =TablaFronteras[[#This Row],[Y]]+TablaFronteras[[#This Row],[Alto]]/2 -> 169.7049274 | H123: =IF(AND(TablaFronteras[[#This Row],[Fila]]<>"",TablaFronteras[[#This Row],[X]]<miX,miX<TablaFronteras[[#This Row],[X]]+TablaFronteras[[#This Row],[Ancho]],TablaFronteras[[#This Row],[Y]]<miY,miY<TablaFronteras[[#This Row],[Y]]+TablaFronteras[[#This Row],[Alto]]),SQRT((TablaFronteras[[#This Row],[Centro X]]-miX)^2+(TablaFronteras[[#This Row],[Centro Y]]-miY)^2),"") ->  | I123: =IF(TablaFronteras[[#This Row],[Frontera]]="","",IFERROR(MATCH(RIGHT(TablaFronteras[[#This Row],[Frontera]],LEN(TablaFronteras[[#This Row],[Frontera]])-IFERROR(FIND(" - ",TablaFronteras[[#This Row],[Frontera]])+2,0)),Datos[País],0),"")) -> 79
A124: Brunéi | B124: 590.942627 | C124: 188.1092987 | D124: 3.331496 | E124: 3.242204666 | F124: =TablaFronteras[[#This Row],[X]]+TablaFronteras[[#This Row],[Ancho]]/2 -> 592.608375 | G124: =TablaFronteras[[#This Row],[Y]]+TablaFronteras[[#This Row],[Alto]]/2 -> 189.730401 | H124: =IF(AND(TablaFronteras[[#This Row],[Fila]]<>"",TablaFronteras[[#This Row],[X]]<miX,miX<TablaFronteras[[#This Row],[X]]+TablaFronteras[[#This Row],[Ancho]],TablaFronteras[[#This Row],[Y]]<miY,miY<TablaFronteras[[#This Row],[Y]]+TablaFronteras[[#This Row],[Alto]]),SQRT((TablaFronteras[[#This Row],[Centro X]]-miX)^2+(TablaFronteras[[#This Row],[Centro Y]]-miY)^2),"") ->  | I124: =IF(TablaFronteras[[#This Row],[Frontera]]="","",IFERROR(MATCH(RIGHT(TablaFronteras[[#This Row],[Frontera]],LEN(TablaFronteras[[#This Row],[Frontera]])-IFERROR(FIND(" - ",TablaFronteras[[#This Row],[Frontera]])+2,0)),Datos[País],0),"")) -> 38
A125: Singapur | B125: 569.0574951 | C125: 195.7607117 | D125: 4.348897457 | E125: 3.331496 | F125: =TablaFronteras[[#This Row],[X]]+TablaFronteras[[#This Row],[Ancho]]/2 -> 571.2319438 | G125: =TablaFronteras[[#This Row],[Y]]+TablaFronteras[[#This Row],[Alto]]/2 -> 197.4264597 | H125: =IF(AND(TablaFronteras[[#This Row],[Fila]]<>"",TablaFronteras[[#This Row],[X]]<miX,miX<TablaFronteras[[#This Row],[X]]+TablaFronteras[[#This Row],[Ancho]],TablaFronteras[[#This Row],[Y]]<miY,miY<TablaFronteras[[#This Row],[Y]]+TablaFronteras[[#This Row],[Alto]]),SQRT((TablaFronteras[[#This Row],[Centro X]]-miX)^2+(TablaFronteras[[#This Row],[Centro Y]]-miY)^2),"") ->  | I125: =IF(TablaFronteras[[#This Row],[Frontera]]="","",IFERROR(MATCH(RIGHT(TablaFronteras[[#This Row],[Frontera]],LEN(TablaFronteras[[#This Row],[Frontera]])-IFERROR(FIND(" - ",TablaFronteras[[#This Row],[Frontera]])+2,0)),Datos[País],0),"")) -> 235
A126: Papúa Nueva Guinea | B126: 646.7479248 | C126: 203.9221191 | D126: 31.08062935 | E126: 24.91251945 | F126: =TablaFronteras[[#This Row],[X]]+TablaFronteras[[#This Row],[Ancho]]/2 -> 662.2882395 | G126: =TablaFronteras[[#This Row],[Y]]+TablaFronteras[[#This Row],[Alto]]/2 -> 216.3783789 | H126: =IF(AND(TablaFronteras[[#This Row],[Fila]]<>"",TablaFronteras[[#This Row],[X]]<miX,miX<TablaFronteras[[#This Row],[X]]+TablaFronteras[[#This Row],[Ancho]],TablaFronteras[[#This Row],[Y]]<miY,miY<TablaFronteras[[#This Row],[Y]]+TablaFronteras[[#This Row],[Alto]]),SQRT((TablaFronteras[[#This Row],[Centro X]]-miX)^2+(TablaFronteras[[#This Row],[Centro Y]]-miY)^2),"") ->  | I126: =IF(TablaFronteras[[#This Row],[Frontera]]="","",IFERROR(MATCH(RIGHT(TablaFronteras[[#This Row],[Frontera]],LEN(TablaFronteras[[#This Row],[Frontera]])-IFERROR(FIND(" - ",TablaFronteras[[#This Row],[Frontera]])+2,0)),Datos[País],0),"")) -> 196
A127: Islas Salomón | B127: 678.552124 | C127: 216.6162262 | D127: 20.72763824 | E127: 12.67645645 | F127: =TablaFronteras[[#This Row],[X]]+TablaFronteras[[#This Row],[Ancho]]/2 -> 688.9159431 | G127: =TablaFronteras[[#This Row],[Y]]+TablaFronteras[[#This Row],[Alto]]/2 -> 222.9544544 | H127: =IF(AND(TablaFronteras[[#This Row],[Fila]]<>"",TablaFronteras[[#This Row],[X]]<miX,miX<TablaFronteras[[#This Row],[X]]+TablaFronteras[[#This Row],[Ancho]],TablaFronteras[[#This Row],[Y]]<miY,miY<TablaFronteras[[#This Row],[Y]]+TablaFronteras[[#This Row],[Alto]]),SQRT((TablaFronteras[[#This Row],[Centro X]]-miX)^2+(TablaFronteras[[#This Row],[Centro Y]]-miY)^2),"") ->  | I127: =IF(TablaFronteras[[#This Row],[Frontera]]="","",IFERROR(MATCH(RIGHT(TablaFronteras[[#This Row],[Frontera]],LEN(TablaFronteras[[#This Row],[Frontera]])-IFERROR(FIND(" - ",TablaFronteras[[#This Row],[Frontera]])+2,0)),Datos[País],0),"")) -> 130
A128: Nueva Zelanda | B128: 654.6282959 | C128: 283.8427429 | D128: 46.60055161 | E128: 38.97732162 | F128: =TablaFronteras[[#This Row],[X]]+TablaFronteras[[#This Row],[Ancho]]/2 -> 677.9285717 | G128: =TablaFronteras[[#This Row],[Y]]+TablaFronteras[[#This Row],[Alto]]/2 -> 303.3314037 | H128: =IF(AND(TablaFronteras[[#This Row],[Fila]]<>"",TablaFronteras[[#This Row],[X]]<miX,miX<TablaFronteras[[#This Row],[X]]+TablaFronteras[[#This Row],[Ancho]],TablaFronteras[[#This Row],[Y]]<miY,miY<TablaFronteras[[#This Row],[Y]]+TablaFronteras[[#This Row],[Alto]]),SQRT((TablaFronteras[[#This Row],[Centro X]]-miX)^2+(TablaFronteras[[#This Row],[Centro Y]]-miY)^2),"") ->  | I128: =IF(TablaFronteras[[#This Row],[Frontera]]="","",IFERROR(MATCH(RIGHT(TablaFronteras[[#This Row],[Frontera]],LEN(TablaFronteras[[#This Row],[Frontera]])-IFERROR(FIND(" - ",TablaFronteras[[#This Row],[Frontera]])+2,0)),Datos[País],0),"")) -> 186
A129: Sri Lanka | B129: 519.7180176 | C129: 176.6940155 | D129: 4.343700886 | E129: 9.583779335 | F129: =TablaFronteras[[#This Row],[X]]+TablaFronteras[[#This Row],[Ancho]]/2 -> 521.889868 | G129: =TablaFronteras[[#This Row],[Y]]+TablaFronteras[[#This Row],[Alto]]/2 -> 181.4859052 | H129: =IF(AND(TablaFronteras[[#This Row],[Fila]]<>"",TablaFronteras[[#This Row],[X]]<miX,miX<TablaFronteras[[#This Row],[X]]+TablaFronteras[[#This Row],[Ancho]],TablaFronteras[[#This Row],[Y]]<miY,miY<TablaFronteras[[#This Row],[Y]]+TablaFronteras[[#This Row],[Alto]]),SQRT((TablaFronteras[[#This Row],[Centro X]]-miX)^2+(TablaFronteras[[#This Row],[Centro Y]]-miY)^2),"") ->  | I129: =IF(TablaFronteras[[#This Row],[Frontera]]="","",IFERROR(MATCH(RIGHT(TablaFronteras[[#This Row],[Frontera]],LEN(TablaFronteras[[#This Row],[Frontera]])-IFERROR(FIND(" - ",TablaFronteras[[#This Row],[Frontera]])+2,0)),Datos[País],0),"")) -> 240
A130: Yemen | B130: 442.3199158 | C130: 154.4043274 | D130: 24.75212669 | E130: 16.78661346 | F130: =TablaFronteras[[#This Row],[X]]+TablaFronteras[[#This Row],[Ancho]]/2 -> 454.6959791 | G130: =TablaFronteras[[#This Row],[Y]]+TablaFronteras[[#This Row],[Alto]]/2 -> 162.7976341 | H130: =IF(AND(TablaFronteras[[#This Row],[Fila]]<>"",TablaFronteras[[#This Row],[X]]<miX,miX<TablaFronteras[[#This Row],[X]]+TablaFronteras[[#This Row],[Ancho]],TablaFronteras[[#This Row],[Y]]<miY,miY<TablaFronteras[[#This Row],[Y]]+TablaFronteras[[#This Row],[Alto]]),SQRT((TablaFronteras[[#This Row],[Centro X]]-miX)^2+(TablaFronteras[[#This Row],[Centro Y]]-miY)^2),"") ->  | I130: =IF(TablaFronteras[[#This Row],[Frontera]]="","",IFERROR(MATCH(RIGHT(TablaFronteras[[#This Row],[Frontera]],LEN(TablaFronteras[[#This Row],[Frontera]])-IFERROR(FIND(" - ",TablaFronteras[[#This Row],[Frontera]])+2,0)),Datos[País],0),"")) -> 273
A131: Omán | B131: 461.0392761 | C131: 136.8712616 | D131: 14.97637749 | E131: 23.28078651 | F131: =TablaFronteras[[#This Row],[X]]+TablaFronteras[[#This Row],[Ancho]]/2 -> 468.5274649 | G131: =TablaFronteras[[#This Row],[Y]]+TablaFronteras[[#This Row],[Alto]]/2 -> 148.5116549 | H131: =IF(AND(TablaFronteras[[#This Row],[Fila]]<>"",TablaFronteras[[#This Row],[X]]<miX,miX<TablaFronteras[[#This Row],[X]]+TablaFronteras[[#This Row],[Ancho]],TablaFronteras[[#This Row],[Y]]<miY,miY<TablaFronteras[[#This Row],[Y]]+TablaFronteras[[#This Row],[Alto]]),SQRT((TablaFronteras[[#This Row],[Centro X]]-miX)^2+(TablaFronteras[[#This Row],[Centro Y]]-miY)^2),"") ->  | I131: =IF(TablaFronteras[[#This Row],[Frontera]]="","",IFERROR(MATCH(RIGHT(TablaFronteras[[#This Row],[Frontera]],LEN(TablaFronteras[[#This Row],[Frontera]])-IFERROR(FIND(" - ",TablaFronteras[[#This Row],[Frontera]])+2,0)),Datos[País],0),"")) -> 188
A132: Emiratos Árabes Unidos | B132: 459.2846375 | C132: 137.8846436 | D132: 9.860078812 | E132: 7.9468503 | F132: =TablaFronteras[[#This Row],[X]]+TablaFronteras[[#This Row],[Ancho]]/2 -> 464.2146769 | G132: =TablaFronteras[[#This Row],[Y]]+TablaFronteras[[#This Row],[Alto]]/2 -> 141.8580687 | H132: =IF(AND(TablaFronteras[[#This Row],[Fila]]<>"",TablaFronteras[[#This Row],[X]]<miX,miX<TablaFronteras[[#This Row],[X]]+TablaFronteras[[#This Row],[Ancho]],TablaFronteras[[#This Row],[Y]]<miY,miY<TablaFronteras[[#This Row],[Y]]+TablaFronteras[[#This Row],[Alto]]),SQRT((TablaFronteras[[#This Row],[Centro X]]-miX)^2+(TablaFronteras[[#This Row],[Centro Y]]-miY)^2),"") ->  | I132: =IF(TablaFronteras[[#This Row],[Frontera]]="","",IFERROR(MATCH(RIGHT(TablaFronteras[[#This Row],[Frontera]],LEN(TablaFronteras[[#This Row],[Frontera]])-IFERROR(FIND(" - ",TablaFronteras[[#This Row],[Frontera]])+2,0)),Datos[País],0),"")) -> 71
A133: Arabia Saudita | B133: 424.3063049 | C133: 122.8960648 | D133: 43.92031479 | E133: 38.03055191 | F133: =TablaFronteras[[#This Row],[X]]+TablaFronteras[[#This Row],[Ancho]]/2 -> 446.2664623 | G133: =TablaFronteras[[#This Row],[Y]]+TablaFronteras[[#This Row],[Alto]]/2 -> 141.9113407 | H133: =IF(AND(TablaFronteras[[#This Row],[Fila]]<>"",TablaFronteras[[#This Row],[X]]<miX,miX<TablaFronteras[[#This Row],[X]]+TablaFronteras[[#This Row],[Ancho]],TablaFronteras[[#This Row],[Y]]<miY,miY<TablaFronteras[[#This Row],[Y]]+TablaFronteras[[#This Row],[Alto]]),SQRT((TablaFronteras[[#This Row],[Centro X]]-miX)^2+(TablaFronteras[[#This Row],[Centro Y]]-miY)^2),"") ->  | I133: =IF(TablaFronteras[[#This Row],[Frontera]]="","",IFERROR(MATCH(RIGHT(TablaFronteras[[#This Row],[Frontera]],LEN(TablaFronteras[[#This Row],[Frontera]])-IFERROR(FIND(" - ",TablaFronteras[[#This Row],[Frontera]])+2,0)),Datos[País],0),"")) -> 10
A134: Baréin | B134: 454.3263855 | C134: 134.9984283 | D134: 4.626692772 | E134: 3.545826674 | F134: =TablaFronteras[[#This Row],[X]]+TablaFronteras[[#This Row],[Ancho]]/2 -> 456.6397319 | G134: =TablaFronteras[[#This Row],[Y]]+TablaFronteras[[#This Row],[Alto]]/2 -> 136.7713417 | H134: =IF(AND(TablaFronteras[[#This Row],[Fila]]<>"",TablaFronteras[[#This Row],[X]]<miX,miX<TablaFronteras[[#This Row],[X]]+TablaFronteras[[#This Row],[Ancho]],TablaFronteras[[#This Row],[Y]]<miY,miY<TablaFronteras[[#This Row],[Y]]+TablaFronteras[[#This Row],[Alto]]),SQRT((TablaFronteras[[#This Row],[Centro X]]-miX)^2+(TablaFronteras[[#This Row],[Centro Y]]-miY)^2),"") ->  | I134: =IF(TablaFronteras[[#This Row],[Frontera]]="","",IFERROR(MATCH(RIGHT(TablaFronteras[[#This Row],[Frontera]],LEN(TablaFronteras[[#This Row],[Frontera]])-IFERROR(FIND(" - ",TablaFronteras[[#This Row],[Frontera]])+2,0)),Datos[País],0),"")) -> 27
A135: Catar | B135: 456.2419739 | C135: 137.7794495 | D135: 3.606220484 | E135: 3.689842463 | F135: =TablaFronteras[[#This Row],[X]]+TablaFronteras[[#This Row],[Ancho]]/2 -> 458.0450841 | G135: =TablaFronteras[[#This Row],[Y]]+TablaFronteras[[#This Row],[Alto]]/2 -> 139.6243707 | H135: =IF(AND(TablaFronteras[[#This Row],[Fila]]<>"",TablaFronteras[[#This Row],[X]]<miX,miX<TablaFronteras[[#This Row],[X]]+TablaFronteras[[#This Row],[Ancho]],TablaFronteras[[#This Row],[Y]]<miY,miY<TablaFronteras[[#This Row],[Y]]+TablaFronteras[[#This Row],[Alto]]),SQRT((TablaFronteras[[#This Row],[Centro X]]-miX)^2+(TablaFronteras[[#This Row],[Centro Y]]-miY)^2),"") ->  | I135: =IF(TablaFronteras[[#This Row],[Frontera]]="","",IFERROR(MATCH(RIGHT(TablaFronteras[[#This Row],[Frontera]],LEN(TablaFronteras[[#This Row],[Frontera]])-IFERROR(FIND(" - ",TablaFronteras[[#This Row],[Frontera]])+2,0)),Datos[País],0),"")) -> 49
A136: Irak | B136: 431.5528259 | C136: 110.2043304 | D136: 20.06377983 | E136: 20.07110214 | F136: =TablaFronteras[[#This Row],[X]]+TablaFronteras[[#This Row],[Ancho]]/2 -> 441.5847158 | G136: =TablaFronteras[[#This Row],[Y]]+TablaFronteras[[#This Row],[Alto]]/2 -> 120.2398815 | H136: =IF(AND(TablaFronteras[[#This Row],[Fila]]<>"",TablaFronteras[[#This Row],[X]]<miX,miX<TablaFronteras[[#This Row],[X]]+TablaFronteras[[#This Row],[Ancho]],TablaFronteras[[#This Row],[Y]]<miY,miY<TablaFronteras[[#This Row],[Y]]+TablaFronteras[[#This Row],[Alto]]),SQRT((TablaFronteras[[#This Row],[Centro X]]-miX)^2+(TablaFronteras[[#This Row],[Centro Y]]-miY)^2),"") ->  | I136: =IF(TablaFronteras[[#This Row],[Frontera]]="","",IFERROR(MATCH(RIGHT(TablaFronteras[[#This Row],[Frontera]],LEN(TablaFronteras[[#This Row],[Frontera]])-IFERROR(FIND(" - ",TablaFronteras[[#This Row],[Frontera]])+2,0)),Datos[País],0),"")) -> 106
A137: Jordania | B137: 424.7859192 | C137: 119.7017288 | D137: 9.248425484 | E137: 10.26212597 | F137: =TablaFronteras[[#This Row],[X]]+TablaFronteras[[#This Row],[Ancho]]/2 -> 429.4101319 | G137: =TablaFronteras[[#This Row],[Y]]+TablaFronteras[[#This Row],[Alto]]/2 -> 124.8327918 | H137: =IF(AND(TablaFronteras[[#This Row],[Fila]]<>"",TablaFronteras[[#This Row],[X]]<miX,miX<TablaFronteras[[#This Row],[X]]+TablaFronteras[[#This Row],[Ancho]],TablaFronteras[[#This Row],[Y]]<miY,miY<TablaFronteras[[#This Row],[Y]]+TablaFronteras[[#This Row],[Alto]]),SQRT((TablaFronteras[[#This Row],[Centro X]]-miX)^2+(TablaFronteras[[#This Row],[Centro Y]]-miY)^2),"") ->  | I137: =IF(TablaFronteras[[#This Row],[Frontera]]="","",IFERROR(MATCH(RIGHT(TablaFronteras[[#This Row],[Frontera]],LEN(TablaFronteras[[#This Row],[Frontera]])-IFERROR(FIND(" - ",TablaFronteras[[#This Row],[Frontera]])+2,0)),Datos[País],0),"")) -> 139
A138: Siria | B138: 425.1255798 | C138: 110.3788223 | D138: 12.8902359 | E138: 12.04519653 | F138: =TablaFronteras[[#This Row],[X]]+TablaFronteras[[#This Row],[Ancho]]/2 -> 431.5706978 | G138: =TablaFronteras[[#This Row],[Y]]+TablaFronteras[[#This Row],[Alto]]/2 -> 116.4014206 | H138: =IF(AND(TablaFronteras[[#This Row],[Fila]]<>"",TablaFronteras[[#This Row],[X]]<miX,miX<TablaFronteras[[#This Row],[X]]+TablaFronteras[[#This Row],[Ancho]],TablaFronteras[[#This Row],[Y]]<miY,miY<TablaFronteras[[#This Row],[Y]]+TablaFronteras[[#This Row],[Alto]]),SQRT((TablaFronteras[[#This Row],[Centro X]]-miX)^2+(TablaFronteras[[#This Row],[Centro Y]]-miY)^2),"") ->  | I138: =IF(TablaFronteras[[#This Row],[Frontera]]="","",IFERROR(MATCH(RIGHT(TablaFronteras[[#This Row],[Frontera]],LEN(TablaFronteras[[#This Row],[Frontera]])-IFERROR(FIND(" - ",TablaFronteras[[#This Row],[Frontera]])+2,0)),Datos[País],0),"")) -> 236
A139: Israel | B139: 422.0990601 | C139: 119.9024429 | D139: 3.373464584 | E139: 9.350078583 | F139: =TablaFronteras[[#This Row],[X]]+TablaFronteras[[#This Row],[Ancho]]/2 -> 423.7857924 | G139: =TablaFronteras[[#This Row],[Y]]+TablaFronteras[[#This Row],[Alto]]/2 -> 124.5774822 | H139: =IF(AND(TablaFronteras[[#This Row],[Fila]]<>"",TablaFronteras[[#This Row],[X]]<miX,miX<TablaFronteras[[#This Row],[X]]+TablaFronteras[[#This Row],[Ancho]],TablaFronteras[[#This Row],[Y]]<miY,miY<TablaFronteras[[#This Row],[Y]]+TablaFronteras[[#This Row],[Alto]]),SQRT((TablaFronteras[[#This Row],[Centro X]]-miX)^2+(TablaFronteras[[#This Row],[Centro Y]]-miY)^2),"") ->  | I139: =IF(TablaFronteras[[#This Row],[Frontera]]="","",IFERROR(MATCH(RIGHT(TablaFronteras[[#This Row],[Frontera]],LEN(TablaFronteras[[#This Row],[Frontera]])-IFERROR(FIND(" - ",TablaFronteras[[#This Row],[Frontera]])+2,0)),Datos[País],0),"")) -> 134
A140: Camboya | B140: 565.6732178 | C140: 164.8084259 | D140: 10.55937004 | E140: 11.40433025 | F140: =TablaFronteras[[#This Row],[X]]+TablaFronteras[[#This Row],[Ancho]]/2 -> 570.9529028 | G140: =TablaFronteras[[#This Row],[Y]]+TablaFronteras[[#This Row],[Alto]]/2 -> 170.510591 | H140: =IF(AND(TablaFronteras[[#This Row],[Fila]]<>"",TablaFronteras[[#This Row],[X]]<miX,miX<TablaFronteras[[#This Row],[X]]+TablaFronteras[[#This Row],[Ancho]],TablaFronteras[[#This Row],[Y]]<miY,miY<TablaFronteras[[#This Row],[Y]]+TablaFronteras[[#This Row],[Alto]]),SQRT((TablaFronteras[[#This Row],[Centro X]]-miX)^2+(TablaFronteras[[#This Row],[Centro Y]]-miY)^2),"") ->  | I140: =IF(TablaFronteras[[#This Row],[Frontera]]="","",IFERROR(MATCH(RIGHT(TablaFronteras[[#This Row],[Frontera]],LEN(TablaFronteras[[#This Row],[Frontera]])-IFERROR(FIND(" - ",TablaFronteras[[#This Row],[Frontera]])+2,0)),Datos[País],0),"")) -> 45
A141: México | B141: 118.1587372 | C141: 121.5012589 | D141: 59.10401535 | E141: 44.03314972 | F141: =TablaFronteras[[#This Row],[X]]+TablaFronteras[[#This Row],[Ancho]]/2 -> 147.7107449 | G141: =TablaFronteras[[#This Row],[Y]]+TablaFronteras[[#This Row],[Alto]]/2 -> 143.5178337 | H141: =IF(AND(TablaFronteras[[#This Row],[Fila]]<>"",TablaFronteras[[#This Row],[X]]<miX,miX<TablaFronteras[[#This Row],[X]]+TablaFronteras[[#This Row],[Ancho]],TablaFronteras[[#This Row],[Y]]<miY,miY<TablaFronteras[[#This Row],[Y]]+TablaFronteras[[#This Row],[Alto]]),SQRT((TablaFronteras[[#This Row],[Centro X]]-miX)^2+(TablaFronteras[[#This Row],[Centro Y]]-miY)^2),"") ->  | I141: =IF(TablaFronteras[[#This Row],[Frontera]]="","",IFERROR(MATCH(RIGHT(TablaFronteras[[#This Row],[Frontera]],LEN(TablaFronteras[[#This Row],[Frontera]])-IFERROR(FIND(" - ",TablaFronteras[[#This Row],[Frontera]])+2,0)),Datos[País],0),"")) -> 176
A142: Cuba | B142: 181.3897705 | C142: 144.488266 | D142: 21.37535477 | E142: 8.104409218 | F142: =TablaFronteras[[#This Row],[X]]+TablaFronteras[[#This Row],[Ancho]]/2 -> 192.0774479 | G142: =TablaFronteras[[#This Row],[Y]]+TablaFronteras[[#This Row],[Alto]]/2 -> 148.5404706 | H142: =IF(AND(TablaFronteras[[#This Row],[Fila]]<>"",TablaFronteras[[#This Row],[X]]<miX,miX<TablaFronteras[[#This Row],[X]]+TablaFronteras[[#This Row],[Ancho]],TablaFronteras[[#This Row],[Y]]<miY,miY<TablaFronteras[[#This Row],[Y]]+TablaFronteras[[#This Row],[Alto]]),SQRT((TablaFronteras[[#This Row],[Centro X]]-miX)^2+(TablaFronteras[[#This Row],[Centro Y]]-miY)^2),"") ->  | I142: =IF(TablaFronteras[[#This Row],[Frontera]]="","",IFERROR(MATCH(RIGHT(TablaFronteras[[#This Row],[Frontera]],LEN(TablaFronteras[[#This Row],[Frontera]])-IFERROR(FIND(" - ",TablaFronteras[[#This Row],[Frontera]])+2,0)),Datos[País],0),"")) -> 64
A143: República Dominicana | B143: 206.7713318 | C143: 152.424408 | D143: 7.892598629 | E143: 5.529291153 | F143: =TablaFronteras[[#This Row],[X]]+TablaFronteras[[#This Row],[Ancho]]/2 -> 210.7176311 | G143: =TablaFronteras[[#This Row],[Y]]+TablaFronteras[[#This Row],[Alto]]/2 -> 155.1890535 | H143: =IF(AND(TablaFronteras[[#This Row],[Fila]]<>"",TablaFronteras[[#This Row],[X]]<miX,miX<TablaFronteras[[#This Row],[X]]+TablaFronteras[[#This Row],[Ancho]],TablaFronteras[[#This Row],[Y]]<miY,miY<TablaFronteras[[#This Row],[Y]]+TablaFronteras[[#This Row],[Alto]]),SQRT((TablaFronteras[[#This Row],[Centro X]]-miX)^2+(TablaFronteras[[#This Row],[Centro Y]]-miY)^2),"") ->  | I143: =IF(TablaFronteras[[#This Row],[Frontera]]="","",IFERROR(MATCH(RIGHT(TablaFronteras[[#This Row],[Frontera]],LEN(TablaFronteras[[#This Row],[Frontera]])-IFERROR(FIND(" - ",TablaFronteras[[#This Row],[Frontera]])+2,0)),Datos[País],0),"")) -> 211
A144: Belice | B144: 170.3009491 | C144: 156.1998444 | D144: 2.936614275 | E144: 6.15606308 | F144: =TablaFronteras[[#This Row],[X]]+TablaFronteras[[#This Row],[Ancho]]/2 -> 171.7692562 | G144: =TablaFronteras[[#This Row],[Y]]+TablaFronteras[[#This Row],[Alto]]/2 -> 159.2778759 | H144: =IF(AND(TablaFronteras[[#This Row],[Fila]]<>"",TablaFronteras[[#This Row],[X]]<miX,miX<TablaFronteras[[#This Row],[X]]+TablaFronteras[[#This Row],[Ancho]],TablaFronteras[[#This Row],[Y]]<miY,miY<TablaFronteras[[#This Row],[Y]]+TablaFronteras[[#This Row],[Alto]]),SQRT((TablaFronteras[[#This Row],[Centro X]]-miX)^2+(TablaFronteras[[#This Row],[Centro Y]]-miY)^2),"") ->  | I144: =IF(TablaFronteras[[#This Row],[Frontera]]="","",IFERROR(MATCH(RIGHT(TablaFronteras[[#This Row],[Frontera]],LEN(TablaFronteras[[#This Row],[Frontera]])-IFERROR(FIND(" - ",TablaFronteras[[#This Row],[Frontera]])+2,0)),Datos[País],0),"")) -> 28
A145: Guatemala | B145: 164.433548 | C145: 157.3618927 | D145: 7.296062946 | E145: 9.984172821 | F145: =TablaFronteras[[#This Row],[X]]+TablaFronteras[[#This Row],[Ancho]]/2 -> 168.0815794 | G145: =TablaFronteras[[#This Row],[Y]]+TablaFronteras[[#This Row],[Alto]]/2 -> 162.3539791 | H145: =IF(AND(TablaFronteras[[#This Row],[Fila]]<>"",TablaFronteras[[#This Row],[X]]<miX,miX<TablaFronteras[[#This Row],[X]]+TablaFronteras[[#This Row],[Ancho]],TablaFronteras[[#This Row],[Y]]<miY,miY<TablaFronteras[[#This Row],[Y]]+TablaFronteras[[#This Row],[Alto]]),SQRT((TablaFronteras[[#This Row],[Centro X]]-miX)^2+(TablaFronteras[[#This Row],[Centro Y]]-miY)^2),"") ->  | I145: =IF(TablaFronteras[[#This Row],[Frontera]]="","",IFERROR(MATCH(RIGHT(TablaFronteras[[#This Row],[Frontera]],LEN(TablaFronteras[[#This Row],[Frontera]])-IFERROR(FIND(" - ",TablaFronteras[[#This Row],[Frontera]])+2,0)),Datos[País],0),"")) -> 93
A146: El Salvador | B146: 168.3566132 | C146: 165.7207947 | D146: 4.51905489 | E146: 3.051259756 | F146: =TablaFronteras[[#This Row],[X]]+TablaFronteras[[#This Row],[Ancho]]/2 -> 170.6161406 | G146: =TablaFronteras[[#This Row],[Y]]+TablaFronteras[[#This Row],[Alto]]/2 -> 167.2464246 | H146: =IF(AND(TablaFronteras[[#This Row],[Fila]]<>"",TablaFronteras[[#This Row],[X]]<miX,miX<TablaFronteras[[#This Row],[X]]+TablaFronteras[[#This Row],[Ancho]],TablaFronteras[[#This Row],[Y]]<miY,miY<TablaFronteras[[#This Row],[Y]]+TablaFronteras[[#This Row],[Alto]]),SQRT((TablaFronteras[[#This Row],[Centro X]]-miX)^2+(TablaFronteras[[#This Row],[Centro Y]]-miY)^2),"") ->  | I146: =IF(TablaFronteras[[#This Row],[Frontera]]="","",IFERROR(MATCH(RIGHT(TablaFronteras[[#This Row],[Frontera]],LEN(TablaFronteras[[#This Row],[Frontera]])-IFERROR(FIND(" - ",TablaFronteras[[#This Row],[Frontera]])+2,0)),Datos[País],0),"")) -> 70
A147: Honduras | B147: 169.9911804 | C147: 160.5160675 | D147: 11.6892128 | E147: 8.399842262 | F147: =TablaFronteras[[#This Row],[X]]+TablaFronteras[[#This Row],[Ancho]]/2 -> 175.8357868 | G147: =TablaFronteras[[#This Row],[Y]]+TablaFronteras[[#This Row],[Alto]]/2 -> 164.7159886 | H147: =IF(AND(TablaFronteras[[#This Row],[Fila]]<>"",TablaFronteras[[#This Row],[X]]<miX,miX<TablaFronteras[[#This Row],[X]]+TablaFronteras[[#This Row],[Ancho]],TablaFronteras[[#This Row],[Y]]<miY,miY<TablaFronteras[[#This Row],[Y]]+TablaFronteras[[#This Row],[Alto]]),SQRT((TablaFronteras[[#This Row],[Centro X]]-miX)^2+(TablaFronteras[[#This Row],[Centro Y]]-miY)^2),"") ->  | I147: =IF(TablaFronteras[[#This Row],[Frontera]]="","",IFERROR(MATCH(RIGHT(TablaFronteras[[#This Row],[Frontera]],LEN(TablaFronteras[[#This Row],[Frontera]])-IFERROR(FIND(" - ",TablaFronteras[[#This Row],[Frontera]])+2,0)),Datos[País],0),"")) -> 102
A148: Nicaragua | B148: 173.2650452 | C148: 164.1193695 | D148: 8.914409637 | E148: 10.4405508 | F148: =TablaFronteras[[#This Row],[X]]+TablaFronteras[[#This Row],[Ancho]]/2 -> 177.72225 | G148: =TablaFronteras[[#This Row],[Y]]+TablaFronteras[[#This Row],[Alto]]/2 -> 169.3396449 | H148: =IF(AND(TablaFronteras[[#This Row],[Fila]]<>"",TablaFronteras[[#This Row],[X]]<miX,miX<TablaFronteras[[#This Row],[X]]+TablaFronteras[[#This Row],[Ancho]],TablaFronteras[[#This Row],[Y]]<miY,miY<TablaFronteras[[#This Row],[Y]]+TablaFronteras[[#This Row],[Alto]]),SQRT((TablaFronteras[[#This Row],[Centro X]]-miX)^2+(TablaFronteras[[#This Row],[Centro Y]]-miY)^2),"") ->  | I148: =IF(TablaFronteras[[#This Row],[Frontera]]="","",IFERROR(MATCH(RIGHT(TablaFronteras[[#This Row],[Frontera]],LEN(TablaFronteras[[#This Row],[Frontera]])-IFERROR(FIND(" - ",TablaFronteras[[#This Row],[Frontera]])+2,0)),Datos[País],0),"")) -> 181
A149: Costa Rica | B149: 174.7167664 | C149: 173.5959778 | D149: 7.768897533 | E149: 14.15511799 | F149: =TablaFronteras[[#This Row],[X]]+TablaFronteras[[#This Row],[Ancho]]/2 -> 178.6012151 | G149: =TablaFronteras[[#This Row],[Y]]+TablaFronteras[[#This Row],[Alto]]/2 -> 180.6735368 | H149: =IF(AND(TablaFronteras[[#This Row],[Fila]]<>"",TablaFronteras[[#This Row],[X]]<miX,miX<TablaFronteras[[#This Row],[X]]+TablaFronteras[[#This Row],[Ancho]],TablaFronteras[[#This Row],[Y]]<miY,miY<TablaFronteras[[#This Row],[Y]]+TablaFronteras[[#This Row],[Alto]]),SQRT((TablaFronteras[[#This Row],[Centro X]]-miX)^2+(TablaFronteras[[#This Row],[Centro Y]]-miY)^2),"") ->  | I149: =IF(TablaFronteras[[#This Row],[Frontera]]="","",IFERROR(MATCH(RIGHT(TablaFronteras[[#This Row],[Frontera]],LEN(TablaFronteras[[#This Row],[Frontera]])-IFERROR(FIND(" - ",TablaFronteras[[#This Row],[Frontera]])+2,0)),Datos[País],0),"")) -> 61
A150: Panamá | B150: 181.9043274 | C150: 177.2092896 | D150: 12.47015762 | E150: 5.974015713 | F150: =TablaFronteras[[#This Row],[X]]+TablaFronteras[[#This Row],[Ancho]]/2 -> 188.1394062 | G150: =TablaFronteras[[#This Row],[Y]]+TablaFronteras[[#This Row],[Alto]]/2 -> 180.1962974 | H150: =IF(AND(TablaFronteras[[#This Row],[Fila]]<>"",TablaFronteras[[#This Row],[X]]<miX,miX<TablaFronteras[[#This Row],[X]]+TablaFronteras[[#This Row],[Ancho]],TablaFronteras[[#This Row],[Y]]<miY,miY<TablaFronteras[[#This Row],[Y]]+TablaFronteras[[#This Row],[Alto]]),SQRT((TablaFronteras[[#This Row],[Centro X]]-miX)^2+(TablaFronteras[[#This Row],[Centro Y]]-miY)^2),"") ->  | I150: =IF(TablaFronteras[[#This Row],[Frontera]]="","",IFERROR(MATCH(RIGHT(TablaFronteras[[#This Row],[Frontera]],LEN(TablaFronteras[[#This Row],[Frontera]])-IFERROR(FIND(" - ",TablaFronteras[[#This Row],[Frontera]])+2,0)),Datos[País],0),"")) -> 193
A151: Colombia | B151: 189.939682 | C151: 170.5274811 | D151: 25.36535454 | E151: 40.67937088 | F151: =TablaFronteras[[#This Row],[X]]+TablaFronteras[[#This Row],[Ancho]]/2 -> 202.6223593 | G151: =TablaFronteras[[#This Row],[Y]]+TablaFronteras[[#This Row],[Alto]]/2 -> 190.8671665 | H151: =IF(AND(TablaFronteras[[#This Row],[Fila]]<>"",TablaFronteras[[#This Row],[X]]<miX,miX<TablaFronteras[[#This Row],[X]]+TablaFronteras[[#This Row],[Ancho]],TablaFronteras[[#This Row],[Y]]<miY,miY<TablaFronteras[[#This Row],[Y]]+TablaFronteras[[#This Row],[Alto]]),SQRT((TablaFronteras[[#This Row],[Centro X]]-miX)^2+(TablaFronteras[[#This Row],[Centro Y]]-miY)^2),"") ->  | I151: =IF(TablaFronteras[[#This Row],[Frontera]]="","",IFERROR(MATCH(RIGHT(TablaFronteras[[#This Row],[Frontera]],LEN(TablaFronteras[[#This Row],[Frontera]])-IFERROR(FIND(" - ",TablaFronteras[[#This Row],[Frontera]])+2,0)),Datos[País],0),"")) -> 57
A152: Venezuela | B152: 201.8573303 | C152: 171.033783 | D152: 28.04157448 | E152: 28.02252007 | F152: =TablaFronteras[[#This Row],[X]]+TablaFronteras[[#This Row],[Ancho]]/2 -> 215.8781176 | G152: =TablaFronteras[[#This Row],[Y]]+TablaFronteras[[#This Row],[Alto]]/2 -> 185.045043 | H152: =IF(AND(TablaFronteras[[#This Row],[Fila]]<>"",TablaFronteras[[#This Row],[X]]<miX,miX<TablaFronteras[[#This Row],[X]]+TablaFronteras[[#This Row],[Ancho]],TablaFronteras[[#This Row],[Y]]<miY,miY<TablaFronteras[[#This Row],[Y]]+TablaFronteras[[#This Row],[Alto]]),SQRT((TablaFronteras[[#This Row],[Centro X]]-miX)^2+(TablaFronteras[[#This Row],[Centro Y]]-miY)^2),"") ->  | I152: =IF(TablaFronteras[[#This Row],[Frontera]]="","",IFERROR(MATCH(RIGHT(TablaFronteras[[#This Row],[Frontera]],LEN(TablaFronteras[[#This Row],[Frontera]])-IFERROR(FIND(" - ",TablaFronteras[[#This Row],[Frontera]])+2,0)),Datos[País],0),"")) -> 270
A153: Guyana | B153: 226.3843231 | C153: 180.1034698 | D153: 10.44944859 | E153: 17.56244087 | F153: =TablaFronteras[[#This Row],[X]]+TablaFronteras[[#This Row],[Ancho]]/2 -> 231.6090474 | G153: =TablaFronteras[[#This Row],[Y]]+TablaFronteras[[#This Row],[Alto]]/2 -> 188.8846903 | H153: =IF(AND(TablaFronteras[[#This Row],[Fila]]<>"",TablaFronteras[[#This Row],[X]]<miX,miX<TablaFronteras[[#This Row],[X]]+TablaFronteras[[#This Row],[Ancho]],TablaFronteras[[#This Row],[Y]]<miY,miY<TablaFronteras[[#This Row],[Y]]+TablaFronteras[[#This Row],[Alto]]),SQRT((TablaFronteras[[#This Row],[Centro X]]-miX)^2+(TablaFronteras[[#This Row],[Centro Y]]-miY)^2),"") ->  | I153: =IF(TablaFronteras[[#This Row],[Frontera]]="","",IFERROR(MATCH(RIGHT(TablaFronteras[[#This Row],[Frontera]],LEN(TablaFronteras[[#This Row],[Frontera]])-IFERROR(FIND(" - ",TablaFronteras[[#This Row],[Frontera]])+2,0)),Datos[País],0),"")) -> 99
A154: Surinam | B154: 233.9317322 | C154: 186.048111 | D154: 8.282755852 | E154: 10.08220482 | F154: =TablaFronteras[[#This Row],[X]]+TablaFronteras[[#This Row],[Ancho]]/2 -> 238.0731101 | G154: =TablaFronteras[[#This Row],[Y]]+TablaFronteras[[#This Row],[Alto]]/2 -> 191.0892134 | H154: =IF(AND(TablaFronteras[[#This Row],[Fila]]<>"",TablaFronteras[[#This Row],[X]]<miX,miX<TablaFronteras[[#This Row],[X]]+TablaFronteras[[#This Row],[Ancho]],TablaFronteras[[#This Row],[Y]]<miY,miY<TablaFronteras[[#This Row],[Y]]+TablaFronteras[[#This Row],[Alto]]),SQRT((TablaFronteras[[#This Row],[Centro X]]-miX)^2+(TablaFronteras[[#This Row],[Centro Y]]-miY)^2),"") ->  | I154: =IF(TablaFronteras[[#This Row],[Frontera]]="","",IFERROR(MATCH(RIGHT(TablaFronteras[[#This Row],[Frontera]],LEN(TablaFronteras[[#This Row],[Frontera]])-IFERROR(FIND(" - ",TablaFronteras[[#This Row],[Frontera]])+2,0)),Datos[País],0),"")) -> 247
A155: Guayana Francesa | B155: 240.8595276 | C155: 186.6868439 | D155: 7.332126141 | E155: 8.831259727 | F155: =TablaFronteras[[#This Row],[X]]+TablaFronteras[[#This Row],[Ancho]]/2 -> 244.5255907 | G155: =TablaFronteras[[#This Row],[Y]]+TablaFronteras[[#This Row],[Alto]]/2 -> 191.1024737 | H155: =IF(AND(TablaFronteras[[#This Row],[Fila]]<>"",TablaFronteras[[#This Row],[X]]<miX,miX<TablaFronteras[[#This Row],[X]]+TablaFronteras[[#This Row],[Ancho]],TablaFronteras[[#This Row],[Y]]<miY,miY<TablaFronteras[[#This Row],[Y]]+TablaFronteras[[#This Row],[Alto]]),SQRT((TablaFronteras[[#This Row],[Centro X]]-miX)^2+(TablaFronteras[[#This Row],[Centro Y]]-miY)^2),"") ->  | I155: =IF(TablaFronteras[[#This Row],[Frontera]]="","",IFERROR(MATCH(RIGHT(TablaFronteras[[#This Row],[Frontera]],LEN(TablaFronteras[[#This Row],[Frontera]])-IFERROR(FIND(" - ",TablaFronteras[[#This Row],[Frontera]])+2,0)),Datos[País],0),"")) -> 94
A156: Brasil | B156: 200.3581085 | C156: 187.8201599 | D156: 81.41598511 | E156: 94.52149963 | F156: =TablaFronteras[[#This Row],[X]]+TablaFronteras[[#This Row],[Ancho]]/2 -> 241.0661011 | G156: =TablaFronteras[[#This Row],[Y]]+TablaFronteras[[#This Row],[Alto]]/2 -> 235.0809097 | H156: =IF(AND(TablaFronteras[[#This Row],[Fila]]<>"",TablaFronteras[[#This Row],[X]]<miX,miX<TablaFronteras[[#This Row],[X]]+TablaFronteras[[#This Row],[Ancho]],TablaFronteras[[#This Row],[Y]]<miY,miY<TablaFronteras[[#This Row],[Y]]+TablaFronteras[[#This Row],[Alto]]),SQRT((TablaFronteras[[#This Row],[Centro X]]-miX)^2+(TablaFronteras[[#This Row],[Centro Y]]-miY)^2),"") ->  | I156: =IF(TablaFronteras[[#This Row],[Frontera]]="","",IFERROR(MATCH(RIGHT(TablaFronteras[[#This Row],[Frontera]],LEN(TablaFronteras[[#This Row],[Frontera]])-IFERROR(FIND(" - ",TablaFronteras[[#This Row],[Frontera]])+2,0)),Datos[País],0),"")) -> 37
A157: Ecuador | B157: 163.71315 | C157: 197.161026 | D157: 34.59062958 | E157: 15.50189018 | F157: =TablaFronteras[[#This Row],[X]]+TablaFronteras[[#This Row],[Ancho]]/2 -> 181.0084648 | G157: =TablaFronteras[[#This Row],[Y]]+TablaFronteras[[#This Row],[Alto]]/2 -> 204.9119711 | H157: =IF(AND(TablaFronteras[[#This Row],[Fila]]<>"",TablaFronteras[[#This Row],[X]]<miX,miX<TablaFronteras[[#This Row],[X]]+TablaFronteras[[#This Row],[Ancho]],TablaFronteras[[#This Row],[Y]]<miY,miY<TablaFronteras[[#This Row],[Y]]+TablaFronteras[[#This Row],[Alto]]),SQRT((TablaFronteras[[#This Row],[Centro X]]-miX)^2+(TablaFronteras[[#This Row],[Centro Y]]-miY)^2),"") ->  | I157: =IF(TablaFronteras[[#This Row],[Frontera]]="","",IFERROR(MATCH(RIGHT(TablaFronteras[[#This Row],[Frontera]],LEN(TablaFronteras[[#This Row],[Frontera]])-IFERROR(FIND(" - ",TablaFronteras[[#This Row],[Frontera]])+2,0)),Datos[País],0),"")) -> 68
A158: Perú | B158: 185.2805481 | C158: 200.7399139 | D158: 27.49204636 | E158: 44.24897766 | F158: =TablaFronteras[[#This Row],[X]]+TablaFronteras[[#This Row],[Ancho]]/2 -> 199.0265713 | G158: =TablaFronteras[[#This Row],[Y]]+TablaFronteras[[#This Row],[Alto]]/2 -> 222.8644028 | H158: =IF(AND(TablaFronteras[[#This Row],[Fila]]<>"",TablaFronteras[[#This Row],[X]]<miX,miX<TablaFronteras[[#This Row],[X]]+TablaFronteras[[#This Row],[Ancho]],TablaFronteras[[#This Row],[Y]]<miY,miY<TablaFronteras[[#This Row],[Y]]+TablaFronteras[[#This Row],[Alto]]),SQRT((TablaFronteras[[#This Row],[Centro X]]-miX)^2+(TablaFronteras[[#This Row],[Centro Y]]-miY)^2),"") ->  | I158: =IF(TablaFronteras[[#This Row],[Frontera]]="","",IFERROR(MATCH(RIGHT(TablaFronteras[[#This Row],[Frontera]],LEN(TablaFronteras[[#This Row],[Frontera]])-IFERROR(FIND(" - ",TablaFronteras[[#This Row],[Frontera]])+2,0)),Datos[País],0),"")) -> 200
A159: Bolivia | B159: 210.4277954 | C159: 224.1174011 | D159: 26.20495987 | E159: 32.00173187 | F159: =TablaFronteras[[#This Row],[X]]+TablaFronteras[[#This Row],[Ancho]]/2 -> 223.5302753 | G159: =TablaFronteras[[#This Row],[Y]]+TablaFronteras[[#This Row],[Alto]]/2 -> 240.1182671 | H159: =IF(AND(TablaFronteras[[#This Row],[Fila]]<>"",TablaFronteras[[#This Row],[X]]<miX,miX<TablaFronteras[[#This Row],[X]]+TablaFronteras[[#This Row],[Ancho]],TablaFronteras[[#This Row],[Y]]<miY,miY<TablaFronteras[[#This Row],[Y]]+TablaFronteras[[#This Row],[Alto]]),SQRT((TablaFronteras[[#This Row],[Centro X]]-miX)^2+(TablaFronteras[[#This Row],[Centro Y]]-miY)^2),"") ->  | I159: =IF(TablaFronteras[[#This Row],[Frontera]]="","",IFERROR(MATCH(RIGHT(TablaFronteras[[#This Row],[Frontera]],LEN(TablaFronteras[[#This Row],[Frontera]])-IFERROR(FIND(" - ",TablaFronteras[[#This Row],[Frontera]])+2,0)),Datos[País],0),"")) -> 33
A160: Paraguay | B160: 226.7832336 | C160: 247.2774811 | D160: 18.1658268 | E160: 20.23055077 | F160: =TablaFronteras[[#This Row],[X]]+TablaFronteras[[#This Row],[Ancho]]/2 -> 235.866147 | G160: =TablaFronteras[[#This Row],[Y]]+TablaFronteras[[#This Row],[Alto]]/2 -> 257.3927565 | H160: =IF(AND(TablaFronteras[[#This Row],[Fila]]<>"",TablaFronteras[[#This Row],[X]]<miX,miX<TablaFronteras[[#This Row],[X]]+TablaFronteras[[#This Row],[Ancho]],TablaFronteras[[#This Row],[Y]]<miY,miY<TablaFronteras[[#This Row],[Y]]+TablaFronteras[[#This Row],[Alto]]),SQRT((TablaFronteras[[#This Row],[Centro X]]-miX)^2+(TablaFronteras[[#This Row],[Centro Y]]-miY)^2),"") ->  | I160: =IF(TablaFronteras[[#This Row],[Frontera]]="","",IFERROR(MATCH(RIGHT(TablaFronteras[[#This Row],[Frontera]],LEN(TablaFronteras[[#This Row],[Frontera]])-IFERROR(FIND(" - ",TablaFronteras[[#This Row],[Frontera]])+2,0)),Datos[País],0),"")) -> 198
A161: Uruguay | B161: 239.7929993 | C161: 273.5005493 | D161: 10.09677124 | E161: 11.58842564 | F161: =TablaFronteras[[#This Row],[X]]+TablaFronteras[[#This Row],[Ancho]]/2 -> 244.8413849 | G161: =TablaFronteras[[#This Row],[Y]]+TablaFronteras[[#This Row],[Alto]]/2 -> 279.2947621 | H161: =IF(AND(TablaFronteras[[#This Row],[Fila]]<>"",TablaFronteras[[#This Row],[X]]<miX,miX<TablaFronteras[[#This Row],[X]]+TablaFronteras[[#This Row],[Ancho]],TablaFronteras[[#This Row],[Y]]<miY,miY<TablaFronteras[[#This Row],[Y]]+TablaFronteras[[#This Row],[Alto]]),SQRT((TablaFronteras[[#This Row],[Centro X]]-miX)^2+(TablaFronteras[[#This Row],[Centro Y]]-miY)^2),"") ->  | I161: =IF(TablaFronteras[[#This Row],[Frontera]]="","",IFERROR(MATCH(RIGHT(TablaFronteras[[#This Row],[Frontera]],LEN(TablaFronteras[[#This Row],[Frontera]])-IFERROR(FIND(" - ",TablaFronteras[[#This Row],[Frontera]])+2,0)),Datos[País],0),"")) -> 267
A162: Chile | B162: 134.8636932 | C162: 243.0295258 | D162: 107.198822 | E162: 91.60141754 | F162: =TablaFronteras[[#This Row],[X]]+TablaFronteras[[#This Row],[Ancho]]/2 -> 188.4631042 | G162: =TablaFronteras[[#This Row],[Y]]+TablaFronteras[[#This Row],[Alto]]/2 -> 288.8302345 | H162: =IF(AND(TablaFronteras[[#This Row],[Fila]]<>"",TablaFronteras[[#This Row],[X]]<miX,miX<TablaFronteras[[#This Row],[X]]+TablaFronteras[[#This Row],[Ancho]],TablaFronteras[[#This Row],[Y]]<miY,miY<TablaFronteras[[#This Row],[Y]]+TablaFronteras[[#This Row],[Alto]]),SQRT((TablaFronteras[[#This Row],[Centro X]]-miX)^2+(TablaFronteras[[#This Row],[Centro Y]]-miY)^2),"") ->  | I162: =IF(TablaFronteras[[#This Row],[Frontera]]="","",IFERROR(MATCH(RIGHT(TablaFronteras[[#This Row],[Frontera]],LEN(TablaFronteras[[#This Row],[Frontera]])-IFERROR(FIND(" - ",TablaFronteras[[#This Row],[Frontera]])+2,0)),Datos[País],0),"")) -> 52
A163: Argentina | B163: 214.9638519 | C163: 253.4305573 | D163: 31.87929153 | E163: 79.16629791 | F163: =TablaFronteras[[#This Row],[X]]+TablaFronteras[[#This Row],[Ancho]]/2 -> 230.9034977 | G163: =TablaFronteras[[#This Row],[Y]]+TablaFronteras[[#This Row],[Alto]]/2 -> 293.0137062 | H163: =IF(AND(TablaFronteras[[#This Row],[Fila]]<>"",TablaFronteras[[#This Row],[X]]<miX,miX<TablaFronteras[[#This Row],[X]]+TablaFronteras[[#This Row],[Ancho]],TablaFronteras[[#This Row],[Y]]<miY,miY<TablaFronteras[[#This Row],[Y]]+TablaFronteras[[#This Row],[Alto]]),SQRT((TablaFronteras[[#This Row],[Centro X]]-miX)^2+(TablaFronteras[[#This Row],[Centro Y]]-miY)^2),"") ->  | I163: =IF(TablaFronteras[[#This Row],[Frontera]]="","",IFERROR(MATCH(RIGHT(TablaFronteras[[#This Row],[Frontera]],LEN(TablaFronteras[[#This Row],[Frontera]])-IFERROR(FIND(" - ",TablaFronteras[[#This Row],[Frontera]])+2,0)),Datos[País],0),"")) -> 12
A164: Antigua y Barbuda | B164: 225.0196075 | C164: 156.847168 | D164: 0.147480309 | E164: 0.08937007934 | F164: =TablaFronteras[[#This Row],[X]]+TablaFronteras[[#This Row],[Ancho]]/2 -> 225.0933477 | G164: =TablaFronteras[[#This Row],[Y]]+TablaFronteras[[#This Row],[Alto]]/2 -> 156.891853 | H164: =IF(AND(TablaFronteras[[#This Row],[Fila]]<>"",TablaFronteras[[#This Row],[X]]<miX,miX<TablaFronteras[[#This Row],[X]]+TablaFronteras[[#This Row],[Ancho]],TablaFronteras[[#This Row],[Y]]<miY,miY<TablaFronteras[[#This Row],[Y]]+TablaFronteras[[#This Row],[Alto]]),SQRT((TablaFronteras[[#This Row],[Centro X]]-miX)^2+(TablaFronteras[[#This Row],[Centro Y]]-miY)^2),"") ->  | I164: =IF(TablaFronteras[[#This Row],[Frontera]]="","",IFERROR(MATCH(RIGHT(TablaFronteras[[#This Row],[Frontera]],LEN(TablaFronteras[[#This Row],[Frontera]])-IFERROR(FIND(" - ",TablaFronteras[[#This Row],[Frontera]])+2,0)),Datos[País],0),"")) -> 9
A165: Islas Vírgenes Británicas | B165: 221.7809448 | C165: 155.233078 | D165: 1.663385868 | E165: 1.014330745 | F165: =TablaFronteras[[#This Row],[X]]+TablaFronteras[[#This Row],[Ancho]]/2 -> 222.6126378 | G165: =TablaFronteras[[#This Row],[Y]]+TablaFronteras[[#This Row],[Alto]]/2 -> 155.7402434 | H165: =IF(AND(TablaFronteras[[#This Row],[Fila]]<>"",TablaFronteras[[#This Row],[X]]<miX,miX<TablaFronteras[[#This Row],[X]]+TablaFronteras[[#This Row],[Ancho]],TablaFronteras[[#This Row],[Y]]<miY,miY<TablaFronteras[[#This Row],[Y]]+TablaFronteras[[#This Row],[Alto]]),SQRT((TablaFronteras[[#This Row],[Centro X]]-miX)^2+(TablaFronteras[[#This Row],[Centro Y]]-miY)^2),"") ->  | I165: =IF(TablaFronteras[[#This Row],[Frontera]]="","",IFERROR(MATCH(RIGHT(TablaFronteras[[#This Row],[Frontera]],LEN(TablaFronteras[[#This Row],[Frontera]])-IFERROR(FIND(" - ",TablaFronteras[[#This Row],[Frontera]])+2,0)),Datos[País],0),"")) -> 132
A166: Islas Vírgenes de Estados Unidos | B166: 220.8961487 | C166: 156.6104736 | D166: 2.406614065 | E166: 1.156220436 | F166: =TablaFronteras[[#This Row],[X]]+TablaFronteras[[#This Row],[Ancho]]/2 -> 222.0994557 | G166: =TablaFronteras[[#This Row],[Y]]+TablaFronteras[[#This Row],[Alto]]/2 -> 157.1885839 | H166: =IF(AND(TablaFronteras[[#This Row],[Fila]]<>"",TablaFronteras[[#This Row],[X]]<miX,miX<TablaFronteras[[#This Row],[X]]+TablaFronteras[[#This Row],[Ancho]],TablaFronteras[[#This Row],[Y]]<miY,miY<TablaFronteras[[#This Row],[Y]]+TablaFronteras[[#This Row],[Alto]]),SQRT((TablaFronteras[[#This Row],[Centro X]]-miX)^2+(TablaFronteras[[#This Row],[Centro Y]]-miY)^2),"") ->  | I166: =IF(TablaFronteras[[#This Row],[Frontera]]="","",IFERROR(MATCH(RIGHT(TablaFronteras[[#This Row],[Frontera]],LEN(TablaFronteras[[#This Row],[Frontera]])-IFERROR(FIND(" - ",TablaFronteras[[#This Row],[Frontera]])+2,0)),Datos[País],0),"")) -> 133
A167: Montserrat | B167: 226.3144073 | C167: 160.0695343 | D167: 0.0867716521 | E167: 0.1931496114 | F167: =TablaFronteras[[#This Row],[X]]+TablaFronteras[[#This Row],[Ancho]]/2 -> 226.3577932 | G167: =TablaFronteras[[#This Row],[Y]]+TablaFronteras[[#This Row],[Alto]]/2 -> 160.1661091 | H167: =IF(AND(TablaFronteras[[#This Row],[Fila]]<>"",TablaFronteras[[#This Row],[X]]<miX,miX<TablaFronteras[[#This Row],[X]]+TablaFronteras[[#This Row],[Ancho]],TablaFronteras[[#This Row],[Y]]<miY,miY<TablaFronteras[[#This Row],[Y]]+TablaFronteras[[#This Row],[Alto]]),SQRT((TablaFronteras[[#This Row],[Centro X]]-miX)^2+(TablaFronteras[[#This Row],[Centro Y]]-miY)^2),"") ->  | I167: =IF(TablaFronteras[[#This Row],[Frontera]]="","",IFERROR(MATCH(RIGHT(TablaFronteras[[#This Row],[Frontera]],LEN(TablaFronteras[[#This Row],[Frontera]])-IFERROR(FIND(" - ",TablaFronteras[[#This Row],[Frontera]])+2,0)),Datos[País],0),"")) -> 174
A168: Guadalupe | B168: 227.0011749 | C168: 160.545517 | D168: 1.281338573 | E168: 1.445196867 | F168: =TablaFronteras[[#This Row],[X]]+TablaFronteras[[#This Row],[Ancho]]/2 -> 227.6418442 | G168: =TablaFronteras[[#This Row],[Y]]+TablaFronteras[[#This Row],[Alto]]/2 -> 161.2681154 | H168: =IF(AND(TablaFronteras[[#This Row],[Fila]]<>"",TablaFronteras[[#This Row],[X]]<miX,miX<TablaFronteras[[#This Row],[X]]+TablaFronteras[[#This Row],[Ancho]],TablaFronteras[[#This Row],[Y]]<miY,miY<TablaFronteras[[#This Row],[Y]]+TablaFronteras[[#This Row],[Alto]]),SQRT((TablaFronteras[[#This Row],[Centro X]]-miX)^2+(TablaFronteras[[#This Row],[Centro Y]]-miY)^2),"") ->  | I168: =IF(TablaFronteras[[#This Row],[Frontera]]="","",IFERROR(MATCH(RIGHT(TablaFronteras[[#This Row],[Frontera]],LEN(TablaFronteras[[#This Row],[Frontera]])-IFERROR(FIND(" - ",TablaFronteras[[#This Row],[Frontera]])+2,0)),Datos[País],0),"")) -> 91
A169: Santa Lucía | B169: 228.0626831 | C169: 166.7692108 | D169: 0.3990551233 | E169: 0.6154330969 | F169: =TablaFronteras[[#This Row],[X]]+TablaFronteras[[#This Row],[Ancho]]/2 -> 228.2622107 | G169: =TablaFronteras[[#This Row],[Y]]+TablaFronteras[[#This Row],[Alto]]/2 -> 167.0769274 | H169: =IF(AND(TablaFronteras[[#This Row],[Fila]]<>"",TablaFronteras[[#This Row],[X]]<miX,miX<TablaFronteras[[#This Row],[X]]+TablaFronteras[[#This Row],[Ancho]],TablaFronteras[[#This Row],[Y]]<miY,miY<TablaFronteras[[#This Row],[Y]]+TablaFronteras[[#This Row],[Alto]]),SQRT((TablaFronteras[[#This Row],[Centro X]]-miX)^2+(TablaFronteras[[#This Row],[Centro Y]]-miY)^2),"") ->  | I169: =IF(TablaFronteras[[#This Row],[Frontera]]="","",IFERROR(MATCH(RIGHT(TablaFronteras[[#This Row],[Frontera]],LEN(TablaFronteras[[#This Row],[Frontera]])-IFERROR(FIND(" - ",TablaFronteras[[#This Row],[Frontera]])+2,0)),Datos[País],0),"")) -> 229
A170: Martinica | B170: 227.9850464 | C170: 164.3700714 | D170: 0.7001574636 | E170: 1.489921212 | F170: =TablaFronteras[[#This Row],[X]]+TablaFronteras[[#This Row],[Ancho]]/2 -> 228.3351251 | G170: =TablaFronteras[[#This Row],[Y]]+TablaFronteras[[#This Row],[Alto]]/2 -> 165.115032 | H170: =IF(AND(TablaFronteras[[#This Row],[Fila]]<>"",TablaFronteras[[#This Row],[X]]<miX,miX<TablaFronteras[[#This Row],[X]]+TablaFronteras[[#This Row],[Ancho]],TablaFronteras[[#This Row],[Y]]<miY,miY<TablaFronteras[[#This Row],[Y]]+TablaFronteras[[#This Row],[Alto]]),SQRT((TablaFronteras[[#This Row],[Centro X]]-miX)^2+(TablaFronteras[[#This Row],[Centro Y]]-miY)^2),"") ->  | I170: =IF(TablaFronteras[[#This Row],[Frontera]]="","",IFERROR(MATCH(RIGHT(TablaFronteras[[#This Row],[Frontera]],LEN(TablaFronteras[[#This Row],[Frontera]])-IFERROR(FIND(" - ",TablaFronteras[[#This Row],[Frontera]])+2,0)),Datos[País],0),"")) -> 164
A171: Dominica | B171: 227.5127563 | C171: 162.6146393 | D171: 0.480078727 | E171: 1.019370079 | F171: =TablaFronteras[[#This Row],[X]]+TablaFronteras[[#This Row],[Ancho]]/2 -> 227.7527957 | G171: =TablaFronteras[[#This Row],[Y]]+TablaFronteras[[#This Row],[Alto]]/2 -> 163.1243243 | H171: =IF(AND(TablaFronteras[[#This Row],[Fila]]<>"",TablaFronteras[[#This Row],[X]]<miX,miX<TablaFronteras[[#This Row],[X]]+TablaFronteras[[#This Row],[Ancho]],TablaFronteras[[#This Row],[Y]]<miY,miY<TablaFronteras[[#This Row],[Y]]+TablaFronteras[[#This Row],[Alto]]),SQRT((TablaFronteras[[#This Row],[Centro X]]-miX)^2+(TablaFronteras[[#This Row],[Centro Y]]-miY)^2),"") ->  | I171: =IF(TablaFronteras[[#This Row],[Frontera]]="","",IFERROR(MATCH(RIGHT(TablaFronteras[[#This Row],[Frontera]],LEN(TablaFronteras[[#This Row],[Frontera]])-IFERROR(FIND(" - ",TablaFronteras[[#This Row],[Frontera]])+2,0)),Datos[País],0),"")) -> 67
A172: Barbados | B172: 231.066925 | C172: 168.4058228 | D172: 0.4637008011 | E172: 0.5996062756 | F172: =TablaFronteras[[#This Row],[X]]+TablaFronteras[[#This Row],[Ancho]]/2 -> 231.2987754 | G172: =TablaFronteras[[#This Row],[Y]]+TablaFronteras[[#This Row],[Alto]]/2 -> 168.7056259 | H172: =IF(AND(TablaFronteras[[#This Row],[Fila]]<>"",TablaFronteras[[#This Row],[X]]<miX,miX<TablaFronteras[[#This Row],[X]]+TablaFronteras[[#This Row],[Ancho]],TablaFronteras[[#This Row],[Y]]<miY,miY<TablaFronteras[[#This Row],[Y]]+TablaFronteras[[#This Row],[Alto]]),SQRT((TablaFronteras[[#This Row],[Centro X]]-miX)^2+(TablaFronteras[[#This Row],[Centro Y]]-miY)^2),"") ->  | I172: =IF(TablaFronteras[[#This Row],[Frontera]]="","",IFERROR(MATCH(RIGHT(TablaFronteras[[#This Row],[Frontera]],LEN(TablaFronteras[[#This Row],[Frontera]])-IFERROR(FIND(" - ",TablaFronteras[[#This Row],[Frontera]])+2,0)),Datos[País],0),"")) -> 26
A173: San Vicente y las Granadinas | B173: 227.5392914 | C173: 168.2062225 | D173: 0.2874015868 | E173: 0.6193701029 | F173: =TablaFronteras[[#This Row],[X]]+TablaFronteras[[#This Row],[Ancho]]/2 -> 227.6829922 | G173: =TablaFronteras[[#This Row],[Y]]+TablaFronteras[[#This Row],[Alto]]/2 -> 168.5159076 | H173: =IF(AND(TablaFronteras[[#This Row],[Fila]]<>"",TablaFronteras[[#This Row],[X]]<miX,miX<TablaFronteras[[#This Row],[X]]+TablaFronteras[[#This Row],[Ancho]],TablaFronteras[[#This Row],[Y]]<miY,miY<TablaFronteras[[#This Row],[Y]]+TablaFronteras[[#This Row],[Alto]]),SQRT((TablaFronteras[[#This Row],[Centro X]]-miX)^2+(TablaFronteras[[#This Row],[Centro Y]]-miY)^2),"") ->  | I173: =IF(TablaFronteras[[#This Row],[Frontera]]="","",IFERROR(MATCH(RIGHT(TablaFronteras[[#This Row],[Frontera]],LEN(TablaFronteras[[#This Row],[Frontera]])-IFERROR(FIND(" - ",TablaFronteras[[#This Row],[Frontera]])+2,0)),Datos[País],0),"")) -> 227
A174: Granada | B174: 226.4203949 | C174: 170.9641724 | D174: 0.2846456766 | E174: 0.5599212646 | F174: =TablaFronteras[[#This Row],[X]]+TablaFronteras[[#This Row],[Ancho]]/2 -> 226.5627177 | G174: =TablaFronteras[[#This Row],[Y]]+TablaFronteras[[#This Row],[Alto]]/2 -> 171.244133 | H174: =IF(AND(TablaFronteras[[#This Row],[Fila]]<>"",TablaFronteras[[#This Row],[X]]<miX,miX<TablaFronteras[[#This Row],[X]]+TablaFronteras[[#This Row],[Ancho]],TablaFronteras[[#This Row],[Y]]<miY,miY<TablaFronteras[[#This Row],[Y]]+TablaFronteras[[#This Row],[Alto]]),SQRT((TablaFronteras[[#This Row],[Centro X]]-miX)^2+(TablaFronteras[[#This Row],[Centro Y]]-miY)^2),"") ->  | I174: =IF(TablaFronteras[[#This Row],[Frontera]]="","",IFERROR(MATCH(RIGHT(TablaFronteras[[#This Row],[Frontera]],LEN(TablaFronteras[[#This Row],[Frontera]])-IFERROR(FIND(" - ",TablaFronteras[[#This Row],[Frontera]])+2,0)),Datos[País],0),"")) -> 88
A175: Trinidad y Tobago | B175: 225.6858215 | C175: 173.1422882 | D175: 2.998897552 | E175: 3.018188953 | F175: =TablaFronteras[[#This Row],[X]]+TablaFronteras[[#This Row],[Ancho]]/2 -> 227.1852703 | G175: =TablaFronteras[[#This Row],[Y]]+TablaFronteras[[#This Row],[Alto]]/2 -> 174.6513827 | H175: =IF(AND(TablaFronteras[[#This Row],[Fila]]<>"",TablaFronteras[[#This Row],[X]]<miX,miX<TablaFronteras[[#This Row],[X]]+TablaFronteras[[#This Row],[Ancho]],TablaFronteras[[#This Row],[Y]]<miY,miY<TablaFronteras[[#This Row],[Y]]+TablaFronteras[[#This Row],[Alto]]),SQRT((TablaFronteras[[#This Row],[Centro X]]-miX)^2+(TablaFronteras[[#This Row],[Centro Y]]-miY)^2),"") ->  | I175: =IF(TablaFronteras[[#This Row],[Frontera]]="","",IFERROR(MATCH(RIGHT(TablaFronteras[[#This Row],[Frontera]],LEN(TablaFronteras[[#This Row],[Frontera]])-IFERROR(FIND(" - ",TablaFronteras[[#This Row],[Frontera]])+2,0)),Datos[País],0),"")) -> 260
A176: Aruba | B176: 209.588028 | C176: 170.1501617 | D176: 0.3692913353 | E176: 0.3944881856 | F176: =TablaFronteras[[#This Row],[X]]+TablaFronteras[[#This Row],[Ancho]]/2 -> 209.7726736 | G176: =TablaFronteras[[#This Row],[Y]]+TablaFronteras[[#This Row],[Alto]]/2 -> 170.3474058 | H176: =IF(AND(TablaFronteras[[#This Row],[Fila]]<>"",TablaFronteras[[#This Row],[X]]<miX,miX<TablaFronteras[[#This Row],[X]]+TablaFronteras[[#This Row],[Ancho]],TablaFronteras[[#This Row],[Y]]<miY,miY<TablaFronteras[[#This Row],[Y]]+TablaFronteras[[#This Row],[Alto]]),SQRT((TablaFronteras[[#This Row],[Centro X]]-miX)^2+(TablaFronteras[[#This Row],[Centro Y]]-miY)^2),"") ->  | I176: =IF(TablaFronteras[[#This Row],[Frontera]]="","",IFERROR(MATCH(RIGHT(TablaFronteras[[#This Row],[Frontera]],LEN(TablaFronteras[[#This Row],[Frontera]])-IFERROR(FIND(" - ",TablaFronteras[[#This Row],[Frontera]])+2,0)),Datos[País],0),"")) -> 16
A177: Islas Caimán | B177: 188.1207123 | C177: 153.6463013 | D177: 0.6196063161 | E177: 0.2189763784 | F177: =TablaFronteras[[#This Row],[X]]+TablaFronteras[[#This Row],[Ancho]]/2 -> 188.4305154 | G177: =TablaFronteras[[#This Row],[Y]]+TablaFronteras[[#This Row],[Alto]]/2 -> 153.7557895 | H177: =IF(AND(TablaFronteras[[#This Row],[Fila]]<>"",TablaFronteras[[#This Row],[X]]<miX,miX<TablaFronteras[[#This Row],[X]]+TablaFronteras[[#This Row],[Ancho]],TablaFronteras[[#This Row],[Y]]<miY,miY<TablaFronteras[[#This Row],[Y]]+TablaFronteras[[#This Row],[Alto]]),SQRT((TablaFronteras[[#This Row],[Centro X]]-miX)^2+(TablaFronteras[[#This Row],[Centro Y]]-miY)^2),"") ->  | I177: =IF(TablaFronteras[[#This Row],[Frontera]]="","",IFERROR(MATCH(RIGHT(TablaFronteras[[#This Row],[Frontera]],LEN(TablaFronteras[[#This Row],[Frontera]])-IFERROR(FIND(" - ",TablaFronteras[[#This Row],[Frontera]])+2,0)),Datos[País],0),"")) -> 119
A178: Bahamas | B178: 195.99646 | C178: 135.5067749 | D178: 10.25771618 | E178: 14.36881924 | F178: =TablaFronteras[[#This Row],[X]]+TablaFronteras[[#This Row],[Ancho]]/2 -> 201.1253181 | G178: =TablaFronteras[[#This Row],[Y]]+TablaFronteras[[#This Row],[Alto]]/2 -> 142.6911845 | H178: =IF(AND(TablaFronteras[[#This Row],[Fila]]<>"",TablaFronteras[[#This Row],[X]]<miX,miX<TablaFronteras[[#This Row],[X]]+TablaFronteras[[#This Row],[Ancho]],TablaFronteras[[#This Row],[Y]]<miY,miY<TablaFronteras[[#This Row],[Y]]+TablaFronteras[[#This Row],[Alto]]),SQRT((TablaFronteras[[#This Row],[Centro X]]-miX)^2+(TablaFronteras[[#This Row],[Centro Y]]-miY)^2),"") ->  | I178: =IF(TablaFronteras[[#This Row],[Frontera]]="","",IFERROR(MATCH(RIGHT(TablaFronteras[[#This Row],[Frontera]],LEN(TablaFronteras[[#This Row],[Frontera]])-IFERROR(FIND(" - ",TablaFronteras[[#This Row],[Frontera]])+2,0)),Datos[País],0),"")) -> 24
A179: Islas Turcas y Caicos | B179: 207.0651245 | C179: 147.7041016 | D179: 1.881181121 | E179: 0.403622061 | F179: =TablaFronteras[[#This Row],[X]]+TablaFronteras[[#This Row],[Ancho]]/2 -> 208.0057151 | G179: =TablaFronteras[[#This Row],[Y]]+TablaFronteras[[#This Row],[Alto]]/2 -> 147.9059126 | H179: =IF(AND(TablaFronteras[[#This Row],[Fila]]<>"",TablaFronteras[[#This Row],[X]]<miX,miX<TablaFronteras[[#This Row],[X]]+TablaFronteras[[#This Row],[Ancho]],TablaFronteras[[#This Row],[Y]]<miY,miY<TablaFronteras[[#This Row],[Y]]+TablaFronteras[[#This Row],[Alto]]),SQRT((TablaFronteras[[#This Row],[Centro X]]-miX)^2+(TablaFronteras[[#This Row],[Centro Y]]-miY)^2),"") ->  | I179: =IF(TablaFronteras[[#This Row],[Frontera]]="","",IFERROR(MATCH(RIGHT(TablaFronteras[[#This Row],[Frontera]],LEN(TablaFronteras[[#This Row],[Frontera]])-IFERROR(FIND(" - ",TablaFronteras[[#This Row],[Frontera]])+2,0)),Datos[País],0),"")) -> 131
A180: Haití | B180: 201.548584 | C180: 152.0496826 | D180: 7.39708662 | E180: 4.858267784 | F180: =TablaFronteras[[#This Row],[X]]+TablaFronteras[[#This Row],[Ancho]]/2 -> 205.2471273 | G180: =TablaFronteras[[#This Row],[Y]]+TablaFronteras[[#This Row],[Alto]]/2 -> 154.4788165 | H180: =IF(AND(TablaFronteras[[#This Row],[Fila]]<>"",TablaFronteras[[#This Row],[X]]<miX,miX<TablaFronteras[[#This Row],[X]]+TablaFronteras[[#This Row],[Ancho]],TablaFronteras[[#This Row],[Y]]<miY,miY<TablaFronteras[[#This Row],[Y]]+TablaFronteras[[#This Row],[Alto]]),SQRT((TablaFronteras[[#This Row],[Centro X]]-miX)^2+(TablaFronteras[[#This Row],[Centro Y]]-miY)^2),"") ->  | I180: =IF(TablaFronteras[[#This Row],[Frontera]]="","",IFERROR(MATCH(RIGHT(TablaFronteras[[#This Row],[Frontera]],LEN(TablaFronteras[[#This Row],[Frontera]])-IFERROR(FIND(" - ",TablaFronteras[[#This Row],[Frontera]])+2,0)),Datos[País],0),"")) -> 100
A181: Santo Tomé y Príncipe | B181: 367.8974915 | C181: 196.8066101 | D181: 2.000236273 | E181: 3.751181126 | F181: =TablaFronteras[[#This Row],[X]]+TablaFronteras[[#This Row],[Ancho]]/2 -> 368.8976096 | G181: =TablaFronteras[[#This Row],[Y]]+TablaFronteras[[#This Row],[Alto]]/2 -> 198.6822007 | H181: =IF(AND(TablaFronteras[[#This Row],[Fila]]<>"",TablaFronteras[[#This Row],[X]]<miX,miX<TablaFronteras[[#This Row],[X]]+TablaFronteras[[#This Row],[Ancho]],TablaFronteras[[#This Row],[Y]]<miY,miY<TablaFronteras[[#This Row],[Y]]+TablaFronteras[[#This Row],[Alto]]),SQRT((TablaFronteras[[#This Row],[Centro X]]-miX)^2+(TablaFronteras[[#This Row],[Centro Y]]-miY)^2),"") ->  | I181: =IF(TablaFronteras[[#This Row],[Frontera]]="","",IFERROR(MATCH(RIGHT(TablaFronteras[[#This Row],[Frontera]],LEN(TablaFronteras[[#This Row],[Frontera]])-IFERROR(FIND(" - ",TablaFronteras[[#This Row],[Frontera]])+2,0)),Datos[País],0),"")) -> 230
A182: Cabo Verde | B182: 302.0809326 | C182: 158.9262238 | D182: 6.73551178 | E182: 5.647873878 | F182: =TablaFronteras[[#This Row],[X]]+TablaFronteras[[#This Row],[Ancho]]/2 -> 305.4486885 | G182: =TablaFronteras[[#This Row],[Y]]+TablaFronteras[[#This Row],[Alto]]/2 -> 161.7501607 | H182: =IF(AND(TablaFronteras[[#This Row],[Fila]]<>"",TablaFronteras[[#This Row],[X]]<miX,miX<TablaFronteras[[#This Row],[X]]+TablaFronteras[[#This Row],[Ancho]],TablaFronteras[[#This Row],[Y]]<miY,miY<TablaFronteras[[#This Row],[Y]]+TablaFronteras[[#This Row],[Alto]]),SQRT((TablaFronteras[[#This Row],[Centro X]]-miX)^2+(TablaFronteras[[#This Row],[Centro Y]]-miY)^2),"") ->  | I182: =IF(TablaFronteras[[#This Row],[Frontera]]="","",IFERROR(MATCH(RIGHT(TablaFronteras[[#This Row],[Frontera]],LEN(TablaFronteras[[#This Row],[Frontera]])-IFERROR(FIND(" - ",TablaFronteras[[#This Row],[Frontera]])+2,0)),Datos[País],0),"")) -> 44
A183: Malta | B183: 383.3557434 | C183: 113.5146484 | D183: 0.4512598515 | E183: 0.4594488144 | F183: =TablaFronteras[[#This Row],[X]]+TablaFronteras[[#This Row],[Ancho]]/2 -> 383.5813733 | G183: =TablaFronteras[[#This Row],[Y]]+TablaFronteras[[#This Row],[Alto]]/2 -> 113.7443728 | H183: =IF(AND(TablaFronteras[[#This Row],[Fila]]<>"",TablaFronteras[[#This Row],[X]]<miX,miX<TablaFronteras[[#This Row],[X]]+TablaFronteras[[#This Row],[Ancho]],TablaFronteras[[#This Row],[Y]]<miY,miY<TablaFronteras[[#This Row],[Y]]+TablaFronteras[[#This Row],[Alto]]),SQRT((TablaFronteras[[#This Row],[Centro X]]-miX)^2+(TablaFronteras[[#This Row],[Centro Y]]-miY)^2),"") ->  | I183: =IF(TablaFronteras[[#This Row],[Frontera]]="","",IFERROR(MATCH(RIGHT(TablaFronteras[[#This Row],[Frontera]],LEN(TablaFronteras[[#This Row],[Frontera]])-IFERROR(FIND(" - ",TablaFronteras[[#This Row],[Frontera]])+2,0)),Datos[País],0),"")) -> 161
A184: Chipre | B184: 418.5930786 | C184: 114.2640915 | D184: 3.302992105 | E184: 2.584566832 | F184: =TablaFronteras[[#This Row],[X]]+TablaFronteras[[#This Row],[Ancho]]/2 -> 420.2445747 | G184: =TablaFronteras[[#This Row],[Y]]+TablaFronteras[[#This Row],[Alto]]/2 -> 115.5563749 | H184: =IF(AND(TablaFronteras[[#This Row],[Fila]]<>"",TablaFronteras[[#This Row],[X]]<miX,miX<TablaFronteras[[#This Row],[X]]+TablaFronteras[[#This Row],[Ancho]],TablaFronteras[[#This Row],[Y]]<miY,miY<TablaFronteras[[#This Row],[Y]]+TablaFronteras[[#This Row],[Alto]]),SQRT((TablaFronteras[[#This Row],[Centro X]]-miX)^2+(TablaFronteras[[#This Row],[Centro Y]]-miY)^2),"") ->  | I184: =IF(TablaFronteras[[#This Row],[Frontera]]="","",IFERROR(MATCH(RIGHT(TablaFronteras[[#This Row],[Frontera]],LEN(TablaFronteras[[#This Row],[Frontera]])-IFERROR(FIND(" - ",TablaFronteras[[#This Row],[Frontera]])+2,0)),Datos[País],0),"")) -> 54
A185: Islas del Pacífico - Estados Unidos | B185: 660.6483765 | C185: 49.58165359 | D185: 32.25456619 | E185: 27.71330643 | F185: =TablaFronteras[[#This Row],[X]]+TablaFronteras[[#This Row],[Ancho]]/2 -> 676.7756596 | G185: =TablaFronteras[[#This Row],[Y]]+TablaFronteras[[#This Row],[Alto]]/2 -> 63.43830681 | H185: =IF(AND(TablaFronteras[[#This Row],[Fila]]<>"",TablaFronteras[[#This Row],[X]]<miX,miX<TablaFronteras[[#This Row],[X]]+TablaFronteras[[#This Row],[Ancho]],TablaFronteras[[#This Row],[Y]]<miY,miY<TablaFronteras[[#This Row],[Y]]+TablaFronteras[[#This Row],[Alto]]),SQRT((TablaFronteras[[#This Row],[Centro X]]-miX)^2+(TablaFronteras[[#This Row],[Centro Y]]-miY)^2),"") ->  | I185: =IF(TablaFronteras[[#This Row],[Frontera]]="","",IFERROR(MATCH(RIGHT(TablaFronteras[[#This Row],[Frontera]],LEN(TablaFronteras[[#This Row],[Frontera]])-IFERROR(FIND(" - ",TablaFronteras[[#This Row],[Frontera]])+2,0)),Datos[País],0),"")) -> 76
A186: Isla Diomedes - Rusia | B186: 93.87252045 | C186: 44.74456787 | D186: 0.5247244239 | E186: 0.2967716455 | F186: =TablaFronteras[[#This Row],[X]]+TablaFronteras[[#This Row],[Ancho]]/2 -> 94.13488266 | G186: =TablaFronteras[[#This Row],[Y]]+TablaFronteras[[#This Row],[Alto]]/2 -> 44.89295369 | H186: =IF(AND(TablaFronteras[[#This Row],[Fila]]<>"",TablaFronteras[[#This Row],[X]]<miX,miX<TablaFronteras[[#This Row],[X]]+TablaFronteras[[#This Row],[Ancho]],TablaFronteras[[#This Row],[Y]]<miY,miY<TablaFronteras[[#This Row],[Y]]+TablaFronteras[[#This Row],[Alto]]),SQRT((TablaFronteras[[#This Row],[Centro X]]-miX)^2+(TablaFronteras[[#This Row],[Centro Y]]-miY)^2),"") ->  | I186: =IF(TablaFronteras[[#This Row],[Frontera]]="","",IFERROR(MATCH(RIGHT(TablaFronteras[[#This Row],[Frontera]],LEN(TablaFronteras[[#This Row],[Frontera]])-IFERROR(FIND(" - ",TablaFronteras[[#This Row],[Frontera]])+2,0)),Datos[País],0),"")) -> 216
A187: Islas Feroe | B187: 346.9181213 | C187: 52.42409515 | D187: 1.26346457 | E187: 2.098818779 | F187: =TablaFronteras[[#This Row],[X]]+TablaFronteras[[#This Row],[Ancho]]/2 -> 347.5498536 | G187: =TablaFronteras[[#This Row],[Y]]+TablaFronteras[[#This Row],[Alto]]/2 -> 53.47350454 | H187: =IF(AND(TablaFronteras[[#This Row],[Fila]]<>"",TablaFronteras[[#This Row],[X]]<miX,miX<TablaFronteras[[#This Row],[X]]+TablaFronteras[[#This Row],[Ancho]],TablaFronteras[[#This Row],[Y]]<miY,miY<TablaFronteras[[#This Row],[Y]]+TablaFronteras[[#This Row],[Alto]]),SQRT((TablaFronteras[[#This Row],[Centro X]]-miX)^2+(TablaFronteras[[#This Row],[Centro Y]]-miY)^2),"") ->  | I187: =IF(TablaFronteras[[#This Row],[Frontera]]="","",IFERROR(MATCH(RIGHT(TablaFronteras[[#This Row],[Frontera]],LEN(TablaFronteras[[#This Row],[Frontera]])-IFERROR(FIND(" - ",TablaFronteras[[#This Row],[Frontera]])+2,0)),Datos[País],0),"")) -> 122
A188: Nueva Caledonia | B188: 681.442688 | C188: 247.0303955 | D188: 15.38826752 | E188: 8.539842606 | F188: =TablaFronteras[[#This Row],[X]]+TablaFronteras[[#This Row],[Ancho]]/2 -> 689.1368217 | G188: =TablaFronteras[[#This Row],[Y]]+TablaFronteras[[#This Row],[Alto]]/2 -> 251.3003168 | H188: =IF(AND(TablaFronteras[[#This Row],[Fila]]<>"",TablaFronteras[[#This Row],[X]]<miX,miX<TablaFronteras[[#This Row],[X]]+TablaFronteras[[#This Row],[Ancho]],TablaFronteras[[#This Row],[Y]]<miY,miY<TablaFronteras[[#This Row],[Y]]+TablaFronteras[[#This Row],[Alto]]),SQRT((TablaFronteras[[#This Row],[Centro X]]-miX)^2+(TablaFronteras[[#This Row],[Centro Y]]-miY)^2),"") ->  | I188: =IF(TablaFronteras[[#This Row],[Frontera]]="","",IFERROR(MATCH(RIGHT(TablaFronteras[[#This Row],[Frontera]],LEN(TablaFronteras[[#This Row],[Frontera]])-IFERROR(FIND(" - ",TablaFronteras[[#This Row],[Frontera]])+2,0)),Datos[País],0),"")) -> 185
A189: Vanuatu | B189: 696.9837036 | C189: 233.700943 | D189: 4.220157623 | E189: 15.83590508 | F189: =TablaFronteras[[#This Row],[X]]+TablaFronteras[[#This Row],[Ancho]]/2 -> 699.0937824 | G189: =TablaFronteras[[#This Row],[Y]]+TablaFronteras[[#This Row],[Alto]]/2 -> 241.6188955 | H189: =IF(AND(TablaFronteras[[#This Row],[Fila]]<>"",TablaFronteras[[#This Row],[X]]<miX,miX<TablaFronteras[[#This Row],[X]]+TablaFronteras[[#This Row],[Ancho]],TablaFronteras[[#This Row],[Y]]<miY,miY<TablaFronteras[[#This Row],[Y]]+TablaFronteras[[#This Row],[Alto]]),SQRT((TablaFronteras[[#This Row],[Centro X]]-miX)^2+(TablaFronteras[[#This Row],[Centro Y]]-miY)^2),"") ->  | I189: =IF(TablaFronteras[[#This Row],[Frontera]]="","",IFERROR(MATCH(RIGHT(TablaFronteras[[#This Row],[Frontera]],LEN(TablaFronteras[[#This Row],[Frontera]])-IFERROR(FIND(" - ",TablaFronteras[[#This Row],[Frontera]])+2,0)),Datos[País],0),"")) -> 269
A190: Fiyi | B190: 718.1531982 | C190: 239.6488953 | D190: 6.235433102 | E190: 7.358503819 | F190: =TablaFronteras[[#This Row],[X]]+TablaFronteras[[#This Row],[Ancho]]/2 -> 721.2709148 | G190: =TablaFronteras[[#This Row],[Y]]+TablaFronteras[[#This Row],[Alto]]/2 -> 243.3281472 | H190: =IF(AND(TablaFronteras[[#This Row],[Fila]]<>"",TablaFronteras[[#This Row],[X]]<miX,miX<TablaFronteras[[#This Row],[X]]+TablaFronteras[[#This Row],[Ancho]],TablaFronteras[[#This Row],[Y]]<miY,miY<TablaFronteras[[#This Row],[Y]]+TablaFronteras[[#This Row],[Alto]]),SQRT((TablaFronteras[[#This Row],[Centro X]]-miX)^2+(TablaFronteras[[#This Row],[Centro Y]]-miY)^2),"") ->  | I190: =IF(TablaFronteras[[#This Row],[Frontera]]="","",IFERROR(MATCH(RIGHT(TablaFronteras[[#This Row],[Frontera]],LEN(TablaFronteras[[#This Row],[Frontera]])-IFERROR(FIND(" - ",TablaFronteras[[#This Row],[Frontera]])+2,0)),Datos[País],0),"")) -> 81
A191: Tonga | B191: 730.9012451 | C191: 245.58992 | D191: 4.82047224 | E191: 7.073071003 | F191: =TablaFronteras[[#This Row],[X]]+TablaFronteras[[#This Row],[Ancho]]/2 -> 733.3114812 | G191: =TablaFronteras[[#This Row],[Y]]+TablaFronteras[[#This Row],[Alto]]/2 -> 249.1264555 | H191: =IF(AND(TablaFronteras[[#This Row],[Fila]]<>"",TablaFronteras[[#This Row],[X]]<miX,miX<TablaFronteras[[#This Row],[X]]+TablaFronteras[[#This Row],[Ancho]],TablaFronteras[[#This Row],[Y]]<miY,miY<TablaFronteras[[#This Row],[Y]]+TablaFronteras[[#This Row],[Alto]]),SQRT((TablaFronteras[[#This Row],[Centro X]]-miX)^2+(TablaFronteras[[#This Row],[Centro Y]]-miY)^2),"") ->  | I191: =IF(TablaFronteras[[#This Row],[Frontera]]="","",IFERROR(MATCH(RIGHT(TablaFronteras[[#This Row],[Frontera]],LEN(TablaFronteras[[#This Row],[Frontera]])-IFERROR(FIND(" - ",TablaFronteras[[#This Row],[Frontera]])+2,0)),Datos[País],0),"")) -> 258
A192: Timor Oriental | B192: 611.0870361 | C192: 220.6811829 | D192: 7.285275459 | E192: 3.147243977 | F192: =TablaFronteras[[#This Row],[X]]+TablaFronteras[[#This Row],[Ancho]]/2 -> 614.7296739 | G192: =TablaFronteras[[#This Row],[Y]]+TablaFronteras[[#This Row],[Alto]]/2 -> 222.2548048 | H192: =IF(AND(TablaFronteras[[#This Row],[Fila]]<>"",TablaFronteras[[#This Row],[X]]<miX,miX<TablaFronteras[[#This Row],[X]]+TablaFronteras[[#This Row],[Ancho]],TablaFronteras[[#This Row],[Y]]<miY,miY<TablaFronteras[[#This Row],[Y]]+TablaFronteras[[#This Row],[Alto]]),SQRT((TablaFronteras[[#This Row],[Centro X]]-miX)^2+(TablaFronteras[[#This Row],[Centro Y]]-miY)^2),"") ->  | I192: =IF(TablaFronteras[[#This Row],[Frontera]]="","",IFERROR(MATCH(RIGHT(TablaFronteras[[#This Row],[Frontera]],LEN(TablaFronteras[[#This Row],[Frontera]])-IFERROR(FIND(" - ",TablaFronteras[[#This Row],[Frontera]])+2,0)),Datos[País],0),"")) -> 255
A193: Líbano | B193: 424.4041748 | C193: 116.6595306 | D193: 2.551417351 | E193: 3.759842634 | F193: =TablaFronteras[[#This Row],[X]]+TablaFronteras[[#This Row],[Ancho]]/2 -> 425.6798835 | G193: =TablaFronteras[[#This Row],[Y]]+TablaFronteras[[#This Row],[Alto]]/2 -> 118.539452 | H193: =IF(AND(TablaFronteras[[#This Row],[Fila]]<>"",TablaFronteras[[#This Row],[X]]<miX,miX<TablaFronteras[[#This Row],[X]]+TablaFronteras[[#This Row],[Ancho]],TablaFronteras[[#This Row],[Y]]<miY,miY<TablaFronteras[[#This Row],[Y]]+TablaFronteras[[#This Row],[Alto]]),SQRT((TablaFronteras[[#This Row],[Centro X]]-miX)^2+(TablaFronteras[[#This Row],[Centro Y]]-miY)^2),"") ->  | I193: =IF(TablaFronteras[[#This Row],[Frontera]]="","",IFERROR(MATCH(RIGHT(TablaFronteras[[#This Row],[Frontera]],LEN(TablaFronteras[[#This Row],[Frontera]])-IFERROR(FIND(" - ",TablaFronteras[[#This Row],[Frontera]])+2,0)),Datos[País],0),"")) -> 154
A194: Palestina | B194: 421.9736938 | C194: 121.920784 | D194: 3.072913408 | E194: 3.187322855 | F194: =TablaFronteras[[#This Row],[X]]+TablaFronteras[[#This Row],[Ancho]]/2 -> 423.5101506 | G194: =TablaFronteras[[#This Row],[Y]]+TablaFronteras[[#This Row],[Alto]]/2 -> 123.5144454 | H194: =IF(AND(TablaFronteras[[#This Row],[Fila]]<>"",TablaFronteras[[#This Row],[X]]<miX,miX<TablaFronteras[[#This Row],[X]]+TablaFronteras[[#This Row],[Ancho]],TablaFronteras[[#This Row],[Y]]<miY,miY<TablaFronteras[[#This Row],[Y]]+TablaFronteras[[#This Row],[Alto]]),SQRT((TablaFronteras[[#This Row],[Centro X]]-miX)^2+(TablaFronteras[[#This Row],[Centro Y]]-miY)^2),"") ->  | I194: =IF(TablaFronteras[[#This Row],[Frontera]]="","",IFERROR(MATCH(RIGHT(TablaFronteras[[#This Row],[Frontera]],LEN(TablaFronteras[[#This Row],[Frontera]])-IFERROR(FIND(" - ",TablaFronteras[[#This Row],[Frontera]])+2,0)),Datos[País],0),"")) -> 192
A195: Islas Malvinas | B195: 248.1271667 | C195: 323.7913513 | D195: 5.743071079 | E195: 2.660551071 | F195: =TablaFronteras[[#This Row],[X]]+TablaFronteras[[#This Row],[Ancho]]/2 -> 250.9987023 | G195: =TablaFronteras[[#This Row],[Y]]+TablaFronteras[[#This Row],[Alto]]/2 -> 325.1216269 | H195: =IF(AND(TablaFronteras[[#This Row],[Fila]]<>"",TablaFronteras[[#This Row],[X]]<miX,miX<TablaFronteras[[#This Row],[X]]+TablaFronteras[[#This Row],[Ancho]],TablaFronteras[[#This Row],[Y]]<miY,miY<TablaFronteras[[#This Row],[Y]]+TablaFronteras[[#This Row],[Alto]]),SQRT((TablaFronteras[[#This Row],[Centro X]]-miX)^2+(TablaFronteras[[#This Row],[Centro Y]]-miY)^2),"") ->  | I195: =IF(TablaFronteras[[#This Row],[Frontera]]="","",IFERROR(MATCH(RIGHT(TablaFronteras[[#This Row],[Frontera]],LEN(TablaFronteras[[#This Row],[Frontera]])-IFERROR(FIND(" - ",TablaFronteras[[#This Row],[Frontera]])+2,0)),Datos[País],0),"")) -> 124
A196: Gambia | B196: 319.8961487 | C196: 167.0037842 | D196: 5.563700676 | E196: 1.917007923 | F196: =TablaFronteras[[#This Row],[X]]+TablaFronteras[[#This Row],[Ancho]]/2 -> 322.677999 | G196: =TablaFronteras[[#This Row],[Y]]+TablaFronteras[[#This Row],[Alto]]/2 -> 167.9622881 | H196: =IF(AND(TablaFronteras[[#This Row],[Fila]]<>"",TablaFronteras[[#This Row],[X]]<miX,miX<TablaFronteras[[#This Row],[X]]+TablaFronteras[[#This Row],[Ancho]],TablaFronteras[[#This Row],[Y]]<miY,miY<TablaFronteras[[#This Row],[Y]]+TablaFronteras[[#This Row],[Alto]]),SQRT((TablaFronteras[[#This Row],[Centro X]]-miX)^2+(TablaFronteras[[#This Row],[Centro Y]]-miY)^2),"") ->  | I196: =IF(TablaFronteras[[#This Row],[Frontera]]="","",IFERROR(MATCH(RIGHT(TablaFronteras[[#This Row],[Frontera]],LEN(TablaFronteras[[#This Row],[Frontera]])-IFERROR(FIND(" - ",TablaFronteras[[#This Row],[Frontera]])+2,0)),Datos[País],0),"")) -> 84
A197: Luxemburgo | B197: 367.5214844 | C197: 79.91850281 | D197: 1.384803176 | E197: 1.670314908 | F197: =TablaFronteras[[#This Row],[X]]+TablaFronteras[[#This Row],[Ancho]]/2 -> 368.213886 | G197: =TablaFronteras[[#This Row],[Y]]+TablaFronteras[[#This Row],[Alto]]/2 -> 80.75366026 | H197: =IF(AND(TablaFronteras[[#This Row],[Fila]]<>"",TablaFronteras[[#This Row],[X]]<miX,miX<TablaFronteras[[#This Row],[X]]+TablaFronteras[[#This Row],[Ancho]],TablaFronteras[[#This Row],[Y]]<miY,miY<TablaFronteras[[#This Row],[Y]]+TablaFronteras[[#This Row],[Alto]]),SQRT((TablaFronteras[[#This Row],[Centro X]]-miX)^2+(TablaFronteras[[#This Row],[Centro Y]]-miY)^2),"") ->  | I197: =IF(TablaFronteras[[#This Row],[Frontera]]="","",IFERROR(MATCH(RIGHT(TablaFronteras[[#This Row],[Frontera]],LEN(TablaFronteras[[#This Row],[Frontera]])-IFERROR(FIND(" - ",TablaFronteras[[#This Row],[Frontera]])+2,0)),Datos[País],0),"")) -> 153
A198: Andorra | B198: 358.7071533 | C198: 97.58685303 | D198: 0.6911811233 | E198: 0.4897637665 | F198: =TablaFronteras[[#This Row],[X]]+TablaFronteras[[#This Row],[Ancho]]/2 -> 359.0527439 | G198: =TablaFronteras[[#This Row],[Y]]+TablaFronteras[[#This Row],[Alto]]/2 -> 97.83173491 | H198: =IF(AND(TablaFronteras[[#This Row],[Fila]]<>"",TablaFronteras[[#This Row],[X]]<miX,miX<TablaFronteras[[#This Row],[X]]+TablaFronteras[[#This Row],[Ancho]],TablaFronteras[[#This Row],[Y]]<miY,miY<TablaFronteras[[#This Row],[Y]]+TablaFronteras[[#This Row],[Alto]]),SQRT((TablaFronteras[[#This Row],[Centro X]]-miX)^2+(TablaFronteras[[#This Row],[Centro Y]]-miY)^2),"") ->  | I198: =IF(TablaFronteras[[#This Row],[Frontera]]="","",IFERROR(MATCH(RIGHT(TablaFronteras[[#This Row],[Frontera]],LEN(TablaFronteras[[#This Row],[Frontera]])-IFERROR(FIND(" - ",TablaFronteras[[#This Row],[Frontera]])+2,0)),Datos[País],0),"")) -> 6
A199: Liechtenstein | B199: 373.546936 | C199: 86.63700867 | D199: 0.2483464628 | E199: 0.5101574659 | F199: =TablaFronteras[[#This Row],[X]]+TablaFronteras[[#This Row],[Ancho]]/2 -> 373.6711093 | G199: =TablaFronteras[[#This Row],[Y]]+TablaFronteras[[#This Row],[Alto]]/2 -> 86.8920874 | H199: =IF(AND(TablaFronteras[[#This Row],[Fila]]<>"",TablaFronteras[[#This Row],[X]]<miX,miX<TablaFronteras[[#This Row],[X]]+TablaFronteras[[#This Row],[Ancho]],TablaFronteras[[#This Row],[Y]]<miY,miY<TablaFronteras[[#This Row],[Y]]+TablaFronteras[[#This Row],[Alto]]),SQRT((TablaFronteras[[#This Row],[Centro X]]-miX)^2+(TablaFronteras[[#This Row],[Centro Y]]-miY)^2),"") ->  | I199: =IF(TablaFronteras[[#This Row],[Frontera]]="","",IFERROR(MATCH(RIGHT(TablaFronteras[[#This Row],[Frontera]],LEN(TablaFronteras[[#This Row],[Frontera]])-IFERROR(FIND(" - ",TablaFronteras[[#This Row],[Frontera]])+2,0)),Datos[País],0),"")) -> 151
A200: San Marino | B200: 379.1040039 | C200: 94.7689743 | D200: 0.3192125857 | E200: 0.3139370084 | F200: =TablaFronteras[[#This Row],[X]]+TablaFronteras[[#This Row],[Ancho]]/2 -> 379.2636102 | G200: =TablaFronteras[[#This Row],[Y]]+TablaFronteras[[#This Row],[Alto]]/2 -> 94.92594281 | H200: =IF(AND(TablaFronteras[[#This Row],[Fila]]<>"",TablaFronteras[[#This Row],[X]]<miX,miX<TablaFronteras[[#This Row],[X]]+TablaFronteras[[#This Row],[Ancho]],TablaFronteras[[#This Row],[Y]]<miY,miY<TablaFronteras[[#This Row],[Y]]+TablaFronteras[[#This Row],[Alto]]),SQRT((TablaFronteras[[#This Row],[Centro X]]-miX)^2+(TablaFronteras[[#This Row],[Centro Y]]-miY)^2),"") ->  | I200: =IF(TablaFronteras[[#This Row],[Frontera]]="","",IFERROR(MATCH(RIGHT(TablaFronteras[[#This Row],[Frontera]],LEN(TablaFronteras[[#This Row],[Frontera]])-IFERROR(FIND(" - ",TablaFronteras[[#This Row],[Frontera]])+2,0)),Datos[País],0),"")) -> 223
... 45 more rows

Sheet Banderas
A1: Continente | B1: País | C1: Código | D1: Bandera
A2: Asia | B2: Afganistán | C2: af | F2: =MATCH(TablaBanderas[[#This Row],[País]],Fronteras!$A:$A,0) -> 111
A3: Europa | B3: Albania | C3: al | F3: =MATCH(TablaBanderas[[#This Row],[País]],Fronteras!$A:$A,0) -> 8
A4: Europa | B4: Alemania | C4: de | F4: =MATCH(TablaBanderas[[#This Row],[País]],Fronteras!$A:$A,0) -> 32
A5: Europa | B5: Andorra | C5: ad | F5: =MATCH(TablaBanderas[[#This Row],[País]],Fronteras!$A:$A,0) -> 198
A6: África | B6: Angola | C6: ao | F6: =MATCH(TablaBanderas[[#This Row],[País]],Fronteras!$A:$A,0) -> 92
A7: América del Norte | B7: Anguila | C7: ai | F7: =MATCH(TablaBanderas[[#This Row],[País]],Fronteras!$A:$A,0) -> 216
A8: Antártida | B8: Antártida | C8: aq | F8: =MATCH(TablaBanderas[[#This Row],[País]],Fronteras!$A:$A,0) -> 
A9: América del Norte | B9: Antigua y Barbuda | C9: ag | F9: =MATCH(TablaBanderas[[#This Row],[País]],Fronteras!$A:$A,0) -> 164
A10: Asia | B10: Arabia Saudita | C10: sa | F10: =MATCH(TablaBanderas[[#This Row],[País]],Fronteras!$A:$A,0) -> 133
A11: África | B11: Argelia | C11: dz | F11: =MATCH(TablaBanderas[[#This Row],[País]],Fronteras!$A:$A,0) -> 57
A12: América del Sur | B12: Argentina | C12: ar | F12: =MATCH(TablaBanderas[[#This Row],[País]],Fronteras!$A:$A,0) -> 163
A13: Asia | B13: Armenia | C13: am | F13: =MATCH(TablaBanderas[[#This Row],[País]],Fronteras!$A:$A,0) -> 114
A14: América del Norte | B14: Aruba | C14: aw | F14: =MATCH(TablaBanderas[[#This Row],[País]],Fronteras!$A:$A,0) -> 176
A15: Oceanía | B15: Australia | C15: au | F15: =MATCH(TablaBanderas[[#This Row],[País]],Fronteras!$A:$A,0) -> 12
A16: Europa | B16: Austria | C16: at | F16: =MATCH(TablaBanderas[[#This Row],[País]],Fronteras!$A:$A,0) -> 34
A17: Asia | B17: Azerbaiyán | C17: az | F17: =MATCH(TablaBanderas[[#This Row],[País]],Fronteras!$A:$A,0) -> 113
A18: América del Norte | B18: Bahamas | C18: bs | F18: =MATCH(TablaBanderas[[#This Row],[País]],Fronteras!$A:$A,0) -> 178
A19: Asia | B19: Bangladés | C19: bd | F19: =MATCH(TablaBanderas[[#This Row],[País]],Fronteras!$A:$A,0) -> 118
A20: América del Norte | B20: Barbados | C20: bb | F20: =MATCH(TablaBanderas[[#This Row],[País]],Fronteras!$A:$A,0) -> 172
A21: Asia | B21: Baréin | C21: bh | F21: =MATCH(TablaBanderas[[#This Row],[País]],Fronteras!$A:$A,0) -> 134
A22: Europa | B22: Bélgica | C22: be | F22: =MATCH(TablaBanderas[[#This Row],[País]],Fronteras!$A:$A,0) -> 29
A23: América del Norte | B23: Belice | C23: bz | F23: =MATCH(TablaBanderas[[#This Row],[País]],Fronteras!$A:$A,0) -> 144
A24: África | B24: Benín | C24: bj | F24: =MATCH(TablaBanderas[[#This Row],[País]],Fronteras!$A:$A,0) -> 71
A25: Europa | B25: Bielorrusia | C25: by | F25: =MATCH(TablaBanderas[[#This Row],[País]],Fronteras!$A:$A,0) -> 48
A26: Asia | B26: Birmania | C26: mm | F26: =MATCH(TablaBanderas[[#This Row],[País]],Fronteras!$A:$A,0) -> 119
A27: América del Sur | B27: Bolivia | C27: bo | F27: =MATCH(TablaBanderas[[#This Row],[País]],Fronteras!$A:$A,0) -> 159
A28: Europa | B28: Bosnia y Herzegovina | C28: ba | F28: =MATCH(TablaBanderas[[#This Row],[País]],Fronteras!$A:$A,0) -> 42
A29: África | B29: Botsuana | C29: bw | F29: =MATCH(TablaBanderas[[#This Row],[País]],Fronteras!$A:$A,0) -> 91
A30: América del Sur | B30: Brasil | C30: br | F30: =MATCH(TablaBanderas[[#This Row],[País]],Fronteras!$A:$A,0) -> 156
A31: Asia | B31: Brunéi | C31: bn | F31: =MATCH(TablaBanderas[[#This Row],[País]],Fronteras!$A:$A,0) -> 124
A32: Europa | B32: Bulgaria | C32: bg | F32: =MATCH(TablaBanderas[[#This Row],[País]],Fronteras!$A:$A,0) -> 9
A33: África | B33: Burkina Faso | C33: bf | F33: =MATCH(TablaBanderas[[#This Row],[País]],Fronteras!$A:$A,0) -> 68
A34: África | B34: Burundi | C34: bi | F34: =MATCH(TablaBanderas[[#This Row],[País]],Fronteras!$A:$A,0) -> 84
A35: Asia | B35: Bután | C35: bt | F35: =MATCH(TablaBanderas[[#This Row],[País]],Fronteras!$A:$A,0) -> 117
A36: África | B36: Cabo Verde | C36: cv | F36: =MATCH(TablaBanderas[[#This Row],[País]],Fronteras!$A:$A,0) -> 182
A37: Asia | B37: Camboya | C37: kh | F37: =MATCH(TablaBanderas[[#This Row],[País]],Fronteras!$A:$A,0) -> 140
A38: África | B38: Camerún | C38: cm | F38: =MATCH(TablaBanderas[[#This Row],[País]],Fronteras!$A:$A,0) -> 93
A39: América del Norte | B39: Canadá | C39: ca | F39: =MATCH(TablaBanderas[[#This Row],[País]],Fronteras!$A:$A,0) -> 15
A40: América del Sur | B40: Caribe Neerlandés | C40: bq | F40: =MATCH(TablaBanderas[[#This Row],[País]],Fronteras!$A:$A,0) -> 207
A41: Asia | B41: Catar | C41: qa | F41: =MATCH(TablaBanderas[[#This Row],[País]],Fronteras!$A:$A,0) -> 135
A42: África | B42: Chad | C42: td | F42: =MATCH(TablaBanderas[[#This Row],[País]],Fronteras!$A:$A,0) -> 74
A43: América del Sur | B43: Chile | C43: cl | F43: =MATCH(TablaBanderas[[#This Row],[País]],Fronteras!$A:$A,0) -> 162
A44: Asia | B44: China | C44: cn | F44: =MATCH(TablaBanderas[[#This Row],[País]],Fronteras!$A:$A,0) -> 11
A45: Asia | B45: Chipre | C45: cy | F45: =MATCH(TablaBanderas[[#This Row],[País]],Fronteras!$A:$A,0) -> 184
A46: América del Sur | B46: Colombia | C46: co | F46: =MATCH(TablaBanderas[[#This Row],[País]],Fronteras!$A:$A,0) -> 151
A47: África | B47: Comoras | C47: km | F47: =MATCH(TablaBanderas[[#This Row],[País]],Fronteras!$A:$A,0) -> 233
A48: Asia | B48: Corea del Norte | C48: kp | F48: =MATCH(TablaBanderas[[#This Row],[País]],Fronteras!$A:$A,0) -> 104
A49: Asia | B49: Corea del Sur | C49: kr | F49: =MATCH(TablaBanderas[[#This Row],[País]],Fronteras!$A:$A,0) -> 105
A50: África | B50: Costa de Marfil | C50: ci | F50: =MATCH(TablaBanderas[[#This Row],[País]],Fronteras!$A:$A,0) -> 67
A51: América del Norte | B51: Costa Rica | C51: cr | F51: =MATCH(TablaBanderas[[#This Row],[País]],Fronteras!$A:$A,0) -> 149
A52: Europa | B52: Croacia | C52: hr | F52: =MATCH(TablaBanderas[[#This Row],[País]],Fronteras!$A:$A,0) -> 41
A53: América del Norte | B53: Cuba | C53: cu | F53: =MATCH(TablaBanderas[[#This Row],[País]],Fronteras!$A:$A,0) -> 142
A54: América del Norte | B54: Curazao | C54: cw | F54: =MATCH(TablaBanderas[[#This Row],[País]],Fronteras!$A:$A,0) -> 206
A55: Europa | B55: Dinamarca | C55: dk | F55: =MATCH(TablaBanderas[[#This Row],[País]],Fronteras!$A:$A,0) -> 36
A56: América del Norte | B56: Dominica | C56: dm | F56: =MATCH(TablaBanderas[[#This Row],[País]],Fronteras!$A:$A,0) -> 171
A57: América del Sur | B57: Ecuador | C57: ec | F57: =MATCH(TablaBanderas[[#This Row],[País]],Fronteras!$A:$A,0) -> 157
A58: África | B58: Egipto | C58: eg | F58: =MATCH(TablaBanderas[[#This Row],[País]],Fronteras!$A:$A,0) -> 60
A59: América del Norte | B59: El Salvador | C59: sv | F59: =MATCH(TablaBanderas[[#This Row],[País]],Fronteras!$A:$A,0) -> 146
A60: Asia | B60: Emiratos Árabes Unidos | C60: ae | F60: =MATCH(TablaBanderas[[#This Row],[País]],Fronteras!$A:$A,0) -> 132
A61: África | B61: Eritrea | C61: er | F61: =MATCH(TablaBanderas[[#This Row],[País]],Fronteras!$A:$A,0) -> 77
A62: Europa | B62: Eslovaquia | C62: sk | F62: =MATCH(TablaBanderas[[#This Row],[País]],Fronteras!$A:$A,0) -> 38
A63: Europa | B63: Eslovenia | C63: si | F63: =MATCH(TablaBanderas[[#This Row],[País]],Fronteras!$A:$A,0) -> 40
A64: Europa | B64: España | C64: es | F64: =MATCH(TablaBanderas[[#This Row],[País]],Fronteras!$A:$A,0) -> 27
A65: América del Norte | B65: Estados Unidos | C65: us | F65: =MATCH(TablaBanderas[[#This Row],[País]],Fronteras!$A:$A,0) -> 16
A66: Europa | B66: Estonia | C66: ee | F66: =MATCH(TablaBanderas[[#This Row],[País]],Fronteras!$A:$A,0) -> 52
A67: África | B67: Etiopía | C67: et | F67: =MATCH(TablaBanderas[[#This Row],[País]],Fronteras!$A:$A,0) -> 79
A68: Asia | B68: Filipinas | C68: ph | F68: =MATCH(TablaBanderas[[#This Row],[País]],Fronteras!$A:$A,0) -> 123
A69: Europa | B69: Finlandia | C69: fi | F69: =MATCH(TablaBanderas[[#This Row],[País]],Fronteras!$A:$A,0) -> 53
A70: Oceanía | B70: Fiyi | C70: fj | F70: =MATCH(TablaBanderas[[#This Row],[País]],Fronteras!$A:$A,0) -> 190
A71: Europa | B71: Francia | C71: fr | F71: =MATCH(TablaBanderas[[#This Row],[País]],Fronteras!$A:$A,0) -> 25
A72: África | B72: Gabón | C72: ga | F72: =MATCH(TablaBanderas[[#This Row],[País]],Fronteras!$A:$A,0) -> 99
A73: África | B73: Gambia | C73: gm | F73: =MATCH(TablaBanderas[[#This Row],[País]],Fronteras!$A:$A,0) -> 196
A74: Asia | B74: Georgia | C74: ge | F74: =MATCH(TablaBanderas[[#This Row],[País]],Fronteras!$A:$A,0) -> 112
A75: África | B75: Ghana | C75: gh | F75: =MATCH(TablaBanderas[[#This Row],[País]],Fronteras!$A:$A,0) -> 69
A76: Europa | B76: Gibraltar | C76: gi | F76: =MATCH(TablaBanderas[[#This Row],[País]],Fronteras!$A:$A,0) -> 201
A77: América del Norte | B77: Granada | C77: gd | F77: =MATCH(TablaBanderas[[#This Row],[País]],Fronteras!$A:$A,0) -> 174
A78: Europa | B78: Grecia | C78: gr | F78: =MATCH(TablaBanderas[[#This Row],[País]],Fronteras!$A:$A,0) -> 45
A79: América del Norte | B79: Groenlandia | C79: gl | F79: =MATCH(TablaBanderas[[#This Row],[País]],Fronteras!$A:$A,0) -> 14
A80: América del Norte | B80: Guadalupe | C80: gp | F80: =MATCH(TablaBanderas[[#This Row],[País]],Fronteras!$A:$A,0) -> 168
A81: Oceanía | B81: Guam | C81: gu | F81: =MATCH(TablaBanderas[[#This Row],[País]],Fronteras!$A:$A,0) -> 223
A82: América del Norte | B82: Guatemala | C82: gt | F82: =MATCH(TablaBanderas[[#This Row],[País]],Fronteras!$A:$A,0) -> 145
A83: América del Sur | B83: Guayana Francesa | C83: gf | F83: =MATCH(TablaBanderas[[#This Row],[País]],Fronteras!$A:$A,0) -> 155
A84: Europa | B84: Guernsey | C84: gg | F84: =MATCH(TablaBanderas[[#This Row],[País]],Fronteras!$A:$A,0) -> 211
A85: África | B85: Guinea | C85: gn | F85: =MATCH(TablaBanderas[[#This Row],[País]],Fronteras!$A:$A,0) -> 64
A86: África | B86: Guinea Ecuatorial | C86: gq | F86: =MATCH(TablaBanderas[[#This Row],[País]],Fronteras!$A:$A,0) -> 100
A87: África | B87: Guinea-Bisáu | C87: gw | F87: =MATCH(TablaBanderas[[#This Row],[País]],Fronteras!$A:$A,0) -> 63
A88: América del Sur | B88: Guyana | C88: gy | F88: =MATCH(TablaBanderas[[#This Row],[País]],Fronteras!$A:$A,0) -> 153
A89: América del Norte | B89: Haití | C89: ht | F89: =MATCH(TablaBanderas[[#This Row],[País]],Fronteras!$A:$A,0) -> 180
A90: América del Norte | B90: Honduras | C90: hn | F90: =MATCH(TablaBanderas[[#This Row],[País]],Fronteras!$A:$A,0) -> 147
A91: Asia | B91: Hong Kong | C91: hk | F91: =MATCH(TablaBanderas[[#This Row],[País]],Fronteras!$A:$A,0) -> 
A92: Europa | B92: Hungría | C92: hu | F92: =MATCH(TablaBanderas[[#This Row],[País]],Fronteras!$A:$A,0) -> 39
A93: Asia | B93: India | C93: in | F93: =MATCH(TablaBanderas[[#This Row],[País]],Fronteras!$A:$A,0) -> 17
A94: Asia | B94: Indonesia | C94: id | F94: =MATCH(TablaBanderas[[#This Row],[País]],Fronteras!$A:$A,0) -> 13
A95: Asia | B95: Irak | C95: iq | F95: =MATCH(TablaBanderas[[#This Row],[País]],Fronteras!$A:$A,0) -> 136
A96: Asia | B96: Irán | C96: ir | F96: =MATCH(TablaBanderas[[#This Row],[País]],Fronteras!$A:$A,0) -> 106
A97: Europa | B97: Irlanda | C97: ie | F97: =MATCH(TablaBanderas[[#This Row],[País]],Fronteras!$A:$A,0) -> 30
A98: Antártida | B98: Isla Bouvet | C98: bv | F98: =MATCH(TablaBanderas[[#This Row],[País]],Fronteras!$A:$A,0) -> 
A99: Europa | B99: Isla de Man | C99: im | F99: =MATCH(TablaBanderas[[#This Row],[País]],Fronteras!$A:$A,0) -> 239
A100: Oceanía | B100: Isla de Navidad | C100: cx | F100: =MATCH(TablaBanderas[[#This Row],[País]],Fronteras!$A:$A,0) -> 
A101: Oceanía | B101: Isla Heard e Islas McDonald | C101: hm | F101: =MATCH(TablaBanderas[[#This Row],[País]],Fronteras!$A:$A,0) -> 
A102: Oceanía | B102: Isla Norfolk | C102: nf | F102: =MATCH(TablaBanderas[[#This Row],[País]],Fronteras!$A:$A,0) -> 
A103: Europa | B103: Islandia | C103: is | F103: =MATCH(TablaBanderas[[#This Row],[País]],Fronteras!$A:$A,0) -> 23
A104: Europa | B104: Islas Åland | C104: ax | F104: =MATCH(TablaBanderas[[#This Row],[País]],Fronteras!$A:$A,0) -> 
A105: América del Norte | B105: Bermudas | C105: bm | F105: =MATCH(TablaBanderas[[#This Row],[País]],Fronteras!$A:$A,0) -> 212
A106: América del Norte | B106: Islas Caimán | C106: ky | F106: =MATCH(TablaBanderas[[#This Row],[País]],Fronteras!$A:$A,0) -> 177
A107: Oceanía | B107: Islas Cocos | C107: cc | F107: =MATCH(TablaBanderas[[#This Row],[País]],Fronteras!$A:$A,0) -> 
A108: Oceanía | B108: Islas Cook | C108: ck | F108: =MATCH(TablaBanderas[[#This Row],[País]],Fronteras!$A:$A,0) -> 235
A109: Europa | B109: Islas del Canal | C109: je | F109: =MATCH(TablaBanderas[[#This Row],[País]],Fronteras!$A:$A,0) -> 
A110: Europa | B110: Islas Feroe | C110: fo | F110: =MATCH(TablaBanderas[[#This Row],[País]],Fronteras!$A:$A,0) -> 187
A111: América del Sur | B111: Islas Georgias y Sandwich | C111: gs | F111: =MATCH(TablaBanderas[[#This Row],[País]],Fronteras!$A:$A,0) -> 229
A112: América del Sur | B112: Islas Malvinas | C112: fk | F112: =MATCH(TablaBanderas[[#This Row],[País]],Fronteras!$A:$A,0) -> 195
A113: Oceanía | B113: Islas Marianas del Norte | C113: mp | F113: =MATCH(TablaBanderas[[#This Row],[País]],Fronteras!$A:$A,0) -> 215
A114: Oceanía | B114: Islas Marshall | C114: mh | F114: =MATCH(TablaBanderas[[#This Row],[País]],Fronteras!$A:$A,0) -> 218
A115: Oceanía | B115: Islas Pitcairn | C115: pn | F115: =MATCH(TablaBanderas[[#This Row],[País]],Fronteras!$A:$A,0) -> 234
A116: Oceanía | B116: Islas Salomón | C116: sb | F116: =MATCH(TablaBanderas[[#This Row],[País]],Fronteras!$A:$A,0) -> 127
A117: América del Norte | B117: Islas Turcas y Caicos | C117: tc | F117: =MATCH(TablaBanderas[[#This Row],[País]],Fronteras!$A:$A,0) -> 179
A118: Oceanía | B118: Islas Ultramarinas Menores de los Estados Unidos | C118: um | F118: =MATCH(TablaBanderas[[#This Row],[País]],Fronteras!$A:$A,0) -> 
A119: América del Norte | B119: Islas Vírgenes Británicas | C119: vg | F119: =MATCH(TablaBanderas[[#This Row],[País]],Fronteras!$A:$A,0) -> 165
A120: América del Norte | B120: Islas Vírgenes de Estados Unidos | C120: vi | F120: =MATCH(TablaBanderas[[#This Row],[País]],Fronteras!$A:$A,0) -> 166
A121: Oceanía | B121: Islas Wallis y Futuna | C121: wf | F121: =MATCH(TablaBanderas[[#This Row],[País]],Fronteras!$A:$A,0) -> 
A122: Asia | B122: Israel | C122: il | F122: =MATCH(TablaBanderas[[#This Row],[País]],Fronteras!$A:$A,0) -> 139
A123: Europa | B123: Italia | C123: it | F123: =MATCH(TablaBanderas[[#This Row],[País]],Fronteras!$A:$A,0) -> 26
A124: América del Norte | B124: Jamaica | C124: jm | F124: =MATCH(TablaBanderas[[#This Row],[País]],Fronteras!$A:$A,0) -> 3
A125: Asia | B125: Japón | C125: jp | F125: =MATCH(TablaBanderas[[#This Row],[País]],Fronteras!$A:$A,0) -> 103
A126: Asia | B126: Jordania | C126: jo | F126: =MATCH(TablaBanderas[[#This Row],[País]],Fronteras!$A:$A,0) -> 137
A127: Asia | B127: Kazajistán | C127: kz | F127: =MATCH(TablaBanderas[[#This Row],[País]],Fronteras!$A:$A,0) -> 101
A128: África | B128: Kenia | C128: ke | F128: =MATCH(TablaBanderas[[#This Row],[País]],Fronteras!$A:$A,0) -> 81
A129: Asia | B129: Kirguistán | C129: kg | F129: =MATCH(TablaBanderas[[#This Row],[País]],Fronteras!$A:$A,0) -> 109
A130: Oceanía | B130: Kiribati | C130: ki | F130: =MATCH(TablaBanderas[[#This Row],[País]],Fronteras!$A:$A,0) -> 221
A131: Europa | B131: Kosovo | C131: xk | F131: =MATCH(TablaBanderas[[#This Row],[País]],Fronteras!$A:$A,0) -> 226
A132: Asia | B132: Kuwait | C132: kw | F132: =MATCH(TablaBanderas[[#This Row],[País]],Fronteras!$A:$A,0) -> 204
A133: Asia | B133: Laos | C133: la | F133: =MATCH(TablaBanderas[[#This Row],[País]],Fronteras!$A:$A,0) -> 122
A134: África | B134: Lesoto | C134: ls | F134: =MATCH(TablaBanderas[[#This Row],[País]],Fronteras!$A:$A,0) -> 97
A135: Europa | B135: Letonia | C135: lv | F135: =MATCH(TablaBanderas[[#This Row],[País]],Fronteras!$A:$A,0) -> 51
A136: Asia | B136: Líbano | C136: lb | F136: =MATCH(TablaBanderas[[#This Row],[País]],Fronteras!$A:$A,0) -> 193
A137: África | B137: Liberia | C137: lr | F137: =MATCH(TablaBanderas[[#This Row],[País]],Fronteras!$A:$A,0) -> 66
A138: África | B138: Libia | C138: ly | F138: =MATCH(TablaBanderas[[#This Row],[País]],Fronteras!$A:$A,0) -> 59
A139: Europa | B139: Liechtenstein | C139: li | F139: =MATCH(TablaBanderas[[#This Row],[País]],Fronteras!$A:$A,0) -> 199
A140: Europa | B140: Lituania | C140: lt | F140: =MATCH(TablaBanderas[[#This Row],[País]],Fronteras!$A:$A,0) -> 50
A141: Europa | B141: Luxemburgo | C141: lu | F141: =MATCH(TablaBanderas[[#This Row],[País]],Fronteras!$A:$A,0) -> 197
A142: Asia | B142: Macao | C142: mo | F142: =MATCH(TablaBanderas[[#This Row],[País]],Fronteras!$A:$A,0) -> 
A143: Europa | B143: Macedonia del Norte | C143: mk | F143: =MATCH(TablaBanderas[[#This Row],[País]],Fronteras!$A:$A,0) -> 44
A144: África | B144: Madagascar | C144: mg | F144: =MATCH(TablaBanderas[[#This Row],[País]],Fronteras!$A:$A,0) -> 89
A145: Asia | B145: Malasia | C145: my | F145: =MATCH(TablaBanderas[[#This Row],[País]],Fronteras!$A:$A,0) -> 19
A146: África | B146: Malaui | C146: mw | F146: =MATCH(TablaBanderas[[#This Row],[País]],Fronteras!$A:$A,0) -> 88
A147: Asia | B147: Maldivas | C147: mv | F147: =MATCH(TablaBanderas[[#This Row],[País]],Fronteras!$A:$A,0) -> 220
A148: África | B148: Malí | C148: ml | F148: =MATCH(TablaBanderas[[#This Row],[País]],Fronteras!$A:$A,0) -> 61
A149: Europa | B149: Malta | C149: mt | F149: =MATCH(TablaBanderas[[#This Row],[País]],Fronteras!$A:$A,0) -> 183
A150: África | B150: Marruecos | C150: ma | F150: =MATCH(TablaBanderas[[#This Row],[País]],Fronteras!$A:$A,0) -> 55
A151: América del Norte | B151: Martinica | C151: mq | F151: =MATCH(TablaBanderas[[#This Row],[País]],Fronteras!$A:$A,0) -> 170
A152: África | B152: Mauricio | C152: mu | F152: =MATCH(TablaBanderas[[#This Row],[País]],Fronteras!$A:$A,0) -> 231
A153: África | B153: Mauritania | C153: mr | F153: =MATCH(TablaBanderas[[#This Row],[País]],Fronteras!$A:$A,0) -> 62
A154: África | B154: Mayotte | C154: yt | F154: =MATCH(TablaBanderas[[#This Row],[País]],Fronteras!$A:$A,0) -> 232
A155: América del Norte | B155: México | C155: mx | F155: =MATCH(TablaBanderas[[#This Row],[País]],Fronteras!$A:$A,0) -> 141
A156: Oceanía | B156: Micronesia | C156: fm | F156: =MATCH(TablaBanderas[[#This Row],[País]],Fronteras!$A:$A,0) -> 222
A157: Europa | B157: Moldavia | C157: md | F157: =MATCH(TablaBanderas[[#This Row],[País]],Fronteras!$A:$A,0) -> 49
A158: Europa | B158: Mónaco | C158: mc | F158: =MATCH(TablaBanderas[[#This Row],[País]],Fronteras!$A:$A,0) -> 202
A159: Asia | B159: Mongolia | C159: mn | F159: =MATCH(TablaBanderas[[#This Row],[País]],Fronteras!$A:$A,0) -> 102
A160: Europa | B160: Montenegro | C160: me | F160: =MATCH(TablaBanderas[[#This Row],[País]],Fronteras!$A:$A,0) -> 43
A161: América del Norte | B161: Montserrat | C161: ms | F161: =MATCH(TablaBanderas[[#This Row],[País]],Fronteras!$A:$A,0) -> 167
A162: África | B162: Mozambique | C162: mz | F162: =MATCH(TablaBanderas[[#This Row],[País]],Fronteras!$A:$A,0) -> 87
A163: África | B163: Namibia | C163: na | F163: =MATCH(TablaBanderas[[#This Row],[País]],Fronteras!$A:$A,0) -> 95
A164: Oceanía | B164: Nauru | C164: nr | F164: =MATCH(TablaBanderas[[#This Row],[País]],Fronteras!$A:$A,0) -> 214
A165: Asia | B165: Nepal | C165: np | F165: =MATCH(TablaBanderas[[#This Row],[País]],Fronteras!$A:$A,0) -> 116
A166: América del Norte | B166: Nicaragua | C166: ni | F166: =MATCH(TablaBanderas[[#This Row],[País]],Fronteras!$A:$A,0) -> 148
A167: África | B167: Níger | C167: ne | F167: =MATCH(TablaBanderas[[#This Row],[País]],Fronteras!$A:$A,0) -> 73
A168: África | B168: Nigeria | C168: ng | F168: =MATCH(TablaBanderas[[#This Row],[País]],Fronteras!$A:$A,0) -> 72
A169: Oceanía | B169: Niue | C169: nu | F169: =MATCH(TablaBanderas[[#This Row],[País]],Fronteras!$A:$A,0) -> 
A170: Europa | B170: Noruega | C170: no | F170: =MATCH(TablaBanderas[[#This Row],[País]],Fronteras!$A:$A,0) -> 10
A171: Oceanía | B171: Nueva Caledonia | C171: nc | F171: =MATCH(TablaBanderas[[#This Row],[País]],Fronteras!$A:$A,0) -> 188
A172: Oceanía | B172: Nueva Zelanda | C172: nz | F172: =MATCH(TablaBanderas[[#This Row],[País]],Fronteras!$A:$A,0) -> 128
A173: Asia | B173: Omán | C173: om | F173: =MATCH(TablaBanderas[[#This Row],[País]],Fronteras!$A:$A,0) -> 131
A174: Europa | B174: Países Bajos | C174: nl | F174: =MATCH(TablaBanderas[[#This Row],[País]],Fronteras!$A:$A,0) -> 24
A175: Asia | B175: Pakistán | C175: pk | F175: =MATCH(TablaBanderas[[#This Row],[País]],Fronteras!$A:$A,0) -> 115
A176: Oceanía | B176: Palaos | C176: pw | F176: =MATCH(TablaBanderas[[#This Row],[País]],Fronteras!$A:$A,0) -> 228
A177: Asia | B177: Palestina | C177: ps | F177: =MATCH(TablaBanderas[[#This Row],[País]],Fronteras!$A:$A,0) -> 194
A178: América del Norte | B178: Panamá | C178: pa | F178: =MATCH(TablaBanderas[[#This Row],[País]],Fronteras!$A:$A,0) -> 150
A179: Oceanía | B179: Papúa Nueva Guinea | C179: pg | F179: =MATCH(TablaBanderas[[#This Row],[País]],Fronteras!$A:$A,0) -> 126
A180: América del Sur | B180: Paraguay | C180: py | F180: =MATCH(TablaBanderas[[#This Row],[País]],Fronteras!$A:$A,0) -> 160
A181: América del Sur | B181: Perú | C181: pe | F181: =MATCH(TablaBanderas[[#This Row],[País]],Fronteras!$A:$A,0) -> 158
A182: Oceanía | B182: Polinesia Francesa | C182: pf | F182: =MATCH(TablaBanderas[[#This Row],[País]],Fronteras!$A:$A,0) -> 
A183: Europa | B183: Polonia | C183: pl | F183: =MATCH(TablaBanderas[[#This Row],[País]],Fronteras!$A:$A,0) -> 37
A184: Europa | B184: Portugal | C184: pt | F184: =MATCH(TablaBanderas[[#This Row],[País]],Fronteras!$A:$A,0) -> 28
A185: América del Norte | B185: Puerto Rico | C185: pr | F185: =MATCH(TablaBanderas[[#This Row],[País]],Fronteras!$A:$A,0) -> 2
A186: Europa | B186: Reino Unido | C186: gb | F186: =MATCH(TablaBanderas[[#This Row],[País]],Fronteras!$A:$A,0) -> 31
A187: África | B187: República Centroafricana | C187: cf | F187: =MATCH(TablaBanderas[[#This Row],[País]],Fronteras!$A:$A,0) -> 94
A188: Europa | B188: República Checa | C188: cz | F188: =MATCH(TablaBanderas[[#This Row],[País]],Fronteras!$A:$A,0) -> 35
A189: África | B189: República del Congo | C189: cg | F189: =MATCH(TablaBanderas[[#This Row],[País]],Fronteras!$A:$A,0) -> 6
A190: África | B190: República Democrática del Congo | C190: cd | F190: =MATCH(TablaBanderas[[#This Row],[País]],Fronteras!$A:$A,0) -> 5
A191: América del Norte | B191: República Dominicana | C191: do | F191: =MATCH(TablaBanderas[[#This Row],[País]],Fronteras!$A:$A,0) -> 143
A192: África | B192: Reunión | C192: re | F192: =MATCH(TablaBanderas[[#This Row],[País]],Fronteras!$A:$A,0) -> 230
A193: África | B193: Ruanda | C193: rw | F193: =MATCH(TablaBanderas[[#This Row],[País]],Fronteras!$A:$A,0) -> 83
A194: Europa | B194: Rumanía | C194: ro | F194: =MATCH(TablaBanderas[[#This Row],[País]],Fronteras!$A:$A,0) -> 47
A195: Europa | B195: Rusia | C195: ru | F195: =MATCH(TablaBanderas[[#This Row],[País]],Fronteras!$A:$A,0) -> 21
A196: África | B196: Sáhara Occidental | C196: eh | F196: =MATCH(TablaBanderas[[#This Row],[País]],Fronteras!$A:$A,0) -> 56
A197: Oceanía | B197: Samoa | C197: ws | F197: =MATCH(TablaBanderas[[#This Row],[País]],Fronteras!$A:$A,0) -> 227
A198: Oceanía | B198: Samoa Americana | C198: as | F198: =MATCH(TablaBanderas[[#This Row],[País]],Fronteras!$A:$A,0) -> 208
A199: América del Norte | B199: San Bartolomé | C199: bl | F199: =MATCH(TablaBanderas[[#This Row],[País]],Fronteras!$A:$A,0) -> 210
A200: América del Norte | B200: San Cristóbal y Nieves | C200: kn | F200: =MATCH(TablaBanderas[[#This Row],[País]],Fronteras!$A:$A,0) -> 205
... 51 more rows

Sheet Países
A1: Continente | B1: País | C1: Nombre corto | D1: Nombre oficial | E1: Country | F1: Población
A2: Asia | B2: Afganistán | D2: =IFERROR(VLOOKUP(TablaPaíses[[#This Row],[País]],Nombres[],2,FALSE),IFERROR(VLOOKUP("*"&TablaPaíses[[#This Row],[Country]]&"*",Nombres[],2,FALSE),IFERROR(VLOOKUP(TablaPaíses[[#This Row],[Nombre corto]],Nombres[],2,FALSE),IF(TablaPaíses[[#This Row],[Nombre corto]]<>"",TablaPaíses[[#This Row],[Nombre corto]],TablaPaíses[[#This Row],[País]]&"*")))) -> República Islámica de Afganistán | E2: Afghanistan | F2: =IFERROR(VLOOKUP(TablaPaíses[[#This Row],[Country]],Population[],2,FALSE),"") -> 43214221
A3: Europa | B3: Albania | D3: =IFERROR(VLOOKUP(TablaPaíses[[#This Row],[País]],Nombres[],2,FALSE),IFERROR(VLOOKUP("*"&TablaPaíses[[#This Row],[Country]]&"*",Nombres[],2,FALSE),IFERROR(VLOOKUP(TablaPaíses[[#This Row],[Nombre corto]],Nombres[],2,FALSE),IF(TablaPaíses[[#This Row],[Nombre corto]]<>"",TablaPaíses[[#This Row],[Nombre corto]],TablaPaíses[[#This Row],[País]]&"*")))) -> República de Albania | E3: Albania | F3: =IFERROR(VLOOKUP(TablaPaíses[[#This Row],[Country]],Population[],2,FALSE),"") -> 2875314
A4: Europa | B4: Alemania | D4: =IFERROR(VLOOKUP(TablaPaíses[[#This Row],[País]],Nombres[],2,FALSE),IFERROR(VLOOKUP("*"&TablaPaíses[[#This Row],[Country]]&"*",Nombres[],2,FALSE),IFERROR(VLOOKUP(TablaPaíses[[#This Row],[Nombre corto]],Nombres[],2,FALSE),IF(TablaPaíses[[#This Row],[Nombre corto]]<>"",TablaPaíses[[#This Row],[Nombre corto]],TablaPaíses[[#This Row],[País]]&"*")))) -> República Federal de Alemania | E4: Germany | F4: =IFERROR(VLOOKUP(TablaPaíses[[#This Row],[Country]],Population[],2,FALSE),"") -> 83856583
A5: África | B5: Argelia | D5: =IFERROR(VLOOKUP(TablaPaíses[[#This Row],[País]],Nombres[],2,FALSE),IFERROR(VLOOKUP("*"&TablaPaíses[[#This Row],[Country]]&"*",Nombres[],2,FALSE),IFERROR(VLOOKUP(TablaPaíses[[#This Row],[Nombre corto]],Nombres[],2,FALSE),IF(TablaPaíses[[#This Row],[Nombre corto]]<>"",TablaPaíses[[#This Row],[Nombre corto]],TablaPaíses[[#This Row],[País]]&"*")))) -> República Argelina Democrática y Popular | E5: Algeria | F5: =IFERROR(VLOOKUP(TablaPaíses[[#This Row],[Country]],Population[],2,FALSE),"") -> 46790907
A6: Europa | B6: Andorra | D6: =IFERROR(VLOOKUP(TablaPaíses[[#This Row],[País]],Nombres[],2,FALSE),IFERROR(VLOOKUP("*"&TablaPaíses[[#This Row],[Country]]&"*",Nombres[],2,FALSE),IFERROR(VLOOKUP(TablaPaíses[[#This Row],[Nombre corto]],Nombres[],2,FALSE),IF(TablaPaíses[[#This Row],[Nombre corto]]<>"",TablaPaíses[[#This Row],[Nombre corto]],TablaPaíses[[#This Row],[País]]&"*")))) -> Principado de Andorra | E6: Andorra | F6: =IFERROR(VLOOKUP(TablaPaíses[[#This Row],[Country]],Population[],2,FALSE),"") -> 78206
A7: África | B7: Angola | D7: =IFERROR(VLOOKUP(TablaPaíses[[#This Row],[País]],Nombres[],2,FALSE),IFERROR(VLOOKUP("*"&TablaPaíses[[#This Row],[Country]]&"*",Nombres[],2,FALSE),IFERROR(VLOOKUP(TablaPaíses[[#This Row],[Nombre corto]],Nombres[],2,FALSE),IF(TablaPaíses[[#This Row],[Nombre corto]]<>"",TablaPaíses[[#This Row],[Nombre corto]],TablaPaíses[[#This Row],[País]]&"*")))) -> República de Angola | E7: Angola | F7: =IFERROR(VLOOKUP(TablaPaíses[[#This Row],[Country]],Population[],2,FALSE),"") -> 36693743
A8: Asia | B8: Arabia Saudita | C8: Arabia Saudí | D8: =IFERROR(VLOOKUP(TablaPaíses[[#This Row],[País]],Nombres[],2,FALSE),IFERROR(VLOOKUP("*"&TablaPaíses[[#This Row],[Country]]&"*",Nombres[],2,FALSE),IFERROR(VLOOKUP(TablaPaíses[[#This Row],[Nombre corto]],Nombres[],2,FALSE),IF(TablaPaíses[[#This Row],[Nombre corto]]<>"",TablaPaíses[[#This Row],[Nombre corto]],TablaPaíses[[#This Row],[País]]&"*")))) -> Reino de Arabia Saudí | E8: Saudi Arabia | F8: =IFERROR(VLOOKUP(TablaPaíses[[#This Row],[Country]],Population[],2,FALSE),"") -> 37761185
A9: América del Sur | B9: Argentina | D9: =IFERROR(VLOOKUP(TablaPaíses[[#This Row],[País]],Nombres[],2,FALSE),IFERROR(VLOOKUP("*"&TablaPaíses[[#This Row],[Country]]&"*",Nombres[],2,FALSE),IFERROR(VLOOKUP(TablaPaíses[[#This Row],[Nombre corto]],Nombres[],2,FALSE),IF(TablaPaíses[[#This Row],[Nombre corto]]<>"",TablaPaíses[[#This Row],[Nombre corto]],TablaPaíses[[#This Row],[País]]&"*")))) -> República Argentina | E9: Argentina | F9: =IFERROR(VLOOKUP(TablaPaíses[[#This Row],[Country]],Population[],2,FALSE),"") -> 46833332
A10: Asia | B10: Armenia | D10: =IFERROR(VLOOKUP(TablaPaíses[[#This Row],[País]],Nombres[],2,FALSE),IFERROR(VLOOKUP("*"&TablaPaíses[[#This Row],[Country]]&"*",Nombres[],2,FALSE),IFERROR(VLOOKUP(TablaPaíses[[#This Row],[Nombre corto]],Nombres[],2,FALSE),IF(TablaPaíses[[#This Row],[Nombre corto]]<>"",TablaPaíses[[#This Row],[Nombre corto]],TablaPaíses[[#This Row],[País]]&"*")))) -> República de Armenia | E10: Armenia | F10: =IFERROR(VLOOKUP(TablaPaíses[[#This Row],[Country]],Population[],2,FALSE),"") -> 3002557
A11: Oceanía | B11: Australia | D11: =IFERROR(VLOOKUP(TablaPaíses[[#This Row],[País]],Nombres[],2,FALSE),IFERROR(VLOOKUP("*"&TablaPaíses[[#This Row],[Country]]&"*",Nombres[],2,FALSE),IFERROR(VLOOKUP(TablaPaíses[[#This Row],[Nombre corto]],Nombres[],2,FALSE),IF(TablaPaíses[[#This Row],[Nombre corto]]<>"",TablaPaíses[[#This Row],[Nombre corto]],TablaPaíses[[#This Row],[País]]&"*")))) -> Commonwealth de Australia | E11: Australia | F11: =IFERROR(VLOOKUP(TablaPaíses[[#This Row],[Country]],Population[],2,FALSE),"") -> 26933672
A12: Europa | B12: Austria | D12: =IFERROR(VLOOKUP(TablaPaíses[[#This Row],[País]],Nombres[],2,FALSE),IFERROR(VLOOKUP("*"&TablaPaíses[[#This Row],[Country]]&"*",Nombres[],2,FALSE),IFERROR(VLOOKUP(TablaPaíses[[#This Row],[Nombre corto]],Nombres[],2,FALSE),IF(TablaPaíses[[#This Row],[Nombre corto]]<>"",TablaPaíses[[#This Row],[Nombre corto]],TablaPaíses[[#This Row],[País]]&"*")))) -> República de Austria | E12: Austria | F12: =IFERROR(VLOOKUP(TablaPaíses[[#This Row],[Country]],Population[],2,FALSE),"") -> 9107427
A13: Asia | B13: Azerbaiyán | D13: =IFERROR(VLOOKUP(TablaPaíses[[#This Row],[País]],Nombres[],2,FALSE),IFERROR(VLOOKUP("*"&TablaPaíses[[#This Row],[Country]]&"*",Nombres[],2,FALSE),IFERROR(VLOOKUP(TablaPaíses[[#This Row],[Nombre corto]],Nombres[],2,FALSE),IF(TablaPaíses[[#This Row],[Nombre corto]]<>"",TablaPaíses[[#This Row],[Nombre corto]],TablaPaíses[[#This Row],[País]]&"*")))) -> República de Azerbaiyán | E13: Azerbaijan | F13: =IFERROR(VLOOKUP(TablaPaíses[[#This Row],[Country]],Population[],2,FALSE),"") -> 10650274
A14: América del Norte | B14: Bahamas | D14: =IFERROR(VLOOKUP(TablaPaíses[[#This Row],[País]],Nombres[],2,FALSE),IFERROR(VLOOKUP("*"&TablaPaíses[[#This Row],[Country]]&"*",Nombres[],2,FALSE),IFERROR(VLOOKUP(TablaPaíses[[#This Row],[Nombre corto]],Nombres[],2,FALSE),IF(TablaPaíses[[#This Row],[Nombre corto]]<>"",TablaPaíses[[#This Row],[Nombre corto]],TablaPaíses[[#This Row],[País]]&"*")))) -> Commonwealth de las Bahamas | E14: Bahamas | F14: =IFERROR(VLOOKUP(TablaPaíses[[#This Row],[Country]],Population[],2,FALSE),"") -> 413974
A15: Asia | B15: Bangladés | D15: =IFERROR(VLOOKUP(TablaPaíses[[#This Row],[País]],Nombres[],2,FALSE),IFERROR(VLOOKUP("*"&TablaPaíses[[#This Row],[Country]]&"*",Nombres[],2,FALSE),IFERROR(VLOOKUP(TablaPaíses[[#This Row],[Nombre corto]],Nombres[],2,FALSE),IF(TablaPaíses[[#This Row],[Nombre corto]]<>"",TablaPaíses[[#This Row],[Nombre corto]],TablaPaíses[[#This Row],[País]]&"*")))) -> República Popular de Bangladesh | E15: Bangladesh | F15: =IFERROR(VLOOKUP(TablaPaíses[[#This Row],[Country]],Population[],2,FALSE),"") -> 171663088
A16: Asia | B16: Baréin | C16: Bahrein | D16: =IFERROR(VLOOKUP(TablaPaíses[[#This Row],[País]],Nombres[],2,FALSE),IFERROR(VLOOKUP("*"&TablaPaíses[[#This Row],[Country]]&"*",Nombres[],2,FALSE),IFERROR(VLOOKUP(TablaPaíses[[#This Row],[Nombre corto]],Nombres[],2,FALSE),IF(TablaPaíses[[#This Row],[Nombre corto]]<>"",TablaPaíses[[#This Row],[Nombre corto]],TablaPaíses[[#This Row],[País]]&"*")))) -> Reino de Bahrein | E16: Bahrain | F16: =IFERROR(VLOOKUP(TablaPaíses[[#This Row],[Country]],Population[],2,FALSE),"") -> 1788910
A17: Europa | B17: Bélgica | D17: =IFERROR(VLOOKUP(TablaPaíses[[#This Row],[País]],Nombres[],2,FALSE),IFERROR(VLOOKUP("*"&TablaPaíses[[#This Row],[Country]]&"*",Nombres[],2,FALSE),IFERROR(VLOOKUP(TablaPaíses[[#This Row],[Nombre corto]],Nombres[],2,FALSE),IF(TablaPaíses[[#This Row],[Nombre corto]]<>"",TablaPaíses[[#This Row],[Nombre corto]],TablaPaíses[[#This Row],[País]]&"*")))) -> Reino de Bélgica | E17: Belgium | F17: =IFERROR(VLOOKUP(TablaPaíses[[#This Row],[Country]],Population[],2,FALSE),"") -> 11866927
A18: América del Norte | B18: Belice | D18: =IFERROR(VLOOKUP(TablaPaíses[[#This Row],[País]],Nombres[],2,FALSE),IFERROR(VLOOKUP("*"&TablaPaíses[[#This Row],[Country]]&"*",Nombres[],2,FALSE),IFERROR(VLOOKUP(TablaPaíses[[#This Row],[Nombre corto]],Nombres[],2,FALSE),IF(TablaPaíses[[#This Row],[Nombre corto]]<>"",TablaPaíses[[#This Row],[Nombre corto]],TablaPaíses[[#This Row],[País]]&"*")))) -> Belice | E18: Belize | F18: =IFERROR(VLOOKUP(TablaPaíses[[#This Row],[Country]],Population[],2,FALSE),"") -> 429079
A19: África | B19: Benín | D19: =IFERROR(VLOOKUP(TablaPaíses[[#This Row],[País]],Nombres[],2,FALSE),IFERROR(VLOOKUP("*"&TablaPaíses[[#This Row],[Country]]&"*",Nombres[],2,FALSE),IFERROR(VLOOKUP(TablaPaíses[[#This Row],[Nombre corto]],Nombres[],2,FALSE),IF(TablaPaíses[[#This Row],[Nombre corto]]<>"",TablaPaíses[[#This Row],[Nombre corto]],TablaPaíses[[#This Row],[País]]&"*")))) -> República de Benín | E19: Benin | F19: =IFERROR(VLOOKUP(TablaPaíses[[#This Row],[Country]],Population[],2,FALSE),"") -> 13264411
A20: Europa | B20: Bielorrusia | D20: =IFERROR(VLOOKUP(TablaPaíses[[#This Row],[País]],Nombres[],2,FALSE),IFERROR(VLOOKUP("*"&TablaPaíses[[#This Row],[Country]]&"*",Nombres[],2,FALSE),IFERROR(VLOOKUP(TablaPaíses[[#This Row],[Nombre corto]],Nombres[],2,FALSE),IF(TablaPaíses[[#This Row],[Nombre corto]]<>"",TablaPaíses[[#This Row],[Nombre corto]],TablaPaíses[[#This Row],[País]]&"*")))) -> República de Belarús | E20: Belarus | F20: =IFERROR(VLOOKUP(TablaPaíses[[#This Row],[Country]],Population[],2,FALSE),"") -> 9453800
A21: Asia | B21: Birmania | D21: =IFERROR(VLOOKUP(TablaPaíses[[#This Row],[País]],Nombres[],2,FALSE),IFERROR(VLOOKUP("*"&TablaPaíses[[#This Row],[Country]]&"*",Nombres[],2,FALSE),IFERROR(VLOOKUP(TablaPaíses[[#This Row],[Nombre corto]],Nombres[],2,FALSE),IF(TablaPaíses[[#This Row],[Nombre corto]]<>"",TablaPaíses[[#This Row],[Nombre corto]],TablaPaíses[[#This Row],[País]]&"*")))) -> Unión de Myanmar | E21: Myanmar | F21: =IFERROR(VLOOKUP(TablaPaíses[[#This Row],[Country]],Population[],2,FALSE),"") -> 55978446
A22: América del Sur | B22: Bolivia | D22: =IFERROR(VLOOKUP(TablaPaíses[[#This Row],[País]],Nombres[],2,FALSE),IFERROR(VLOOKUP("*"&TablaPaíses[[#This Row],[Country]]&"*",Nombres[],2,FALSE),IFERROR(VLOOKUP(TablaPaíses[[#This Row],[Nombre corto]],Nombres[],2,FALSE),IF(TablaPaíses[[#This Row],[Nombre corto]]<>"",TablaPaíses[[#This Row],[Nombre corto]],TablaPaíses[[#This Row],[País]]&"*")))) -> Estado Plurinacional de Bolivia | E22: Bolivia | F22: =IFERROR(VLOOKUP(TablaPaíses[[#This Row],[Country]],Population[],2,FALSE),"") -> 12314743
A23: Europa | B23: Bosnia y Herzegovina | D23: =IFERROR(VLOOKUP(TablaPaíses[[#This Row],[País]],Nombres[],2,FALSE),IFERROR(VLOOKUP("*"&TablaPaíses[[#This Row],[Country]]&"*",Nombres[],2,FALSE),IFERROR(VLOOKUP(TablaPaíses[[#This Row],[Nombre corto]],Nombres[],2,FALSE),IF(TablaPaíses[[#This Row],[Nombre corto]]<>"",TablaPaíses[[#This Row],[Nombre corto]],TablaPaíses[[#This Row],[País]]&"*")))) -> Bosnia y Herzegovina | E23: Bosnia and Herzegovina | F23: =IFERROR(VLOOKUP(TablaPaíses[[#This Row],[Country]],Population[],2,FALSE),"") -> 3274227
A24: África | B24: Botsuana | D24: =IFERROR(VLOOKUP(TablaPaíses[[#This Row],[País]],Nombres[],2,FALSE),IFERROR(VLOOKUP("*"&TablaPaíses[[#This Row],[Country]]&"*",Nombres[],2,FALSE),IFERROR(VLOOKUP(TablaPaíses[[#This Row],[Nombre corto]],Nombres[],2,FALSE),IF(TablaPaíses[[#This Row],[Nombre corto]]<>"",TablaPaíses[[#This Row],[Nombre corto]],TablaPaíses[[#This Row],[País]]&"*")))) -> República de Botswana | E24: Botswana | F24: =IFERROR(VLOOKUP(TablaPaíses[[#This Row],[Country]],Population[],2,FALSE),"") -> 2513633
A25: América del Sur | B25: Brasil | D25: =IFERROR(VLOOKUP(TablaPaíses[[#This Row],[País]],Nombres[],2,FALSE),IFERROR(VLOOKUP("*"&TablaPaíses[[#This Row],[Country]]&"*",Nombres[],2,FALSE),IFERROR(VLOOKUP(TablaPaíses[[#This Row],[Nombre corto]],Nombres[],2,FALSE),IF(TablaPaíses[[#This Row],[Nombre corto]]<>"",TablaPaíses[[#This Row],[Nombre corto]],TablaPaíses[[#This Row],[País]]&"*")))) -> República Federativa de Brasil | E25: Brazil | F25: =IFERROR(VLOOKUP(TablaPaíses[[#This Row],[Country]],Population[],2,FALSE),"") -> 219412680
A26: Asia | B26: Brunéi | D26: =IFERROR(VLOOKUP(TablaPaíses[[#This Row],[País]],Nombres[],2,FALSE),IFERROR(VLOOKUP("*"&TablaPaíses[[#This Row],[Country]]&"*",Nombres[],2,FALSE),IFERROR(VLOOKUP(TablaPaíses[[#This Row],[Nombre corto]],Nombres[],2,FALSE),IF(TablaPaíses[[#This Row],[Nombre corto]]<>"",TablaPaíses[[#This Row],[Nombre corto]],TablaPaíses[[#This Row],[País]]&"*")))) -> Brunei Darussalam | E26: Brunei Darussalam | F26: =IFERROR(VLOOKUP(TablaPaíses[[#This Row],[Country]],Population[],2,FALSE),"") -> 460752
A27: Europa | B27: Bulgaria | D27: =IFERROR(VLOOKUP(TablaPaíses[[#This Row],[País]],Nombres[],2,FALSE),IFERROR(VLOOKUP("*"&TablaPaíses[[#This Row],[Country]]&"*",Nombres[],2,FALSE),IFERROR(VLOOKUP(TablaPaíses[[#This Row],[Nombre corto]],Nombres[],2,FALSE),IF(TablaPaíses[[#This Row],[Nombre corto]]<>"",TablaPaíses[[#This Row],[Nombre corto]],TablaPaíses[[#This Row],[País]]&"*")))) -> República de Bulgaria | E27: Bulgaria | F27: =IFERROR(VLOOKUP(TablaPaíses[[#This Row],[Country]],Population[],2,FALSE),"") -> 6784151
A28: África | B28: Burkina Faso | D28: =IFERROR(VLOOKUP(TablaPaíses[[#This Row],[País]],Nombres[],2,FALSE),IFERROR(VLOOKUP("*"&TablaPaíses[[#This Row],[Country]]&"*",Nombres[],2,FALSE),IFERROR(VLOOKUP(TablaPaíses[[#This Row],[Nombre corto]],Nombres[],2,FALSE),IF(TablaPaíses[[#This Row],[Nombre corto]]<>"",TablaPaíses[[#This Row],[Nombre corto]],TablaPaíses[[#This Row],[País]]&"*")))) -> Burkina Faso | E28: Burkina Faso | F28: =IFERROR(VLOOKUP(TablaPaíses[[#This Row],[Country]],Population[],2,FALSE),"") -> 23070385
A29: África | B29: Burundi | D29: =IFERROR(VLOOKUP(TablaPaíses[[#This Row],[País]],Nombres[],2,FALSE),IFERROR(VLOOKUP("*"&TablaPaíses[[#This Row],[Country]]&"*",Nombres[],2,FALSE),IFERROR(VLOOKUP(TablaPaíses[[#This Row],[Nombre corto]],Nombres[],2,FALSE),IF(TablaPaíses[[#This Row],[Nombre corto]]<>"",TablaPaíses[[#This Row],[Nombre corto]],TablaPaíses[[#This Row],[País]]&"*")))) -> República de Burundi | E29: Burundi | F29: =IFERROR(VLOOKUP(TablaPaíses[[#This Row],[Country]],Population[],2,FALSE),"") -> 13304846
A30: Asia | B30: Bután | C30: Bhután | D30: =IFERROR(VLOOKUP(TablaPaíses[[#This Row],[País]],Nombres[],2,FALSE),IFERROR(VLOOKUP("*"&TablaPaíses[[#This Row],[Country]]&"*",Nombres[],2,FALSE),IFERROR(VLOOKUP(TablaPaíses[[#This Row],[Nombre corto]],Nombres[],2,FALSE),IF(TablaPaíses[[#This Row],[Nombre corto]]<>"",TablaPaíses[[#This Row],[Nombre corto]],TablaPaíses[[#This Row],[País]]&"*")))) -> Reino de Bhután | E30: Bhutan | F30: =IFERROR(VLOOKUP(TablaPaíses[[#This Row],[Country]],Population[],2,FALSE),"") -> 811962
A31: África | B31: Cabo Verde | D31: =IFERROR(VLOOKUP(TablaPaíses[[#This Row],[País]],Nombres[],2,FALSE),IFERROR(VLOOKUP("*"&TablaPaíses[[#This Row],[Country]]&"*",Nombres[],2,FALSE),IFERROR(VLOOKUP(TablaPaíses[[#This Row],[Nombre corto]],Nombres[],2,FALSE),IF(TablaPaíses[[#This Row],[Nombre corto]]<>"",TablaPaíses[[#This Row],[Nombre corto]],TablaPaíses[[#This Row],[País]]&"*")))) -> República de Cabo Verde | E31: Cape Verde | F31: =IFERROR(VLOOKUP(TablaPaíses[[#This Row],[Country]],Population[],2,FALSE),"") -> 579113
A32: Asia | B32: Camboya | D32: =IFERROR(VLOOKUP(TablaPaíses[[#This Row],[País]],Nombres[],2,FALSE),IFERROR(VLOOKUP("*"&TablaPaíses[[#This Row],[Country]]&"*",Nombres[],2,FALSE),IFERROR(VLOOKUP(TablaPaíses[[#This Row],[Nombre corto]],Nombres[],2,FALSE),IF(TablaPaíses[[#This Row],[Nombre corto]]<>"",TablaPaíses[[#This Row],[Nombre corto]],TablaPaíses[[#This Row],[País]]&"*")))) -> Reino de Camboya | E32: Cambodia | F32: =IFERROR(VLOOKUP(TablaPaíses[[#This Row],[Country]],Population[],2,FALSE),"") -> 17677593
A33: África | B33: Camerún | D33: =IFERROR(VLOOKUP(TablaPaíses[[#This Row],[País]],Nombres[],2,FALSE),IFERROR(VLOOKUP("*"&TablaPaíses[[#This Row],[Country]]&"*",Nombres[],2,FALSE),IFERROR(VLOOKUP(TablaPaíses[[#This Row],[Nombre corto]],Nombres[],2,FALSE),IF(TablaPaíses[[#This Row],[Nombre corto]]<>"",TablaPaíses[[#This Row],[Nombre corto]],TablaPaíses[[#This Row],[País]]&"*")))) -> República de Camerún | E33: Cameroon | F33: =IFERROR(VLOOKUP(TablaPaíses[[#This Row],[Country]],Population[],2,FALSE),"") -> 28866472
A34: América del Norte | B34: Canadá | D34: =IFERROR(VLOOKUP(TablaPaíses[[#This Row],[País]],Nombres[],2,FALSE),IFERROR(VLOOKUP("*"&TablaPaíses[[#This Row],[Country]]&"*",Nombres[],2,FALSE),IFERROR(VLOOKUP(TablaPaíses[[#This Row],[Nombre corto]],Nombres[],2,FALSE),IF(TablaPaíses[[#This Row],[Nombre corto]]<>"",TablaPaíses[[#This Row],[Nombre corto]],TablaPaíses[[#This Row],[País]]&"*")))) -> Canadá | E34: Canada | F34: =IFERROR(VLOOKUP(TablaPaíses[[#This Row],[Country]],Population[],2,FALSE),"") -> 39114670
A35: Asia | B35: Catar | D35: =IFERROR(VLOOKUP(TablaPaíses[[#This Row],[País]],Nombres[],2,FALSE),IFERROR(VLOOKUP("*"&TablaPaíses[[#This Row],[Country]]&"*",Nombres[],2,FALSE),IFERROR(VLOOKUP(TablaPaíses[[#This Row],[Nombre corto]],Nombres[],2,FALSE),IF(TablaPaíses[[#This Row],[Nombre corto]]<>"",TablaPaíses[[#This Row],[Nombre corto]],TablaPaíses[[#This Row],[País]]&"*")))) -> Estado de Qatar | E35: Qatar | F35: =IFERROR(VLOOKUP(TablaPaíses[[#This Row],[Country]],Population[],2,FALSE),"") -> 3415975
A36: África | B36: Chad | D36: =IFERROR(VLOOKUP(TablaPaíses[[#This Row],[País]],Nombres[],2,FALSE),IFERROR(VLOOKUP("*"&TablaPaíses[[#This Row],[Country]]&"*",Nombres[],2,FALSE),IFERROR(VLOOKUP(TablaPaíses[[#This Row],[Nombre corto]],Nombres[],2,FALSE),IF(TablaPaíses[[#This Row],[Nombre corto]]<>"",TablaPaíses[[#This Row],[Nombre corto]],TablaPaíses[[#This Row],[País]]&"*")))) -> República de Chad | E36: Chad | F36: =IFERROR(VLOOKUP(TablaPaíses[[#This Row],[Country]],Population[],2,FALSE),"") -> 18371037
A37: América del Sur | B37: Chile | D37: =IFERROR(VLOOKUP(TablaPaíses[[#This Row],[País]],Nombres[],2,FALSE),IFERROR(VLOOKUP("*"&TablaPaíses[[#This Row],[Country]]&"*",Nombres[],2,FALSE),IFERROR(VLOOKUP(TablaPaíses[[#This Row],[Nombre corto]],Nombres[],2,FALSE),IF(TablaPaíses[[#This Row],[Nombre corto]]<>"",TablaPaíses[[#This Row],[Nombre corto]],TablaPaíses[[#This Row],[País]]&"*")))) -> República de Chile | E37: Chile | F37: =IFERROR(VLOOKUP(TablaPaíses[[#This Row],[Country]],Population[],2,FALSE),"") -> 19837659
A38: Asia | B38: China | D38: =IFERROR(VLOOKUP(TablaPaíses[[#This Row],[País]],Nombres[],2,FALSE),IFERROR(VLOOKUP("*"&TablaPaíses[[#This Row],[Country]]&"*",Nombres[],2,FALSE),IFERROR(VLOOKUP(TablaPaíses[[#This Row],[Nombre corto]],Nombres[],2,FALSE),IF(TablaPaíses[[#This Row],[Nombre corto]]<>"",TablaPaíses[[#This Row],[Nombre corto]],TablaPaíses[[#This Row],[País]]&"*")))) -> República Popular China | E38: China | F38: =IFERROR(VLOOKUP(TablaPaíses[[#This Row],[Country]],Population[],2,FALSE),"") -> 1465645573
A39: Asia | B39: Chipre | D39: =IFERROR(VLOOKUP(TablaPaíses[[#This Row],[País]],Nombres[],2,FALSE),IFERROR(VLOOKUP("*"&TablaPaíses[[#This Row],[Country]]&"*",Nombres[],2,FALSE),IFERROR(VLOOKUP(TablaPaíses[[#This Row],[Nombre corto]],Nombres[],2,FALSE),IF(TablaPaíses[[#This Row],[Nombre corto]]<>"",TablaPaíses[[#This Row],[Nombre corto]],TablaPaíses[[#This Row],[País]]&"*")))) -> República de Chipre | E39: Cyprus | F39: =IFERROR(VLOOKUP(TablaPaíses[[#This Row],[Country]],Population[],2,FALSE),"") -> 1254665
A40: América del Sur | B40: Colombia | D40: =IFERROR(VLOOKUP(TablaPaíses[[#This Row],[País]],Nombres[],2,FALSE),IFERROR(VLOOKUP("*"&TablaPaíses[[#This Row],[Country]]&"*",Nombres[],2,FALSE),IFERROR(VLOOKUP(TablaPaíses[[#This Row],[Nombre corto]],Nombres[],2,FALSE),IF(TablaPaíses[[#This Row],[Nombre corto]]<>"",TablaPaíses[[#This Row],[Nombre corto]],TablaPaíses[[#This Row],[País]]&"*")))) -> República de Colombia | E40: Colombia | F40: =IFERROR(VLOOKUP(TablaPaíses[[#This Row],[Country]],Population[],2,FALSE),"") -> 52573476
A41: África | B41: Comoras | D41: =IFERROR(VLOOKUP(TablaPaíses[[#This Row],[País]],Nombres[],2,FALSE),IFERROR(VLOOKUP("*"&TablaPaíses[[#This Row],[Country]]&"*",Nombres[],2,FALSE),IFERROR(VLOOKUP(TablaPaíses[[#This Row],[Nombre corto]],Nombres[],2,FALSE),IF(TablaPaíses[[#This Row],[Nombre corto]]<>"",TablaPaíses[[#This Row],[Nombre corto]],TablaPaíses[[#This Row],[País]]&"*")))) -> Unión de las Comoras | E41: Comoros | F41: =IFERROR(VLOOKUP(TablaPaíses[[#This Row],[Country]],Population[],2,FALSE),"") -> 944073
A42: Asia | B42: Corea del Norte | D42: =IFERROR(VLOOKUP(TablaPaíses[[#This Row],[País]],Nombres[],2,FALSE),IFERROR(VLOOKUP("*"&TablaPaíses[[#This Row],[Country]]&"*",Nombres[],2,FALSE),IFERROR(VLOOKUP(TablaPaíses[[#This Row],[Nombre corto]],Nombres[],2,FALSE),IF(TablaPaíses[[#This Row],[Nombre corto]]<>"",TablaPaíses[[#This Row],[Nombre corto]],TablaPaíses[[#This Row],[País]]&"*")))) -> República Popular Democrática de Corea | E42: Democratic People's Republic of Korea | F42: =IFERROR(VLOOKUP(TablaPaíses[[#This Row],[Country]],Population[],2,FALSE),"") -> 26255633
A43: Asia | B43: Corea del Sur | D43: =IFERROR(VLOOKUP(TablaPaíses[[#This Row],[País]],Nombres[],2,FALSE),IFERROR(VLOOKUP("*"&TablaPaíses[[#This Row],[Country]]&"*",Nombres[],2,FALSE),IFERROR(VLOOKUP(TablaPaíses[[#This Row],[Nombre corto]],Nombres[],2,FALSE),IF(TablaPaíses[[#This Row],[Nombre corto]]<>"",TablaPaíses[[#This Row],[Nombre corto]],TablaPaíses[[#This Row],[País]]&"*")))) -> República de Corea | E43: Republic of Korea | F43: =IFERROR(VLOOKUP(TablaPaíses[[#This Row],[Country]],Population[],2,FALSE),"") -> 52219858
A44: África | B44: Costa de Marfil | D44: =IFERROR(VLOOKUP(TablaPaíses[[#This Row],[País]],Nombres[],2,FALSE),IFERROR(VLOOKUP("*"&TablaPaíses[[#This Row],[Country]]&"*",Nombres[],2,FALSE),IFERROR(VLOOKUP(TablaPaíses[[#This Row],[Nombre corto]],Nombres[],2,FALSE),IF(TablaPaíses[[#This Row],[Nombre corto]]<>"",TablaPaíses[[#This Row],[Nombre corto]],TablaPaíses[[#This Row],[País]]&"*")))) -> República de Costa de Marfil | E44: Cote d'Ivoire | F44: =IFERROR(VLOOKUP(TablaPaíses[[#This Row],[Country]],Population[],2,FALSE),"") -> 28569696
A45: América del Norte | B45: Costa Rica | D45: =IFERROR(VLOOKUP(TablaPaíses[[#This Row],[País]],Nombres[],2,FALSE),IFERROR(VLOOKUP("*"&TablaPaíses[[#This Row],[Country]]&"*",Nombres[],2,FALSE),IFERROR(VLOOKUP(TablaPaíses[[#This Row],[Nombre corto]],Nombres[],2,FALSE),IF(TablaPaíses[[#This Row],[Nombre corto]]<>"",TablaPaíses[[#This Row],[Nombre corto]],TablaPaíses[[#This Row],[País]]&"*")))) -> República de Costa Rica | E45: Costa Rica | F45: =IFERROR(VLOOKUP(TablaPaíses[[#This Row],[Country]],Population[],2,FALSE),"") -> 5296326
A46: Europa | B46: Croacia | D46: =IFERROR(VLOOKUP(TablaPaíses[[#This Row],[País]],Nombres[],2,FALSE),IFERROR(VLOOKUP("*"&TablaPaíses[[#This Row],[Country]]&"*",Nombres[],2,FALSE),IFERROR(VLOOKUP(TablaPaíses[[#This Row],[Nombre corto]],Nombres[],2,FALSE),IF(TablaPaíses[[#This Row],[Nombre corto]]<>"",TablaPaíses[[#This Row],[Nombre corto]],TablaPaíses[[#This Row],[País]]&"*")))) -> República de Croacia | E46: Croatia | F46: =IFERROR(VLOOKUP(TablaPaíses[[#This Row],[Country]],Population[],2,FALSE),"") -> 4060783
A47: América del Norte | B47: Cuba | D47: =IFERROR(VLOOKUP(TablaPaíses[[#This Row],[País]],Nombres[],2,FALSE),IFERROR(VLOOKUP("*"&TablaPaíses[[#This Row],[Country]]&"*",Nombres[],2,FALSE),IFERROR(VLOOKUP(TablaPaíses[[#This Row],[Nombre corto]],Nombres[],2,FALSE),IF(TablaPaíses[[#This Row],[Nombre corto]]<>"",TablaPaíses[[#This Row],[Nombre corto]],TablaPaíses[[#This Row],[País]]&"*")))) -> República de Cuba | E47: Cuba | F47: =IFERROR(VLOOKUP(TablaPaíses[[#This Row],[Country]],Population[],2,FALSE),"") -> 11393682
A48: Europa | B48: Dinamarca | D48: =IFERROR(VLOOKUP(TablaPaíses[[#This Row],[País]],Nombres[],2,FALSE),IFERROR(VLOOKUP("*"&TablaPaíses[[#This Row],[Country]]&"*",Nombres[],2,FALSE),IFERROR(VLOOKUP(TablaPaíses[[#This Row],[Nombre corto]],Nombres[],2,FALSE),IF(TablaPaíses[[#This Row],[Nombre corto]]<>"",TablaPaíses[[#This Row],[Nombre corto]],TablaPaíses[[#This Row],[País]]&"*")))) -> Reino de Dinamarca | E48: Denmark | F48: =IFERROR(VLOOKUP(TablaPaíses[[#This Row],[Country]],Population[],2,FALSE),"") -> 5877449
A49: América del Sur | B49: Ecuador | D49: =IFERROR(VLOOKUP(TablaPaíses[[#This Row],[País]],Nombres[],2,FALSE),IFERROR(VLOOKUP("*"&TablaPaíses[[#This Row],[Country]]&"*",Nombres[],2,FALSE),IFERROR(VLOOKUP(TablaPaíses[[#This Row],[Nombre corto]],Nombres[],2,FALSE),IF(TablaPaíses[[#This Row],[Nombre corto]]<>"",TablaPaíses[[#This Row],[Nombre corto]],TablaPaíses[[#This Row],[País]]&"*")))) -> República del Ecuador | E49: Ecuador | F49: =IFERROR(VLOOKUP(TablaPaíses[[#This Row],[Country]],Population[],2,FALSE),"") -> 18594072
A50: África | B50: Egipto | D50: =IFERROR(VLOOKUP(TablaPaíses[[#This Row],[País]],Nombres[],2,FALSE),IFERROR(VLOOKUP("*"&TablaPaíses[[#This Row],[Country]]&"*",Nombres[],2,FALSE),IFERROR(VLOOKUP(TablaPaíses[[#This Row],[Nombre corto]],Nombres[],2,FALSE),IF(TablaPaíses[[#This Row],[Nombre corto]]<>"",TablaPaíses[[#This Row],[Nombre corto]],TablaPaíses[[#This Row],[País]]&"*")))) -> República Árabe de Egipto | E50: Egypt | F50: =IFERROR(VLOOKUP(TablaPaíses[[#This Row],[Country]],Population[],2,FALSE),"") -> 110255495
A51: América del Norte | B51: El Salvador | D51: =IFERROR(VLOOKUP(TablaPaíses[[#This Row],[País]],Nombres[],2,FALSE),IFERROR(VLOOKUP("*"&TablaPaíses[[#This Row],[Country]]&"*",Nombres[],2,FALSE),IFERROR(VLOOKUP(TablaPaíses[[#This Row],[Nombre corto]],Nombres[],2,FALSE),IF(TablaPaíses[[#This Row],[Nombre corto]]<>"",TablaPaíses[[#This Row],[Nombre corto]],TablaPaíses[[#This Row],[País]]&"*")))) -> República de El Salvador | E51: El Salvador | F51: =IFERROR(VLOOKUP(TablaPaíses[[#This Row],[Country]],Population[],2,FALSE),"") -> 6543321
A52: Asia | B52: Emiratos Árabes Unidos | D52: =IFERROR(VLOOKUP(TablaPaíses[[#This Row],[País]],Nombres[],2,FALSE),IFERROR(VLOOKUP("*"&TablaPaíses[[#This Row],[Country]]&"*",Nombres[],2,FALSE),IFERROR(VLOOKUP(TablaPaíses[[#This Row],[Nombre corto]],Nombres[],2,FALSE),IF(TablaPaíses[[#This Row],[Nombre corto]]<>"",TablaPaíses[[#This Row],[Nombre corto]],TablaPaíses[[#This Row],[País]]&"*")))) -> Emiratos Árabes Unidos | E52: United Arab Emirates | F52: =IFERROR(VLOOKUP(TablaPaíses[[#This Row],[Country]],Population[],2,FALSE),"") -> 10575549
A53: África | B53: Eritrea | D53: =IFERROR(VLOOKUP(TablaPaíses[[#This Row],[País]],Nombres[],2,FALSE),IFERROR(VLOOKUP("*"&TablaPaíses[[#This Row],[Country]]&"*",Nombres[],2,FALSE),IFERROR(VLOOKUP(TablaPaíses[[#This Row],[Nombre corto]],Nombres[],2,FALSE),IF(TablaPaíses[[#This Row],[Nombre corto]]<>"",TablaPaíses[[#This Row],[Nombre corto]],TablaPaíses[[#This Row],[País]]&"*")))) -> Estado de Eritrea | E53: Eritrea | F53: =IFERROR(VLOOKUP(TablaPaíses[[#This Row],[Country]],Population[],2,FALSE),"") -> 3829142
A54: Europa | B54: Eslovaquia | D54: =IFERROR(VLOOKUP(TablaPaíses[[#This Row],[País]],Nombres[],2,FALSE),IFERROR(VLOOKUP("*"&TablaPaíses[[#This Row],[Country]]&"*",Nombres[],2,FALSE),IFERROR(VLOOKUP(TablaPaíses[[#This Row],[Nombre corto]],Nombres[],2,FALSE),IF(TablaPaíses[[#This Row],[Nombre corto]]<>"",TablaPaíses[[#This Row],[Nombre corto]],TablaPaíses[[#This Row],[País]]&"*")))) -> República Eslovaca | E54: Slovakia | F54: =IFERROR(VLOOKUP(TablaPaíses[[#This Row],[Country]],Population[],2,FALSE),"") -> 5473438
A55: Europa | B55: Eslovenia | D55: =IFERROR(VLOOKUP(TablaPaíses[[#This Row],[País]],Nombres[],2,FALSE),IFERROR(VLOOKUP("*"&TablaPaíses[[#This Row],[Country]]&"*",Nombres[],2,FALSE),IFERROR(VLOOKUP(TablaPaíses[[#This Row],[Nombre corto]],Nombres[],2,FALSE),IF(TablaPaíses[[#This Row],[Nombre corto]]<>"",TablaPaíses[[#This Row],[Nombre corto]],TablaPaíses[[#This Row],[País]]&"*")))) -> República de Eslovenia | E55: Slovenia | F55: =IFERROR(VLOOKUP(TablaPaíses[[#This Row],[Country]],Population[],2,FALSE),"") -> 2090635
A56: Europa | B56: España | D56: =IFERROR(VLOOKUP(TablaPaíses[[#This Row],[País]],Nombres[],2,FALSE),IFERROR(VLOOKUP("*"&TablaPaíses[[#This Row],[Country]]&"*",Nombres[],2,FALSE),IFERROR(VLOOKUP(TablaPaíses[[#This Row],[Nombre corto]],Nombres[],2,FALSE),IF(TablaPaíses[[#This Row],[Nombre corto]]<>"",TablaPaíses[[#This Row],[Nombre corto]],TablaPaíses[[#This Row],[País]]&"*")))) -> Reino de España | E56: Spain | F56: =IFERROR(VLOOKUP(TablaPaíses[[#This Row],[Country]],Population[],2,FALSE),"") -> 46370251
A57: América del Norte | B57: Estados Unidos | C57: Estados Unidos de América | D57: =IFERROR(VLOOKUP(TablaPaíses[[#This Row],[País]],Nombres[],2,FALSE),IFERROR(VLOOKUP("*"&TablaPaíses[[#This Row],[Country]]&"*",Nombres[],2,FALSE),IFERROR(VLOOKUP(TablaPaíses[[#This Row],[Nombre corto]],Nombres[],2,FALSE),IF(TablaPaíses[[#This Row],[Nombre corto]]<>"",TablaPaíses[[#This Row],[Nombre corto]],TablaPaíses[[#This Row],[País]]&"*")))) -> Estados Unidos de América | E57: United States of America (USA) | F57: =IFERROR(VLOOKUP(TablaPaíses[[#This Row],[Country]],Population[],2,FALSE),"") -> 339821113
A58: Europa | B58: Estonia | D58: =IFERROR(VLOOKUP(TablaPaíses[[#This Row],[País]],Nombres[],2,FALSE),IFERROR(VLOOKUP("*"&TablaPaíses[[#This Row],[Country]]&"*",Nombres[],2,FALSE),IFERROR(VLOOKUP(TablaPaíses[[#This Row],[Nombre corto]],Nombres[],2,FALSE),IF(TablaPaíses[[#This Row],[Nombre corto]]<>"",TablaPaíses[[#This Row],[Nombre corto]],TablaPaíses[[#This Row],[País]]&"*")))) -> República de Estonia | E58: Estonia | F58: =IFERROR(VLOOKUP(TablaPaíses[[#This Row],[Country]],Population[],2,FALSE),"") -> 1310932
A59: África | B59: Etiopía | D59: =IFERROR(VLOOKUP(TablaPaíses[[#This Row],[País]],Nombres[],2,FALSE),IFERROR(VLOOKUP("*"&TablaPaíses[[#This Row],[Country]]&"*",Nombres[],2,FALSE),IFERROR(VLOOKUP(TablaPaíses[[#This Row],[Nombre corto]],Nombres[],2,FALSE),IF(TablaPaíses[[#This Row],[Nombre corto]]<>"",TablaPaíses[[#This Row],[Nombre corto]],TablaPaíses[[#This Row],[País]]&"*")))) -> República Democrática Federal de Etiopía | E59: Ethiopia | F59: =IFERROR(VLOOKUP(TablaPaíses[[#This Row],[Country]],Population[],2,FALSE),"") -> 125130799
A60: Asia | B60: Filipinas | D60: =IFERROR(VLOOKUP(TablaPaíses[[#This Row],[País]],Nombres[],2,FALSE),IFERROR(VLOOKUP("*"&TablaPaíses[[#This Row],[Country]]&"*",Nombres[],2,FALSE),IFERROR(VLOOKUP(TablaPaíses[[#This Row],[Nombre corto]],Nombres[],2,FALSE),IF(TablaPaíses[[#This Row],[Nombre corto]]<>"",TablaPaíses[[#This Row],[Nombre corto]],TablaPaíses[[#This Row],[País]]&"*")))) -> República de Filipinas | E60: Philippines | F60: =IFERROR(VLOOKUP(TablaPaíses[[#This Row],[Country]],Population[],2,FALSE),"") -> 115708944
A61: Europa | B61: Finlandia | D61: =IFERROR(VLOOKUP(TablaPaíses[[#This Row],[País]],Nombres[],2,FALSE),IFERROR(VLOOKUP("*"&TablaPaíses[[#This Row],[Country]]&"*",Nombres[],2,FALSE),IFERROR(VLOOKUP(TablaPaíses[[#This Row],[Nombre corto]],Nombres[],2,FALSE),IF(TablaPaíses[[#This Row],[Nombre corto]]<>"",TablaPaíses[[#This Row],[Nombre corto]],TablaPaíses[[#This Row],[País]]&"*")))) -> República de Finlandia | E61: Finland | F61: =IFERROR(VLOOKUP(TablaPaíses[[#This Row],[Country]],Population[],2,FALSE),"") -> 5644803
A62: Oceanía | B62: Fiyi | D62: =IFERROR(VLOOKUP(TablaPaíses[[#This Row],[País]],Nombres[],2,FALSE),IFERROR(VLOOKUP("*"&TablaPaíses[[#This Row],[Country]]&"*",Nombres[],2,FALSE),IFERROR(VLOOKUP(TablaPaíses[[#This Row],[Nombre corto]],Nombres[],2,FALSE),IF(TablaPaíses[[#This Row],[Nombre corto]]<>"",TablaPaíses[[#This Row],[Nombre corto]],TablaPaíses[[#This Row],[País]]&"*")))) -> República de las Islas Fiji | E62: Fiji | F62: =IFERROR(VLOOKUP(TablaPaíses[[#This Row],[Country]],Population[],2,FALSE),"") -> 919016
A63: Europa | B63: Francia | D63: =IFERROR(VLOOKUP(TablaPaíses[[#This Row],[País]],Nombres[],2,FALSE),IFERROR(VLOOKUP("*"&TablaPaíses[[#This Row],[Country]]&"*",Nombres[],2,FALSE),IFERROR(VLOOKUP(TablaPaíses[[#This Row],[Nombre corto]],Nombres[],2,FALSE),IF(TablaPaíses[[#This Row],[Nombre corto]]<>"",TablaPaíses[[#This Row],[Nombre corto]],TablaPaíses[[#This Row],[País]]&"*")))) -> República Francesa | E63: France | F63: =IFERROR(VLOOKUP(TablaPaíses[[#This Row],[Country]],Population[],2,FALSE),"") -> 66351820
A64: África | B64: Gabón | D64: =IFERROR(VLOOKUP(TablaPaíses[[#This Row],[País]],Nombres[],2,FALSE),IFERROR(VLOOKUP("*"&TablaPaíses[[#This Row],[Country]]&"*",Nombres[],2,FALSE),IFERROR(VLOOKUP(TablaPaíses[[#This Row],[Nombre corto]],Nombres[],2,FALSE),IF(TablaPaíses[[#This Row],[Nombre corto]]<>"",TablaPaíses[[#This Row],[Nombre corto]],TablaPaíses[[#This Row],[País]]&"*")))) -> República Gabonesa | E64: Gabon | F64: =IFERROR(VLOOKUP(TablaPaíses[[#This Row],[Country]],Population[],2,FALSE),"") -> 2397815
A65: África | B65: Gambia | D65: =IFERROR(VLOOKUP(TablaPaíses[[#This Row],[País]],Nombres[],2,FALSE),IFERROR(VLOOKUP("*"&TablaPaíses[[#This Row],[Country]]&"*",Nombres[],2,FALSE),IFERROR(VLOOKUP(TablaPaíses[[#This Row],[Nombre corto]],Nombres[],2,FALSE),IF(TablaPaíses[[#This Row],[Nombre corto]]<>"",TablaPaíses[[#This Row],[Nombre corto]],TablaPaíses[[#This Row],[País]]&"*")))) -> República de Gambia | E65: Gambia | F65: =IFERROR(VLOOKUP(TablaPaíses[[#This Row],[Country]],Population[],2,FALSE),"") -> 2696872
A66: Asia | B66: Georgia | D66: =IFERROR(VLOOKUP(TablaPaíses[[#This Row],[País]],Nombres[],2,FALSE),IFERROR(VLOOKUP("*"&TablaPaíses[[#This Row],[Country]]&"*",Nombres[],2,FALSE),IFERROR(VLOOKUP(TablaPaíses[[#This Row],[Nombre corto]],Nombres[],2,FALSE),IF(TablaPaíses[[#This Row],[Nombre corto]]<>"",TablaPaíses[[#This Row],[Nombre corto]],TablaPaíses[[#This Row],[País]]&"*")))) -> Georgia | E66: Georgia | F66: =IFERROR(VLOOKUP(TablaPaíses[[#This Row],[Country]],Population[],2,FALSE),"") -> 3807546
A67: África | B67: Ghana | D67: =IFERROR(VLOOKUP(TablaPaíses[[#This Row],[País]],Nombres[],2,FALSE),IFERROR(VLOOKUP("*"&TablaPaíses[[#This Row],[Country]]&"*",Nombres[],2,FALSE),IFERROR(VLOOKUP(TablaPaíses[[#This Row],[Nombre corto]],Nombres[],2,FALSE),IF(TablaPaíses[[#This Row],[Nombre corto]]<>"",TablaPaíses[[#This Row],[Nombre corto]],TablaPaíses[[#This Row],[País]]&"*")))) -> República de Ghana | E67: Ghana | F67: =IFERROR(VLOOKUP(TablaPaíses[[#This Row],[Country]],Population[],2,FALSE),"") -> 33710687
A68: Europa | B68: Grecia | D68: =IFERROR(VLOOKUP(TablaPaíses[[#This Row],[País]],Nombres[],2,FALSE),IFERROR(VLOOKUP("*"&TablaPaíses[[#This Row],[Country]]&"*",Nombres[],2,FALSE),IFERROR(VLOOKUP(TablaPaíses[[#This Row],[Nombre corto]],Nombres[],2,FALSE),IF(TablaPaíses[[#This Row],[Nombre corto]]<>"",TablaPaíses[[#This Row],[Nombre corto]],TablaPaíses[[#This Row],[País]]&"*")))) -> República Helénica | E68: Greece | F68: =IFERROR(VLOOKUP(TablaPaíses[[#This Row],[Country]],Population[],2,FALSE),"") -> 10285153
A69: América del Norte | B69: Groenlandia | D69: =IFERROR(VLOOKUP(TablaPaíses[[#This Row],[País]],Nombres[],2,FALSE),IFERROR(VLOOKUP("*"&TablaPaíses[[#This Row],[Country]]&"*",Nombres[],2,FALSE),IFERROR(VLOOKUP(TablaPaíses[[#This Row],[Nombre corto]],Nombres[],2,FALSE),IF(TablaPaíses[[#This Row],[Nombre corto]]<>"",TablaPaíses[[#This Row],[Nombre corto]],TablaPaíses[[#This Row],[País]]&"*")))) -> Groenlandia* | E69: Greenland | F69: =IFERROR(VLOOKUP(TablaPaíses[[#This Row],[Country]],Population[],2,FALSE),"") -> 56825
A70: América del Norte | B70: Guatemala | D70: =IFERROR(VLOOKUP(TablaPaíses[[#This Row],[País]],Nombres[],2,FALSE),IFERROR(VLOOKUP("*"&TablaPaíses[[#This Row],[Country]]&"*",Nombres[],2,FALSE),IFERROR(VLOOKUP(TablaPaíses[[#This Row],[Nombre corto]],Nombres[],2,FALSE),IF(TablaPaíses[[#This Row],[Nombre corto]]<>"",TablaPaíses[[#This Row],[Nombre corto]],TablaPaíses[[#This Row],[País]]&"*")))) -> República de Guatemala | E70: Guatemala | F70: =IFERROR(VLOOKUP(TablaPaíses[[#This Row],[Country]],Population[],2,FALSE),"") -> 19225807
A71: América del Sur | B71: Guayana Francesa | D71: =IFERROR(VLOOKUP(TablaPaíses[[#This Row],[País]],Nombres[],2,FALSE),IFERROR(VLOOKUP("*"&TablaPaíses[[#This Row],[Country]]&"*",Nombres[],2,FALSE),IFERROR(VLOOKUP(TablaPaíses[[#This Row],[Nombre corto]],Nombres[],2,FALSE),IF(TablaPaíses[[#This Row],[Nombre corto]]<>"",TablaPaíses[[#This Row],[Nombre corto]],TablaPaíses[[#This Row],[País]]&"*")))) -> Guayana Francesa* | E71: French Guiana | F71: =IFERROR(VLOOKUP(TablaPaíses[[#This Row],[Country]],Population[],2,FALSE),"") -> 327895
A72: África | B72: Guinea | D72: =IFERROR(VLOOKUP(TablaPaíses[[#This Row],[País]],Nombres[],2,FALSE),IFERROR(VLOOKUP("*"&TablaPaíses[[#This Row],[Country]]&"*",Nombres[],2,FALSE),IFERROR(VLOOKUP(TablaPaíses[[#This Row],[Nombre corto]],Nombres[],2,FALSE),IF(TablaPaíses[[#This Row],[Nombre corto]]<>"",TablaPaíses[[#This Row],[Nombre corto]],TablaPaíses[[#This Row],[País]]&"*")))) -> República de Guinea | E72: Guinea | F72: =IFERROR(VLOOKUP(TablaPaíses[[#This Row],[Country]],Population[],2,FALSE),"") -> 14370773
A73: África | B73: Guinea Ecuatorial | D73: =IFERROR(VLOOKUP(TablaPaíses[[#This Row],[País]],Nombres[],2,FALSE),IFERROR(VLOOKUP("*"&TablaPaíses[[#This Row],[Country]]&"*",Nombres[],2,FALSE),IFERROR(VLOOKUP(TablaPaíses[[#This Row],[Nombre corto]],Nombres[],2,FALSE),IF(TablaPaíses[[#This Row],[Nombre corto]]<>"",TablaPaíses[[#This Row],[Nombre corto]],TablaPaíses[[#This Row],[País]]&"*")))) -> República de Guinea Ecuatorial | E73: Equatorial Guinea | F73: =IFERROR(VLOOKUP(TablaPaíses[[#This Row],[Country]],Population[],2,FALSE),"") -> 1545416
A74: África | B74: Guinea-Bisáu | D74: =IFERROR(VLOOKUP(TablaPaíses[[#This Row],[País]],Nombres[],2,FALSE),IFERROR(VLOOKUP("*"&TablaPaíses[[#This Row],[Country]]&"*",Nombres[],2,FALSE),IFERROR(VLOOKUP(TablaPaíses[[#This Row],[Nombre corto]],Nombres[],2,FALSE),IF(TablaPaíses[[#This Row],[Nombre corto]]<>"",TablaPaíses[[#This Row],[Nombre corto]],TablaPaíses[[#This Row],[País]]&"*")))) -> República de Guinea-Bissau | E74: Guinea-Bissau | F74: =IFERROR(VLOOKUP(TablaPaíses[[#This Row],[Country]],Population[],2,FALSE),"") -> 2134121
A75: América del Sur | B75: Guyana | D75: =IFERROR(VLOOKUP(TablaPaíses[[#This Row],[País]],Nombres[],2,FALSE),IFERROR(VLOOKUP("*"&TablaPaíses[[#This Row],[Country]]&"*",Nombres[],2,FALSE),IFERROR(VLOOKUP(TablaPaíses[[#This Row],[Nombre corto]],Nombres[],2,FALSE),IF(TablaPaíses[[#This Row],[Nombre corto]]<>"",TablaPaíses[[#This Row],[Nombre corto]],TablaPaíses[[#This Row],[País]]&"*")))) -> Cooperativa de Guyana | E75: Guyana | F75: =IFERROR(VLOOKUP(TablaPaíses[[#This Row],[Country]],Population[],2,FALSE),"") -> 795764
A76: América del Norte | B76: Haití | D76: =IFERROR(VLOOKUP(TablaPaíses[[#This Row],[País]],Nombres[],2,FALSE),IFERROR(VLOOKUP("*"&TablaPaíses[[#This Row],[Country]]&"*",Nombres[],2,FALSE),IFERROR(VLOOKUP(TablaPaíses[[#This Row],[Nombre corto]],Nombres[],2,FALSE),IF(TablaPaíses[[#This Row],[Nombre corto]]<>"",TablaPaíses[[#This Row],[Nombre corto]],TablaPaíses[[#This Row],[País]]&"*")))) -> República de Haití | E76: Haiti | F76: =IFERROR(VLOOKUP(TablaPaíses[[#This Row],[Country]],Population[],2,FALSE),"") -> 11951222
A77: América del Norte | B77: Honduras | D77: =IFERROR(VLOOKUP(TablaPaíses[[#This Row],[País]],Nombres[],2,FALSE),IFERROR(VLOOKUP("*"&TablaPaíses[[#This Row],[Country]]&"*",Nombres[],2,FALSE),IFERROR(VLOOKUP(TablaPaíses[[#This Row],[Nombre corto]],Nombres[],2,FALSE),IF(TablaPaíses[[#This Row],[Nombre corto]]<>"",TablaPaíses[[#This Row],[Nombre corto]],TablaPaíses[[#This Row],[País]]&"*")))) -> República de Honduras | E77: Honduras | F77: =IFERROR(VLOOKUP(TablaPaíses[[#This Row],[Country]],Population[],2,FALSE),"") -> 10399095
A78: Europa | B78: Hungría | D78: =IFERROR(VLOOKUP(TablaPaíses[[#This Row],[País]],Nombres[],2,FALSE),IFERROR(VLOOKUP("*"&TablaPaíses[[#This Row],[Country]]&"*",Nombres[],2,FALSE),IFERROR(VLOOKUP(TablaPaíses[[#This Row],[Nombre corto]],Nombres[],2,FALSE),IF(TablaPaíses[[#This Row],[Nombre corto]]<>"",TablaPaíses[[#This Row],[Nombre corto]],TablaPaíses[[#This Row],[País]]&"*")))) -> República de Hungría | E78: Hungary | F78: =IFERROR(VLOOKUP(TablaPaíses[[#This Row],[Country]],Population[],2,FALSE),"") -> 9552136
A79: Asia | B79: India | D79: =IFERROR(VLOOKUP(TablaPaíses[[#This Row],[País]],Nombres[],2,FALSE),IFERROR(VLOOKUP("*"&TablaPaíses[[#This Row],[Country]]&"*",Nombres[],2,FALSE),IFERROR(VLOOKUP(TablaPaíses[[#This Row],[Nombre corto]],Nombres[],2,FALSE),IF(TablaPaíses[[#This Row],[Nombre corto]]<>"",TablaPaíses[[#This Row],[Nombre corto]],TablaPaíses[[#This Row],[País]]&"*")))) -> República de la India | E79: India | F79: =IFERROR(VLOOKUP(TablaPaíses[[#This Row],[Country]],Population[],2,FALSE),"") -> 1441803999
A80: Asia | B80: Indonesia | D80: =IFERROR(VLOOKUP(TablaPaíses[[#This Row],[País]],Nombres[],2,FALSE),IFERROR(VLOOKUP("*"&TablaPaíses[[#This Row],[Country]]&"*",Nombres[],2,FALSE),IFERROR(VLOOKUP(TablaPaíses[[#This Row],[Nombre corto]],Nombres[],2,FALSE),IF(TablaPaíses[[#This Row],[Nombre corto]]<>"",TablaPaíses[[#This Row],[Nombre corto]],TablaPaíses[[#This Row],[País]]&"*")))) -> República de Indonesia | E80: Indonesia | F80: =IFERROR(VLOOKUP(TablaPaíses[[#This Row],[Country]],Population[],2,FALSE),"") -> 285874316
A81: Asia | B81: Irak | D81: =IFERROR(VLOOKUP(TablaPaíses[[#This Row],[País]],Nombres[],2,FALSE),IFERROR(VLOOKUP("*"&TablaPaíses[[#This Row],[Country]]&"*",Nombres[],2,FALSE),IFERROR(VLOOKUP(TablaPaíses[[#This Row],[Nombre corto]],Nombres[],2,FALSE),IF(TablaPaíses[[#This Row],[Nombre corto]]<>"",TablaPaíses[[#This Row],[Nombre corto]],TablaPaíses[[#This Row],[País]]&"*")))) -> República del Iraq | E81: Iraq | F81: =IFERROR(VLOOKUP(TablaPaíses[[#This Row],[Country]],Population[],2,FALSE),"") -> 45132545
A82: Asia | B82: Irán | D82: =IFERROR(VLOOKUP(TablaPaíses[[#This Row],[País]],Nombres[],2,FALSE),IFERROR(VLOOKUP("*"&TablaPaíses[[#This Row],[Country]]&"*",Nombres[],2,FALSE),IFERROR(VLOOKUP(TablaPaíses[[#This Row],[Nombre corto]],Nombres[],2,FALSE),IF(TablaPaíses[[#This Row],[Nombre corto]]<>"",TablaPaíses[[#This Row],[Nombre corto]],TablaPaíses[[#This Row],[País]]&"*")))) -> República Islámica de Irán | E82: Iran | F82: =IFERROR(VLOOKUP(TablaPaíses[[#This Row],[Country]],Population[],2,FALSE),"") -> 87646303
A83: Europa | B83: Irlanda | D83: =IFERROR(VLOOKUP(TablaPaíses[[#This Row],[País]],Nombres[],2,FALSE),IFERROR(VLOOKUP("*"&TablaPaíses[[#This Row],[Country]]&"*",Nombres[],2,FALSE),IFERROR(VLOOKUP(TablaPaíses[[#This Row],[Nombre corto]],Nombres[],2,FALSE),IF(TablaPaíses[[#This Row],[Nombre corto]]<>"",TablaPaíses[[#This Row],[Nombre corto]],TablaPaíses[[#This Row],[País]]&"*")))) -> Irlanda | E83: Ireland | F83: =IFERROR(VLOOKUP(TablaPaíses[[#This Row],[Country]],Population[],2,FALSE),"") -> 4969057
A84: Europa | B84: Islandia | D84: =IFERROR(VLOOKUP(TablaPaíses[[#This Row],[País]],Nombres[],2,FALSE),IFERROR(VLOOKUP("*"&TablaPaíses[[#This Row],[Country]]&"*",Nombres[],2,FALSE),IFERROR(VLOOKUP(TablaPaíses[[#This Row],[Nombre corto]],Nombres[],2,FALSE),IF(TablaPaíses[[#This Row],[Nombre corto]]<>"",TablaPaíses[[#This Row],[Nombre corto]],TablaPaíses[[#This Row],[País]]&"*")))) -> República de Islandia | E84: Iceland | F84: =IFERROR(VLOOKUP(TablaPaíses[[#This Row],[Country]],Population[],2,FALSE),"") -> 349555
A85: América del Sur | B85: Islas Georgias y Sandwich | D85: =IFERROR(VLOOKUP(TablaPaíses[[#This Row],[País]],Nombres[],2,FALSE),IFERROR(VLOOKUP("*"&TablaPaíses[[#This Row],[Country]]&"*",Nombres[],2,FALSE),IFERROR(VLOOKUP(TablaPaíses[[#This Row],[Nombre corto]],Nombres[],2,FALSE),IF(TablaPaíses[[#This Row],[Nombre corto]]<>"",TablaPaíses[[#This Row],[Nombre corto]],TablaPaíses[[#This Row],[País]]&"*")))) -> Islas Georgias y Sandwich* | E85: South Georgia and the South Sandwich Islands | F85: =IFERROR(VLOOKUP(TablaPaíses[[#This Row],[Country]],Population[],2,FALSE),"") -> 
A86: América del Sur | B86: Islas Malvinas | D86: =IFERROR(VLOOKUP(TablaPaíses[[#This Row],[País]],Nombres[],2,FALSE),IFERROR(VLOOKUP("*"&TablaPaíses[[#This Row],[Country]]&"*",Nombres[],2,FALSE),IFERROR(VLOOKUP(TablaPaíses[[#This Row],[Nombre corto]],Nombres[],2,FALSE),IF(TablaPaíses[[#This Row],[Nombre corto]]<>"",TablaPaíses[[#This Row],[Nombre corto]],TablaPaíses[[#This Row],[País]]&"*")))) -> Islas Malvinas* | E86: Maldives | F86: =IFERROR(VLOOKUP(TablaPaíses[[#This Row],[Country]],Population[],2,FALSE),"") -> 573989
A87: Oceanía | B87: Islas Salomón | D87: =IFERROR(VLOOKUP(TablaPaíses[[#This Row],[País]],Nombres[],2,FALSE),IFERROR(VLOOKUP("*"&TablaPaíses[[#This Row],[Country]]&"*",Nombres[],2,FALSE),IFERROR(VLOOKUP(TablaPaíses[[#This Row],[Nombre corto]],Nombres[],2,FALSE),IF(TablaPaíses[[#This Row],[Nombre corto]]<>"",TablaPaíses[[#This Row],[Nombre corto]],TablaPaíses[[#This Row],[País]]&"*")))) -> Islas Salomón | E87: Solomon Islands | F87: =IFERROR(VLOOKUP(TablaPaíses[[#This Row],[Country]],Population[],2,FALSE),"") -> 734712
A88: Asia | B88: Israel | D88: =IFERROR(VLOOKUP(TablaPaíses[[#This Row],[País]],Nombres[],2,FALSE),IFERROR(VLOOKUP("*"&TablaPaíses[[#This Row],[Country]]&"*",Nombres[],2,FALSE),IFERROR(VLOOKUP(TablaPaíses[[#This Row],[Nombre corto]],Nombres[],2,FALSE),IF(TablaPaíses[[#This Row],[Nombre corto]]<>"",TablaPaíses[[#This Row],[Nombre corto]],TablaPaíses[[#This Row],[País]]&"*")))) -> Estado de Israel | E88: Israel | F88: =IFERROR(VLOOKUP(TablaPaíses[[#This Row],[Country]],Population[],2,FALSE),"") -> 9157115
A89: Europa | B89: Italia | D89: =IFERROR(VLOOKUP(TablaPaíses[[#This Row],[País]],Nombres[],2,FALSE),IFERROR(VLOOKUP("*"&TablaPaíses[[#This Row],[Country]]&"*",Nombres[],2,FALSE),IFERROR(VLOOKUP(TablaPaíses[[#This Row],[Nombre corto]],Nombres[],2,FALSE),IF(TablaPaíses[[#This Row],[Nombre corto]]<>"",TablaPaíses[[#This Row],[Nombre corto]],TablaPaíses[[#This Row],[País]]&"*")))) -> República Italiana | E89: Italy | F89: =IFERROR(VLOOKUP(TablaPaíses[[#This Row],[Country]],Population[],2,FALSE),"") -> 60673139
A90: América del Norte | B90: Jamaica | D90: =IFERROR(VLOOKUP(TablaPaíses[[#This Row],[País]],Nombres[],2,FALSE),IFERROR(VLOOKUP("*"&TablaPaíses[[#This Row],[Country]]&"*",Nombres[],2,FALSE),IFERROR(VLOOKUP(TablaPaíses[[#This Row],[Nombre corto]],Nombres[],2,FALSE),IF(TablaPaíses[[#This Row],[Nombre corto]]<>"",TablaPaíses[[#This Row],[Nombre corto]],TablaPaíses[[#This Row],[País]]&"*")))) -> Jamaica | E90: Jamaica | F90: =IFERROR(VLOOKUP(TablaPaíses[[#This Row],[Country]],Population[],2,FALSE),"") -> 2998245
A91: Asia | B91: Japón | D91: =IFERROR(VLOOKUP(TablaPaíses[[#This Row],[País]],Nombres[],2,FALSE),IFERROR(VLOOKUP("*"&TablaPaíses[[#This Row],[Country]]&"*",Nombres[],2,FALSE),IFERROR(VLOOKUP(TablaPaíses[[#This Row],[Nombre corto]],Nombres[],2,FALSE),IF(TablaPaíses[[#This Row],[Nombre corto]]<>"",TablaPaíses[[#This Row],[Nombre corto]],TablaPaíses[[#This Row],[País]]&"*")))) -> Japón | E91: Japan | F91: =IFERROR(VLOOKUP(TablaPaíses[[#This Row],[Country]],Population[],2,FALSE),"") -> 126086432
A92: Asia | B92: Jordania | D92: =IFERROR(VLOOKUP(TablaPaíses[[#This Row],[País]],Nombres[],2,FALSE),IFERROR(VLOOKUP("*"&TablaPaíses[[#This Row],[Country]]&"*",Nombres[],2,FALSE),IFERROR(VLOOKUP(TablaPaíses[[#This Row],[Nombre corto]],Nombres[],2,FALSE),IF(TablaPaíses[[#This Row],[Nombre corto]]<>"",TablaPaíses[[#This Row],[Nombre corto]],TablaPaíses[[#This Row],[País]]&"*")))) -> Reino Hachemita de Jordania | E92: Jordan | F92: =IFERROR(VLOOKUP(TablaPaíses[[#This Row],[Country]],Population[],2,FALSE),"") -> 11413809
A93: Asia | B93: Kazajistán | C93: Kazajstán | D93: =IFERROR(VLOOKUP(TablaPaíses[[#This Row],[País]],Nombres[],2,FALSE),IFERROR(VLOOKUP("*"&TablaPaíses[[#This Row],[Country]]&"*",Nombres[],2,FALSE),IFERROR(VLOOKUP(TablaPaíses[[#This Row],[Nombre corto]],Nombres[],2,FALSE),IF(TablaPaíses[[#This Row],[Nombre corto]]<>"",TablaPaíses[[#This Row],[Nombre corto]],TablaPaíses[[#This Row],[País]]&"*")))) -> República de Kazajstán | E93: Kazakhstan | F93: =IFERROR(VLOOKUP(TablaPaíses[[#This Row],[Country]],Population[],2,FALSE),"") -> 19815946
A94: África | B94: Kenia | D94: =IFERROR(VLOOKUP(TablaPaíses[[#This Row],[País]],Nombres[],2,FALSE),IFERROR(VLOOKUP("*"&TablaPaíses[[#This Row],[Country]]&"*",Nombres[],2,FALSE),IFERROR(VLOOKUP(TablaPaíses[[#This Row],[Nombre corto]],Nombres[],2,FALSE),IF(TablaPaíses[[#This Row],[Nombre corto]]<>"",TablaPaíses[[#This Row],[Nombre corto]],TablaPaíses[[#This Row],[País]]&"*")))) -> República de Kenia | E94: Kenya | F94: =IFERROR(VLOOKUP(TablaPaíses[[#This Row],[Country]],Population[],2,FALSE),"") -> 58877734
A95: Asia | B95: Kirguistán | D95: =IFERROR(VLOOKUP(TablaPaíses[[#This Row],[País]],Nombres[],2,FALSE),IFERROR(VLOOKUP("*"&TablaPaíses[[#This Row],[Country]]&"*",Nombres[],2,FALSE),IFERROR(VLOOKUP(TablaPaíses[[#This Row],[Nombre corto]],Nombres[],2,FALSE),IF(TablaPaíses[[#This Row],[Nombre corto]]<>"",TablaPaíses[[#This Row],[Nombre corto]],TablaPaíses[[#This Row],[País]]&"*")))) -> República Kirguisa | E95: Kyrgyzstan | F95: =IFERROR(VLOOKUP(TablaPaíses[[#This Row],[Country]],Population[],2,FALSE),"") -> 6900555
A96: Asia | B96: Kuwait | D96: =IFERROR(VLOOKUP(TablaPaíses[[#This Row],[País]],Nombres[],2,FALSE),IFERROR(VLOOKUP("*"&TablaPaíses[[#This Row],[Country]]&"*",Nombres[],2,FALSE),IFERROR(VLOOKUP(TablaPaíses[[#This Row],[Nombre corto]],Nombres[],2,FALSE),IF(TablaPaíses[[#This Row],[Nombre corto]]<>"",TablaPaíses[[#This Row],[Nombre corto]],TablaPaíses[[#This Row],[País]]&"*")))) -> Estado de Kuwait | E96: Kuwait | F96: =IFERROR(VLOOKUP(TablaPaíses[[#This Row],[Country]],Population[],2,FALSE),"") -> 5086649
A97: Asia | B97: Laos | D97: =IFERROR(VLOOKUP(TablaPaíses[[#This Row],[País]],Nombres[],2,FALSE),IFERROR(VLOOKUP("*"&TablaPaíses[[#This Row],[Country]]&"*",Nombres[],2,FALSE),IFERROR(VLOOKUP(TablaPaíses[[#This Row],[Nombre corto]],Nombres[],2,FALSE),IF(TablaPaíses[[#This Row],[Nombre corto]]<>"",TablaPaíses[[#This Row],[Nombre corto]],TablaPaíses[[#This Row],[País]]&"*")))) -> República Democrática Popular de Lao | E97: Laos | F97: =IFERROR(VLOOKUP(TablaPaíses[[#This Row],[Country]],Population[],2,FALSE),"") -> 7700414
A98: África | B98: Lesoto | D98: =IFERROR(VLOOKUP(TablaPaíses[[#This Row],[País]],Nombres[],2,FALSE),IFERROR(VLOOKUP("*"&TablaPaíses[[#This Row],[Country]]&"*",Nombres[],2,FALSE),IFERROR(VLOOKUP(TablaPaíses[[#This Row],[Nombre corto]],Nombres[],2,FALSE),IF(TablaPaíses[[#This Row],[Nombre corto]]<>"",TablaPaíses[[#This Row],[Nombre corto]],TablaPaíses[[#This Row],[País]]&"*")))) -> Reino de Lesotho | E98: Lesotho | F98: =IFERROR(VLOOKUP(TablaPaíses[[#This Row],[Country]],Population[],2,FALSE),"") -> 2235337
A99: Europa | B99: Letonia | D99: =IFERROR(VLOOKUP(TablaPaíses[[#This Row],[País]],Nombres[],2,FALSE),IFERROR(VLOOKUP("*"&TablaPaíses[[#This Row],[Country]]&"*",Nombres[],2,FALSE),IFERROR(VLOOKUP(TablaPaíses[[#This Row],[Nombre corto]],Nombres[],2,FALSE),IF(TablaPaíses[[#This Row],[Nombre corto]]<>"",TablaPaíses[[#This Row],[Nombre corto]],TablaPaíses[[#This Row],[País]]&"*")))) -> República de Letonia | E99: Latvia | F99: =IFERROR(VLOOKUP(TablaPaíses[[#This Row],[Country]],Population[],2,FALSE),"") -> 1810640
A100: Asia | B100: Líbano | D100: =IFERROR(VLOOKUP(TablaPaíses[[#This Row],[País]],Nombres[],2,FALSE),IFERROR(VLOOKUP("*"&TablaPaíses[[#This Row],[Country]]&"*",Nombres[],2,FALSE),IFERROR(VLOOKUP(TablaPaíses[[#This Row],[Nombre corto]],Nombres[],2,FALSE),IF(TablaPaíses[[#This Row],[Nombre corto]]<>"",TablaPaíses[[#This Row],[Nombre corto]],TablaPaíses[[#This Row],[País]]&"*")))) -> República Libanesa | E100: Lebanon | F100: =IFERROR(VLOOKUP(TablaPaíses[[#This Row],[Country]],Population[],2,FALSE),"") -> 8565437
A101: África | B101: Liberia | D101: =IFERROR(VLOOKUP(TablaPaíses[[#This Row],[País]],Nombres[],2,FALSE),IFERROR(VLOOKUP("*"&TablaPaíses[[#This Row],[Country]]&"*",Nombres[],2,FALSE),IFERROR(VLOOKUP(TablaPaíses[[#This Row],[Nombre corto]],Nombres[],2,FALSE),IF(TablaPaíses[[#This Row],[Nombre corto]]<>"",TablaPaíses[[#This Row],[Nombre corto]],TablaPaíses[[#This Row],[País]]&"*")))) -> República de Liberia | E101: Liberia | F101: =IFERROR(VLOOKUP(TablaPaíses[[#This Row],[Country]],Population[],2,FALSE),"") -> 5518648
A102: África | B102: Libia | D102: =IFERROR(VLOOKUP(TablaPaíses[[#This Row],[País]],Nombres[],2,FALSE),IFERROR(VLOOKUP("*"&TablaPaíses[[#This Row],[Country]]&"*",Nombres[],2,FALSE),IFERROR(VLOOKUP(TablaPaíses[[#This Row],[Nombre corto]],Nombres[],2,FALSE),IF(TablaPaíses[[#This Row],[Nombre corto]]<>"",TablaPaíses[[#This Row],[Nombre corto]],TablaPaíses[[#This Row],[País]]&"*")))) -> Libia | E102: Libya | F102: =IFERROR(VLOOKUP(TablaPaíses[[#This Row],[Country]],Population[],2,FALSE),"") -> 6835260
A103: Europa | B103: Liechtenstein | D103: =IFERROR(VLOOKUP(TablaPaíses[[#This Row],[País]],Nombres[],2,FALSE),IFERROR(VLOOKUP("*"&TablaPaíses[[#This Row],[Country]]&"*",Nombres[],2,FALSE),IFERROR(VLOOKUP(TablaPaíses[[#This Row],[Nombre corto]],Nombres[],2,FALSE),IF(TablaPaíses[[#This Row],[Nombre corto]]<>"",TablaPaíses[[#This Row],[Nombre corto]],TablaPaíses[[#This Row],[País]]&"*")))) -> Principado de Liechtenstein | E103: Liechtenstein | F103: =IFERROR(VLOOKUP(TablaPaíses[[#This Row],[Country]],Population[],2,FALSE),"") -> 39055
A104: Europa | B104: Lituania | D104: =IFERROR(VLOOKUP(TablaPaíses[[#This Row],[País]],Nombres[],2,FALSE),IFERROR(VLOOKUP("*"&TablaPaíses[[#This Row],[Country]]&"*",Nombres[],2,FALSE),IFERROR(VLOOKUP(TablaPaíses[[#This Row],[Nombre corto]],Nombres[],2,FALSE),IF(TablaPaíses[[#This Row],[Nombre corto]]<>"",TablaPaíses[[#This Row],[Nombre corto]],TablaPaíses[[#This Row],[País]]&"*")))) -> República de Lituania | E104: Lithuania | F104: =IFERROR(VLOOKUP(TablaPaíses[[#This Row],[Country]],Population[],2,FALSE),"") -> 2571122
A105: Europa | B105: Luxemburgo | D105: =IFERROR(VLOOKUP(TablaPaíses[[#This Row],[País]],Nombres[],2,FALSE),IFERROR(VLOOKUP("*"&TablaPaíses[[#This Row],[Country]]&"*",Nombres[],2,FALSE),IFERROR(VLOOKUP(TablaPaíses[[#This Row],[Nombre corto]],Nombres[],2,FALSE),IF(TablaPaíses[[#This Row],[Nombre corto]]<>"",TablaPaíses[[#This Row],[Nombre corto]],TablaPaíses[[#This Row],[País]]&"*")))) -> Gran Ducado de Luxemburgo | E105: Luxembourg | F105: =IFERROR(VLOOKUP(TablaPaíses[[#This Row],[Country]],Population[],2,FALSE),"") -> 675867
A106: Europa | B106: Macedonia del Norte | D106: =IFERROR(VLOOKUP(TablaPaíses[[#This Row],[País]],Nombres[],2,FALSE),IFERROR(VLOOKUP("*"&TablaPaíses[[#This Row],[Country]]&"*",Nombres[],2,FALSE),IFERROR(VLOOKUP(TablaPaíses[[#This Row],[Nombre corto]],Nombres[],2,FALSE),IF(TablaPaíses[[#This Row],[Nombre corto]]<>"",TablaPaíses[[#This Row],[Nombre corto]],TablaPaíses[[#This Row],[País]]&"*")))) -> República de Macedonia del Norte | E106: North Macedonia | F106: =IFERROR(VLOOKUP(TablaPaíses[[#This Row],[Country]],Population[],2,FALSE),"") -> 2096019
A107: África | B107: Madagascar | D107: =IFERROR(VLOOKUP(TablaPaíses[[#This Row],[País]],Nombres[],2,FALSE),IFERROR(VLOOKUP("*"&TablaPaíses[[#This Row],[Country]]&"*",Nombres[],2,FALSE),IFERROR(VLOOKUP(TablaPaíses[[#This Row],[Nombre corto]],Nombres[],2,FALSE),IF(TablaPaíses[[#This Row],[Nombre corto]]<>"",TablaPaíses[[#This Row],[Nombre corto]],TablaPaíses[[#This Row],[País]]&"*")))) -> República de Madagascar | E107: Madagascar | F107: =IFERROR(VLOOKUP(TablaPaíses[[#This Row],[Country]],Population[],2,FALSE),"") -> 30419341
A108: Asia | B108: Malasia | D108: =IFERROR(VLOOKUP(TablaPaíses[[#This Row],[País]],Nombres[],2,FALSE),IFERROR(VLOOKUP("*"&TablaPaíses[[#This Row],[Country]]&"*",Nombres[],2,FALSE),IFERROR(VLOOKUP(TablaPaíses[[#This Row],[Nombre corto]],Nombres[],2,FALSE),IF(TablaPaíses[[#This Row],[Nombre corto]]<>"",TablaPaíses[[#This Row],[Nombre corto]],TablaPaíses[[#This Row],[País]]&"*")))) -> Malasia | E108: Malaysia | F108: =IFERROR(VLOOKUP(TablaPaíses[[#This Row],[Country]],Population[],2,FALSE),"") -> 34096836
A109: África | B109: Malaui | D109: =IFERROR(VLOOKUP(TablaPaíses[[#This Row],[País]],Nombres[],2,FALSE),IFERROR(VLOOKUP("*"&TablaPaíses[[#This Row],[Country]]&"*",Nombres[],2,FALSE),IFERROR(VLOOKUP(TablaPaíses[[#This Row],[Nombre corto]],Nombres[],2,FALSE),IF(TablaPaíses[[#This Row],[Nombre corto]]<>"",TablaPaíses[[#This Row],[Nombre corto]],TablaPaíses[[#This Row],[País]]&"*")))) -> República de Malawi | E109: Malawi | F109: =IFERROR(VLOOKUP(TablaPaíses[[#This Row],[Country]],Population[],2,FALSE),"") -> 21230796
A110: África | B110: Malí | D110: =IFERROR(VLOOKUP(TablaPaíses[[#This Row],[País]],Nombres[],2,FALSE),IFERROR(VLOOKUP("*"&TablaPaíses[[#This Row],[Country]]&"*",Nombres[],2,FALSE),IFERROR(VLOOKUP(TablaPaíses[[#This Row],[Nombre corto]],Nombres[],2,FALSE),IF(TablaPaíses[[#This Row],[Nombre corto]]<>"",TablaPaíses[[#This Row],[Nombre corto]],TablaPaíses[[#This Row],[País]]&"*")))) -> República de Malí | E110: Mali | F110: =IFERROR(VLOOKUP(TablaPaíses[[#This Row],[Country]],Population[],2,FALSE),"") -> 22365412
A111: Europa | B111: Malta | D111: =IFERROR(VLOOKUP(TablaPaíses[[#This Row],[País]],Nombres[],2,FALSE),IFERROR(VLOOKUP("*"&TablaPaíses[[#This Row],[Country]]&"*",Nombres[],2,FALSE),IFERROR(VLOOKUP(TablaPaíses[[#This Row],[Nombre corto]],Nombres[],2,FALSE),IF(TablaPaíses[[#This Row],[Nombre corto]]<>"",TablaPaíses[[#This Row],[Nombre corto]],TablaPaíses[[#This Row],[País]]&"*")))) -> República de Malta | E111: Malta | F111: =IFERROR(VLOOKUP(TablaPaíses[[#This Row],[Country]],Population[],2,FALSE),"") -> 446463
A112: África | B112: Marruecos | D112: =IFERROR(VLOOKUP(TablaPaíses[[#This Row],[País]],Nombres[],2,FALSE),IFERROR(VLOOKUP("*"&TablaPaíses[[#This Row],[Country]]&"*",Nombres[],2,FALSE),IFERROR(VLOOKUP(TablaPaíses[[#This Row],[Nombre corto]],Nombres[],2,FALSE),IF(TablaPaíses[[#This Row],[Nombre corto]]<>"",TablaPaíses[[#This Row],[Nombre corto]],TablaPaíses[[#This Row],[País]]&"*")))) -> Reino de Marruecos | E112: Morocco | F112: =IFERROR(VLOOKUP(TablaPaíses[[#This Row],[Country]],Population[],2,FALSE),"") -> 38682907
A113: África | B113: Mauricio | D113: =IFERROR(VLOOKUP(TablaPaíses[[#This Row],[País]],Nombres[],2,FALSE),IFERROR(VLOOKUP("*"&TablaPaíses[[#This Row],[Country]]&"*",Nombres[],2,FALSE),IFERROR(VLOOKUP(TablaPaíses[[#This Row],[Nombre corto]],Nombres[],2,FALSE),IF(TablaPaíses[[#This Row],[Nombre corto]]<>"",TablaPaíses[[#This Row],[Nombre corto]],TablaPaíses[[#This Row],[País]]&"*")))) -> República de Mauricio | E113: Mauritius | F113: =IFERROR(VLOOKUP(TablaPaíses[[#This Row],[Country]],Population[],2,FALSE),"") -> 1290679
A114: África | B114: Mauritania | D114: =IFERROR(VLOOKUP(TablaPaíses[[#This Row],[País]],Nombres[],2,FALSE),IFERROR(VLOOKUP("*"&TablaPaíses[[#This Row],[Country]]&"*",Nombres[],2,FALSE),IFERROR(VLOOKUP(TablaPaíses[[#This Row],[Nombre corto]],Nombres[],2,FALSE),IF(TablaPaíses[[#This Row],[Nombre corto]]<>"",TablaPaíses[[#This Row],[Nombre corto]],TablaPaíses[[#This Row],[País]]&"*")))) -> República Islámica de Mauritania | E114: Mauritania | F114: =IFERROR(VLOOKUP(TablaPaíses[[#This Row],[Country]],Population[],2,FALSE),"") -> 5048429
A115: América del Norte | B115: México | D115: =IFERROR(VLOOKUP(TablaPaíses[[#This Row],[País]],Nombres[],2,FALSE),IFERROR(VLOOKUP("*"&TablaPaíses[[#This Row],[Country]]&"*",Nombres[],2,FALSE),IFERROR(VLOOKUP(TablaPaíses[[#This Row],[Nombre corto]],Nombres[],2,FALSE),IF(TablaPaíses[[#This Row],[Nombre corto]]<>"",TablaPaíses[[#This Row],[Nombre corto]],TablaPaíses[[#This Row],[País]]&"*")))) -> Estados Unidos Mexicanos | E115: Mexico | F115: =IFERROR(VLOOKUP(TablaPaíses[[#This Row],[Country]],Population[],2,FALSE),"") -> 135226177
A116: Europa | B116: Moldavia | D116: =IFERROR(VLOOKUP(TablaPaíses[[#This Row],[País]],Nombres[],2,FALSE),IFERROR(VLOOKUP("*"&TablaPaíses[[#This Row],[Country]]&"*",Nombres[],2,FALSE),IFERROR(VLOOKUP(TablaPaíses[[#This Row],[Nombre corto]],Nombres[],2,FALSE),IF(TablaPaíses[[#This Row],[Nombre corto]]<>"",TablaPaíses[[#This Row],[Nombre corto]],TablaPaíses[[#This Row],[País]]&"*")))) -> República de Moldavia | E116: Republic of Moldova | F116: =IFERROR(VLOOKUP(TablaPaíses[[#This Row],[Country]],Population[],2,FALSE),"") -> 4026492
A117: Europa | B117: Mónaco | D117: =IFERROR(VLOOKUP(TablaPaíses[[#This Row],[País]],Nombres[],2,FALSE),IFERROR(VLOOKUP("*"&TablaPaíses[[#This Row],[Country]]&"*",Nombres[],2,FALSE),IFERROR(VLOOKUP(TablaPaíses[[#This Row],[Nombre corto]],Nombres[],2,FALSE),IF(TablaPaíses[[#This Row],[Nombre corto]]<>"",TablaPaíses[[#This Row],[Nombre corto]],TablaPaíses[[#This Row],[País]]&"*")))) -> Principado de Mónaco | E117: Monaco | F117: =IFERROR(VLOOKUP(TablaPaíses[[#This Row],[Country]],Population[],2,FALSE),"") -> 38919
A118: Asia | B118: Mongolia | D118: =IFERROR(VLOOKUP(TablaPaíses[[#This Row],[País]],Nombres[],2,FALSE),IFERROR(VLOOKUP("*"&TablaPaíses[[#This Row],[Country]]&"*",Nombres[],2,FALSE),IFERROR(VLOOKUP(TablaPaíses[[#This Row],[Nombre corto]],Nombres[],2,FALSE),IF(TablaPaíses[[#This Row],[Nombre corto]]<>"",TablaPaíses[[#This Row],[Nombre corto]],TablaPaíses[[#This Row],[País]]&"*")))) -> Mongolia | E118: Mongolia | F118: =IFERROR(VLOOKUP(TablaPaíses[[#This Row],[Country]],Population[],2,FALSE),"") -> 3477548
A119: Europa | B119: Montenegro | D119: =IFERROR(VLOOKUP(TablaPaíses[[#This Row],[País]],Nombres[],2,FALSE),IFERROR(VLOOKUP("*"&TablaPaíses[[#This Row],[Country]]&"*",Nombres[],2,FALSE),IFERROR(VLOOKUP(TablaPaíses[[#This Row],[Nombre corto]],Nombres[],2,FALSE),IF(TablaPaíses[[#This Row],[Nombre corto]]<>"",TablaPaíses[[#This Row],[Nombre corto]],TablaPaíses[[#This Row],[País]]&"*")))) -> Montenegro | E119: Montenegro | F119: =IFERROR(VLOOKUP(TablaPaíses[[#This Row],[Country]],Population[],2,FALSE),"") -> 631036
A120: África | B120: Mozambique | D120: =IFERROR(VLOOKUP(TablaPaíses[[#This Row],[País]],Nombres[],2,FALSE),IFERROR(VLOOKUP("*"&TablaPaíses[[#This Row],[Country]]&"*",Nombres[],2,FALSE),IFERROR(VLOOKUP(TablaPaíses[[#This Row],[Nombre corto]],Nombres[],2,FALSE),IF(TablaPaíses[[#This Row],[Nombre corto]]<>"",TablaPaíses[[#This Row],[Nombre corto]],TablaPaíses[[#This Row],[País]]&"*")))) -> República de Mozambique | E120: Mozambique | F120: =IFERROR(VLOOKUP(TablaPaíses[[#This Row],[Country]],Population[],2,FALSE),"") -> 34306564
A121: África | B121: Namibia | D121: =IFERROR(VLOOKUP(TablaPaíses[[#This Row],[País]],Nombres[],2,FALSE),IFERROR(VLOOKUP("*"&TablaPaíses[[#This Row],[Country]]&"*",Nombres[],2,FALSE),IFERROR(VLOOKUP(TablaPaíses[[#This Row],[Nombre corto]],Nombres[],2,FALSE),IF(TablaPaíses[[#This Row],[Nombre corto]]<>"",TablaPaíses[[#This Row],[Nombre corto]],TablaPaíses[[#This Row],[País]]&"*")))) -> República de Namibia | E121: Namibia | F121: =IFERROR(VLOOKUP(TablaPaíses[[#This Row],[Country]],Population[],2,FALSE),"") -> 2748780
A122: Asia | B122: Nepal | D122: =IFERROR(VLOOKUP(TablaPaíses[[#This Row],[País]],Nombres[],2,FALSE),IFERROR(VLOOKUP("*"&TablaPaíses[[#This Row],[Country]]&"*",Nombres[],2,FALSE),IFERROR(VLOOKUP(TablaPaíses[[#This Row],[Nombre corto]],Nombres[],2,FALSE),IF(TablaPaíses[[#This Row],[Nombre corto]]<>"",TablaPaíses[[#This Row],[Nombre corto]],TablaPaíses[[#This Row],[País]]&"*")))) -> República Democrática Federal de Nepal | E122: Nepal | F122: =IFERROR(VLOOKUP(TablaPaíses[[#This Row],[Country]],Population[],2,FALSE),"") -> 30227160
A123: América del Norte | B123: Nicaragua | D123: =IFERROR(VLOOKUP(TablaPaíses[[#This Row],[País]],Nombres[],2,FALSE),IFERROR(VLOOKUP("*"&TablaPaíses[[#This Row],[Country]]&"*",Nombres[],2,FALSE),IFERROR(VLOOKUP(TablaPaíses[[#This Row],[Nombre corto]],Nombres[],2,FALSE),IF(TablaPaíses[[#This Row],[Nombre corto]]<>"",TablaPaíses[[#This Row],[Nombre corto]],TablaPaíses[[#This Row],[País]]&"*")))) -> República de Nicaragua | E123: Nicaragua | F123: =IFERROR(VLOOKUP(TablaPaíses[[#This Row],[Country]],Population[],2,FALSE),"") -> 6889034
A124: África | B124: Níger | D124: =IFERROR(VLOOKUP(TablaPaíses[[#This Row],[País]],Nombres[],2,FALSE),IFERROR(VLOOKUP("*"&TablaPaíses[[#This Row],[Country]]&"*",Nombres[],2,FALSE),IFERROR(VLOOKUP(TablaPaíses[[#This Row],[Nombre corto]],Nombres[],2,FALSE),IF(TablaPaíses[[#This Row],[Nombre corto]]<>"",TablaPaíses[[#This Row],[Nombre corto]],TablaPaíses[[#This Row],[País]]&"*")))) -> República de Niger | E124: Niger | F124: =IFERROR(VLOOKUP(TablaPaíses[[#This Row],[Country]],Population[],2,FALSE),"") -> 27668402
A125: África | B125: Nigeria | D125: =IFERROR(VLOOKUP(TablaPaíses[[#This Row],[País]],Nombres[],2,FALSE),IFERROR(VLOOKUP("*"&TablaPaíses[[#This Row],[Country]]&"*",Nombres[],2,FALSE),IFERROR(VLOOKUP(TablaPaíses[[#This Row],[Nombre corto]],Nombres[],2,FALSE),IF(TablaPaíses[[#This Row],[Nombre corto]]<>"",TablaPaíses[[#This Row],[Nombre corto]],TablaPaíses[[#This Row],[País]]&"*")))) -> República Federal de Nigeria | E125: Nigeria | F125: =IFERROR(VLOOKUP(TablaPaíses[[#This Row],[Country]],Population[],2,FALSE),"") -> 225538686
A126: Europa | B126: Noruega | D126: =IFERROR(VLOOKUP(TablaPaíses[[#This Row],[País]],Nombres[],2,FALSE),IFERROR(VLOOKUP("*"&TablaPaíses[[#This Row],[Country]]&"*",Nombres[],2,FALSE),IFERROR(VLOOKUP(TablaPaíses[[#This Row],[Nombre corto]],Nombres[],2,FALSE),IF(TablaPaíses[[#This Row],[Nombre corto]]<>"",TablaPaíses[[#This Row],[Nombre corto]],TablaPaíses[[#This Row],[País]]&"*")))) -> Reino de Noruega | E126: Norway | F126: =IFERROR(VLOOKUP(TablaPaíses[[#This Row],[Country]],Population[],2,FALSE),"") -> 5671282
A127: Oceanía | B127: Nueva Zelanda | D127: =IFERROR(VLOOKUP(TablaPaíses[[#This Row],[País]],Nombres[],2,FALSE),IFERROR(VLOOKUP("*"&TablaPaíses[[#This Row],[Country]]&"*",Nombres[],2,FALSE),IFERROR(VLOOKUP(TablaPaíses[[#This Row],[Nombre corto]],Nombres[],2,FALSE),IF(TablaPaíses[[#This Row],[Nombre corto]]<>"",TablaPaíses[[#This Row],[Nombre corto]],TablaPaíses[[#This Row],[País]]&"*")))) -> Nueva Zelanda | E127: New Zealand | F127: =IFERROR(VLOOKUP(TablaPaíses[[#This Row],[Country]],Population[],2,FALSE),"") -> 4938228
A128: Asia | B128: Omán | D128: =IFERROR(VLOOKUP(TablaPaíses[[#This Row],[País]],Nombres[],2,FALSE),IFERROR(VLOOKUP("*"&TablaPaíses[[#This Row],[Country]]&"*",Nombres[],2,FALSE),IFERROR(VLOOKUP(TablaPaíses[[#This Row],[Nombre corto]],Nombres[],2,FALSE),IF(TablaPaíses[[#This Row],[Nombre corto]]<>"",TablaPaíses[[#This Row],[Nombre corto]],TablaPaíses[[#This Row],[País]]&"*")))) -> Sultanía de Omán | E128: Oman | F128: =IFERROR(VLOOKUP(TablaPaíses[[#This Row],[Country]],Population[],2,FALSE),"") -> 6883637
A129: Europa | B129: Países Bajos | D129: =IFERROR(VLOOKUP(TablaPaíses[[#This Row],[País]],Nombres[],2,FALSE),IFERROR(VLOOKUP("*"&TablaPaíses[[#This Row],[Country]]&"*",Nombres[],2,FALSE),IFERROR(VLOOKUP(TablaPaíses[[#This Row],[Nombre corto]],Nombres[],2,FALSE),IF(TablaPaíses[[#This Row],[Nombre corto]]<>"",TablaPaíses[[#This Row],[Nombre corto]],TablaPaíses[[#This Row],[País]]&"*")))) -> Reino de los Países Bajos | E129: Netherlands | F129: =IFERROR(VLOOKUP(TablaPaíses[[#This Row],[Country]],Population[],2,FALSE),"") -> 17349846
A130: Asia | B130: Pakistán | D130: =IFERROR(VLOOKUP(TablaPaíses[[#This Row],[País]],Nombres[],2,FALSE),IFERROR(VLOOKUP("*"&TablaPaíses[[#This Row],[Country]]&"*",Nombres[],2,FALSE),IFERROR(VLOOKUP(TablaPaíses[[#This Row],[Nombre corto]],Nombres[],2,FALSE),IF(TablaPaíses[[#This Row],[Nombre corto]]<>"",TablaPaíses[[#This Row],[Nombre corto]],TablaPaíses[[#This Row],[País]]&"*")))) -> República Islámica de Pakistán | E130: Pakistan | F130: =IFERROR(VLOOKUP(TablaPaíses[[#This Row],[Country]],Population[],2,FALSE),"") -> 237206546
A131: Asia | B131: Palestina | D131: =IFERROR(VLOOKUP(TablaPaíses[[#This Row],[País]],Nombres[],2,FALSE),IFERROR(VLOOKUP("*"&TablaPaíses[[#This Row],[Country]]&"*",Nombres[],2,FALSE),IFERROR(VLOOKUP(TablaPaíses[[#This Row],[Nombre corto]],Nombres[],2,FALSE),IF(TablaPaíses[[#This Row],[Nombre corto]]<>"",TablaPaíses[[#This Row],[Nombre corto]],TablaPaíses[[#This Row],[País]]&"*")))) -> Palestina* | E131: Palestinian Authority | F131: =IFERROR(VLOOKUP(TablaPaíses[[#This Row],[Country]],Population[],2,FALSE),"") -> 5602506
A132: América del Norte | B132: Panamá | D132: =IFERROR(VLOOKUP(TablaPaíses[[#This Row],[País]],Nombres[],2,FALSE),IFERROR(VLOOKUP("*"&TablaPaíses[[#This Row],[Country]]&"*",Nombres[],2,FALSE),IFERROR(VLOOKUP(TablaPaíses[[#This Row],[Nombre corto]],Nombres[],2,FALSE),IF(TablaPaíses[[#This Row],[Nombre corto]]<>"",TablaPaíses[[#This Row],[Nombre corto]],TablaPaíses[[#This Row],[País]]&"*")))) -> República de Panamá | E132: Panama | F132: =IFERROR(VLOOKUP(TablaPaíses[[#This Row],[Country]],Population[],2,FALSE),"") -> 4560019
A133: Oceanía | B133: Papúa Nueva Guinea | D133: =IFERROR(VLOOKUP(TablaPaíses[[#This Row],[País]],Nombres[],2,FALSE),IFERROR(VLOOKUP("*"&TablaPaíses[[#This Row],[Country]]&"*",Nombres[],2,FALSE),IFERROR(VLOOKUP(TablaPaíses[[#This Row],[Nombre corto]],Nombres[],2,FALSE),IF(TablaPaíses[[#This Row],[Nombre corto]]<>"",TablaPaíses[[#This Row],[Nombre corto]],TablaPaíses[[#This Row],[País]]&"*")))) -> Papúa Nueva Guinea | E133: Papua New Guinea | F133: =IFERROR(VLOOKUP(TablaPaíses[[#This Row],[Country]],Population[],2,FALSE),"") -> 9621537
A134: América del Sur | B134: Paraguay | D134: =IFERROR(VLOOKUP(TablaPaíses[[#This Row],[País]],Nombres[],2,FALSE),IFERROR(VLOOKUP("*"&TablaPaíses[[#This Row],[Country]]&"*",Nombres[],2,FALSE),IFERROR(VLOOKUP(TablaPaíses[[#This Row],[Nombre corto]],Nombres[],2,FALSE),IF(TablaPaíses[[#This Row],[Nombre corto]]<>"",TablaPaíses[[#This Row],[Nombre corto]],TablaPaíses[[#This Row],[País]]&"*")))) -> República del Paraguay | E134: Paraguay | F134: =IFERROR(VLOOKUP(TablaPaíses[[#This Row],[Country]],Population[],2,FALSE),"") -> 7464781
A135: América del Sur | B135: Perú | D135: =IFERROR(VLOOKUP(TablaPaíses[[#This Row],[País]],Nombres[],2,FALSE),IFERROR(VLOOKUP("*"&TablaPaíses[[#This Row],[Country]]&"*",Nombres[],2,FALSE),IFERROR(VLOOKUP(TablaPaíses[[#This Row],[Nombre corto]],Nombres[],2,FALSE),IF(TablaPaíses[[#This Row],[Nombre corto]]<>"",TablaPaíses[[#This Row],[Nombre corto]],TablaPaíses[[#This Row],[País]]&"*")))) -> República del Perú | E135: Peru | F135: =IFERROR(VLOOKUP(TablaPaíses[[#This Row],[Country]],Population[],2,FALSE),"") -> 34456389
A136: Europa | B136: Polonia | D136: =IFERROR(VLOOKUP(TablaPaíses[[#This Row],[País]],Nombres[],2,FALSE),IFERROR(VLOOKUP("*"&TablaPaíses[[#This Row],[Country]]&"*",Nombres[],2,FALSE),IFERROR(VLOOKUP(TablaPaíses[[#This Row],[Nombre corto]],Nombres[],2,FALSE),IF(TablaPaíses[[#This Row],[Nombre corto]]<>"",TablaPaíses[[#This Row],[Nombre corto]],TablaPaíses[[#This Row],[País]]&"*")))) -> República de Polonia | E136: Poland | F136: =IFERROR(VLOOKUP(TablaPaíses[[#This Row],[Country]],Population[],2,FALSE),"") -> 37895094
A137: Europa | B137: Portugal | D137: =IFERROR(VLOOKUP(TablaPaíses[[#This Row],[País]],Nombres[],2,FALSE),IFERROR(VLOOKUP("*"&TablaPaíses[[#This Row],[Country]]&"*",Nombres[],2,FALSE),IFERROR(VLOOKUP(TablaPaíses[[#This Row],[Nombre corto]],Nombres[],2,FALSE),IF(TablaPaíses[[#This Row],[Nombre corto]]<>"",TablaPaíses[[#This Row],[Nombre corto]],TablaPaíses[[#This Row],[País]]&"*")))) -> República Portuguesa | E137: Portugal | F137: =IFERROR(VLOOKUP(TablaPaíses[[#This Row],[Country]],Population[],2,FALSE),"") -> 10034031
A138: Europa | B138: Reino Unido | D138: =IFERROR(VLOOKUP(TablaPaíses[[#This Row],[País]],Nombres[],2,FALSE),IFERROR(VLOOKUP("*"&TablaPaíses[[#This Row],[Country]]&"*",Nombres[],2,FALSE),IFERROR(VLOOKUP(TablaPaíses[[#This Row],[Nombre corto]],Nombres[],2,FALSE),IF(TablaPaíses[[#This Row],[Nombre corto]]<>"",TablaPaíses[[#This Row],[Nombre corto]],TablaPaíses[[#This Row],[País]]&"*")))) -> Reino Unido* | E138: United Kingdom (UK) | F138: =IFERROR(VLOOKUP(TablaPaíses[[#This Row],[Country]],Population[],2,FALSE),"") -> 69379700
A139: África | B139: República Centroafricana | D139: =IFERROR(VLOOKUP(TablaPaíses[[#This Row],[País]],Nombres[],2,FALSE),IFERROR(VLOOKUP("*"&TablaPaíses[[#This Row],[Country]]&"*",Nombres[],2,FALSE),IFERROR(VLOOKUP(TablaPaíses[[#This Row],[Nombre corto]],Nombres[],2,FALSE),IF(TablaPaíses[[#This Row],[Nombre corto]]<>"",TablaPaíses[[#This Row],[Nombre corto]],TablaPaíses[[#This Row],[País]]&"*")))) -> República Centroafricana | E139: Central African Republic | F139: =IFERROR(VLOOKUP(TablaPaíses[[#This Row],[Country]],Population[],2,FALSE),"") -> 5161442
A140: Europa | B140: República Checa | D140: =IFERROR(VLOOKUP(TablaPaíses[[#This Row],[País]],Nombres[],2,FALSE),IFERROR(VLOOKUP("*"&TablaPaíses[[#This Row],[Country]]&"*",Nombres[],2,FALSE),IFERROR(VLOOKUP(TablaPaíses[[#This Row],[Nombre corto]],Nombres[],2,FALSE),IF(TablaPaíses[[#This Row],[Nombre corto]]<>"",TablaPaíses[[#This Row],[Nombre corto]],TablaPaíses[[#This Row],[País]]&"*")))) -> República Checa | E140: Czech Republic | F140: =IFERROR(VLOOKUP(TablaPaíses[[#This Row],[Country]],Population[],2,FALSE),"") -> 10727922
A141: África | B141: República del Congo | D141: =IFERROR(VLOOKUP(TablaPaíses[[#This Row],[País]],Nombres[],2,FALSE),IFERROR(VLOOKUP("*"&TablaPaíses[[#This Row],[Country]]&"*",Nombres[],2,FALSE),IFERROR(VLOOKUP(TablaPaíses[[#This Row],[Nombre corto]],Nombres[],2,FALSE),IF(TablaPaíses[[#This Row],[Nombre corto]]<>"",TablaPaíses[[#This Row],[Nombre corto]],TablaPaíses[[#This Row],[País]]&"*")))) -> República del Congo | E141: Congo | F141: =IFERROR(VLOOKUP(TablaPaíses[[#This Row],[Country]],Population[],2,FALSE),"") -> 6011610
A142: África | B142: República Democrática del Congo | D142: =IFERROR(VLOOKUP(TablaPaíses[[#This Row],[País]],Nombres[],2,FALSE),IFERROR(VLOOKUP("*"&TablaPaíses[[#This Row],[Country]]&"*",Nombres[],2,FALSE),IFERROR(VLOOKUP(TablaPaíses[[#This Row],[Nombre corto]],Nombres[],2,FALSE),IF(TablaPaíses[[#This Row],[Nombre corto]]<>"",TablaPaíses[[#This Row],[Nombre corto]],TablaPaíses[[#This Row],[País]]&"*")))) -> República Democrática del Congo | E142: Democratic Republic of the Congo | F142: =IFERROR(VLOOKUP(TablaPaíses[[#This Row],[Country]],Population[],2,FALSE),"") -> 99557681
A143: América del Norte | B143: República Dominicana | D143: =IFERROR(VLOOKUP(TablaPaíses[[#This Row],[País]],Nombres[],2,FALSE),IFERROR(VLOOKUP("*"&TablaPaíses[[#This Row],[Country]]&"*",Nombres[],2,FALSE),IFERROR(VLOOKUP(TablaPaíses[[#This Row],[Nombre corto]],Nombres[],2,FALSE),IF(TablaPaíses[[#This Row],[Nombre corto]]<>"",TablaPaíses[[#This Row],[Nombre corto]],TablaPaíses[[#This Row],[País]]&"*")))) -> República Dominicana | E143: Dominican Republic | F143: =IFERROR(VLOOKUP(TablaPaíses[[#This Row],[Country]],Population[],2,FALSE),"") -> 11321684
A144: África | B144: Ruanda | D144: =IFERROR(VLOOKUP(TablaPaíses[[#This Row],[País]],Nombres[],2,FALSE),IFERROR(VLOOKUP("*"&TablaPaíses[[#This Row],[Country]]&"*",Nombres[],2,FALSE),IFERROR(VLOOKUP(TablaPaíses[[#This Row],[Nombre corto]],Nombres[],2,FALSE),IF(TablaPaíses[[#This Row],[Nombre corto]]<>"",TablaPaíses[[#This Row],[Nombre corto]],TablaPaíses[[#This Row],[País]]&"*")))) -> República de Rwanda | E144: Rwanda | F144: =IFERROR(VLOOKUP(TablaPaíses[[#This Row],[Country]],Population[],2,FALSE),"") -> 14029645
A145: Europa | B145: Rumanía | C145: Rumanía | D145: =IFERROR(VLOOKUP(TablaPaíses[[#This Row],[País]],Nombres[],2,FALSE),IFERROR(VLOOKUP("*"&TablaPaíses[[#This Row],[Country]]&"*",Nombres[],2,FALSE),IFERROR(VLOOKUP(TablaPaíses[[#This Row],[Nombre corto]],Nombres[],2,FALSE),IF(TablaPaíses[[#This Row],[Nombre corto]]<>"",TablaPaíses[[#This Row],[Nombre corto]],TablaPaíses[[#This Row],[País]]&"*")))) -> Rumanía | E145: Romania | F145: =IFERROR(VLOOKUP(TablaPaíses[[#This Row],[Country]],Population[],2,FALSE),"") -> 18713233
A146: Europa | B146: Rusia | C146: Federación de Rusia | D146: =IFERROR(VLOOKUP(TablaPaíses[[#This Row],[País]],Nombres[],2,FALSE),IFERROR(VLOOKUP("*"&TablaPaíses[[#This Row],[Country]]&"*",Nombres[],2,FALSE),IFERROR(VLOOKUP(TablaPaíses[[#This Row],[Nombre corto]],Nombres[],2,FALSE),IF(TablaPaíses[[#This Row],[Nombre corto]]<>"",TablaPaíses[[#This Row],[Nombre corto]],TablaPaíses[[#This Row],[País]]&"*")))) -> Federación de Rusia | E146: Russian Federation | F146: =IFERROR(VLOOKUP(TablaPaíses[[#This Row],[Country]],Population[],2,FALSE),"") -> 146136559
A147: Europa | B147: San Marino | D147: =IFERROR(VLOOKUP(TablaPaíses[[#This Row],[País]],Nombres[],2,FALSE),IFERROR(VLOOKUP("*"&TablaPaíses[[#This Row],[Country]]&"*",Nombres[],2,FALSE),IFERROR(VLOOKUP(TablaPaíses[[#This Row],[Nombre corto]],Nombres[],2,FALSE),IF(TablaPaíses[[#This Row],[Nombre corto]]<>"",TablaPaíses[[#This Row],[Nombre corto]],TablaPaíses[[#This Row],[País]]&"*")))) -> República de San Marino | E147: San Marino | F147: =IFERROR(VLOOKUP(TablaPaíses[[#This Row],[Country]],Population[],2,FALSE),"") -> 35299
A148: África | B148: Santo Tomé y Príncipe | D148: =IFERROR(VLOOKUP(TablaPaíses[[#This Row],[País]],Nombres[],2,FALSE),IFERROR(VLOOKUP("*"&TablaPaíses[[#This Row],[Country]]&"*",Nombres[],2,FALSE),IFERROR(VLOOKUP(TablaPaíses[[#This Row],[Nombre corto]],Nombres[],2,FALSE),IF(TablaPaíses[[#This Row],[Nombre corto]]<>"",TablaPaíses[[#This Row],[Nombre corto]],TablaPaíses[[#This Row],[País]]&"*")))) -> República Democrática de Santo Tomé y Príncipe | E148: Sao Tome and Principe | F148: =IFERROR(VLOOKUP(TablaPaíses[[#This Row],[Country]],Population[],2,FALSE),"") -> 235913
A149: África | B149: Sáhara Occidental | C149: República Árabe Saharaui Democrática | D149: =IFERROR(VLOOKUP(TablaPaíses[[#This Row],[País]],Nombres[],2,FALSE),IFERROR(VLOOKUP("*"&TablaPaíses[[#This Row],[Country]]&"*",Nombres[],2,FALSE),IFERROR(VLOOKUP(TablaPaíses[[#This Row],[Nombre corto]],Nombres[],2,FALSE),IF(TablaPaíses[[#This Row],[Nombre corto]]<>"",TablaPaíses[[#This Row],[Nombre corto]],TablaPaíses[[#This Row],[País]]&"*")))) -> República Árabe Saharaui Democrática | E149: Western Sahara | F149: =IFERROR(VLOOKUP(TablaPaíses[[#This Row],[Country]],Population[],2,FALSE),"") -> 642843
A150: África | B150: Senegal | D150: =IFERROR(VLOOKUP(TablaPaíses[[#This Row],[País]],Nombres[],2,FALSE),IFERROR(VLOOKUP("*"&TablaPaíses[[#This Row],[Country]]&"*",Nombres[],2,FALSE),IFERROR(VLOOKUP(TablaPaíses[[#This Row],[Nombre corto]],Nombres[],2,FALSE),IF(TablaPaíses[[#This Row],[Nombre corto]]<>"",TablaPaíses[[#This Row],[Nombre corto]],TablaPaíses[[#This Row],[País]]&"*")))) -> República de Senegal | E150: Senegal | F150: =IFERROR(VLOOKUP(TablaPaíses[[#This Row],[Country]],Population[],2,FALSE),"") -> 18603776
A151: Europa | B151: Serbia | D151: =IFERROR(VLOOKUP(TablaPaíses[[#This Row],[País]],Nombres[],2,FALSE),IFERROR(VLOOKUP("*"&TablaPaíses[[#This Row],[Country]]&"*",Nombres[],2,FALSE),IFERROR(VLOOKUP(TablaPaíses[[#This Row],[Nombre corto]],Nombres[],2,FALSE),IF(TablaPaíses[[#This Row],[Nombre corto]]<>"",TablaPaíses[[#This Row],[Nombre corto]],TablaPaíses[[#This Row],[País]]&"*")))) -> República de Serbia | E151: Serbia | F151: =IFERROR(VLOOKUP(TablaPaíses[[#This Row],[Country]],Population[],2,FALSE),"") -> 8597624
A152: África | B152: Sierra Leona | D152: =IFERROR(VLOOKUP(TablaPaíses[[#This Row],[País]],Nombres[],2,FALSE),IFERROR(VLOOKUP("*"&TablaPaíses[[#This Row],[Country]]&"*",Nombres[],2,FALSE),IFERROR(VLOOKUP(TablaPaíses[[#This Row],[Nombre corto]],Nombres[],2,FALSE),IF(TablaPaíses[[#This Row],[Nombre corto]]<>"",TablaPaíses[[#This Row],[Nombre corto]],TablaPaíses[[#This Row],[País]]&"*")))) -> República de Sierra Leona | E152: Sierra Leone | F152: =IFERROR(VLOOKUP(TablaPaíses[[#This Row],[Country]],Population[],2,FALSE),"") -> 8598720
A153: Asia | B153: Singapur | D153: =IFERROR(VLOOKUP(TablaPaíses[[#This Row],[País]],Nombres[],2,FALSE),IFERROR(VLOOKUP("*"&TablaPaíses[[#This Row],[Country]]&"*",Nombres[],2,FALSE),IFERROR(VLOOKUP(TablaPaíses[[#This Row],[Nombre corto]],Nombres[],2,FALSE),IF(TablaPaíses[[#This Row],[Nombre corto]]<>"",TablaPaíses[[#This Row],[Nombre corto]],TablaPaíses[[#This Row],[País]]&"*")))) -> República de Singapur | E153: Singapore | F153: =IFERROR(VLOOKUP(TablaPaíses[[#This Row],[Country]],Population[],2,FALSE),"") -> 6286216
A154: Asia | B154: Siria | D154: =IFERROR(VLOOKUP(TablaPaíses[[#This Row],[País]],Nombres[],2,FALSE),IFERROR(VLOOKUP("*"&TablaPaíses[[#This Row],[Country]]&"*",Nombres[],2,FALSE),IFERROR(VLOOKUP(TablaPaíses[[#This Row],[Nombre corto]],Nombres[],2,FALSE),IF(TablaPaíses[[#This Row],[Nombre corto]]<>"",TablaPaíses[[#This Row],[Nombre corto]],TablaPaíses[[#This Row],[País]]&"*")))) -> República Árabe Siria | E154: Syria | F154: =IFERROR(VLOOKUP(TablaPaíses[[#This Row],[Country]],Population[],2,FALSE),"") -> 15813766
A155: África | B155: Somalia | D155: =IFERROR(VLOOKUP(TablaPaíses[[#This Row],[País]],Nombres[],2,FALSE),IFERROR(VLOOKUP("*"&TablaPaíses[[#This Row],[Country]]&"*",Nombres[],2,FALSE),IFERROR(VLOOKUP(TablaPaíses[[#This Row],[Nombre corto]],Nombres[],2,FALSE),IF(TablaPaíses[[#This Row],[Nombre corto]]<>"",TablaPaíses[[#This Row],[Nombre corto]],TablaPaíses[[#This Row],[País]]&"*")))) -> República Somalí | E155: Somalia | F155: =IFERROR(VLOOKUP(TablaPaíses[[#This Row],[Country]],Population[],2,FALSE),"") -> 17163207
A156: Asia | B156: Sri Lanka | D156: =IFERROR(VLOOKUP(TablaPaíses[[#This Row],[País]],Nombres[],2,FALSE),IFERROR(VLOOKUP("*"&TablaPaíses[[#This Row],[Country]]&"*",Nombres[],2,FALSE),IFERROR(VLOOKUP(TablaPaíses[[#This Row],[Nombre corto]],Nombres[],2,FALSE),IF(TablaPaíses[[#This Row],[Nombre corto]]<>"",TablaPaíses[[#This Row],[Nombre corto]],TablaPaíses[[#This Row],[País]]&"*")))) -> República Socialista Democrática de Sri Lanka | E156: Sri Lanka | F156: =IFERROR(VLOOKUP(TablaPaíses[[#This Row],[Country]],Population[],2,FALSE),"") -> 21789428
A157: África | B157: Suazilandia | D157: =IFERROR(VLOOKUP(TablaPaíses[[#This Row],[País]],Nombres[],2,FALSE),IFERROR(VLOOKUP("*"&TablaPaíses[[#This Row],[Country]]&"*",Nombres[],2,FALSE),IFERROR(VLOOKUP(TablaPaíses[[#This Row],[Nombre corto]],Nombres[],2,FALSE),IF(TablaPaíses[[#This Row],[Nombre corto]]<>"",TablaPaíses[[#This Row],[Nombre corto]],TablaPaíses[[#This Row],[País]]&"*")))) -> Reino de Swazilandia | E157: Swaziland | F157: =IFERROR(VLOOKUP(TablaPaíses[[#This Row],[Country]],Population[],2,FALSE),"") -> 1223682
A158: África | B158: Sudáfrica | D158: =IFERROR(VLOOKUP(TablaPaíses[[#This Row],[País]],Nombres[],2,FALSE),IFERROR(VLOOKUP("*"&TablaPaíses[[#This Row],[Country]]&"*",Nombres[],2,FALSE),IFERROR(VLOOKUP(TablaPaíses[[#This Row],[Nombre corto]],Nombres[],2,FALSE),IF(TablaPaíses[[#This Row],[Nombre corto]]<>"",TablaPaíses[[#This Row],[Nombre corto]],TablaPaíses[[#This Row],[País]]&"*")))) -> República de Sudáfrica | E158: South Africa | F158: =IFERROR(VLOOKUP(TablaPaíses[[#This Row],[Country]],Population[],2,FALSE),"") -> 61455217
A159: África | B159: Sudán | D159: =IFERROR(VLOOKUP(TablaPaíses[[#This Row],[País]],Nombres[],2,FALSE),IFERROR(VLOOKUP("*"&TablaPaíses[[#This Row],[Country]]&"*",Nombres[],2,FALSE),IFERROR(VLOOKUP(TablaPaíses[[#This Row],[Nombre corto]],Nombres[],2,FALSE),IF(TablaPaíses[[#This Row],[Nombre corto]]<>"",TablaPaíses[[#This Row],[Nombre corto]],TablaPaíses[[#This Row],[País]]&"*")))) -> República de Sudán | E159: Sudan | F159: =IFERROR(VLOOKUP(TablaPaíses[[#This Row],[Country]],Population[],2,FALSE),"") -> 47092782
A160: África | B160: Sudán del Sur | D160: =IFERROR(VLOOKUP(TablaPaíses[[#This Row],[País]],Nombres[],2,FALSE),IFERROR(VLOOKUP("*"&TablaPaíses[[#This Row],[Country]]&"*",Nombres[],2,FALSE),IFERROR(VLOOKUP(TablaPaíses[[#This Row],[Nombre corto]],Nombres[],2,FALSE),IF(TablaPaíses[[#This Row],[Nombre corto]]<>"",TablaPaíses[[#This Row],[Nombre corto]],TablaPaíses[[#This Row],[País]]&"*")))) -> República de Sudán del Sur | E160: South Sudan | F160: =IFERROR(VLOOKUP(TablaPaíses[[#This Row],[Country]],Population[],2,FALSE),"") -> 13003435
A161: Europa | B161: Suecia | D161: =IFERROR(VLOOKUP(TablaPaíses[[#This Row],[País]],Nombres[],2,FALSE),IFERROR(VLOOKUP("*"&TablaPaíses[[#This Row],[Country]]&"*",Nombres[],2,FALSE),IFERROR(VLOOKUP(TablaPaíses[[#This Row],[Nombre corto]],Nombres[],2,FALSE),IF(TablaPaíses[[#This Row],[Nombre corto]]<>"",TablaPaíses[[#This Row],[Nombre corto]],TablaPaíses[[#This Row],[País]]&"*")))) -> Reino de Suecia | E161: Sweden | F161: =IFERROR(VLOOKUP(TablaPaíses[[#This Row],[Country]],Population[],2,FALSE),"") -> 10396890
A162: Europa | B162: Suiza | D162: =IFERROR(VLOOKUP(TablaPaíses[[#This Row],[País]],Nombres[],2,FALSE),IFERROR(VLOOKUP("*"&TablaPaíses[[#This Row],[Country]]&"*",Nombres[],2,FALSE),IFERROR(VLOOKUP(TablaPaíses[[#This Row],[Nombre corto]],Nombres[],2,FALSE),IF(TablaPaíses[[#This Row],[Nombre corto]]<>"",TablaPaíses[[#This Row],[Nombre corto]],TablaPaíses[[#This Row],[País]]&"*")))) -> Confederación Suiza | E162: Switzerland | F162: =IFERROR(VLOOKUP(TablaPaíses[[#This Row],[Country]],Population[],2,FALSE),"") -> 9019575
A163: América del Sur | B163: Surinam | D163: =IFERROR(VLOOKUP(TablaPaíses[[#This Row],[País]],Nombres[],2,FALSE),IFERROR(VLOOKUP("*"&TablaPaíses[[#This Row],[Country]]&"*",Nombres[],2,FALSE),IFERROR(VLOOKUP(TablaPaíses[[#This Row],[Nombre corto]],Nombres[],2,FALSE),IF(TablaPaíses[[#This Row],[Nombre corto]]<>"",TablaPaíses[[#This Row],[Nombre corto]],TablaPaíses[[#This Row],[País]]&"*")))) -> República de Surinam | E163: Suriname | F163: =IFERROR(VLOOKUP(TablaPaíses[[#This Row],[Country]],Population[],2,FALSE),"") -> 605587
A164: Asia | B164: Tailandia | D164: =IFERROR(VLOOKUP(TablaPaíses[[#This Row],[País]],Nombres[],2,FALSE),IFERROR(VLOOKUP("*"&TablaPaíses[[#This Row],[Country]]&"*",Nombres[],2,FALSE),IFERROR(VLOOKUP(TablaPaíses[[#This Row],[Nombre corto]],Nombres[],2,FALSE),IF(TablaPaíses[[#This Row],[Nombre corto]]<>"",TablaPaíses[[#This Row],[Nombre corto]],TablaPaíses[[#This Row],[País]]&"*")))) -> Reino de Tailandia | E164: Thailand | F164: =IFERROR(VLOOKUP(TablaPaíses[[#This Row],[Country]],Population[],2,FALSE),"") -> 70742091
A165: África | B165: Tanzania | D165: =IFERROR(VLOOKUP(TablaPaíses[[#This Row],[País]],Nombres[],2,FALSE),IFERROR(VLOOKUP("*"&TablaPaíses[[#This Row],[Country]]&"*",Nombres[],2,FALSE),IFERROR(VLOOKUP(TablaPaíses[[#This Row],[Nombre corto]],Nombres[],2,FALSE),IF(TablaPaíses[[#This Row],[Nombre corto]]<>"",TablaPaíses[[#This Row],[Nombre corto]],TablaPaíses[[#This Row],[País]]&"*")))) -> República Unida de Tanzania | E165: Tanzania | F165: =IFERROR(VLOOKUP(TablaPaíses[[#This Row],[Country]],Population[],2,FALSE),"") -> 66448260
A166: Asia | B166: Tayikistán | D166: =IFERROR(VLOOKUP(TablaPaíses[[#This Row],[País]],Nombres[],2,FALSE),IFERROR(VLOOKUP("*"&TablaPaíses[[#This Row],[Country]]&"*",Nombres[],2,FALSE),IFERROR(VLOOKUP(TablaPaíses[[#This Row],[Nombre corto]],Nombres[],2,FALSE),IF(TablaPaíses[[#This Row],[Nombre corto]]<>"",TablaPaíses[[#This Row],[Nombre corto]],TablaPaíses[[#This Row],[País]]&"*")))) -> República de Tayikistán | E166: Tajikistan | F166: =IFERROR(VLOOKUP(TablaPaíses[[#This Row],[Country]],Population[],2,FALSE),"") -> 10280323
A167: Asia | B167: Timor Oriental | D167: =IFERROR(VLOOKUP(TablaPaíses[[#This Row],[País]],Nombres[],2,FALSE),IFERROR(VLOOKUP("*"&TablaPaíses[[#This Row],[Country]]&"*",Nombres[],2,FALSE),IFERROR(VLOOKUP(TablaPaíses[[#This Row],[Nombre corto]],Nombres[],2,FALSE),IF(TablaPaíses[[#This Row],[Nombre corto]]<>"",TablaPaíses[[#This Row],[Nombre corto]],TablaPaíses[[#This Row],[País]]&"*")))) -> República Democrática de Timor Oriental | E167: Timor-Leste | F167: =IFERROR(VLOOKUP(TablaPaíses[[#This Row],[Country]],Population[],2,FALSE),"") -> 1425512
A168: África | B168: Togo | D168: =IFERROR(VLOOKUP(TablaPaíses[[#This Row],[País]],Nombres[],2,FALSE),IFERROR(VLOOKUP("*"&TablaPaíses[[#This Row],[Country]]&"*",Nombres[],2,FALSE),IFERROR(VLOOKUP(TablaPaíses[[#This Row],[Nombre corto]],Nombres[],2,FALSE),IF(TablaPaíses[[#This Row],[Nombre corto]]<>"",TablaPaíses[[#This Row],[Nombre corto]],TablaPaíses[[#This Row],[País]]&"*")))) -> República Togolesa | E168: Togo | F168: =IFERROR(VLOOKUP(TablaPaíses[[#This Row],[Country]],Population[],2,FALSE),"") -> 9064498
A169: África | B169: Túnez | D169: =IFERROR(VLOOKUP(TablaPaíses[[#This Row],[País]],Nombres[],2,FALSE),IFERROR(VLOOKUP("*"&TablaPaíses[[#This Row],[Country]]&"*",Nombres[],2,FALSE),IFERROR(VLOOKUP(TablaPaíses[[#This Row],[Nombre corto]],Nombres[],2,FALSE),IF(TablaPaíses[[#This Row],[Nombre corto]]<>"",TablaPaíses[[#This Row],[Nombre corto]],TablaPaíses[[#This Row],[País]]&"*")))) -> República de Túnez | E169: Tunisia | F169: =IFERROR(VLOOKUP(TablaPaíses[[#This Row],[Country]],Population[],2,FALSE),"") -> 12279035
A170: Asia | B170: Turkmenistán | D170: =IFERROR(VLOOKUP(TablaPaíses[[#This Row],[País]],Nombres[],2,FALSE),IFERROR(VLOOKUP("*"&TablaPaíses[[#This Row],[Country]]&"*",Nombres[],2,FALSE),IFERROR(VLOOKUP(TablaPaíses[[#This Row],[Nombre corto]],Nombres[],2,FALSE),IF(TablaPaíses[[#This Row],[Nombre corto]]<>"",TablaPaíses[[#This Row],[Nombre corto]],TablaPaíses[[#This Row],[País]]&"*")))) -> Turkmenistán | E170: Turkmenistan | F170: =IFERROR(VLOOKUP(TablaPaíses[[#This Row],[Country]],Population[],2,FALSE),"") -> 6289149
A171: Asia | B171: Turquía | D171: =IFERROR(VLOOKUP(TablaPaíses[[#This Row],[País]],Nombres[],2,FALSE),IFERROR(VLOOKUP("*"&TablaPaíses[[#This Row],[Country]]&"*",Nombres[],2,FALSE),IFERROR(VLOOKUP(TablaPaíses[[#This Row],[Nombre corto]],Nombres[],2,FALSE),IF(TablaPaíses[[#This Row],[Nombre corto]]<>"",TablaPaíses[[#This Row],[Nombre corto]],TablaPaíses[[#This Row],[País]]&"*")))) -> República de Turquía | E171: Turkey | F171: =IFERROR(VLOOKUP(TablaPaíses[[#This Row],[Country]],Population[],2,FALSE),"") -> 89523086
A172: Europa | B172: Ucrania | D172: =IFERROR(VLOOKUP(TablaPaíses[[#This Row],[País]],Nombres[],2,FALSE),IFERROR(VLOOKUP("*"&TablaPaíses[[#This Row],[Country]]&"*",Nombres[],2,FALSE),IFERROR(VLOOKUP(TablaPaíses[[#This Row],[Nombre corto]],Nombres[],2,FALSE),IF(TablaPaíses[[#This Row],[Nombre corto]]<>"",TablaPaíses[[#This Row],[Nombre corto]],TablaPaíses[[#This Row],[País]]&"*")))) -> Ucrania | E172: Ukraine | F172: =IFERROR(VLOOKUP(TablaPaíses[[#This Row],[Country]],Population[],2,FALSE),"") -> 43244699
A173: África | B173: Uganda | D173: =IFERROR(VLOOKUP(TablaPaíses[[#This Row],[País]],Nombres[],2,FALSE),IFERROR(VLOOKUP("*"&TablaPaíses[[#This Row],[Country]]&"*",Nombres[],2,FALSE),IFERROR(VLOOKUP(TablaPaíses[[#This Row],[Nombre corto]],Nombres[],2,FALSE),IF(TablaPaíses[[#This Row],[Nombre corto]]<>"",TablaPaíses[[#This Row],[Nombre corto]],TablaPaíses[[#This Row],[País]]&"*")))) -> República de Uganda | E173: Uganda | F173: =IFERROR(VLOOKUP(TablaPaíses[[#This Row],[Country]],Population[],2,FALSE),"") -> 51001127
A174: América del Sur | B174: Uruguay | D174: =IFERROR(VLOOKUP(TablaPaíses[[#This Row],[País]],Nombres[],2,FALSE),IFERROR(VLOOKUP("*"&TablaPaíses[[#This Row],[Country]]&"*",Nombres[],2,FALSE),IFERROR(VLOOKUP(TablaPaíses[[#This Row],[Nombre corto]],Nombres[],2,FALSE),IF(TablaPaíses[[#This Row],[Nombre corto]]<>"",TablaPaíses[[#This Row],[Nombre corto]],TablaPaíses[[#This Row],[País]]&"*")))) -> República Oriental del Uruguay | E174: Uruguay | F174: =IFERROR(VLOOKUP(TablaPaíses[[#This Row],[Country]],Population[],2,FALSE),"") -> 3513347
A175: Asia | B175: Uzbekistán | D175: =IFERROR(VLOOKUP(TablaPaíses[[#This Row],[País]],Nombres[],2,FALSE),IFERROR(VLOOKUP("*"&TablaPaíses[[#This Row],[Country]]&"*",Nombres[],2,FALSE),IFERROR(VLOOKUP(TablaPaíses[[#This Row],[Nombre corto]],Nombres[],2,FALSE),IF(TablaPaíses[[#This Row],[Nombre corto]]<>"",TablaPaíses[[#This Row],[Nombre corto]],TablaPaíses[[#This Row],[País]]&"*")))) -> República de Uzbekistán | E175: Uzbekistan | F175: =IFERROR(VLOOKUP(TablaPaíses[[#This Row],[Country]],Population[],2,FALSE),"") -> 35203261
A176: Oceanía | B176: Vanuatu | D176: =IFERROR(VLOOKUP(TablaPaíses[[#This Row],[País]],Nombres[],2,FALSE),IFERROR(VLOOKUP("*"&TablaPaíses[[#This Row],[Country]]&"*",Nombres[],2,FALSE),IFERROR(VLOOKUP(TablaPaíses[[#This Row],[Nombre corto]],Nombres[],2,FALSE),IF(TablaPaíses[[#This Row],[Nombre corto]]<>"",TablaPaíses[[#This Row],[Nombre corto]],TablaPaíses[[#This Row],[País]]&"*")))) -> República de Vanuatu | E176: Vanuatu | F176: =IFERROR(VLOOKUP(TablaPaíses[[#This Row],[Country]],Population[],2,FALSE),"") -> 331187
A177: Europa | B177: Ciudad del Vaticano | C177: Estado de la Ciudad del Vaticano | D177: =IFERROR(VLOOKUP(TablaPaíses[[#This Row],[País]],Nombres[],2,FALSE),IFERROR(VLOOKUP("*"&TablaPaíses[[#This Row],[Country]]&"*",Nombres[],2,FALSE),IFERROR(VLOOKUP(TablaPaíses[[#This Row],[Nombre corto]],Nombres[],2,FALSE),IF(TablaPaíses[[#This Row],[Nombre corto]]<>"",TablaPaíses[[#This Row],[Nombre corto]],TablaPaíses[[#This Row],[País]]&"*")))) -> Estado de la Ciudad del Vaticano | E177: Vatican City | F177: =IFERROR(VLOOKUP(TablaPaíses[[#This Row],[Country]],Population[],2,FALSE),"") -> 
A178: América del Sur | B178: Venezuela | D178: =IFERROR(VLOOKUP(TablaPaíses[[#This Row],[País]],Nombres[],2,FALSE),IFERROR(VLOOKUP("*"&TablaPaíses[[#This Row],[Country]]&"*",Nombres[],2,FALSE),IFERROR(VLOOKUP(TablaPaíses[[#This Row],[Nombre corto]],Nombres[],2,FALSE),IF(TablaPaíses[[#This Row],[Nombre corto]]<>"",TablaPaíses[[#This Row],[Nombre corto]],TablaPaíses[[#This Row],[País]]&"*")))) -> República Bolivariana de Venezuela | E178: Venezuela | F178: =IFERROR(VLOOKUP(TablaPaíses[[#This Row],[Country]],Population[],2,FALSE),"") -> 30065468
